Workbook

Sheet Instructions
B7: This workbook sets out amended risk-free interest rate term structures:
B9: Worksheet "Scenario Data"
B10: Scenario 1: CP interest rate risk shocks based on LLP 20Y
B11: Scenario 2: Current SCR interest rate risk shocks
B13: Worksheet EUR Smith-Wilson LLP30
B14: Term structure for the additional calculation set out in section 7.3 of the technical specification.
B15: Only relevant for undertakings from the euro area.
B17: Worksheet "SRC & Scaling Factors"
B18: Risk-corrected currency spreads and scaling factors for the calculation of the volatility adjustment.
B21: Inputs are provided for integer term maturities
B23: Undertakings shall apply appropriate interpolation techniques for discounting inter-annual cash flows
B29: Log of changes | I29: Amendments
B31: Version
B32: v1.0 | I32: -
B33: v1.1 | I33: EUR Smith-Wilson LLP30 fixed

Sheet Scenario Data
J6: EUR
J7: 15
B11: NO volatility adjustment | H11: WITH volatility adjustment
B12: Alternative Extrapolation Method RFR | C12: Scenario 1- Up Shock | D12: Scenario 1 - Down Shock | E12: Scenario 2 - Up Shock | F12: Scenario 2 - Down Shock | H12: Alternative Extrapolation Method RFR | I12: Scenario 1 - Up Shock | J12: Scenario 1 - Down Shock | K12: Scenario 2 - Up Shock | L12: Scenario 2 - Down Shock
A13: 1 | B13: =BaseCurve -> -0.00445 | C13: =ROUND(B13*(1+Shocks!H12)+Shocks!I12,5) -> 0.01424 | D13: =ROUND(B13*(1-Shocks!F12)-Shocks!G12,5) -> -0.01347 | E13: =ROUND(B13 + MAX(0.01,Shocks!E12*ABS(B13) ),5) -> 0.00555 | F13: =ROUND(IF(B13<0,B13, B13 - Shocks!D12 * ABS(B13)),5) -> -0.00445 | H13: =BaseCurveWithVA ->  | I13: =ROUND(B13*(1+Shocks!H12)+Shocks!I12,5)+Extrapolation!T15 ->  | J13: =ROUND(B13*(1-Shocks!F12)-Shocks!G12,5)+Extrapolation!T15 ->  | K13: =ROUND(B13 + MAX(0.01,Shocks!E12*ABS(B13) )+Extrapolation!T15, 5) ->  | L13: =ROUND(IF(B13<0,B13, B13 - Shocks!D12 * ABS(B13))+Extrapolation!T15, 5) ->  | Y13: Czech Republic | Z13: 1
A14: 2 | B14: -0.004749287714 | C14: =ROUND(B14*(1+Shocks!H13)+Shocks!I13,5) -> 0.01133 | D14: =ROUND(B14*(1-Shocks!F13)-Shocks!G13,5) -> -0.01223 | E14: =ROUND(B14 + MAX(0.01,Shocks!E13*ABS(B14) ),5) -> 0.00525 | F14: =ROUND(IF(B14<0,B14, B14 - Shocks!D13 * ABS(B14)),5) -> -0.00475 | I14: =ROUND(B14*(1+Shocks!H13)+Shocks!I13,5)+Extrapolation!T16 ->  | J14: =ROUND(B14*(1-Shocks!F13)-Shocks!G13,5)+Extrapolation!T16 ->  | K14: =ROUND(B14 + MAX(0.01,Shocks!E13*ABS(B14) )+Extrapolation!T16, 5) ->  | L14: =ROUND(IF(B14<0,B14, B14 - Shocks!D13 * ABS(B14))+Extrapolation!T16, 5) ->  | Y14: Hungary | Z14: 2
A15: 3 | B15: -0.004849031139 | C15: =ROUND(B15*(1+Shocks!H14)+Shocks!I14,5) -> 0.00997 | D15: =ROUND(B15*(1-Shocks!F14)-Shocks!G14,5) -> -0.01102 | E15: =ROUND(B15 + MAX(0.01,Shocks!E14*ABS(B15) ),5) -> 0.00515 | F15: =ROUND(IF(B15<0,B15, B15 - Shocks!D14 * ABS(B15)),5) -> -0.00485 | I15: =ROUND(B15*(1+Shocks!H14)+Shocks!I14,5)+Extrapolation!T17 ->  | J15: =ROUND(B15*(1-Shocks!F14)-Shocks!G14,5)+Extrapolation!T17 ->  | K15: =ROUND(B15 + MAX(0.01,Shocks!E14*ABS(B15) )+Extrapolation!T17, 5) ->  | L15: =ROUND(IF(B15<0,B15, B15 - Shocks!D14 * ABS(B15))+Extrapolation!T17, 5) ->  | Y15: Poland | Z15: 3
A16: 4 | B16: -0.004650693906 | C16: =ROUND(B16*(1+Shocks!H15)+Shocks!I15,5) -> 0.00931 | D16: =ROUND(B16*(1-Shocks!F15)-Shocks!G15,5) -> -0.01019 | E16: =ROUND(B16 + MAX(0.01,Shocks!E15*ABS(B16) ),5) -> 0.00535 | F16: =ROUND(IF(B16<0,B16, B16 - Shocks!D15 * ABS(B16)),5) -> -0.00465 | I16: =ROUND(B16*(1+Shocks!H15)+Shocks!I15,5)+Extrapolation!T18 ->  | J16: =ROUND(B16*(1-Shocks!F15)-Shocks!G15,5)+Extrapolation!T18 ->  | K16: =ROUND(B16 + MAX(0.01,Shocks!E15*ABS(B16) )+Extrapolation!T18, 5) ->  | L16: =ROUND(IF(B16<0,B16, B16 - Shocks!D15 * ABS(B16))+Extrapolation!T18, 5) ->  | Y16: Romania | Z16: 4
A17: 5 | B17: -0.004452304577 | C17: =ROUND(B17*(1+Shocks!H16)+Shocks!I16,5) -> 0.00934 | D17: =ROUND(B17*(1-Shocks!F16)-Shocks!G16,5) -> -0.00977 | E17: =ROUND(B17 + MAX(0.01,Shocks!E16*ABS(B17) ),5) -> 0.00555 | F17: =ROUND(IF(B17<0,B17, B17 - Shocks!D16 * ABS(B17)),5) -> -0.00445 | I17: =ROUND(B17*(1+Shocks!H16)+Shocks!I16,5)+Extrapolation!T19 ->  | J17: =ROUND(B17*(1-Shocks!F16)-Shocks!G16,5)+Extrapolation!T19 ->  | K17: =ROUND(B17 + MAX(0.01,Shocks!E16*ABS(B17) )+Extrapolation!T19, 5) ->  | L17: =ROUND(IF(B17<0,B17, B17 - Shocks!D16 * ABS(B17))+Extrapolation!T19, 5) ->  | Y17: Switzerland | Z17: 5
A18: 6 | B18: -0.00415489169 | C18: =ROUND(B18*(1+Shocks!H17)+Shocks!I17,5) -> 0.00854 | D18: =ROUND(B18*(1-Shocks!F17)-Shocks!G17,5) -> -0.00928 | E18: =ROUND(B18 + MAX(0.01,Shocks!E17*ABS(B18) ),5) -> 0.00585 | F18: =ROUND(IF(B18<0,B18, B18 - Shocks!D17 * ABS(B18)),5) -> -0.00415 | I18: =ROUND(B18*(1+Shocks!H17)+Shocks!I17,5)+Extrapolation!T20 ->  | J18: =ROUND(B18*(1-Shocks!F17)-Shocks!G17,5)+Extrapolation!T20 ->  | K18: =ROUND(B18 + MAX(0.01,Shocks!E17*ABS(B18) )+Extrapolation!T20, 5) ->  | L18: =ROUND(IF(B18<0,B18, B18 - Shocks!D17 * ABS(B18))+Extrapolation!T20, 5) ->  | Y18: United States | Z18: 6
A19: 7 | B19: -0.003857343461 | C19: =ROUND(B19*(1+Shocks!H18)+Shocks!I18,5) -> 0.00772 | D19: =ROUND(B19*(1-Shocks!F18)-Shocks!G18,5) -> -0.00873 | E19: =ROUND(B19 + MAX(0.01,Shocks!E18*ABS(B19) ),5) -> 0.00614 | F19: =ROUND(IF(B19<0,B19, B19 - Shocks!D18 * ABS(B19)),5) -> -0.00386 | I19: =ROUND(B19*(1+Shocks!H18)+Shocks!I18,5)+Extrapolation!T21 ->  | J19: =ROUND(B19*(1-Shocks!F18)-Shocks!G18,5)+Extrapolation!T21 ->  | K19: =ROUND(B19 + MAX(0.01,Shocks!E18*ABS(B19) )+Extrapolation!T21, 5) ->  | L19: =ROUND(IF(B19<0,B19, B19 - Shocks!D18 * ABS(B19))+Extrapolation!T21, 5) -> 
A20: 8 | B20: -0.003460578737 | C20: =ROUND(B20*(1+Shocks!H19)+Shocks!I19,5) -> 0.00726 | D20: =ROUND(B20*(1-Shocks!F19)-Shocks!G19,5) -> -0.00835 | E20: =ROUND(B20 + MAX(0.01,Shocks!E19*ABS(B20) ),5) -> 0.00654 | F20: =ROUND(IF(B20<0,B20, B20 - Shocks!D19 * ABS(B20)),5) -> -0.00346 | I20: =ROUND(B20*(1+Shocks!H19)+Shocks!I19,5)+Extrapolation!T22 ->  | J20: =ROUND(B20*(1-Shocks!F19)-Shocks!G19,5)+Extrapolation!T22 ->  | K20: =ROUND(B20 + MAX(0.01,Shocks!E19*ABS(B20) )+Extrapolation!T22, 5) ->  | L20: =ROUND(IF(B20<0,B20, B20 - Shocks!D19 * ABS(B20))+Extrapolation!T22, 5) -> 
A21: 9 | B21: -0.003063194614 | C21: =ROUND(B21*(1+Shocks!H20)+Shocks!I20,5) -> 0.00716 | D21: =ROUND(B21*(1-Shocks!F20)-Shocks!G20,5) -> -0.00797 | E21: =ROUND(B21 + MAX(0.01,Shocks!E20*ABS(B21) ),5) -> 0.00694 | F21: =ROUND(IF(B21<0,B21, B21 - Shocks!D20 * ABS(B21)),5) -> -0.00306 | I21: =ROUND(B21*(1+Shocks!H20)+Shocks!I20,5)+Extrapolation!T23 ->  | J21: =ROUND(B21*(1-Shocks!F20)-Shocks!G20,5)+Extrapolation!T23 ->  | K21: =ROUND(B21 + MAX(0.01,Shocks!E20*ABS(B21) )+Extrapolation!T23, 5) ->  | L21: =ROUND(IF(B21<0,B21, B21 - Shocks!D20 * ABS(B21))+Extrapolation!T23, 5) -> 
A22: 10 | B22: -0.002665102089 | C22: =ROUND(B22*(1+Shocks!H21)+Shocks!I21,5) -> 0.00704 | D22: =ROUND(B22*(1-Shocks!F21)-Shocks!G21,5) -> -0.0077 | E22: =ROUND(B22 + MAX(0.01,Shocks!E21*ABS(B22) ),5) -> 0.00733 | F22: =ROUND(IF(B22<0,B22, B22 - Shocks!D21 * ABS(B22)),5) -> -0.00267 | I22: =ROUND(B22*(1+Shocks!H21)+Shocks!I21,5)+Extrapolation!T24 ->  | J22: =ROUND(B22*(1-Shocks!F21)-Shocks!G21,5)+Extrapolation!T24 ->  | K22: =ROUND(B22 + MAX(0.01,Shocks!E21*ABS(B22) )+Extrapolation!T24, 5) ->  | L22: =ROUND(IF(B22<0,B22, B22 - Shocks!D21 * ABS(B22))+Extrapolation!T24, 5) -> 
A23: 11 | B23: -0.002342835122 | C23: =ROUND(B23*(1+Shocks!H22)+Shocks!I22,5) -> 0.00745 | D23: =ROUND(B23*(1-Shocks!F22)-Shocks!G22,5) -> -0.00738 | E23: =ROUND(B23 + MAX(0.01,Shocks!E22*ABS(B23) ),5) -> 0.00766 | F23: =ROUND(IF(B23<0,B23, B23 - Shocks!D22 * ABS(B23)),5) -> -0.00234 | I23: =ROUND(B23*(1+Shocks!H22)+Shocks!I22,5)+Extrapolation!T25 ->  | J23: =ROUND(B23*(1-Shocks!F22)-Shocks!G22,5)+Extrapolation!T25 ->  | K23: =ROUND(B23 + MAX(0.01,Shocks!E22*ABS(B23) )+Extrapolation!T25, 5) ->  | L23: =ROUND(IF(B23<0,B23, B23 - Shocks!D22 * ABS(B23))+Extrapolation!T25, 5) -> 
A24: 12 | B24: -0.001866439483 | C24: =ROUND(B24*(1+Shocks!H23)+Shocks!I23,5) -> 0.00807 | D24: =ROUND(B24*(1-Shocks!F23)-Shocks!G23,5) -> -0.00708 | E24: =ROUND(B24 + MAX(0.01,Shocks!E23*ABS(B24) ),5) -> 0.00813 | F24: =ROUND(IF(B24<0,B24, B24 - Shocks!D23 * ABS(B24)),5) -> -0.00187 | I24: =ROUND(B24*(1+Shocks!H23)+Shocks!I23,5)+Extrapolation!T26 ->  | J24: =ROUND(B24*(1-Shocks!F23)-Shocks!G23,5)+Extrapolation!T26 ->  | K24: =ROUND(B24 + MAX(0.01,Shocks!E23*ABS(B24) )+Extrapolation!T26, 5) ->  | L24: =ROUND(IF(B24<0,B24, B24 - Shocks!D23 * ABS(B24))+Extrapolation!T26, 5) -> 
A25: 13 | B25: -0.001578548155 | C25: =ROUND(B25*(1+Shocks!H24)+Shocks!I24,5) -> 0.00845 | D25: =ROUND(B25*(1-Shocks!F24)-Shocks!G24,5) -> -0.0068 | E25: =ROUND(B25 + MAX(0.01,Shocks!E24*ABS(B25) ),5) -> 0.00842 | F25: =ROUND(IF(B25<0,B25, B25 - Shocks!D24 * ABS(B25)),5) -> -0.00158 | I25: =ROUND(B25*(1+Shocks!H24)+Shocks!I24,5)+Extrapolation!T27 ->  | J25: =ROUND(B25*(1-Shocks!F24)-Shocks!G24,5)+Extrapolation!T27 ->  | K25: =ROUND(B25 + MAX(0.01,Shocks!E24*ABS(B25) )+Extrapolation!T27, 5) ->  | L25: =ROUND(IF(B25<0,B25, B25 - Shocks!D24 * ABS(B25))+Extrapolation!T27, 5) -> 
A26: 14 | B26: -0.001251090928 | C26: =ROUND(B26*(1+Shocks!H25)+Shocks!I25,5) -> 0.00859 | D26: =ROUND(B26*(1-Shocks!F25)-Shocks!G25,5) -> -0.0065 | E26: =ROUND(B26 + MAX(0.01,Shocks!E25*ABS(B26) ),5) -> 0.00875 | F26: =ROUND(IF(B26<0,B26, B26 - Shocks!D25 * ABS(B26)),5) -> -0.00125 | I26: =ROUND(B26*(1+Shocks!H25)+Shocks!I25,5)+Extrapolation!T28 ->  | J26: =ROUND(B26*(1-Shocks!F25)-Shocks!G25,5)+Extrapolation!T28 ->  | K26: =ROUND(B26 + MAX(0.01,Shocks!E25*ABS(B26) )+Extrapolation!T28, 5) ->  | L26: =ROUND(IF(B26<0,B26, B26 - Shocks!D25 * ABS(B26))+Extrapolation!T28, 5) -> 
A27: 15 | B27: -0.0009419269781 | C27: =ROUND(B27*(1+Shocks!H26)+Shocks!I26,5) -> 0.00859 | D27: =ROUND(B27*(1-Shocks!F26)-Shocks!G26,5) -> -0.00622 | E27: =ROUND(B27 + MAX(0.01,Shocks!E26*ABS(B27) ),5) -> 0.00906 | F27: =ROUND(IF(B27<0,B27, B27 - Shocks!D26 * ABS(B27)),5) -> -0.00094 | I27: =ROUND(B27*(1+Shocks!H26)+Shocks!I26,5)+Extrapolation!T29 ->  | J27: =ROUND(B27*(1-Shocks!F26)-Shocks!G26,5)+Extrapolation!T29 ->  | K27: =ROUND(B27 + MAX(0.01,Shocks!E26*ABS(B27) )+Extrapolation!T29, 5) ->  | L27: =ROUND(IF(B27<0,B27, B27 - Shocks!D26 * ABS(B27))+Extrapolation!T29, 5) -> 
A28: 16 | B28: -0.0007749789843 | C28: =ROUND(B28*(1+Shocks!H27)+Shocks!I27,5) -> 0.00881 | D28: =ROUND(B28*(1-Shocks!F27)-Shocks!G27,5) -> -0.00601 | E28: =ROUND(B28 + MAX(0.01,Shocks!E27*ABS(B28) ),5) -> 0.00923 | F28: =ROUND(IF(B28<0,B28, B28 - Shocks!D27 * ABS(B28)),5) -> -0.00077 | I28: =ROUND(B28*(1+Shocks!H27)+Shocks!I27,5)+Extrapolation!T30 ->  | J28: =ROUND(B28*(1-Shocks!F27)-Shocks!G27,5)+Extrapolation!T30 ->  | K28: =ROUND(B28 + MAX(0.01,Shocks!E27*ABS(B28) )+Extrapolation!T30, 5) ->  | L28: =ROUND(IF(B28<0,B28, B28 - Shocks!D27 * ABS(B28))+Extrapolation!T30, 5) -> 
A29: 17 | B29: -0.0006276487632 | C29: =ROUND(B29*(1+Shocks!H28)+Shocks!I28,5) -> 0.0087 | D29: =ROUND(B29*(1-Shocks!F28)-Shocks!G28,5) -> -0.00583 | E29: =ROUND(B29 + MAX(0.01,Shocks!E28*ABS(B29) ),5) -> 0.00937 | F29: =ROUND(IF(B29<0,B29, B29 - Shocks!D28 * ABS(B29)),5) -> -0.00063 | I29: =ROUND(B29*(1+Shocks!H28)+Shocks!I28,5)+Extrapolation!T31 ->  | J29: =ROUND(B29*(1-Shocks!F28)-Shocks!G28,5)+Extrapolation!T31 ->  | K29: =ROUND(B29 + MAX(0.01,Shocks!E28*ABS(B29) )+Extrapolation!T31, 5) ->  | L29: =ROUND(IF(B29<0,B29, B29 - Shocks!D28 * ABS(B29))+Extrapolation!T31, 5) -> 
A30: 18 | B30: -0.0004966703302 | C30: =ROUND(B30*(1+Shocks!H29)+Shocks!I29,5) -> 0.00847 | D30: =ROUND(B30*(1-Shocks!F29)-Shocks!G29,5) -> -0.00565 | E30: =ROUND(B30 + MAX(0.01,Shocks!E29*ABS(B30) ),5) -> 0.0095 | F30: =ROUND(IF(B30<0,B30, B30 - Shocks!D29 * ABS(B30)),5) -> -0.0005 | I30: =ROUND(B30*(1+Shocks!H29)+Shocks!I29,5)+Extrapolation!T32 ->  | J30: =ROUND(B30*(1-Shocks!F29)-Shocks!G29,5)+Extrapolation!T32 ->  | K30: =ROUND(B30 + MAX(0.01,Shocks!E29*ABS(B30) )+Extrapolation!T32, 5) ->  | L30: =ROUND(IF(B30<0,B30, B30 - Shocks!D29 * ABS(B30))+Extrapolation!T32, 5) -> 
A31: 19 | B31: -0.00037946455 | C31: =ROUND(B31*(1+Shocks!H30)+Shocks!I30,5) -> 0.00862 | D31: =ROUND(B31*(1-Shocks!F30)-Shocks!G30,5) -> -0.00539 | E31: =ROUND(B31 + MAX(0.01,Shocks!E30*ABS(B31) ),5) -> 0.00962 | F31: =ROUND(IF(B31<0,B31, B31 - Shocks!D30 * ABS(B31)),5) -> -0.00038 | I31: =ROUND(B31*(1+Shocks!H30)+Shocks!I30,5)+Extrapolation!T33 ->  | J31: =ROUND(B31*(1-Shocks!F30)-Shocks!G30,5)+Extrapolation!T33 ->  | K31: =ROUND(B31 + MAX(0.01,Shocks!E30*ABS(B31) )+Extrapolation!T33, 5) ->  | L31: =ROUND(IF(B31<0,B31, B31 - Shocks!D30 * ABS(B31))+Extrapolation!T33, 5) -> 
A32: 20 | B32: -0.0002739675966 | C32: =ROUND(B32*(1+Shocks!H31)+Shocks!I31,5) -> 0.00846 | D32: =ROUND(B32*(1-Shocks!F31)-Shocks!G31,5) -> -0.00514 | E32: =ROUND(B32 + MAX(0.01,Shocks!E31*ABS(B32) ),5) -> 0.00973 | F32: =ROUND(IF(B32<0,B32, B32 - Shocks!D31 * ABS(B32)),5) -> -0.00027 | I32: =ROUND(B32*(1+Shocks!H31)+Shocks!I31,5)+Extrapolation!T34 ->  | J32: =ROUND(B32*(1-Shocks!F31)-Shocks!G31,5)+Extrapolation!T34 ->  | K32: =ROUND(B32 + MAX(0.01,Shocks!E31*ABS(B32) )+Extrapolation!T34, 5) ->  | L32: =ROUND(IF(B32<0,B32, B32 - Shocks!D31 * ABS(B32))+Extrapolation!T34, 5) -> 
A33: 21 | B33: -0.0001930614543 | C33: =ROUND(B33*(1+Shocks!H32)+Shocks!I32,5) -> 0.00834 | D33: =ROUND(B33*(1-Shocks!F32)-Shocks!G32,5) -> -0.00497 | E33: =ROUND(B33 + MAX(0.01,Shocks!E32*ABS(B33) ),5) -> 0.00981 | F33: =ROUND(IF(B33<0,B33, B33 - Shocks!D32 * ABS(B33)),5) -> -0.00019 | I33: =ROUND(B33*(1+Shocks!H32)+Shocks!I32,5)+Extrapolation!T35 ->  | J33: =ROUND(B33*(1-Shocks!F32)-Shocks!G32,5)+Extrapolation!T35 ->  | K33: =ROUND(B33 + MAX(0.01,Shocks!E32*ABS(B33) )+Extrapolation!T35, 5) ->  | L33: =ROUND(IF(B33<0,B33, B33 - Shocks!D32 * ABS(B33))+Extrapolation!T35, 5) -> 
A34: 22 | B34: 3.356441627e-05 | C34: =ROUND(B34*(1+Shocks!H33)+Shocks!I33,5) -> 0.0084 | D34: =ROUND(B34*(1-Shocks!F33)-Shocks!G33,5) -> -0.00473 | E34: =ROUND(B34 + MAX(0.01,Shocks!E33*ABS(B34) ),5) -> 0.01003 | F34: =ROUND(IF(B34<0,B34, B34 - Shocks!D33 * ABS(B34)),5) -> 2e-05 | I34: =ROUND(B34*(1+Shocks!H33)+Shocks!I33,5)+Extrapolation!T36 ->  | J34: =ROUND(B34*(1-Shocks!F33)-Shocks!G33,5)+Extrapolation!T36 ->  | K34: =ROUND(B34 + MAX(0.01,Shocks!E33*ABS(B34) )+Extrapolation!T36, 5) ->  | L34: =ROUND(IF(B34<0,B34, B34 - Shocks!D33 * ABS(B34))+Extrapolation!T36, 5) -> 
A35: 23 | B35: 0.0003730557294 | C35: =ROUND(B35*(1+Shocks!H34)+Shocks!I34,5) -> 0.00861 | D35: =ROUND(B35*(1-Shocks!F34)-Shocks!G34,5) -> -0.00443 | E35: =ROUND(B35 + MAX(0.01,Shocks!E34*ABS(B35) ),5) -> 0.01037 | F35: =ROUND(IF(B35<0,B35, B35 - Shocks!D34 * ABS(B35)),5) -> 0.00027 | I35: =ROUND(B35*(1+Shocks!H34)+Shocks!I34,5)+Extrapolation!T37 ->  | J35: =ROUND(B35*(1-Shocks!F34)-Shocks!G34,5)+Extrapolation!T37 ->  | K35: =ROUND(B35 + MAX(0.01,Shocks!E34*ABS(B35) )+Extrapolation!T37, 5) ->  | L35: =ROUND(IF(B35<0,B35, B35 - Shocks!D34 * ABS(B35))+Extrapolation!T37, 5) -> 
A36: 24 | B36: 0.000799326391 | C36: =ROUND(B36*(1+Shocks!H35)+Shocks!I35,5) -> 0.00892 | D36: =ROUND(B36*(1-Shocks!F35)-Shocks!G35,5) -> -0.00409 | E36: =ROUND(B36 + MAX(0.01,Shocks!E35*ABS(B36) ),5) -> 0.0108 | F36: =ROUND(IF(B36<0,B36, B36 - Shocks!D35 * ABS(B36)),5) -> 0.00057 | I36: =ROUND(B36*(1+Shocks!H35)+Shocks!I35,5)+Extrapolation!T38 ->  | J36: =ROUND(B36*(1-Shocks!F35)-Shocks!G35,5)+Extrapolation!T38 ->  | K36: =ROUND(B36 + MAX(0.01,Shocks!E35*ABS(B36) )+Extrapolation!T38, 5) ->  | L36: =ROUND(IF(B36<0,B36, B36 - Shocks!D35 * ABS(B36))+Extrapolation!T38, 5) -> 
A37: 25 | B37: 0.00129157286 | C37: =ROUND(B37*(1+Shocks!H36)+Shocks!I36,5) -> 0.00931 | D37: =ROUND(B37*(1-Shocks!F36)-Shocks!G36,5) -> -0.0037 | E37: =ROUND(B37 + MAX(0.01,Shocks!E36*ABS(B37) ),5) -> 0.01129 | F37: =ROUND(IF(B37<0,B37, B37 - Shocks!D36 * ABS(B37)),5) -> 0.00093 | I37: =ROUND(B37*(1+Shocks!H36)+Shocks!I36,5)+Extrapolation!T39 ->  | J37: =ROUND(B37*(1-Shocks!F36)-Shocks!G36,5)+Extrapolation!T39 ->  | K37: =ROUND(B37 + MAX(0.01,Shocks!E36*ABS(B37) )+Extrapolation!T39, 5) ->  | L37: =ROUND(IF(B37<0,B37, B37 - Shocks!D36 * ABS(B37))+Extrapolation!T39, 5) -> 
A38: 26 | B38: 0.001833148108 | C38: =ROUND(B38*(1+Shocks!H37)+Shocks!I37,5) -> 0.00976 | D38: =ROUND(B38*(1-Shocks!F37)-Shocks!G37,5) -> -0.00329 | E38: =ROUND(B38 + MAX(0.01,Shocks!E37*ABS(B38) ),5) -> 0.01183 | F38: =ROUND(IF(B38<0,B38, B38 - Shocks!D37 * ABS(B38)),5) -> 0.00132 | I38: =ROUND(B38*(1+Shocks!H37)+Shocks!I37,5)+Extrapolation!T40 ->  | J38: =ROUND(B38*(1-Shocks!F37)-Shocks!G37,5)+Extrapolation!T40 ->  | K38: =ROUND(B38 + MAX(0.01,Shocks!E37*ABS(B38) )+Extrapolation!T40, 5) ->  | L38: =ROUND(IF(B38<0,B38, B38 - Shocks!D37 * ABS(B38))+Extrapolation!T40, 5) -> 
A39: 27 | B39: 0.002410698935 | C39: =ROUND(B39*(1+Shocks!H38)+Shocks!I38,5) -> 0.01026 | D39: =ROUND(B39*(1-Shocks!F38)-Shocks!G38,5) -> -0.00285 | E39: =ROUND(B39 + MAX(0.01,Shocks!E38*ABS(B39) ),5) -> 0.01241 | F39: =ROUND(IF(B39<0,B39, B39 - Shocks!D38 * ABS(B39)),5) -> 0.00173 | I39: =ROUND(B39*(1+Shocks!H38)+Shocks!I38,5)+Extrapolation!T41 ->  | J39: =ROUND(B39*(1-Shocks!F38)-Shocks!G38,5)+Extrapolation!T41 ->  | K39: =ROUND(B39 + MAX(0.01,Shocks!E38*ABS(B39) )+Extrapolation!T41, 5) ->  | L39: =ROUND(IF(B39<0,B39, B39 - Shocks!D38 * ABS(B39))+Extrapolation!T41, 5) -> 
A40: 28 | B40: 0.00301349864 | C40: =ROUND(B40*(1+Shocks!H39)+Shocks!I39,5) -> 0.01079 | D40: =ROUND(B40*(1-Shocks!F39)-Shocks!G39,5) -> -0.00239 | E40: =ROUND(B40 + MAX(0.01,Shocks!E39*ABS(B40) ),5) -> 0.01301 | F40: =ROUND(IF(B40<0,B40, B40 - Shocks!D39 * ABS(B40)),5) -> 0.00217 | I40: =ROUND(B40*(1+Shocks!H39)+Shocks!I39,5)+Extrapolation!T42 ->  | J40: =ROUND(B40*(1-Shocks!F39)-Shocks!G39,5)+Extrapolation!T42 ->  | K40: =ROUND(B40 + MAX(0.01,Shocks!E39*ABS(B40) )+Extrapolation!T42, 5) ->  | L40: =ROUND(IF(B40<0,B40, B40 - Shocks!D39 * ABS(B40))+Extrapolation!T42, 5) -> 
A41: 29 | B41: 0.003632926305 | C41: =ROUND(B41*(1+Shocks!H40)+Shocks!I40,5) -> 0.01134 | D41: =ROUND(B41*(1-Shocks!F40)-Shocks!G40,5) -> -0.00192 | E41: =ROUND(B41 + MAX(0.01,Shocks!E40*ABS(B41) ),5) -> 0.01363 | F41: =ROUND(IF(B41<0,B41, B41 - Shocks!D40 * ABS(B41)),5) -> 0.00262 | I41: =ROUND(B41*(1+Shocks!H40)+Shocks!I40,5)+Extrapolation!T43 ->  | J41: =ROUND(B41*(1-Shocks!F40)-Shocks!G40,5)+Extrapolation!T43 ->  | K41: =ROUND(B41 + MAX(0.01,Shocks!E40*ABS(B41) )+Extrapolation!T43, 5) ->  | L41: =ROUND(IF(B41<0,B41, B41 - Shocks!D40 * ABS(B41))+Extrapolation!T43, 5) -> 
A42: 30 | B42: 0.004262057284 | C42: =ROUND(B42*(1+Shocks!H41)+Shocks!I41,5) -> 0.0119 | D42: =ROUND(B42*(1-Shocks!F41)-Shocks!G41,5) -> -0.00144 | E42: =ROUND(B42 + MAX(0.01,Shocks!E41*ABS(B42) ),5) -> 0.01426 | F42: =ROUND(IF(B42<0,B42, B42 - Shocks!D41 * ABS(B42)),5) -> 0.00308 | I42: =ROUND(B42*(1+Shocks!H41)+Shocks!I41,5)+Extrapolation!T44 ->  | J42: =ROUND(B42*(1-Shocks!F41)-Shocks!G41,5)+Extrapolation!T44 ->  | K42: =ROUND(B42 + MAX(0.01,Shocks!E41*ABS(B42) )+Extrapolation!T44, 5) ->  | L42: =ROUND(IF(B42<0,B42, B42 - Shocks!D41 * ABS(B42))+Extrapolation!T44, 5) -> 
A43: 31 | B43: 0.004895338871 | C43: =ROUND(B43*(1+Shocks!H42)+Shocks!I42,5) -> 0.01246 | D43: =ROUND(B43*(1-Shocks!F42)-Shocks!G42,5) -> -0.00095 | E43: =ROUND(B43 + MAX(0.01,Shocks!E42*ABS(B43) ),5) -> 0.0149 | F43: =ROUND(IF(B43<0,B43, B43 - Shocks!D42 * ABS(B43)),5) -> 0.00354 | I43: =ROUND(B43*(1+Shocks!H42)+Shocks!I42,5)+Extrapolation!T45 ->  | J43: =ROUND(B43*(1-Shocks!F42)-Shocks!G42,5)+Extrapolation!T45 ->  | K43: =ROUND(B43 + MAX(0.01,Shocks!E42*ABS(B43) )+Extrapolation!T45, 5) ->  | L43: =ROUND(IF(B43<0,B43, B43 - Shocks!D42 * ABS(B43))+Extrapolation!T45, 5) -> 
A44: 32 | B44: 0.00552833179 | C44: =ROUND(B44*(1+Shocks!H43)+Shocks!I43,5) -> 0.01302 | D44: =ROUND(B44*(1-Shocks!F43)-Shocks!G43,5) -> -0.00045 | E44: =ROUND(B44 + MAX(0.01,Shocks!E43*ABS(B44) ),5) -> 0.01553 | F44: =ROUND(IF(B44<0,B44, B44 - Shocks!D43 * ABS(B44)),5) -> 0.00401 | I44: =ROUND(B44*(1+Shocks!H43)+Shocks!I43,5)+Extrapolation!T46 ->  | J44: =ROUND(B44*(1-Shocks!F43)-Shocks!G43,5)+Extrapolation!T46 ->  | K44: =ROUND(B44 + MAX(0.01,Shocks!E43*ABS(B44) )+Extrapolation!T46, 5) ->  | L44: =ROUND(IF(B44<0,B44, B44 - Shocks!D43 * ABS(B44))+Extrapolation!T46, 5) -> 
A45: 33 | B45: 0.006157502952 | C45: =ROUND(B45*(1+Shocks!H44)+Shocks!I44,5) -> 0.01358 | D45: =ROUND(B45*(1-Shocks!F44)-Shocks!G44,5) -> 5e-05 | E45: =ROUND(B45 + MAX(0.01,Shocks!E44*ABS(B45) ),5) -> 0.01616 | F45: =ROUND(IF(B45<0,B45, B45 - Shocks!D44 * ABS(B45)),5) -> 0.00447 | I45: =ROUND(B45*(1+Shocks!H44)+Shocks!I44,5)+Extrapolation!T47 ->  | J45: =ROUND(B45*(1-Shocks!F44)-Shocks!G44,5)+Extrapolation!T47 ->  | K45: =ROUND(B45 + MAX(0.01,Shocks!E44*ABS(B45) )+Extrapolation!T47, 5) ->  | L45: =ROUND(IF(B45<0,B45, B45 - Shocks!D44 * ABS(B45))+Extrapolation!T47, 5) -> 
A46: 34 | B46: 0.006780058474 | C46: =ROUND(B46*(1+Shocks!H45)+Shocks!I45,5) -> 0.01413 | D46: =ROUND(B46*(1-Shocks!F45)-Shocks!G45,5) -> 0.00055 | E46: =ROUND(B46 + MAX(0.01,Shocks!E45*ABS(B46) ),5) -> 0.01678 | F46: =ROUND(IF(B46<0,B46, B46 - Shocks!D45 * ABS(B46)),5) -> 0.00494 | I46: =ROUND(B46*(1+Shocks!H45)+Shocks!I45,5)+Extrapolation!T48 ->  | J46: =ROUND(B46*(1-Shocks!F45)-Shocks!G45,5)+Extrapolation!T48 ->  | K46: =ROUND(B46 + MAX(0.01,Shocks!E45*ABS(B46) )+Extrapolation!T48, 5) ->  | L46: =ROUND(IF(B46<0,B46, B46 - Shocks!D45 * ABS(B46))+Extrapolation!T48, 5) -> 
A47: 35 | B47: 0.007393808489 | C47: =ROUND(B47*(1+Shocks!H46)+Shocks!I46,5) -> 0.01466 | D47: =ROUND(B47*(1-Shocks!F46)-Shocks!G46,5) -> 0.00105 | E47: =ROUND(B47 + MAX(0.01,Shocks!E46*ABS(B47) ),5) -> 0.01739 | F47: =ROUND(IF(B47<0,B47, B47 - Shocks!D46 * ABS(B47)),5) -> 0.00539 | I47: =ROUND(B47*(1+Shocks!H46)+Shocks!I46,5)+Extrapolation!T49 ->  | J47: =ROUND(B47*(1-Shocks!F46)-Shocks!G46,5)+Extrapolation!T49 ->  | K47: =ROUND(B47 + MAX(0.01,Shocks!E46*ABS(B47) )+Extrapolation!T49, 5) ->  | L47: =ROUND(IF(B47<0,B47, B47 - Shocks!D46 * ABS(B47))+Extrapolation!T49, 5) -> 
A48: 36 | B48: 0.007997057265 | C48: =ROUND(B48*(1+Shocks!H47)+Shocks!I47,5) -> 0.01518 | D48: =ROUND(B48*(1-Shocks!F47)-Shocks!G47,5) -> 0.00155 | E48: =ROUND(B48 + MAX(0.01,Shocks!E47*ABS(B48) ),5) -> 0.018 | F48: =ROUND(IF(B48<0,B48, B48 - Shocks!D47 * ABS(B48)),5) -> 0.00584 | I48: =ROUND(B48*(1+Shocks!H47)+Shocks!I47,5)+Extrapolation!T50 ->  | J48: =ROUND(B48*(1-Shocks!F47)-Shocks!G47,5)+Extrapolation!T50 ->  | K48: =ROUND(B48 + MAX(0.01,Shocks!E47*ABS(B48) )+Extrapolation!T50, 5) ->  | L48: =ROUND(IF(B48<0,B48, B48 - Shocks!D47 * ABS(B48))+Extrapolation!T50, 5) -> 
A49: 37 | B49: 0.008588513549 | C49: =ROUND(B49*(1+Shocks!H48)+Shocks!I48,5) -> 0.01569 | D49: =ROUND(B49*(1-Shocks!F48)-Shocks!G48,5) -> 0.00204 | E49: =ROUND(B49 + MAX(0.01,Shocks!E48*ABS(B49) ),5) -> 0.01859 | F49: =ROUND(IF(B49<0,B49, B49 - Shocks!D48 * ABS(B49)),5) -> 0.00629 | I49: =ROUND(B49*(1+Shocks!H48)+Shocks!I48,5)+Extrapolation!T51 ->  | J49: =ROUND(B49*(1-Shocks!F48)-Shocks!G48,5)+Extrapolation!T51 ->  | K49: =ROUND(B49 + MAX(0.01,Shocks!E48*ABS(B49) )+Extrapolation!T51, 5) ->  | L49: =ROUND(IF(B49<0,B49, B49 - Shocks!D48 * ABS(B49))+Extrapolation!T51, 5) -> 
A50: 38 | B50: 0.009167217175 | C50: =ROUND(B50*(1+Shocks!H49)+Shocks!I49,5) -> 0.01618 | D50: =ROUND(B50*(1-Shocks!F49)-Shocks!G49,5) -> 0.00254 | E50: =ROUND(B50 + MAX(0.01,Shocks!E49*ABS(B50) ),5) -> 0.01917 | F50: =ROUND(IF(B50<0,B50, B50 - Shocks!D49 * ABS(B50)),5) -> 0.00672 | I50: =ROUND(B50*(1+Shocks!H49)+Shocks!I49,5)+Extrapolation!T52 ->  | J50: =ROUND(B50*(1-Shocks!F49)-Shocks!G49,5)+Extrapolation!T52 ->  | K50: =ROUND(B50 + MAX(0.01,Shocks!E49*ABS(B50) )+Extrapolation!T52, 5) ->  | L50: =ROUND(IF(B50<0,B50, B50 - Shocks!D49 * ABS(B50))+Extrapolation!T52, 5) -> 
A51: 39 | B51: 0.00973247883 | C51: =ROUND(B51*(1+Shocks!H50)+Shocks!I50,5) -> 0.01665 | D51: =ROUND(B51*(1-Shocks!F50)-Shocks!G50,5) -> 0.00303 | E51: =ROUND(B51 + MAX(0.01,Shocks!E50*ABS(B51) ),5) -> 0.01973 | F51: =ROUND(IF(B51<0,B51, B51 - Shocks!D50 * ABS(B51)),5) -> 0.00715 | I51: =ROUND(B51*(1+Shocks!H50)+Shocks!I50,5)+Extrapolation!T53 ->  | J51: =ROUND(B51*(1-Shocks!F50)-Shocks!G50,5)+Extrapolation!T53 ->  | K51: =ROUND(B51 + MAX(0.01,Shocks!E50*ABS(B51) )+Extrapolation!T53, 5) ->  | L51: =ROUND(IF(B51<0,B51, B51 - Shocks!D50 * ABS(B51))+Extrapolation!T53, 5) -> 
A52: 40 | B52: 0.01028383047 | C52: =ROUND(B52*(1+Shocks!H51)+Shocks!I51,5) -> 0.01711 | D52: =ROUND(B52*(1-Shocks!F51)-Shocks!G51,5) -> 0.00352 | E52: =ROUND(B52 + MAX(0.01,Shocks!E51*ABS(B52) ),5) -> 0.02028 | F52: =ROUND(IF(B52<0,B52, B52 - Shocks!D51 * ABS(B52)),5) -> 0.00757 | I52: =ROUND(B52*(1+Shocks!H51)+Shocks!I51,5)+Extrapolation!T54 ->  | J52: =ROUND(B52*(1-Shocks!F51)-Shocks!G51,5)+Extrapolation!T54 ->  | K52: =ROUND(B52 + MAX(0.01,Shocks!E51*ABS(B52) )+Extrapolation!T54, 5) ->  | L52: =ROUND(IF(B52<0,B52, B52 - Shocks!D51 * ABS(B52))+Extrapolation!T54, 5) -> 
A53: 41 | B53: 0.01082098446 | C53: =ROUND(B53*(1+Shocks!H52)+Shocks!I52,5) -> 0.01754 | D53: =ROUND(B53*(1-Shocks!F52)-Shocks!G52,5) -> 0.00401 | E53: =ROUND(B53 + MAX(0.01,Shocks!E52*ABS(B53) ),5) -> 0.02082 | F53: =ROUND(IF(B53<0,B53, B53 - Shocks!D52 * ABS(B53)),5) -> 0.00798 | I53: =ROUND(B53*(1+Shocks!H52)+Shocks!I52,5)+Extrapolation!T55 ->  | J53: =ROUND(B53*(1-Shocks!F52)-Shocks!G52,5)+Extrapolation!T55 ->  | K53: =ROUND(B53 + MAX(0.01,Shocks!E52*ABS(B53) )+Extrapolation!T55, 5) ->  | L53: =ROUND(IF(B53<0,B53, B53 - Shocks!D52 * ABS(B53))+Extrapolation!T55, 5) -> 
A54: 42 | B54: 0.01134379976 | C54: =ROUND(B54*(1+Shocks!H53)+Shocks!I53,5) -> 0.01796 | D54: =ROUND(B54*(1-Shocks!F53)-Shocks!G53,5) -> 0.00449 | E54: =ROUND(B54 + MAX(0.01,Shocks!E53*ABS(B54) ),5) -> 0.02134 | F54: =ROUND(IF(B54<0,B54, B54 - Shocks!D53 * ABS(B54)),5) -> 0.00837 | I54: =ROUND(B54*(1+Shocks!H53)+Shocks!I53,5)+Extrapolation!T56 ->  | J54: =ROUND(B54*(1-Shocks!F53)-Shocks!G53,5)+Extrapolation!T56 ->  | K54: =ROUND(B54 + MAX(0.01,Shocks!E53*ABS(B54) )+Extrapolation!T56, 5) ->  | L54: =ROUND(IF(B54<0,B54, B54 - Shocks!D53 * ABS(B54))+Extrapolation!T56, 5) -> 
A55: 43 | B55: 0.01185225406 | C55: =ROUND(B55*(1+Shocks!H54)+Shocks!I54,5) -> 0.01836 | D55: =ROUND(B55*(1-Shocks!F54)-Shocks!G54,5) -> 0.00497 | E55: =ROUND(B55 + MAX(0.01,Shocks!E54*ABS(B55) ),5) -> 0.02185 | F55: =ROUND(IF(B55<0,B55, B55 - Shocks!D54 * ABS(B55)),5) -> 0.00877 | I55: =ROUND(B55*(1+Shocks!H54)+Shocks!I54,5)+Extrapolation!T57 ->  | J55: =ROUND(B55*(1-Shocks!F54)-Shocks!G54,5)+Extrapolation!T57 ->  | K55: =ROUND(B55 + MAX(0.01,Shocks!E54*ABS(B55) )+Extrapolation!T57, 5) ->  | L55: =ROUND(IF(B55<0,B55, B55 - Shocks!D54 * ABS(B55))+Extrapolation!T57, 5) -> 
A56: 44 | B56: 0.01234642056 | C56: =ROUND(B56*(1+Shocks!H55)+Shocks!I55,5) -> 0.01874 | D56: =ROUND(B56*(1-Shocks!F55)-Shocks!G55,5) -> 0.00544 | E56: =ROUND(B56 + MAX(0.01,Shocks!E55*ABS(B56) ),5) -> 0.02235 | F56: =ROUND(IF(B56<0,B56, B56 - Shocks!D55 * ABS(B56)),5) -> 0.00915 | I56: =ROUND(B56*(1+Shocks!H55)+Shocks!I55,5)+Extrapolation!T58 ->  | J56: =ROUND(B56*(1-Shocks!F55)-Shocks!G55,5)+Extrapolation!T58 ->  | K56: =ROUND(B56 + MAX(0.01,Shocks!E55*ABS(B56) )+Extrapolation!T58, 5) ->  | L56: =ROUND(IF(B56<0,B56, B56 - Shocks!D55 * ABS(B56))+Extrapolation!T58, 5) -> 
A57: 45 | B57: 0.01282644887 | C57: =ROUND(B57*(1+Shocks!H56)+Shocks!I56,5) -> 0.0191 | D57: =ROUND(B57*(1-Shocks!F56)-Shocks!G56,5) -> 0.00591 | E57: =ROUND(B57 + MAX(0.01,Shocks!E56*ABS(B57) ),5) -> 0.02283 | F57: =ROUND(IF(B57<0,B57, B57 - Shocks!D56 * ABS(B57)),5) -> 0.00952 | I57: =ROUND(B57*(1+Shocks!H56)+Shocks!I56,5)+Extrapolation!T59 ->  | J57: =ROUND(B57*(1-Shocks!F56)-Shocks!G56,5)+Extrapolation!T59 ->  | K57: =ROUND(B57 + MAX(0.01,Shocks!E56*ABS(B57) )+Extrapolation!T59, 5) ->  | L57: =ROUND(IF(B57<0,B57, B57 - Shocks!D56 * ABS(B57))+Extrapolation!T59, 5) -> 
A58: 46 | B58: 0.01329254911 | C58: =ROUND(B58*(1+Shocks!H57)+Shocks!I57,5) -> 0.01945 | D58: =ROUND(B58*(1-Shocks!F57)-Shocks!G57,5) -> 0.00638 | E58: =ROUND(B58 + MAX(0.01,Shocks!E57*ABS(B58) ),5) -> 0.02329 | F58: =ROUND(IF(B58<0,B58, B58 - Shocks!D57 * ABS(B58)),5) -> 0.00988 | I58: =ROUND(B58*(1+Shocks!H57)+Shocks!I57,5)+Extrapolation!T60 ->  | J58: =ROUND(B58*(1-Shocks!F57)-Shocks!G57,5)+Extrapolation!T60 ->  | K58: =ROUND(B58 + MAX(0.01,Shocks!E57*ABS(B58) )+Extrapolation!T60, 5) ->  | L58: =ROUND(IF(B58<0,B58, B58 - Shocks!D57 * ABS(B58))+Extrapolation!T60, 5) -> 
A59: 47 | B59: 0.01374497871 | C59: =ROUND(B59*(1+Shocks!H58)+Shocks!I58,5) -> 0.01978 | D59: =ROUND(B59*(1-Shocks!F58)-Shocks!G58,5) -> 0.00684 | E59: =ROUND(B59 + MAX(0.01,Shocks!E58*ABS(B59) ),5) -> 0.02374 | F59: =ROUND(IF(B59<0,B59, B59 - Shocks!D58 * ABS(B59)),5) -> 0.01024 | I59: =ROUND(B59*(1+Shocks!H58)+Shocks!I58,5)+Extrapolation!T61 ->  | J59: =ROUND(B59*(1-Shocks!F58)-Shocks!G58,5)+Extrapolation!T61 ->  | K59: =ROUND(B59 + MAX(0.01,Shocks!E58*ABS(B59) )+Extrapolation!T61, 5) ->  | L59: =ROUND(IF(B59<0,B59, B59 - Shocks!D58 * ABS(B59))+Extrapolation!T61, 5) -> 
A60: 48 | B60: 0.01418403154 | C60: =ROUND(B60*(1+Shocks!H59)+Shocks!I59,5) -> 0.02009 | D60: =ROUND(B60*(1-Shocks!F59)-Shocks!G59,5) -> 0.00729 | E60: =ROUND(B60 + MAX(0.01,Shocks!E59*ABS(B60) ),5) -> 0.02418 | F60: =ROUND(IF(B60<0,B60, B60 - Shocks!D59 * ABS(B60)),5) -> 0.01058 | I60: =ROUND(B60*(1+Shocks!H59)+Shocks!I59,5)+Extrapolation!T62 ->  | J60: =ROUND(B60*(1-Shocks!F59)-Shocks!G59,5)+Extrapolation!T62 ->  | K60: =ROUND(B60 + MAX(0.01,Shocks!E59*ABS(B60) )+Extrapolation!T62, 5) ->  | L60: =ROUND(IF(B60<0,B60, B60 - Shocks!D59 * ABS(B60))+Extrapolation!T62, 5) -> 
A61: 49 | B61: 0.01461002889 | C61: =ROUND(B61*(1+Shocks!H60)+Shocks!I60,5) -> 0.02038 | D61: =ROUND(B61*(1-Shocks!F60)-Shocks!G60,5) -> 0.00775 | E61: =ROUND(B61 + MAX(0.01,Shocks!E60*ABS(B61) ),5) -> 0.02461 | F61: =ROUND(IF(B61<0,B61, B61 - Shocks!D60 * ABS(B61)),5) -> 0.01092 | I61: =ROUND(B61*(1+Shocks!H60)+Shocks!I60,5)+Extrapolation!T63 ->  | J61: =ROUND(B61*(1-Shocks!F60)-Shocks!G60,5)+Extrapolation!T63 ->  | K61: =ROUND(B61 + MAX(0.01,Shocks!E60*ABS(B61) )+Extrapolation!T63, 5) ->  | L61: =ROUND(IF(B61<0,B61, B61 - Shocks!D60 * ABS(B61))+Extrapolation!T63, 5) -> 
A62: 50 | B62: 0.01502331196 | C62: =ROUND(B62*(1+Shocks!H61)+Shocks!I61,5) -> 0.02066 | D62: =ROUND(B62*(1-Shocks!F61)-Shocks!G61,5) -> 0.00819 | E62: =ROUND(B62 + MAX(0.01,Shocks!E61*ABS(B62) ),5) -> 0.02502 | F62: =ROUND(IF(B62<0,B62, B62 - Shocks!D61 * ABS(B62)),5) -> 0.01125 | I62: =ROUND(B62*(1+Shocks!H61)+Shocks!I61,5)+Extrapolation!T64 ->  | J62: =ROUND(B62*(1-Shocks!F61)-Shocks!G61,5)+Extrapolation!T64 ->  | K62: =ROUND(B62 + MAX(0.01,Shocks!E61*ABS(B62) )+Extrapolation!T64, 5) ->  | L62: =ROUND(IF(B62<0,B62, B62 - Shocks!D61 * ABS(B62))+Extrapolation!T64, 5) -> 
A63: 51 | B63: 0.01542423579 | C63: =ROUND(B63*(1+Shocks!H62)+Shocks!I62,5) -> 0.02092 | D63: =ROUND(B63*(1-Shocks!F62)-Shocks!G62,5) -> 0.00864 | E63: =ROUND(B63 + MAX(0.01,Shocks!E62*ABS(B63) ),5) -> 0.02542 | F63: =ROUND(IF(B63<0,B63, B63 - Shocks!D62 * ABS(B63)),5) -> 0.01157 | I63: =ROUND(B63*(1+Shocks!H62)+Shocks!I62,5)+Extrapolation!T65 ->  | J63: =ROUND(B63*(1-Shocks!F62)-Shocks!G62,5)+Extrapolation!T65 ->  | K63: =ROUND(B63 + MAX(0.01,Shocks!E62*ABS(B63) )+Extrapolation!T65, 5) ->  | L63: =ROUND(IF(B63<0,B63, B63 - Shocks!D62 * ABS(B63))+Extrapolation!T65, 5) -> 
A64: 52 | B64: 0.01581316415 | C64: =ROUND(B64*(1+Shocks!H63)+Shocks!I63,5) -> 0.02117 | D64: =ROUND(B64*(1-Shocks!F63)-Shocks!G63,5) -> 0.00908 | E64: =ROUND(B64 + MAX(0.01,Shocks!E63*ABS(B64) ),5) -> 0.02581 | F64: =ROUND(IF(B64<0,B64, B64 - Shocks!D63 * ABS(B64)),5) -> 0.01188 | I64: =ROUND(B64*(1+Shocks!H63)+Shocks!I63,5)+Extrapolation!T66 ->  | J64: =ROUND(B64*(1-Shocks!F63)-Shocks!G63,5)+Extrapolation!T66 ->  | K64: =ROUND(B64 + MAX(0.01,Shocks!E63*ABS(B64) )+Extrapolation!T66, 5) ->  | L64: =ROUND(IF(B64<0,B64, B64 - Shocks!D63 * ABS(B64))+Extrapolation!T66, 5) -> 
A65: 53 | B65: 0.01619046541 | C65: =ROUND(B65*(1+Shocks!H64)+Shocks!I64,5) -> 0.0214 | D65: =ROUND(B65*(1-Shocks!F64)-Shocks!G64,5) -> 0.00951 | E65: =ROUND(B65 + MAX(0.01,Shocks!E64*ABS(B65) ),5) -> 0.02619 | F65: =ROUND(IF(B65<0,B65, B65 - Shocks!D64 * ABS(B65)),5) -> 0.01218 | I65: =ROUND(B65*(1+Shocks!H64)+Shocks!I64,5)+Extrapolation!T67 ->  | J65: =ROUND(B65*(1-Shocks!F64)-Shocks!G64,5)+Extrapolation!T67 ->  | K65: =ROUND(B65 + MAX(0.01,Shocks!E64*ABS(B65) )+Extrapolation!T67, 5) ->  | L65: =ROUND(IF(B65<0,B65, B65 - Shocks!D64 * ABS(B65))+Extrapolation!T67, 5) -> 
A66: 54 | B66: 0.01655650919 | C66: =ROUND(B66*(1+Shocks!H65)+Shocks!I65,5) -> 0.02161 | D66: =ROUND(B66*(1-Shocks!F65)-Shocks!G65,5) -> 0.00994 | E66: =ROUND(B66 + MAX(0.01,Shocks!E65*ABS(B66) ),5) -> 0.02656 | F66: =ROUND(IF(B66<0,B66, B66 - Shocks!D65 * ABS(B66)),5) -> 0.01248 | I66: =ROUND(B66*(1+Shocks!H65)+Shocks!I65,5)+Extrapolation!T68 ->  | J66: =ROUND(B66*(1-Shocks!F65)-Shocks!G65,5)+Extrapolation!T68 ->  | K66: =ROUND(B66 + MAX(0.01,Shocks!E65*ABS(B66) )+Extrapolation!T68, 5) ->  | L66: =ROUND(IF(B66<0,B66, B66 - Shocks!D65 * ABS(B66))+Extrapolation!T68, 5) -> 
A67: 55 | B67: 0.01691166359 | C67: =ROUND(B67*(1+Shocks!H66)+Shocks!I66,5) -> 0.02182 | D67: =ROUND(B67*(1-Shocks!F66)-Shocks!G66,5) -> 0.01037 | E67: =ROUND(B67 + MAX(0.01,Shocks!E66*ABS(B67) ),5) -> 0.02691 | F67: =ROUND(IF(B67<0,B67, B67 - Shocks!D66 * ABS(B67)),5) -> 0.01277 | I67: =ROUND(B67*(1+Shocks!H66)+Shocks!I66,5)+Extrapolation!T69 ->  | J67: =ROUND(B67*(1-Shocks!F66)-Shocks!G66,5)+Extrapolation!T69 ->  | K67: =ROUND(B67 + MAX(0.01,Shocks!E66*ABS(B67) )+Extrapolation!T69, 5) ->  | L67: =ROUND(IF(B67<0,B67, B67 - Shocks!D66 * ABS(B67))+Extrapolation!T69, 5) -> 
A68: 56 | B68: 0.01725629301 | C68: =ROUND(B68*(1+Shocks!H67)+Shocks!I67,5) -> 0.02201 | D68: =ROUND(B68*(1-Shocks!F67)-Shocks!G67,5) -> 0.01079 | E68: =ROUND(B68 + MAX(0.01,Shocks!E67*ABS(B68) ),5) -> 0.02726 | F68: =ROUND(IF(B68<0,B68, B68 - Shocks!D67 * ABS(B68)),5) -> 0.01305 | I68: =ROUND(B68*(1+Shocks!H67)+Shocks!I67,5)+Extrapolation!T70 ->  | J68: =ROUND(B68*(1-Shocks!F67)-Shocks!G67,5)+Extrapolation!T70 ->  | K68: =ROUND(B68 + MAX(0.01,Shocks!E67*ABS(B68) )+Extrapolation!T70, 5) ->  | L68: =ROUND(IF(B68<0,B68, B68 - Shocks!D67 * ABS(B68))+Extrapolation!T70, 5) -> 
A69: 57 | B69: 0.01759075639 | C69: =ROUND(B69*(1+Shocks!H68)+Shocks!I68,5) -> 0.02218 | D69: =ROUND(B69*(1-Shocks!F68)-Shocks!G68,5) -> 0.01121 | E69: =ROUND(B69 + MAX(0.01,Shocks!E68*ABS(B69) ),5) -> 0.02759 | F69: =ROUND(IF(B69<0,B69, B69 - Shocks!D68 * ABS(B69)),5) -> 0.01333 | I69: =ROUND(B69*(1+Shocks!H68)+Shocks!I68,5)+Extrapolation!T71 ->  | J69: =ROUND(B69*(1-Shocks!F68)-Shocks!G68,5)+Extrapolation!T71 ->  | K69: =ROUND(B69 + MAX(0.01,Shocks!E68*ABS(B69) )+Extrapolation!T71, 5) ->  | L69: =ROUND(IF(B69<0,B69, B69 - Shocks!D68 * ABS(B69))+Extrapolation!T71, 5) -> 
A70: 58 | B70: 0.01791540581 | C70: =ROUND(B70*(1+Shocks!H69)+Shocks!I69,5) -> 0.02235 | D70: =ROUND(B70*(1-Shocks!F69)-Shocks!G69,5) -> 0.01163 | E70: =ROUND(B70 + MAX(0.01,Shocks!E69*ABS(B70) ),5) -> 0.02792 | F70: =ROUND(IF(B70<0,B70, B70 - Shocks!D69 * ABS(B70)),5) -> 0.0136 | I70: =ROUND(B70*(1+Shocks!H69)+Shocks!I69,5)+Extrapolation!T72 ->  | J70: =ROUND(B70*(1-Shocks!F69)-Shocks!G69,5)+Extrapolation!T72 ->  | K70: =ROUND(B70 + MAX(0.01,Shocks!E69*ABS(B70) )+Extrapolation!T72, 5) ->  | L70: =ROUND(IF(B70<0,B70, B70 - Shocks!D69 * ABS(B70))+Extrapolation!T72, 5) -> 
A71: 59 | B71: 0.01823058547 | C71: =ROUND(B71*(1+Shocks!H70)+Shocks!I70,5) -> 0.0225 | D71: =ROUND(B71*(1-Shocks!F70)-Shocks!G70,5) -> 0.01204 | E71: =ROUND(B71 + MAX(0.01,Shocks!E70*ABS(B71) ),5) -> 0.02823 | F71: =ROUND(IF(B71<0,B71, B71 - Shocks!D70 * ABS(B71)),5) -> 0.01386 | I71: =ROUND(B71*(1+Shocks!H70)+Shocks!I70,5)+Extrapolation!T73 ->  | J71: =ROUND(B71*(1-Shocks!F70)-Shocks!G70,5)+Extrapolation!T73 ->  | K71: =ROUND(B71 + MAX(0.01,Shocks!E70*ABS(B71) )+Extrapolation!T73, 5) ->  | L71: =ROUND(IF(B71<0,B71, B71 - Shocks!D70 * ABS(B71))+Extrapolation!T73, 5) -> 
A72: 60 | B72: 0.01853663079 | C72: =ROUND(B72*(1+Shocks!H71)+Shocks!I71,5) -> 0.02264 | D72: =ROUND(B72*(1-Shocks!F71)-Shocks!G71,5) -> 0.01245 | E72: =ROUND(B72 + MAX(0.01,Shocks!E71*ABS(B72) ),5) -> 0.02854 | F72: =ROUND(IF(B72<0,B72, B72 - Shocks!D71 * ABS(B72)),5) -> 0.01411 | I72: =ROUND(B72*(1+Shocks!H71)+Shocks!I71,5)+Extrapolation!T74 ->  | J72: =ROUND(B72*(1-Shocks!F71)-Shocks!G71,5)+Extrapolation!T74 ->  | K72: =ROUND(B72 + MAX(0.01,Shocks!E71*ABS(B72) )+Extrapolation!T74, 5) ->  | L72: =ROUND(IF(B72<0,B72, B72 - Shocks!D71 * ABS(B72))+Extrapolation!T74, 5) -> 
A73: 61 | B73: 0.01883386791 | C73: =ROUND(B73*(1+Shocks!H72)+Shocks!I72,5) -> 0.02299 | D73: =ROUND(B73*(1-Shocks!F72)-Shocks!G72,5) -> 0.01273 | E73: =ROUND(B73 + MAX(0.01,Shocks!E72*ABS(B73) ),5) -> 0.02883 | F73: =ROUND(IF(B73<0,B73, B73 - Shocks!D72 * ABS(B73)),5) -> 0.01436 | I73: =ROUND(B73*(1+Shocks!H72)+Shocks!I72,5)+Extrapolation!T75 ->  | J73: =ROUND(B73*(1-Shocks!F72)-Shocks!G72,5)+Extrapolation!T75 ->  | K73: =ROUND(B73 + MAX(0.01,Shocks!E72*ABS(B73) )+Extrapolation!T75, 5) ->  | L73: =ROUND(IF(B73<0,B73, B73 - Shocks!D72 * ABS(B73))+Extrapolation!T75, 5) -> 
A74: 62 | B74: 0.0191226132 | C74: =ROUND(B74*(1+Shocks!H73)+Shocks!I73,5) -> 0.02333 | D74: =ROUND(B74*(1-Shocks!F73)-Shocks!G73,5) -> 0.013 | E74: =ROUND(B74 + MAX(0.01,Shocks!E73*ABS(B74) ),5) -> 0.02912 | F74: =ROUND(IF(B74<0,B74, B74 - Shocks!D73 * ABS(B74)),5) -> 0.01461 | I74: =ROUND(B74*(1+Shocks!H73)+Shocks!I73,5)+Extrapolation!T76 ->  | J74: =ROUND(B74*(1-Shocks!F73)-Shocks!G73,5)+Extrapolation!T76 ->  | K74: =ROUND(B74 + MAX(0.01,Shocks!E73*ABS(B74) )+Extrapolation!T76, 5) ->  | L74: =ROUND(IF(B74<0,B74, B74 - Shocks!D73 * ABS(B74))+Extrapolation!T76, 5) -> 
A75: 63 | B75: 0.01940317304 | C75: =ROUND(B75*(1+Shocks!H74)+Shocks!I74,5) -> 0.02366 | D75: =ROUND(B75*(1-Shocks!F74)-Shocks!G74,5) -> 0.01328 | E75: =ROUND(B75 + MAX(0.01,Shocks!E74*ABS(B75) ),5) -> 0.0294 | F75: =ROUND(IF(B75<0,B75, B75 - Shocks!D74 * ABS(B75)),5) -> 0.01485 | I75: =ROUND(B75*(1+Shocks!H74)+Shocks!I74,5)+Extrapolation!T77 ->  | J75: =ROUND(B75*(1-Shocks!F74)-Shocks!G74,5)+Extrapolation!T77 ->  | K75: =ROUND(B75 + MAX(0.01,Shocks!E74*ABS(B75) )+Extrapolation!T77, 5) ->  | L75: =ROUND(IF(B75<0,B75, B75 - Shocks!D74 * ABS(B75))+Extrapolation!T77, 5) -> 
A76: 64 | B76: 0.01967584362 | C76: =ROUND(B76*(1+Shocks!H75)+Shocks!I75,5) -> 0.02398 | D76: =ROUND(B76*(1-Shocks!F75)-Shocks!G75,5) -> 0.01355 | E76: =ROUND(B76 + MAX(0.01,Shocks!E75*ABS(B76) ),5) -> 0.02968 | F76: =ROUND(IF(B76<0,B76, B76 - Shocks!D75 * ABS(B76)),5) -> 0.01508 | I76: =ROUND(B76*(1+Shocks!H75)+Shocks!I75,5)+Extrapolation!T78 ->  | J76: =ROUND(B76*(1-Shocks!F75)-Shocks!G75,5)+Extrapolation!T78 ->  | K76: =ROUND(B76 + MAX(0.01,Shocks!E75*ABS(B76) )+Extrapolation!T78, 5) ->  | L76: =ROUND(IF(B76<0,B76, B76 - Shocks!D75 * ABS(B76))+Extrapolation!T78, 5) -> 
A77: 65 | B77: 0.01994091095 | C77: =ROUND(B77*(1+Shocks!H76)+Shocks!I76,5) -> 0.02429 | D77: =ROUND(B77*(1-Shocks!F76)-Shocks!G76,5) -> 0.01382 | E77: =ROUND(B77 + MAX(0.01,Shocks!E76*ABS(B77) ),5) -> 0.02994 | F77: =ROUND(IF(B77<0,B77, B77 - Shocks!D76 * ABS(B77)),5) -> 0.01531 | I77: =ROUND(B77*(1+Shocks!H76)+Shocks!I76,5)+Extrapolation!T79 ->  | J77: =ROUND(B77*(1-Shocks!F76)-Shocks!G76,5)+Extrapolation!T79 ->  | K77: =ROUND(B77 + MAX(0.01,Shocks!E76*ABS(B77) )+Extrapolation!T79, 5) ->  | L77: =ROUND(IF(B77<0,B77, B77 - Shocks!D76 * ABS(B77))+Extrapolation!T79, 5) -> 
A78: 66 | B78: 0.02019865084 | C78: =ROUND(B78*(1+Shocks!H77)+Shocks!I77,5) -> 0.02458 | D78: =ROUND(B78*(1-Shocks!F77)-Shocks!G77,5) -> 0.01408 | E78: =ROUND(B78 + MAX(0.01,Shocks!E77*ABS(B78) ),5) -> 0.0302 | F78: =ROUND(IF(B78<0,B78, B78 - Shocks!D77 * ABS(B78)),5) -> 0.01554 | I78: =ROUND(B78*(1+Shocks!H77)+Shocks!I77,5)+Extrapolation!T80 ->  | J78: =ROUND(B78*(1-Shocks!F77)-Shocks!G77,5)+Extrapolation!T80 ->  | K78: =ROUND(B78 + MAX(0.01,Shocks!E77*ABS(B78) )+Extrapolation!T80, 5) ->  | L78: =ROUND(IF(B78<0,B78, B78 - Shocks!D77 * ABS(B78))+Extrapolation!T80, 5) -> 
A79: 67 | B79: 0.02044932905 | C79: =ROUND(B79*(1+Shocks!H78)+Shocks!I78,5) -> 0.02488 | D79: =ROUND(B79*(1-Shocks!F78)-Shocks!G78,5) -> 0.01434 | E79: =ROUND(B79 + MAX(0.01,Shocks!E78*ABS(B79) ),5) -> 0.03045 | F79: =ROUND(IF(B79<0,B79, B79 - Shocks!D78 * ABS(B79)),5) -> 0.01575 | I79: =ROUND(B79*(1+Shocks!H78)+Shocks!I78,5)+Extrapolation!T81 ->  | J79: =ROUND(B79*(1-Shocks!F78)-Shocks!G78,5)+Extrapolation!T81 ->  | K79: =ROUND(B79 + MAX(0.01,Shocks!E78*ABS(B79) )+Extrapolation!T81, 5) ->  | L79: =ROUND(IF(B79<0,B79, B79 - Shocks!D78 * ABS(B79))+Extrapolation!T81, 5) -> 
A80: 68 | B80: 0.02069320139 | C80: =ROUND(B80*(1+Shocks!H79)+Shocks!I79,5) -> 0.02516 | D80: =ROUND(B80*(1-Shocks!F79)-Shocks!G79,5) -> 0.0146 | E80: =ROUND(B80 + MAX(0.01,Shocks!E79*ABS(B80) ),5) -> 0.03069 | F80: =ROUND(IF(B80<0,B80, B80 - Shocks!D79 * ABS(B80)),5) -> 0.01597 | I80: =ROUND(B80*(1+Shocks!H79)+Shocks!I79,5)+Extrapolation!T82 ->  | J80: =ROUND(B80*(1-Shocks!F79)-Shocks!G79,5)+Extrapolation!T82 ->  | K80: =ROUND(B80 + MAX(0.01,Shocks!E79*ABS(B80) )+Extrapolation!T82, 5) ->  | L80: =ROUND(IF(B80<0,B80, B80 - Shocks!D79 * ABS(B80))+Extrapolation!T82, 5) -> 
A81: 69 | B81: 0.02093051394 | C81: =ROUND(B81*(1+Shocks!H80)+Shocks!I80,5) -> 0.02543 | D81: =ROUND(B81*(1-Shocks!F80)-Shocks!G80,5) -> 0.01486 | E81: =ROUND(B81 + MAX(0.01,Shocks!E80*ABS(B81) ),5) -> 0.03093 | F81: =ROUND(IF(B81<0,B81, B81 - Shocks!D80 * ABS(B81)),5) -> 0.01618 | I81: =ROUND(B81*(1+Shocks!H80)+Shocks!I80,5)+Extrapolation!T83 ->  | J81: =ROUND(B81*(1-Shocks!F80)-Shocks!G80,5)+Extrapolation!T83 ->  | K81: =ROUND(B81 + MAX(0.01,Shocks!E80*ABS(B81) )+Extrapolation!T83, 5) ->  | L81: =ROUND(IF(B81<0,B81, B81 - Shocks!D80 * ABS(B81))+Extrapolation!T83, 5) -> 
A82: 70 | B82: 0.02116150327 | C82: =ROUND(B82*(1+Shocks!H81)+Shocks!I81,5) -> 0.0257 | D82: =ROUND(B82*(1-Shocks!F81)-Shocks!G81,5) -> 0.01512 | E82: =ROUND(B82 + MAX(0.01,Shocks!E81*ABS(B82) ),5) -> 0.03116 | F82: =ROUND(IF(B82<0,B82, B82 - Shocks!D81 * ABS(B82)),5) -> 0.01639 | I82: =ROUND(B82*(1+Shocks!H81)+Shocks!I81,5)+Extrapolation!T84 ->  | J82: =ROUND(B82*(1-Shocks!F81)-Shocks!G81,5)+Extrapolation!T84 ->  | K82: =ROUND(B82 + MAX(0.01,Shocks!E81*ABS(B82) )+Extrapolation!T84, 5) ->  | L82: =ROUND(IF(B82<0,B82, B82 - Shocks!D81 * ABS(B82))+Extrapolation!T84, 5) -> 
A83: 71 | B83: 0.02138639669 | C83: =ROUND(B83*(1+Shocks!H82)+Shocks!I82,5) -> 0.02595 | D83: =ROUND(B83*(1-Shocks!F82)-Shocks!G82,5) -> 0.01537 | E83: =ROUND(B83 + MAX(0.01,Shocks!E82*ABS(B83) ),5) -> 0.03139 | F83: =ROUND(IF(B83<0,B83, B83 - Shocks!D82 * ABS(B83)),5) -> 0.01659 | I83: =ROUND(B83*(1+Shocks!H82)+Shocks!I82,5)+Extrapolation!T85 ->  | J83: =ROUND(B83*(1-Shocks!F82)-Shocks!G82,5)+Extrapolation!T85 ->  | K83: =ROUND(B83 + MAX(0.01,Shocks!E82*ABS(B83) )+Extrapolation!T85, 5) ->  | L83: =ROUND(IF(B83<0,B83, B83 - Shocks!D82 * ABS(B83))+Extrapolation!T85, 5) -> 
A84: 72 | B84: 0.02160541253 | C84: =ROUND(B84*(1+Shocks!H83)+Shocks!I83,5) -> 0.0262 | D84: =ROUND(B84*(1-Shocks!F83)-Shocks!G83,5) -> 0.01562 | E84: =ROUND(B84 + MAX(0.01,Shocks!E83*ABS(B84) ),5) -> 0.03161 | F84: =ROUND(IF(B84<0,B84, B84 - Shocks!D83 * ABS(B84)),5) -> 0.01678 | I84: =ROUND(B84*(1+Shocks!H83)+Shocks!I83,5)+Extrapolation!T86 ->  | J84: =ROUND(B84*(1-Shocks!F83)-Shocks!G83,5)+Extrapolation!T86 ->  | K84: =ROUND(B84 + MAX(0.01,Shocks!E83*ABS(B84) )+Extrapolation!T86, 5) ->  | L84: =ROUND(IF(B84<0,B84, B84 - Shocks!D83 * ABS(B84))+Extrapolation!T86, 5) -> 
A85: 73 | B85: 0.02181876037 | C85: =ROUND(B85*(1+Shocks!H84)+Shocks!I84,5) -> 0.02645 | D85: =ROUND(B85*(1-Shocks!F84)-Shocks!G84,5) -> 0.01587 | E85: =ROUND(B85 + MAX(0.01,Shocks!E84*ABS(B85) ),5) -> 0.03182 | F85: =ROUND(IF(B85<0,B85, B85 - Shocks!D84 * ABS(B85)),5) -> 0.01698 | I85: =ROUND(B85*(1+Shocks!H84)+Shocks!I84,5)+Extrapolation!T87 ->  | J85: =ROUND(B85*(1-Shocks!F84)-Shocks!G84,5)+Extrapolation!T87 ->  | K85: =ROUND(B85 + MAX(0.01,Shocks!E84*ABS(B85) )+Extrapolation!T87, 5) ->  | L85: =ROUND(IF(B85<0,B85, B85 - Shocks!D84 * ABS(B85))+Extrapolation!T87, 5) -> 
A86: 74 | B86: 0.0220266414 | C86: =ROUND(B86*(1+Shocks!H85)+Shocks!I85,5) -> 0.02668 | D86: =ROUND(B86*(1-Shocks!F85)-Shocks!G85,5) -> 0.01611 | E86: =ROUND(B86 + MAX(0.01,Shocks!E85*ABS(B86) ),5) -> 0.03203 | F86: =ROUND(IF(B86<0,B86, B86 - Shocks!D85 * ABS(B86)),5) -> 0.01717 | I86: =ROUND(B86*(1+Shocks!H85)+Shocks!I85,5)+Extrapolation!T88 ->  | J86: =ROUND(B86*(1-Shocks!F85)-Shocks!G85,5)+Extrapolation!T88 ->  | K86: =ROUND(B86 + MAX(0.01,Shocks!E85*ABS(B86) )+Extrapolation!T88, 5) ->  | L86: =ROUND(IF(B86<0,B86, B86 - Shocks!D85 * ABS(B86))+Extrapolation!T88, 5) -> 
A87: 75 | B87: 0.02222924867 | C87: =ROUND(B87*(1+Shocks!H86)+Shocks!I86,5) -> 0.02691 | D87: =ROUND(B87*(1-Shocks!F86)-Shocks!G86,5) -> 0.01635 | E87: =ROUND(B87 + MAX(0.01,Shocks!E86*ABS(B87) ),5) -> 0.03223 | F87: =ROUND(IF(B87<0,B87, B87 - Shocks!D86 * ABS(B87)),5) -> 0.01735 | I87: =ROUND(B87*(1+Shocks!H86)+Shocks!I86,5)+Extrapolation!T89 ->  | J87: =ROUND(B87*(1-Shocks!F86)-Shocks!G86,5)+Extrapolation!T89 ->  | K87: =ROUND(B87 + MAX(0.01,Shocks!E86*ABS(B87) )+Extrapolation!T89, 5) ->  | L87: =ROUND(IF(B87<0,B87, B87 - Shocks!D86 * ABS(B87))+Extrapolation!T89, 5) -> 
A88: 76 | B88: 0.02242676739 | C88: =ROUND(B88*(1+Shocks!H87)+Shocks!I87,5) -> 0.02714 | D88: =ROUND(B88*(1-Shocks!F87)-Shocks!G87,5) -> 0.0166 | E88: =ROUND(B88 + MAX(0.01,Shocks!E87*ABS(B88) ),5) -> 0.03243 | F88: =ROUND(IF(B88<0,B88, B88 - Shocks!D87 * ABS(B88)),5) -> 0.01754 | I88: =ROUND(B88*(1+Shocks!H87)+Shocks!I87,5)+Extrapolation!T90 ->  | J88: =ROUND(B88*(1-Shocks!F87)-Shocks!G87,5)+Extrapolation!T90 ->  | K88: =ROUND(B88 + MAX(0.01,Shocks!E87*ABS(B88) )+Extrapolation!T90, 5) ->  | L88: =ROUND(IF(B88<0,B88, B88 - Shocks!D87 * ABS(B88))+Extrapolation!T90, 5) -> 
A89: 77 | B89: 0.02261937523 | C89: =ROUND(B89*(1+Shocks!H88)+Shocks!I88,5) -> 0.02735 | D89: =ROUND(B89*(1-Shocks!F88)-Shocks!G88,5) -> 0.01684 | E89: =ROUND(B89 + MAX(0.01,Shocks!E88*ABS(B89) ),5) -> 0.03262 | F89: =ROUND(IF(B89<0,B89, B89 - Shocks!D88 * ABS(B89)),5) -> 0.01772 | I89: =ROUND(B89*(1+Shocks!H88)+Shocks!I88,5)+Extrapolation!T91 ->  | J89: =ROUND(B89*(1-Shocks!F88)-Shocks!G88,5)+Extrapolation!T91 ->  | K89: =ROUND(B89 + MAX(0.01,Shocks!E88*ABS(B89) )+Extrapolation!T91, 5) ->  | L89: =ROUND(IF(B89<0,B89, B89 - Shocks!D88 * ABS(B89))+Extrapolation!T91, 5) -> 
A90: 78 | B90: 0.0228072426 | C90: =ROUND(B90*(1+Shocks!H89)+Shocks!I89,5) -> 0.02756 | D90: =ROUND(B90*(1-Shocks!F89)-Shocks!G89,5) -> 0.01707 | E90: =ROUND(B90 + MAX(0.01,Shocks!E89*ABS(B90) ),5) -> 0.03281 | F90: =ROUND(IF(B90<0,B90, B90 - Shocks!D89 * ABS(B90)),5) -> 0.01789 | I90: =ROUND(B90*(1+Shocks!H89)+Shocks!I89,5)+Extrapolation!T92 ->  | J90: =ROUND(B90*(1-Shocks!F89)-Shocks!G89,5)+Extrapolation!T92 ->  | K90: =ROUND(B90 + MAX(0.01,Shocks!E89*ABS(B90) )+Extrapolation!T92, 5) ->  | L90: =ROUND(IF(B90<0,B90, B90 - Shocks!D89 * ABS(B90))+Extrapolation!T92, 5) -> 
A91: 79 | B91: 0.02299053296 | C91: =ROUND(B91*(1+Shocks!H90)+Shocks!I90,5) -> 0.02777 | D91: =ROUND(B91*(1-Shocks!F90)-Shocks!G90,5) -> 0.01731 | E91: =ROUND(B91 + MAX(0.01,Shocks!E90*ABS(B91) ),5) -> 0.03299 | F91: =ROUND(IF(B91<0,B91, B91 - Shocks!D90 * ABS(B91)),5) -> 0.01807 | I91: =ROUND(B91*(1+Shocks!H90)+Shocks!I90,5)+Extrapolation!T93 ->  | J91: =ROUND(B91*(1-Shocks!F90)-Shocks!G90,5)+Extrapolation!T93 ->  | K91: =ROUND(B91 + MAX(0.01,Shocks!E90*ABS(B91) )+Extrapolation!T93, 5) ->  | L91: =ROUND(IF(B91<0,B91, B91 - Shocks!D90 * ABS(B91))+Extrapolation!T93, 5) -> 
A92: 80 | B92: 0.02316940309 | C92: =ROUND(B92*(1+Shocks!H91)+Shocks!I91,5) -> 0.02797 | D92: =ROUND(B92*(1-Shocks!F91)-Shocks!G91,5) -> 0.01754 | E92: =ROUND(B92 + MAX(0.01,Shocks!E91*ABS(B92) ),5) -> 0.03317 | F92: =ROUND(IF(B92<0,B92, B92 - Shocks!D91 * ABS(B92)),5) -> 0.01824 | I92: =ROUND(B92*(1+Shocks!H91)+Shocks!I91,5)+Extrapolation!T94 ->  | J92: =ROUND(B92*(1-Shocks!F91)-Shocks!G91,5)+Extrapolation!T94 ->  | K92: =ROUND(B92 + MAX(0.01,Shocks!E91*ABS(B92) )+Extrapolation!T94, 5) ->  | L92: =ROUND(IF(B92<0,B92, B92 - Shocks!D91 * ABS(B92))+Extrapolation!T94, 5) -> 
A93: 81 | B93: 0.02334400335 | C93: =ROUND(B93*(1+Shocks!H92)+Shocks!I92,5) -> 0.02816 | D93: =ROUND(B93*(1-Shocks!F92)-Shocks!G92,5) -> 0.01777 | E93: =ROUND(B93 + MAX(0.01,Shocks!E92*ABS(B93) ),5) -> 0.03334 | F93: =ROUND(IF(B93<0,B93, B93 - Shocks!D92 * ABS(B93)),5) -> 0.01841 | I93: =ROUND(B93*(1+Shocks!H92)+Shocks!I92,5)+Extrapolation!T95 ->  | J93: =ROUND(B93*(1-Shocks!F92)-Shocks!G92,5)+Extrapolation!T95 ->  | K93: =ROUND(B93 + MAX(0.01,Shocks!E92*ABS(B93) )+Extrapolation!T95, 5) ->  | L93: =ROUND(IF(B93<0,B93, B93 - Shocks!D92 * ABS(B93))+Extrapolation!T95, 5) -> 
A94: 82 | B94: 0.02351447797 | C94: =ROUND(B94*(1+Shocks!H93)+Shocks!I93,5) -> 0.02835 | D94: =ROUND(B94*(1-Shocks!F93)-Shocks!G93,5) -> 0.01801 | E94: =ROUND(B94 + MAX(0.01,Shocks!E93*ABS(B94) ),5) -> 0.03351 | F94: =ROUND(IF(B94<0,B94, B94 - Shocks!D93 * ABS(B94)),5) -> 0.01857 | I94: =ROUND(B94*(1+Shocks!H93)+Shocks!I93,5)+Extrapolation!T96 ->  | J94: =ROUND(B94*(1-Shocks!F93)-Shocks!G93,5)+Extrapolation!T96 ->  | K94: =ROUND(B94 + MAX(0.01,Shocks!E93*ABS(B94) )+Extrapolation!T96, 5) ->  | L94: =ROUND(IF(B94<0,B94, B94 - Shocks!D93 * ABS(B94))+Extrapolation!T96, 5) -> 
A95: 83 | B95: 0.02368096531 | C95: =ROUND(B95*(1+Shocks!H94)+Shocks!I94,5) -> 0.02854 | D95: =ROUND(B95*(1-Shocks!F94)-Shocks!G94,5) -> 0.01823 | E95: =ROUND(B95 + MAX(0.01,Shocks!E94*ABS(B95) ),5) -> 0.03368 | F95: =ROUND(IF(B95<0,B95, B95 - Shocks!D94 * ABS(B95)),5) -> 0.01873 | I95: =ROUND(B95*(1+Shocks!H94)+Shocks!I94,5)+Extrapolation!T97 ->  | J95: =ROUND(B95*(1-Shocks!F94)-Shocks!G94,5)+Extrapolation!T97 ->  | K95: =ROUND(B95 + MAX(0.01,Shocks!E94*ABS(B95) )+Extrapolation!T97, 5) ->  | L95: =ROUND(IF(B95<0,B95, B95 - Shocks!D94 * ABS(B95))+Extrapolation!T97, 5) -> 
A96: 84 | B96: 0.0238435981 | C96: =ROUND(B96*(1+Shocks!H95)+Shocks!I95,5) -> 0.02871 | D96: =ROUND(B96*(1-Shocks!F95)-Shocks!G95,5) -> 0.01846 | E96: =ROUND(B96 + MAX(0.01,Shocks!E95*ABS(B96) ),5) -> 0.03384 | F96: =ROUND(IF(B96<0,B96, B96 - Shocks!D95 * ABS(B96)),5) -> 0.01889 | I96: =ROUND(B96*(1+Shocks!H95)+Shocks!I95,5)+Extrapolation!T98 ->  | J96: =ROUND(B96*(1-Shocks!F95)-Shocks!G95,5)+Extrapolation!T98 ->  | K96: =ROUND(B96 + MAX(0.01,Shocks!E95*ABS(B96) )+Extrapolation!T98, 5) ->  | L96: =ROUND(IF(B96<0,B96, B96 - Shocks!D95 * ABS(B96))+Extrapolation!T98, 5) -> 
A97: 85 | B97: 0.02400250366 | C97: =ROUND(B97*(1+Shocks!H96)+Shocks!I96,5) -> 0.02889 | D97: =ROUND(B97*(1-Shocks!F96)-Shocks!G96,5) -> 0.01869 | E97: =ROUND(B97 + MAX(0.01,Shocks!E96*ABS(B97) ),5) -> 0.034 | F97: =ROUND(IF(B97<0,B97, B97 - Shocks!D96 * ABS(B97)),5) -> 0.01905 | I97: =ROUND(B97*(1+Shocks!H96)+Shocks!I96,5)+Extrapolation!T99 ->  | J97: =ROUND(B97*(1-Shocks!F96)-Shocks!G96,5)+Extrapolation!T99 ->  | K97: =ROUND(B97 + MAX(0.01,Shocks!E96*ABS(B97) )+Extrapolation!T99, 5) ->  | L97: =ROUND(IF(B97<0,B97, B97 - Shocks!D96 * ABS(B97))+Extrapolation!T99, 5) -> 
A98: 86 | B98: 0.02415780419 | C98: =ROUND(B98*(1+Shocks!H97)+Shocks!I97,5) -> 0.02906 | D98: =ROUND(B98*(1-Shocks!F97)-Shocks!G97,5) -> 0.01891 | E98: =ROUND(B98 + MAX(0.01,Shocks!E97*ABS(B98) ),5) -> 0.03416 | F98: =ROUND(IF(B98<0,B98, B98 - Shocks!D97 * ABS(B98)),5) -> 0.0192 | I98: =ROUND(B98*(1+Shocks!H97)+Shocks!I97,5)+Extrapolation!T100 ->  | J98: =ROUND(B98*(1-Shocks!F97)-Shocks!G97,5)+Extrapolation!T100 ->  | K98: =ROUND(B98 + MAX(0.01,Shocks!E97*ABS(B98) )+Extrapolation!T100, 5) ->  | L98: =ROUND(IF(B98<0,B98, B98 - Shocks!D97 * ABS(B98))+Extrapolation!T100, 5) -> 
A99: 87 | B99: 0.02430961695 | C99: =ROUND(B99*(1+Shocks!H98)+Shocks!I98,5) -> 0.02922 | D99: =ROUND(B99*(1-Shocks!F98)-Shocks!G98,5) -> 0.01914 | E99: =ROUND(B99 + MAX(0.01,Shocks!E98*ABS(B99) ),5) -> 0.03431 | F99: =ROUND(IF(B99<0,B99, B99 - Shocks!D98 * ABS(B99)),5) -> 0.01935 | I99: =ROUND(B99*(1+Shocks!H98)+Shocks!I98,5)+Extrapolation!T101 ->  | J99: =ROUND(B99*(1-Shocks!F98)-Shocks!G98,5)+Extrapolation!T101 ->  | K99: =ROUND(B99 + MAX(0.01,Shocks!E98*ABS(B99) )+Extrapolation!T101, 5) ->  | L99: =ROUND(IF(B99<0,B99, B99 - Shocks!D98 * ABS(B99))+Extrapolation!T101, 5) -> 
A100: 88 | B100: 0.02445805449 | C100: =ROUND(B100*(1+Shocks!H99)+Shocks!I99,5) -> 0.02938 | D100: =ROUND(B100*(1-Shocks!F99)-Shocks!G99,5) -> 0.01936 | E100: =ROUND(B100 + MAX(0.01,Shocks!E99*ABS(B100) ),5) -> 0.03446 | F100: =ROUND(IF(B100<0,B100, B100 - Shocks!D99 * ABS(B100)),5) -> 0.0195 | I100: =ROUND(B100*(1+Shocks!H99)+Shocks!I99,5)+Extrapolation!T102 ->  | J100: =ROUND(B100*(1-Shocks!F99)-Shocks!G99,5)+Extrapolation!T102 ->  | K100: =ROUND(B100 + MAX(0.01,Shocks!E99*ABS(B100) )+Extrapolation!T102, 5) ->  | L100: =ROUND(IF(B100<0,B100, B100 - Shocks!D99 * ABS(B100))+Extrapolation!T102, 5) -> 
A101: 89 | B101: 0.02460322487 | C101: =ROUND(B101*(1+Shocks!H100)+Shocks!I100,5) -> 0.02954 | D101: =ROUND(B101*(1-Shocks!F100)-Shocks!G100,5) -> 0.01958 | E101: =ROUND(B101 + MAX(0.01,Shocks!E100*ABS(B101) ),5) -> 0.0346 | F101: =ROUND(IF(B101<0,B101, B101 - Shocks!D100 * ABS(B101)),5) -> 0.01965 | I101: =ROUND(B101*(1+Shocks!H100)+Shocks!I100,5)+Extrapolation!T103 ->  | J101: =ROUND(B101*(1-Shocks!F100)-Shocks!G100,5)+Extrapolation!T103 ->  | K101: =ROUND(B101 + MAX(0.01,Shocks!E100*ABS(B101) )+Extrapolation!T103, 5) ->  | L101: =ROUND(IF(B101<0,B101, B101 - Shocks!D100 * ABS(B101))+Extrapolation!T103, 5) -> 
A102: 90 | B102: 0.02474523184 | C102: =ROUND(B102*(1+Shocks!H101)+Shocks!I101,5) -> 0.02969 | D102: =ROUND(B102*(1-Shocks!F101)-Shocks!G101,5) -> 0.0198 | E102: =ROUND(B102 + MAX(0.01,Shocks!E101*ABS(B102) ),5) -> 0.03475 | F102: =ROUND(IF(B102<0,B102, B102 - Shocks!D101 * ABS(B102)),5) -> 0.0198 | I102: =ROUND(B102*(1+Shocks!H101)+Shocks!I101,5)+Extrapolation!T104 ->  | J102: =ROUND(B102*(1-Shocks!F101)-Shocks!G101,5)+Extrapolation!T104 ->  | K102: =ROUND(B102 + MAX(0.01,Shocks!E101*ABS(B102) )+Extrapolation!T104, 5) ->  | L102: =ROUND(IF(B102<0,B102, B102 - Shocks!D101 * ABS(B102))+Extrapolation!T104, 5) -> 
A103: 91 | B103: 0.02488417505 | C103: =ROUND(B103*(1+Shocks!H102)+Shocks!I102,5) -> 0.02986 | D103: =ROUND(B103*(1-Shocks!F102)-Shocks!G102,5) -> 0.01991 | E103: =ROUND(B103 + MAX(0.01,Shocks!E102*ABS(B103) ),5) -> 0.03488 | F103: =ROUND(IF(B103<0,B103, B103 - Shocks!D102 * ABS(B103)),5) -> 0.01991 | I103: =ROUND(B103*(1+Shocks!H102)+Shocks!I102,5)+Extrapolation!T105 ->  | J103: =ROUND(B103*(1-Shocks!F102)-Shocks!G102,5)+Extrapolation!T105 ->  | K103: =ROUND(B103 + MAX(0.01,Shocks!E102*ABS(B103) )+Extrapolation!T105, 5) ->  | L103: =ROUND(IF(B103<0,B103, B103 - Shocks!D102 * ABS(B103))+Extrapolation!T105, 5) -> 
A104: 92 | B104: 0.02502015019 | C104: =ROUND(B104*(1+Shocks!H103)+Shocks!I103,5) -> 0.03002 | D104: =ROUND(B104*(1-Shocks!F103)-Shocks!G103,5) -> 0.02002 | E104: =ROUND(B104 + MAX(0.01,Shocks!E103*ABS(B104) ),5) -> 0.03502 | F104: =ROUND(IF(B104<0,B104, B104 - Shocks!D103 * ABS(B104)),5) -> 0.02002 | I104: =ROUND(B104*(1+Shocks!H103)+Shocks!I103,5)+Extrapolation!T106 ->  | J104: =ROUND(B104*(1-Shocks!F103)-Shocks!G103,5)+Extrapolation!T106 ->  | K104: =ROUND(B104 + MAX(0.01,Shocks!E103*ABS(B104) )+Extrapolation!T106, 5) ->  | L104: =ROUND(IF(B104<0,B104, B104 - Shocks!D103 * ABS(B104))+Extrapolation!T106, 5) -> 
A105: 93 | B105: 0.02515324922 | C105: =ROUND(B105*(1+Shocks!H104)+Shocks!I104,5) -> 0.03018 | D105: =ROUND(B105*(1-Shocks!F104)-Shocks!G104,5) -> 0.02012 | E105: =ROUND(B105 + MAX(0.01,Shocks!E104*ABS(B105) ),5) -> 0.03515 | F105: =ROUND(IF(B105<0,B105, B105 - Shocks!D104 * ABS(B105)),5) -> 0.02012 | I105: =ROUND(B105*(1+Shocks!H104)+Shocks!I104,5)+Extrapolation!T107 ->  | J105: =ROUND(B105*(1-Shocks!F104)-Shocks!G104,5)+Extrapolation!T107 ->  | K105: =ROUND(B105 + MAX(0.01,Shocks!E104*ABS(B105) )+Extrapolation!T107, 5) ->  | L105: =ROUND(IF(B105<0,B105, B105 - Shocks!D104 * ABS(B105))+Extrapolation!T107, 5) -> 
A106: 94 | B106: 0.02528356052 | C106: =ROUND(B106*(1+Shocks!H105)+Shocks!I105,5) -> 0.03034 | D106: =ROUND(B106*(1-Shocks!F105)-Shocks!G105,5) -> 0.02023 | E106: =ROUND(B106 + MAX(0.01,Shocks!E105*ABS(B106) ),5) -> 0.03528 | F106: =ROUND(IF(B106<0,B106, B106 - Shocks!D105 * ABS(B106)),5) -> 0.02023 | I106: =ROUND(B106*(1+Shocks!H105)+Shocks!I105,5)+Extrapolation!T108 ->  | J106: =ROUND(B106*(1-Shocks!F105)-Shocks!G105,5)+Extrapolation!T108 ->  | K106: =ROUND(B106 + MAX(0.01,Shocks!E105*ABS(B106) )+Extrapolation!T108, 5) ->  | L106: =ROUND(IF(B106<0,B106, B106 - Shocks!D105 * ABS(B106))+Extrapolation!T108, 5) -> 
A107: 95 | B107: 0.02541116903 | C107: =ROUND(B107*(1+Shocks!H106)+Shocks!I106,5) -> 0.03049 | D107: =ROUND(B107*(1-Shocks!F106)-Shocks!G106,5) -> 0.02033 | E107: =ROUND(B107 + MAX(0.01,Shocks!E106*ABS(B107) ),5) -> 0.03541 | F107: =ROUND(IF(B107<0,B107, B107 - Shocks!D106 * ABS(B107)),5) -> 0.02033 | I107: =ROUND(B107*(1+Shocks!H106)+Shocks!I106,5)+Extrapolation!T109 ->  | J107: =ROUND(B107*(1-Shocks!F106)-Shocks!G106,5)+Extrapolation!T109 ->  | K107: =ROUND(B107 + MAX(0.01,Shocks!E106*ABS(B107) )+Extrapolation!T109, 5) ->  | L107: =ROUND(IF(B107<0,B107, B107 - Shocks!D106 * ABS(B107))+Extrapolation!T109, 5) -> 
A108: 96 | B108: 0.0255361564 | C108: =ROUND(B108*(1+Shocks!H107)+Shocks!I107,5) -> 0.03064 | D108: =ROUND(B108*(1-Shocks!F107)-Shocks!G107,5) -> 0.02043 | E108: =ROUND(B108 + MAX(0.01,Shocks!E107*ABS(B108) ),5) -> 0.03554 | F108: =ROUND(IF(B108<0,B108, B108 - Shocks!D107 * ABS(B108)),5) -> 0.02043 | I108: =ROUND(B108*(1+Shocks!H107)+Shocks!I107,5)+Extrapolation!T110 ->  | J108: =ROUND(B108*(1-Shocks!F107)-Shocks!G107,5)+Extrapolation!T110 ->  | K108: =ROUND(B108 + MAX(0.01,Shocks!E107*ABS(B108) )+Extrapolation!T110, 5) ->  | L108: =ROUND(IF(B108<0,B108, B108 - Shocks!D107 * ABS(B108))+Extrapolation!T110, 5) -> 
A109: 97 | B109: 0.02565860118 | C109: =ROUND(B109*(1+Shocks!H108)+Shocks!I108,5) -> 0.03079 | D109: =ROUND(B109*(1-Shocks!F108)-Shocks!G108,5) -> 0.02053 | E109: =ROUND(B109 + MAX(0.01,Shocks!E108*ABS(B109) ),5) -> 0.03566 | F109: =ROUND(IF(B109<0,B109, B109 - Shocks!D108 * ABS(B109)),5) -> 0.02053 | I109: =ROUND(B109*(1+Shocks!H108)+Shocks!I108,5)+Extrapolation!T111 ->  | J109: =ROUND(B109*(1-Shocks!F108)-Shocks!G108,5)+Extrapolation!T111 ->  | K109: =ROUND(B109 + MAX(0.01,Shocks!E108*ABS(B109) )+Extrapolation!T111, 5) ->  | L109: =ROUND(IF(B109<0,B109, B109 - Shocks!D108 * ABS(B109))+Extrapolation!T111, 5) -> 
A110: 98 | B110: 0.0257785789 | C110: =ROUND(B110*(1+Shocks!H109)+Shocks!I109,5) -> 0.03093 | D110: =ROUND(B110*(1-Shocks!F109)-Shocks!G109,5) -> 0.02062 | E110: =ROUND(B110 + MAX(0.01,Shocks!E109*ABS(B110) ),5) -> 0.03578 | F110: =ROUND(IF(B110<0,B110, B110 - Shocks!D109 * ABS(B110)),5) -> 0.02062 | I110: =ROUND(B110*(1+Shocks!H109)+Shocks!I109,5)+Extrapolation!T112 ->  | J110: =ROUND(B110*(1-Shocks!F109)-Shocks!G109,5)+Extrapolation!T112 ->  | K110: =ROUND(B110 + MAX(0.01,Shocks!E109*ABS(B110) )+Extrapolation!T112, 5) ->  | L110: =ROUND(IF(B110<0,B110, B110 - Shocks!D109 * ABS(B110))+Extrapolation!T112, 5) -> 
A111: 99 | B111: 0.02589616224 | C111: =ROUND(B111*(1+Shocks!H110)+Shocks!I110,5) -> 0.03108 | D111: =ROUND(B111*(1-Shocks!F110)-Shocks!G110,5) -> 0.02072 | E111: =ROUND(B111 + MAX(0.01,Shocks!E110*ABS(B111) ),5) -> 0.0359 | F111: =ROUND(IF(B111<0,B111, B111 - Shocks!D110 * ABS(B111)),5) -> 0.02072 | I111: =ROUND(B111*(1+Shocks!H110)+Shocks!I110,5)+Extrapolation!T113 ->  | J111: =ROUND(B111*(1-Shocks!F110)-Shocks!G110,5)+Extrapolation!T113 ->  | K111: =ROUND(B111 + MAX(0.01,Shocks!E110*ABS(B111) )+Extrapolation!T113, 5) ->  | L111: =ROUND(IF(B111<0,B111, B111 - Shocks!D110 * ABS(B111))+Extrapolation!T113, 5) -> 
A112: 100 | B112: 0.02601142115 | C112: =ROUND(B112*(1+Shocks!H111)+Shocks!I111,5) -> 0.03121 | D112: =ROUND(B112*(1-Shocks!F111)-Shocks!G111,5) -> 0.02081 | E112: =ROUND(B112 + MAX(0.01,Shocks!E111*ABS(B112) ),5) -> 0.03601 | F112: =ROUND(IF(B112<0,B112, B112 - Shocks!D111 * ABS(B112)),5) -> 0.02081 | I112: =ROUND(B112*(1+Shocks!H111)+Shocks!I111,5)+Extrapolation!T114 ->  | J112: =ROUND(B112*(1-Shocks!F111)-Shocks!G111,5)+Extrapolation!T114 ->  | K112: =ROUND(B112 + MAX(0.01,Shocks!E111*ABS(B112) )+Extrapolation!T114, 5) ->  | L112: =ROUND(IF(B112<0,B112, B112 - Shocks!D111 * ABS(B112))+Extrapolation!T114, 5) -> 
A113: 101 | B113: 0.02612442296 | C113: =ROUND(B113*(1+Shocks!H112)+Shocks!I112,5) -> 0.03135 | D113: =ROUND(B113*(1-Shocks!F112)-Shocks!G112,5) -> 0.0209 | E113: =ROUND(B113 + MAX(0.01,Shocks!E112*ABS(B113) ),5) -> 0.03612 | F113: =ROUND(IF(B113<0,B113, B113 - Shocks!D112 * ABS(B113)),5) -> 0.0209 | I113: =ROUND(B113*(1+Shocks!H112)+Shocks!I112,5)+Extrapolation!T115 ->  | J113: =ROUND(B113*(1-Shocks!F112)-Shocks!G112,5)+Extrapolation!T115 ->  | K113: =ROUND(B113 + MAX(0.01,Shocks!E112*ABS(B113) )+Extrapolation!T115, 5) ->  | L113: =ROUND(IF(B113<0,B113, B113 - Shocks!D112 * ABS(B113))+Extrapolation!T115, 5) -> 
A114: 102 | B114: 0.02623523249 | C114: =ROUND(B114*(1+Shocks!H113)+Shocks!I113,5) -> 0.03148 | D114: =ROUND(B114*(1-Shocks!F113)-Shocks!G113,5) -> 0.02099 | E114: =ROUND(B114 + MAX(0.01,Shocks!E113*ABS(B114) ),5) -> 0.03624 | F114: =ROUND(IF(B114<0,B114, B114 - Shocks!D113 * ABS(B114)),5) -> 0.02099 | I114: =ROUND(B114*(1+Shocks!H113)+Shocks!I113,5)+Extrapolation!T116 ->  | J114: =ROUND(B114*(1-Shocks!F113)-Shocks!G113,5)+Extrapolation!T116 ->  | K114: =ROUND(B114 + MAX(0.01,Shocks!E113*ABS(B114) )+Extrapolation!T116, 5) ->  | L114: =ROUND(IF(B114<0,B114, B114 - Shocks!D113 * ABS(B114))+Extrapolation!T116, 5) -> 
A115: 103 | B115: 0.02634391219 | C115: =ROUND(B115*(1+Shocks!H114)+Shocks!I114,5) -> 0.03161 | D115: =ROUND(B115*(1-Shocks!F114)-Shocks!G114,5) -> 0.02108 | E115: =ROUND(B115 + MAX(0.01,Shocks!E114*ABS(B115) ),5) -> 0.03634 | F115: =ROUND(IF(B115<0,B115, B115 - Shocks!D114 * ABS(B115)),5) -> 0.02108 | I115: =ROUND(B115*(1+Shocks!H114)+Shocks!I114,5)+Extrapolation!T117 ->  | J115: =ROUND(B115*(1-Shocks!F114)-Shocks!G114,5)+Extrapolation!T117 ->  | K115: =ROUND(B115 + MAX(0.01,Shocks!E114*ABS(B115) )+Extrapolation!T117, 5) ->  | L115: =ROUND(IF(B115<0,B115, B115 - Shocks!D114 * ABS(B115))+Extrapolation!T117, 5) -> 
A116: 104 | B116: 0.0264505222 | C116: =ROUND(B116*(1+Shocks!H115)+Shocks!I115,5) -> 0.03174 | D116: =ROUND(B116*(1-Shocks!F115)-Shocks!G115,5) -> 0.02116 | E116: =ROUND(B116 + MAX(0.01,Shocks!E115*ABS(B116) ),5) -> 0.03645 | F116: =ROUND(IF(B116<0,B116, B116 - Shocks!D115 * ABS(B116)),5) -> 0.02116 | I116: =ROUND(B116*(1+Shocks!H115)+Shocks!I115,5)+Extrapolation!T118 ->  | J116: =ROUND(B116*(1-Shocks!F115)-Shocks!G115,5)+Extrapolation!T118 ->  | K116: =ROUND(B116 + MAX(0.01,Shocks!E115*ABS(B116) )+Extrapolation!T118, 5) ->  | L116: =ROUND(IF(B116<0,B116, B116 - Shocks!D115 * ABS(B116))+Extrapolation!T118, 5) -> 
A117: 105 | B117: 0.02655512049 | C117: =ROUND(B117*(1+Shocks!H116)+Shocks!I116,5) -> 0.03187 | D117: =ROUND(B117*(1-Shocks!F116)-Shocks!G116,5) -> 0.02124 | E117: =ROUND(B117 + MAX(0.01,Shocks!E116*ABS(B117) ),5) -> 0.03656 | F117: =ROUND(IF(B117<0,B117, B117 - Shocks!D116 * ABS(B117)),5) -> 0.02124 | I117: =ROUND(B117*(1+Shocks!H116)+Shocks!I116,5)+Extrapolation!T119 ->  | J117: =ROUND(B117*(1-Shocks!F116)-Shocks!G116,5)+Extrapolation!T119 ->  | K117: =ROUND(B117 + MAX(0.01,Shocks!E116*ABS(B117) )+Extrapolation!T119, 5) ->  | L117: =ROUND(IF(B117<0,B117, B117 - Shocks!D116 * ABS(B117))+Extrapolation!T119, 5) -> 
A118: 106 | B118: 0.02665776292 | C118: =ROUND(B118*(1+Shocks!H117)+Shocks!I117,5) -> 0.03199 | D118: =ROUND(B118*(1-Shocks!F117)-Shocks!G117,5) -> 0.02133 | E118: =ROUND(B118 + MAX(0.01,Shocks!E117*ABS(B118) ),5) -> 0.03666 | F118: =ROUND(IF(B118<0,B118, B118 - Shocks!D117 * ABS(B118)),5) -> 0.02133 | I118: =ROUND(B118*(1+Shocks!H117)+Shocks!I117,5)+Extrapolation!T120 ->  | J118: =ROUND(B118*(1-Shocks!F117)-Shocks!G117,5)+Extrapolation!T120 ->  | K118: =ROUND(B118 + MAX(0.01,Shocks!E117*ABS(B118) )+Extrapolation!T120, 5) ->  | L118: =ROUND(IF(B118<0,B118, B118 - Shocks!D117 * ABS(B118))+Extrapolation!T120, 5) -> 
A119: 107 | B119: 0.02675850335 | C119: =ROUND(B119*(1+Shocks!H118)+Shocks!I118,5) -> 0.03211 | D119: =ROUND(B119*(1-Shocks!F118)-Shocks!G118,5) -> 0.02141 | E119: =ROUND(B119 + MAX(0.01,Shocks!E118*ABS(B119) ),5) -> 0.03676 | F119: =ROUND(IF(B119<0,B119, B119 - Shocks!D118 * ABS(B119)),5) -> 0.02141 | I119: =ROUND(B119*(1+Shocks!H118)+Shocks!I118,5)+Extrapolation!T121 ->  | J119: =ROUND(B119*(1-Shocks!F118)-Shocks!G118,5)+Extrapolation!T121 ->  | K119: =ROUND(B119 + MAX(0.01,Shocks!E118*ABS(B119) )+Extrapolation!T121, 5) ->  | L119: =ROUND(IF(B119<0,B119, B119 - Shocks!D118 * ABS(B119))+Extrapolation!T121, 5) -> 
A120: 108 | B120: 0.02685739372 | C120: =ROUND(B120*(1+Shocks!H119)+Shocks!I119,5) -> 0.03223 | D120: =ROUND(B120*(1-Shocks!F119)-Shocks!G119,5) -> 0.02149 | E120: =ROUND(B120 + MAX(0.01,Shocks!E119*ABS(B120) ),5) -> 0.03686 | F120: =ROUND(IF(B120<0,B120, B120 - Shocks!D119 * ABS(B120)),5) -> 0.02149 | I120: =ROUND(B120*(1+Shocks!H119)+Shocks!I119,5)+Extrapolation!T122 ->  | J120: =ROUND(B120*(1-Shocks!F119)-Shocks!G119,5)+Extrapolation!T122 ->  | K120: =ROUND(B120 + MAX(0.01,Shocks!E119*ABS(B120) )+Extrapolation!T122, 5) ->  | L120: =ROUND(IF(B120<0,B120, B120 - Shocks!D119 * ABS(B120))+Extrapolation!T122, 5) -> 
A121: 109 | B121: 0.02695448414 | C121: =ROUND(B121*(1+Shocks!H120)+Shocks!I120,5) -> 0.03235 | D121: =ROUND(B121*(1-Shocks!F120)-Shocks!G120,5) -> 0.02156 | E121: =ROUND(B121 + MAX(0.01,Shocks!E120*ABS(B121) ),5) -> 0.03695 | F121: =ROUND(IF(B121<0,B121, B121 - Shocks!D120 * ABS(B121)),5) -> 0.02156 | I121: =ROUND(B121*(1+Shocks!H120)+Shocks!I120,5)+Extrapolation!T123 ->  | J121: =ROUND(B121*(1-Shocks!F120)-Shocks!G120,5)+Extrapolation!T123 ->  | K121: =ROUND(B121 + MAX(0.01,Shocks!E120*ABS(B121) )+Extrapolation!T123, 5) ->  | L121: =ROUND(IF(B121<0,B121, B121 - Shocks!D120 * ABS(B121))+Extrapolation!T123, 5) -> 
A122: 110 | B122: 0.02704982295 | C122: =ROUND(B122*(1+Shocks!H121)+Shocks!I121,5) -> 0.03246 | D122: =ROUND(B122*(1-Shocks!F121)-Shocks!G121,5) -> 0.02164 | E122: =ROUND(B122 + MAX(0.01,Shocks!E121*ABS(B122) ),5) -> 0.03705 | F122: =ROUND(IF(B122<0,B122, B122 - Shocks!D121 * ABS(B122)),5) -> 0.02164 | I122: =ROUND(B122*(1+Shocks!H121)+Shocks!I121,5)+Extrapolation!T124 ->  | J122: =ROUND(B122*(1-Shocks!F121)-Shocks!G121,5)+Extrapolation!T124 ->  | K122: =ROUND(B122 + MAX(0.01,Shocks!E121*ABS(B122) )+Extrapolation!T124, 5) ->  | L122: =ROUND(IF(B122<0,B122, B122 - Shocks!D121 * ABS(B122))+Extrapolation!T124, 5) -> 
A123: 111 | B123: 0.02714345681 | C123: =ROUND(B123*(1+Shocks!H122)+Shocks!I122,5) -> 0.03257 | D123: =ROUND(B123*(1-Shocks!F122)-Shocks!G122,5) -> 0.02171 | E123: =ROUND(B123 + MAX(0.01,Shocks!E122*ABS(B123) ),5) -> 0.03714 | F123: =ROUND(IF(B123<0,B123, B123 - Shocks!D122 * ABS(B123)),5) -> 0.02171 | I123: =ROUND(B123*(1+Shocks!H122)+Shocks!I122,5)+Extrapolation!T125 ->  | J123: =ROUND(B123*(1-Shocks!F122)-Shocks!G122,5)+Extrapolation!T125 ->  | K123: =ROUND(B123 + MAX(0.01,Shocks!E122*ABS(B123) )+Extrapolation!T125, 5) ->  | L123: =ROUND(IF(B123<0,B123, B123 - Shocks!D122 * ABS(B123))+Extrapolation!T125, 5) -> 
A124: 112 | B124: 0.02723543076 | C124: =ROUND(B124*(1+Shocks!H123)+Shocks!I123,5) -> 0.03268 | D124: =ROUND(B124*(1-Shocks!F123)-Shocks!G123,5) -> 0.02179 | E124: =ROUND(B124 + MAX(0.01,Shocks!E123*ABS(B124) ),5) -> 0.03724 | F124: =ROUND(IF(B124<0,B124, B124 - Shocks!D123 * ABS(B124)),5) -> 0.02179 | I124: =ROUND(B124*(1+Shocks!H123)+Shocks!I123,5)+Extrapolation!T126 ->  | J124: =ROUND(B124*(1-Shocks!F123)-Shocks!G123,5)+Extrapolation!T126 ->  | K124: =ROUND(B124 + MAX(0.01,Shocks!E123*ABS(B124) )+Extrapolation!T126, 5) ->  | L124: =ROUND(IF(B124<0,B124, B124 - Shocks!D123 * ABS(B124))+Extrapolation!T126, 5) -> 
A125: 113 | B125: 0.02732578828 | C125: =ROUND(B125*(1+Shocks!H124)+Shocks!I124,5) -> 0.03279 | D125: =ROUND(B125*(1-Shocks!F124)-Shocks!G124,5) -> 0.02186 | E125: =ROUND(B125 + MAX(0.01,Shocks!E124*ABS(B125) ),5) -> 0.03733 | F125: =ROUND(IF(B125<0,B125, B125 - Shocks!D124 * ABS(B125)),5) -> 0.02186 | I125: =ROUND(B125*(1+Shocks!H124)+Shocks!I124,5)+Extrapolation!T127 ->  | J125: =ROUND(B125*(1-Shocks!F124)-Shocks!G124,5)+Extrapolation!T127 ->  | K125: =ROUND(B125 + MAX(0.01,Shocks!E124*ABS(B125) )+Extrapolation!T127, 5) ->  | L125: =ROUND(IF(B125<0,B125, B125 - Shocks!D124 * ABS(B125))+Extrapolation!T127, 5) -> 
A126: 114 | B126: 0.02741457139 | C126: =ROUND(B126*(1+Shocks!H125)+Shocks!I125,5) -> 0.0329 | D126: =ROUND(B126*(1-Shocks!F125)-Shocks!G125,5) -> 0.02193 | E126: =ROUND(B126 + MAX(0.01,Shocks!E125*ABS(B126) ),5) -> 0.03741 | F126: =ROUND(IF(B126<0,B126, B126 - Shocks!D125 * ABS(B126)),5) -> 0.02193 | I126: =ROUND(B126*(1+Shocks!H125)+Shocks!I125,5)+Extrapolation!T128 ->  | J126: =ROUND(B126*(1-Shocks!F125)-Shocks!G125,5)+Extrapolation!T128 ->  | K126: =ROUND(B126 + MAX(0.01,Shocks!E125*ABS(B126) )+Extrapolation!T128, 5) ->  | L126: =ROUND(IF(B126<0,B126, B126 - Shocks!D125 * ABS(B126))+Extrapolation!T128, 5) -> 
A127: 115 | B127: 0.02750182068 | C127: =ROUND(B127*(1+Shocks!H126)+Shocks!I126,5) -> 0.033 | D127: =ROUND(B127*(1-Shocks!F126)-Shocks!G126,5) -> 0.022 | E127: =ROUND(B127 + MAX(0.01,Shocks!E126*ABS(B127) ),5) -> 0.0375 | F127: =ROUND(IF(B127<0,B127, B127 - Shocks!D126 * ABS(B127)),5) -> 0.022 | I127: =ROUND(B127*(1+Shocks!H126)+Shocks!I126,5)+Extrapolation!T129 ->  | J127: =ROUND(B127*(1-Shocks!F126)-Shocks!G126,5)+Extrapolation!T129 ->  | K127: =ROUND(B127 + MAX(0.01,Shocks!E126*ABS(B127) )+Extrapolation!T129, 5) ->  | L127: =ROUND(IF(B127<0,B127, B127 - Shocks!D126 * ABS(B127))+Extrapolation!T129, 5) -> 
A128: 116 | B128: 0.02758757535 | C128: =ROUND(B128*(1+Shocks!H127)+Shocks!I127,5) -> 0.03311 | D128: =ROUND(B128*(1-Shocks!F127)-Shocks!G127,5) -> 0.02207 | E128: =ROUND(B128 + MAX(0.01,Shocks!E127*ABS(B128) ),5) -> 0.03759 | F128: =ROUND(IF(B128<0,B128, B128 - Shocks!D127 * ABS(B128)),5) -> 0.02207 | I128: =ROUND(B128*(1+Shocks!H127)+Shocks!I127,5)+Extrapolation!T130 ->  | J128: =ROUND(B128*(1-Shocks!F127)-Shocks!G127,5)+Extrapolation!T130 ->  | K128: =ROUND(B128 + MAX(0.01,Shocks!E127*ABS(B128) )+Extrapolation!T130, 5) ->  | L128: =ROUND(IF(B128<0,B128, B128 - Shocks!D127 * ABS(B128))+Extrapolation!T130, 5) -> 
A129: 117 | B129: 0.02767187332 | C129: =ROUND(B129*(1+Shocks!H128)+Shocks!I128,5) -> 0.03321 | D129: =ROUND(B129*(1-Shocks!F128)-Shocks!G128,5) -> 0.02214 | E129: =ROUND(B129 + MAX(0.01,Shocks!E128*ABS(B129) ),5) -> 0.03767 | F129: =ROUND(IF(B129<0,B129, B129 - Shocks!D128 * ABS(B129)),5) -> 0.02214 | I129: =ROUND(B129*(1+Shocks!H128)+Shocks!I128,5)+Extrapolation!T131 ->  | J129: =ROUND(B129*(1-Shocks!F128)-Shocks!G128,5)+Extrapolation!T131 ->  | K129: =ROUND(B129 + MAX(0.01,Shocks!E128*ABS(B129) )+Extrapolation!T131, 5) ->  | L129: =ROUND(IF(B129<0,B129, B129 - Shocks!D128 * ABS(B129))+Extrapolation!T131, 5) -> 
A130: 118 | B130: 0.02775475123 | C130: =ROUND(B130*(1+Shocks!H129)+Shocks!I129,5) -> 0.03331 | D130: =ROUND(B130*(1-Shocks!F129)-Shocks!G129,5) -> 0.0222 | E130: =ROUND(B130 + MAX(0.01,Shocks!E129*ABS(B130) ),5) -> 0.03775 | F130: =ROUND(IF(B130<0,B130, B130 - Shocks!D129 * ABS(B130)),5) -> 0.0222 | I130: =ROUND(B130*(1+Shocks!H129)+Shocks!I129,5)+Extrapolation!T132 ->  | J130: =ROUND(B130*(1-Shocks!F129)-Shocks!G129,5)+Extrapolation!T132 ->  | K130: =ROUND(B130 + MAX(0.01,Shocks!E129*ABS(B130) )+Extrapolation!T132, 5) ->  | L130: =ROUND(IF(B130<0,B130, B130 - Shocks!D129 * ABS(B130))+Extrapolation!T132, 5) -> 
A131: 119 | B131: 0.02783624454 | C131: =ROUND(B131*(1+Shocks!H130)+Shocks!I130,5) -> 0.0334 | D131: =ROUND(B131*(1-Shocks!F130)-Shocks!G130,5) -> 0.02227 | E131: =ROUND(B131 + MAX(0.01,Shocks!E130*ABS(B131) ),5) -> 0.03784 | F131: =ROUND(IF(B131<0,B131, B131 - Shocks!D130 * ABS(B131)),5) -> 0.02227 | I131: =ROUND(B131*(1+Shocks!H130)+Shocks!I130,5)+Extrapolation!T133 ->  | J131: =ROUND(B131*(1-Shocks!F130)-Shocks!G130,5)+Extrapolation!T133 ->  | K131: =ROUND(B131 + MAX(0.01,Shocks!E130*ABS(B131) )+Extrapolation!T133, 5) ->  | L131: =ROUND(IF(B131<0,B131, B131 - Shocks!D130 * ABS(B131))+Extrapolation!T133, 5) -> 
A132: 120 | B132: 0.02791638753 | C132: =ROUND(B132*(1+Shocks!H131)+Shocks!I131,5) -> 0.0335 | D132: =ROUND(B132*(1-Shocks!F131)-Shocks!G131,5) -> 0.02233 | E132: =ROUND(B132 + MAX(0.01,Shocks!E131*ABS(B132) ),5) -> 0.03792 | F132: =ROUND(IF(B132<0,B132, B132 - Shocks!D131 * ABS(B132)),5) -> 0.02233 | I132: =ROUND(B132*(1+Shocks!H131)+Shocks!I131,5)+Extrapolation!T134 ->  | J132: =ROUND(B132*(1-Shocks!F131)-Shocks!G131,5)+Extrapolation!T134 ->  | K132: =ROUND(B132 + MAX(0.01,Shocks!E131*ABS(B132) )+Extrapolation!T134, 5) ->  | L132: =ROUND(IF(B132<0,B132, B132 - Shocks!D131 * ABS(B132))+Extrapolation!T134, 5) -> 
A133: 121 | B133: 0.02799521337 | C133: =ROUND(B133*(1+Shocks!H132)+Shocks!I132,5) -> 0.03359 | D133: =ROUND(B133*(1-Shocks!F132)-Shocks!G132,5) -> 0.0224 | E133: =ROUND(B133 + MAX(0.01,Shocks!E132*ABS(B133) ),5) -> 0.038 | F133: =ROUND(IF(B133<0,B133, B133 - Shocks!D132 * ABS(B133)),5) -> 0.0224 | I133: =ROUND(B133*(1+Shocks!H132)+Shocks!I132,5)+Extrapolation!T135 ->  | J133: =ROUND(B133*(1-Shocks!F132)-Shocks!G132,5)+Extrapolation!T135 ->  | K133: =ROUND(B133 + MAX(0.01,Shocks!E132*ABS(B133) )+Extrapolation!T135, 5) ->  | L133: =ROUND(IF(B133<0,B133, B133 - Shocks!D132 * ABS(B133))+Extrapolation!T135, 5) -> 
A134: 122 | B134: 0.02807275417 | C134: =ROUND(B134*(1+Shocks!H133)+Shocks!I133,5) -> 0.03369 | D134: =ROUND(B134*(1-Shocks!F133)-Shocks!G133,5) -> 0.02246 | E134: =ROUND(B134 + MAX(0.01,Shocks!E133*ABS(B134) ),5) -> 0.03807 | F134: =ROUND(IF(B134<0,B134, B134 - Shocks!D133 * ABS(B134)),5) -> 0.02246 | I134: =ROUND(B134*(1+Shocks!H133)+Shocks!I133,5)+Extrapolation!T136 ->  | J134: =ROUND(B134*(1-Shocks!F133)-Shocks!G133,5)+Extrapolation!T136 ->  | K134: =ROUND(B134 + MAX(0.01,Shocks!E133*ABS(B134) )+Extrapolation!T136, 5) ->  | L134: =ROUND(IF(B134<0,B134, B134 - Shocks!D133 * ABS(B134))+Extrapolation!T136, 5) -> 
A135: 123 | B135: 0.02814904101 | C135: =ROUND(B135*(1+Shocks!H134)+Shocks!I134,5) -> 0.03378 | D135: =ROUND(B135*(1-Shocks!F134)-Shocks!G134,5) -> 0.02252 | E135: =ROUND(B135 + MAX(0.01,Shocks!E134*ABS(B135) ),5) -> 0.03815 | F135: =ROUND(IF(B135<0,B135, B135 - Shocks!D134 * ABS(B135)),5) -> 0.02252 | I135: =ROUND(B135*(1+Shocks!H134)+Shocks!I134,5)+Extrapolation!T137 ->  | J135: =ROUND(B135*(1-Shocks!F134)-Shocks!G134,5)+Extrapolation!T137 ->  | K135: =ROUND(B135 + MAX(0.01,Shocks!E134*ABS(B135) )+Extrapolation!T137, 5) ->  | L135: =ROUND(IF(B135<0,B135, B135 - Shocks!D134 * ABS(B135))+Extrapolation!T137, 5) -> 
A136: 124 | B136: 0.02822410398 | C136: =ROUND(B136*(1+Shocks!H135)+Shocks!I135,5) -> 0.03387 | D136: =ROUND(B136*(1-Shocks!F135)-Shocks!G135,5) -> 0.02258 | E136: =ROUND(B136 + MAX(0.01,Shocks!E135*ABS(B136) ),5) -> 0.03822 | F136: =ROUND(IF(B136<0,B136, B136 - Shocks!D135 * ABS(B136)),5) -> 0.02258 | I136: =ROUND(B136*(1+Shocks!H135)+Shocks!I135,5)+Extrapolation!T138 ->  | J136: =ROUND(B136*(1-Shocks!F135)-Shocks!G135,5)+Extrapolation!T138 ->  | K136: =ROUND(B136 + MAX(0.01,Shocks!E135*ABS(B136) )+Extrapolation!T138, 5) ->  | L136: =ROUND(IF(B136<0,B136, B136 - Shocks!D135 * ABS(B136))+Extrapolation!T138, 5) -> 
A137: 125 | B137: 0.02829797222 | C137: =ROUND(B137*(1+Shocks!H136)+Shocks!I136,5) -> 0.03396 | D137: =ROUND(B137*(1-Shocks!F136)-Shocks!G136,5) -> 0.02264 | E137: =ROUND(B137 + MAX(0.01,Shocks!E136*ABS(B137) ),5) -> 0.0383 | F137: =ROUND(IF(B137<0,B137, B137 - Shocks!D136 * ABS(B137)),5) -> 0.02264 | I137: =ROUND(B137*(1+Shocks!H136)+Shocks!I136,5)+Extrapolation!T139 ->  | J137: =ROUND(B137*(1-Shocks!F136)-Shocks!G136,5)+Extrapolation!T139 ->  | K137: =ROUND(B137 + MAX(0.01,Shocks!E136*ABS(B137) )+Extrapolation!T139, 5) ->  | L137: =ROUND(IF(B137<0,B137, B137 - Shocks!D136 * ABS(B137))+Extrapolation!T139, 5) -> 
A138: 126 | B138: 0.02837067396 | C138: =ROUND(B138*(1+Shocks!H137)+Shocks!I137,5) -> 0.03404 | D138: =ROUND(B138*(1-Shocks!F137)-Shocks!G137,5) -> 0.0227 | E138: =ROUND(B138 + MAX(0.01,Shocks!E137*ABS(B138) ),5) -> 0.03837 | F138: =ROUND(IF(B138<0,B138, B138 - Shocks!D137 * ABS(B138)),5) -> 0.0227 | I138: =ROUND(B138*(1+Shocks!H137)+Shocks!I137,5)+Extrapolation!T140 ->  | J138: =ROUND(B138*(1-Shocks!F137)-Shocks!G137,5)+Extrapolation!T140 ->  | K138: =ROUND(B138 + MAX(0.01,Shocks!E137*ABS(B138) )+Extrapolation!T140, 5) ->  | L138: =ROUND(IF(B138<0,B138, B138 - Shocks!D137 * ABS(B138))+Extrapolation!T140, 5) -> 
A139: 127 | B139: 0.02844223657 | C139: =ROUND(B139*(1+Shocks!H138)+Shocks!I138,5) -> 0.03413 | D139: =ROUND(B139*(1-Shocks!F138)-Shocks!G138,5) -> 0.02275 | E139: =ROUND(B139 + MAX(0.01,Shocks!E138*ABS(B139) ),5) -> 0.03844 | F139: =ROUND(IF(B139<0,B139, B139 - Shocks!D138 * ABS(B139)),5) -> 0.02275 | I139: =ROUND(B139*(1+Shocks!H138)+Shocks!I138,5)+Extrapolation!T141 ->  | J139: =ROUND(B139*(1-Shocks!F138)-Shocks!G138,5)+Extrapolation!T141 ->  | K139: =ROUND(B139 + MAX(0.01,Shocks!E138*ABS(B139) )+Extrapolation!T141, 5) ->  | L139: =ROUND(IF(B139<0,B139, B139 - Shocks!D138 * ABS(B139))+Extrapolation!T141, 5) -> 
A140: 128 | B140: 0.02851268655 | C140: =ROUND(B140*(1+Shocks!H139)+Shocks!I139,5) -> 0.03422 | D140: =ROUND(B140*(1-Shocks!F139)-Shocks!G139,5) -> 0.02281 | E140: =ROUND(B140 + MAX(0.01,Shocks!E139*ABS(B140) ),5) -> 0.03851 | F140: =ROUND(IF(B140<0,B140, B140 - Shocks!D139 * ABS(B140)),5) -> 0.02281 | I140: =ROUND(B140*(1+Shocks!H139)+Shocks!I139,5)+Extrapolation!T142 ->  | J140: =ROUND(B140*(1-Shocks!F139)-Shocks!G139,5)+Extrapolation!T142 ->  | K140: =ROUND(B140 + MAX(0.01,Shocks!E139*ABS(B140) )+Extrapolation!T142, 5) ->  | L140: =ROUND(IF(B140<0,B140, B140 - Shocks!D139 * ABS(B140))+Extrapolation!T142, 5) -> 
A141: 129 | B141: 0.0285820496 | C141: =ROUND(B141*(1+Shocks!H140)+Shocks!I140,5) -> 0.0343 | D141: =ROUND(B141*(1-Shocks!F140)-Shocks!G140,5) -> 0.02287 | E141: =ROUND(B141 + MAX(0.01,Shocks!E140*ABS(B141) ),5) -> 0.03858 | F141: =ROUND(IF(B141<0,B141, B141 - Shocks!D140 * ABS(B141)),5) -> 0.02287 | I141: =ROUND(B141*(1+Shocks!H140)+Shocks!I140,5)+Extrapolation!T143 ->  | J141: =ROUND(B141*(1-Shocks!F140)-Shocks!G140,5)+Extrapolation!T143 ->  | K141: =ROUND(B141 + MAX(0.01,Shocks!E140*ABS(B141) )+Extrapolation!T143, 5) ->  | L141: =ROUND(IF(B141<0,B141, B141 - Shocks!D140 * ABS(B141))+Extrapolation!T143, 5) -> 
A142: 130 | B142: 0.02865035064 | C142: =ROUND(B142*(1+Shocks!H141)+Shocks!I141,5) -> 0.03438 | D142: =ROUND(B142*(1-Shocks!F141)-Shocks!G141,5) -> 0.02292 | E142: =ROUND(B142 + MAX(0.01,Shocks!E141*ABS(B142) ),5) -> 0.03865 | F142: =ROUND(IF(B142<0,B142, B142 - Shocks!D141 * ABS(B142)),5) -> 0.02292 | I142: =ROUND(B142*(1+Shocks!H141)+Shocks!I141,5)+Extrapolation!T144 ->  | J142: =ROUND(B142*(1-Shocks!F141)-Shocks!G141,5)+Extrapolation!T144 ->  | K142: =ROUND(B142 + MAX(0.01,Shocks!E141*ABS(B142) )+Extrapolation!T144, 5) ->  | L142: =ROUND(IF(B142<0,B142, B142 - Shocks!D141 * ABS(B142))+Extrapolation!T144, 5) -> 
A143: 131 | B143: 0.02871761384 | C143: =ROUND(B143*(1+Shocks!H142)+Shocks!I142,5) -> 0.03446 | D143: =ROUND(B143*(1-Shocks!F142)-Shocks!G142,5) -> 0.02297 | E143: =ROUND(B143 + MAX(0.01,Shocks!E142*ABS(B143) ),5) -> 0.03872 | F143: =ROUND(IF(B143<0,B143, B143 - Shocks!D142 * ABS(B143)),5) -> 0.02297 | I143: =ROUND(B143*(1+Shocks!H142)+Shocks!I142,5)+Extrapolation!T145 ->  | J143: =ROUND(B143*(1-Shocks!F142)-Shocks!G142,5)+Extrapolation!T145 ->  | K143: =ROUND(B143 + MAX(0.01,Shocks!E142*ABS(B143) )+Extrapolation!T145, 5) ->  | L143: =ROUND(IF(B143<0,B143, B143 - Shocks!D142 * ABS(B143))+Extrapolation!T145, 5) -> 
A144: 132 | B144: 0.02878386264 | C144: =ROUND(B144*(1+Shocks!H143)+Shocks!I143,5) -> 0.03454 | D144: =ROUND(B144*(1-Shocks!F143)-Shocks!G143,5) -> 0.02303 | E144: =ROUND(B144 + MAX(0.01,Shocks!E143*ABS(B144) ),5) -> 0.03878 | F144: =ROUND(IF(B144<0,B144, B144 - Shocks!D143 * ABS(B144)),5) -> 0.02303 | I144: =ROUND(B144*(1+Shocks!H143)+Shocks!I143,5)+Extrapolation!T146 ->  | J144: =ROUND(B144*(1-Shocks!F143)-Shocks!G143,5)+Extrapolation!T146 ->  | K144: =ROUND(B144 + MAX(0.01,Shocks!E143*ABS(B144) )+Extrapolation!T146, 5) ->  | L144: =ROUND(IF(B144<0,B144, B144 - Shocks!D143 * ABS(B144))+Extrapolation!T146, 5) -> 
A145: 133 | B145: 0.02884911977 | C145: =ROUND(B145*(1+Shocks!H144)+Shocks!I144,5) -> 0.03462 | D145: =ROUND(B145*(1-Shocks!F144)-Shocks!G144,5) -> 0.02308 | E145: =ROUND(B145 + MAX(0.01,Shocks!E144*ABS(B145) ),5) -> 0.03885 | F145: =ROUND(IF(B145<0,B145, B145 - Shocks!D144 * ABS(B145)),5) -> 0.02308 | I145: =ROUND(B145*(1+Shocks!H144)+Shocks!I144,5)+Extrapolation!T147 ->  | J145: =ROUND(B145*(1-Shocks!F144)-Shocks!G144,5)+Extrapolation!T147 ->  | K145: =ROUND(B145 + MAX(0.01,Shocks!E144*ABS(B145) )+Extrapolation!T147, 5) ->  | L145: =ROUND(IF(B145<0,B145, B145 - Shocks!D144 * ABS(B145))+Extrapolation!T147, 5) -> 
A146: 134 | B146: 0.02891340732 | C146: =ROUND(B146*(1+Shocks!H145)+Shocks!I145,5) -> 0.0347 | D146: =ROUND(B146*(1-Shocks!F145)-Shocks!G145,5) -> 0.02313 | E146: =ROUND(B146 + MAX(0.01,Shocks!E145*ABS(B146) ),5) -> 0.03891 | F146: =ROUND(IF(B146<0,B146, B146 - Shocks!D145 * ABS(B146)),5) -> 0.02313 | I146: =ROUND(B146*(1+Shocks!H145)+Shocks!I145,5)+Extrapolation!T148 ->  | J146: =ROUND(B146*(1-Shocks!F145)-Shocks!G145,5)+Extrapolation!T148 ->  | K146: =ROUND(B146 + MAX(0.01,Shocks!E145*ABS(B146) )+Extrapolation!T148, 5) ->  | L146: =ROUND(IF(B146<0,B146, B146 - Shocks!D145 * ABS(B146))+Extrapolation!T148, 5) -> 
A147: 135 | B147: 0.02897674671 | C147: =ROUND(B147*(1+Shocks!H146)+Shocks!I146,5) -> 0.03477 | D147: =ROUND(B147*(1-Shocks!F146)-Shocks!G146,5) -> 0.02318 | E147: =ROUND(B147 + MAX(0.01,Shocks!E146*ABS(B147) ),5) -> 0.03898 | F147: =ROUND(IF(B147<0,B147, B147 - Shocks!D146 * ABS(B147)),5) -> 0.02318 | I147: =ROUND(B147*(1+Shocks!H146)+Shocks!I146,5)+Extrapolation!T149 ->  | J147: =ROUND(B147*(1-Shocks!F146)-Shocks!G146,5)+Extrapolation!T149 ->  | K147: =ROUND(B147 + MAX(0.01,Shocks!E146*ABS(B147) )+Extrapolation!T149, 5) ->  | L147: =ROUND(IF(B147<0,B147, B147 - Shocks!D146 * ABS(B147))+Extrapolation!T149, 5) -> 
A148: 136 | B148: 0.02903915874 | C148: =ROUND(B148*(1+Shocks!H147)+Shocks!I147,5) -> 0.03485 | D148: =ROUND(B148*(1-Shocks!F147)-Shocks!G147,5) -> 0.02323 | E148: =ROUND(B148 + MAX(0.01,Shocks!E147*ABS(B148) ),5) -> 0.03904 | F148: =ROUND(IF(B148<0,B148, B148 - Shocks!D147 * ABS(B148)),5) -> 0.02323 | I148: =ROUND(B148*(1+Shocks!H147)+Shocks!I147,5)+Extrapolation!T150 ->  | J148: =ROUND(B148*(1-Shocks!F147)-Shocks!G147,5)+Extrapolation!T150 ->  | K148: =ROUND(B148 + MAX(0.01,Shocks!E147*ABS(B148) )+Extrapolation!T150, 5) ->  | L148: =ROUND(IF(B148<0,B148, B148 - Shocks!D147 * ABS(B148))+Extrapolation!T150, 5) -> 
A149: 137 | B149: 0.0291006636 | C149: =ROUND(B149*(1+Shocks!H148)+Shocks!I148,5) -> 0.03492 | D149: =ROUND(B149*(1-Shocks!F148)-Shocks!G148,5) -> 0.02328 | E149: =ROUND(B149 + MAX(0.01,Shocks!E148*ABS(B149) ),5) -> 0.0391 | F149: =ROUND(IF(B149<0,B149, B149 - Shocks!D148 * ABS(B149)),5) -> 0.02328 | I149: =ROUND(B149*(1+Shocks!H148)+Shocks!I148,5)+Extrapolation!T151 ->  | J149: =ROUND(B149*(1-Shocks!F148)-Shocks!G148,5)+Extrapolation!T151 ->  | K149: =ROUND(B149 + MAX(0.01,Shocks!E148*ABS(B149) )+Extrapolation!T151, 5) ->  | L149: =ROUND(IF(B149<0,B149, B149 - Shocks!D148 * ABS(B149))+Extrapolation!T151, 5) -> 
A150: 138 | B150: 0.02916128091 | C150: =ROUND(B150*(1+Shocks!H149)+Shocks!I149,5) -> 0.03499 | D150: =ROUND(B150*(1-Shocks!F149)-Shocks!G149,5) -> 0.02333 | E150: =ROUND(B150 + MAX(0.01,Shocks!E149*ABS(B150) ),5) -> 0.03916 | F150: =ROUND(IF(B150<0,B150, B150 - Shocks!D149 * ABS(B150)),5) -> 0.02333 | I150: =ROUND(B150*(1+Shocks!H149)+Shocks!I149,5)+Extrapolation!T152 ->  | J150: =ROUND(B150*(1-Shocks!F149)-Shocks!G149,5)+Extrapolation!T152 ->  | K150: =ROUND(B150 + MAX(0.01,Shocks!E149*ABS(B150) )+Extrapolation!T152, 5) ->  | L150: =ROUND(IF(B150<0,B150, B150 - Shocks!D149 * ABS(B150))+Extrapolation!T152, 5) -> 
A151: 139 | B151: 0.02922102973 | C151: =ROUND(B151*(1+Shocks!H150)+Shocks!I150,5) -> 0.03507 | D151: =ROUND(B151*(1-Shocks!F150)-Shocks!G150,5) -> 0.02338 | E151: =ROUND(B151 + MAX(0.01,Shocks!E150*ABS(B151) ),5) -> 0.03922 | F151: =ROUND(IF(B151<0,B151, B151 - Shocks!D150 * ABS(B151)),5) -> 0.02338 | I151: =ROUND(B151*(1+Shocks!H150)+Shocks!I150,5)+Extrapolation!T153 ->  | J151: =ROUND(B151*(1-Shocks!F150)-Shocks!G150,5)+Extrapolation!T153 ->  | K151: =ROUND(B151 + MAX(0.01,Shocks!E150*ABS(B151) )+Extrapolation!T153, 5) ->  | L151: =ROUND(IF(B151<0,B151, B151 - Shocks!D150 * ABS(B151))+Extrapolation!T153, 5) -> 
A152: 140 | B152: 0.02927992858 | C152: =ROUND(B152*(1+Shocks!H151)+Shocks!I151,5) -> 0.03514 | D152: =ROUND(B152*(1-Shocks!F151)-Shocks!G151,5) -> 0.02342 | E152: =ROUND(B152 + MAX(0.01,Shocks!E151*ABS(B152) ),5) -> 0.03928 | F152: =ROUND(IF(B152<0,B152, B152 - Shocks!D151 * ABS(B152)),5) -> 0.02342 | I152: =ROUND(B152*(1+Shocks!H151)+Shocks!I151,5)+Extrapolation!T154 ->  | J152: =ROUND(B152*(1-Shocks!F151)-Shocks!G151,5)+Extrapolation!T154 ->  | K152: =ROUND(B152 + MAX(0.01,Shocks!E151*ABS(B152) )+Extrapolation!T154, 5) ->  | L152: =ROUND(IF(B152<0,B152, B152 - Shocks!D151 * ABS(B152))+Extrapolation!T154, 5) -> 
A153: 141 | B153: 0.02933799545 | C153: =ROUND(B153*(1+Shocks!H152)+Shocks!I152,5) -> 0.03521 | D153: =ROUND(B153*(1-Shocks!F152)-Shocks!G152,5) -> 0.02347 | E153: =ROUND(B153 + MAX(0.01,Shocks!E152*ABS(B153) ),5) -> 0.03934 | F153: =ROUND(IF(B153<0,B153, B153 - Shocks!D152 * ABS(B153)),5) -> 0.02347 | I153: =ROUND(B153*(1+Shocks!H152)+Shocks!I152,5)+Extrapolation!T155 ->  | J153: =ROUND(B153*(1-Shocks!F152)-Shocks!G152,5)+Extrapolation!T155 ->  | K153: =ROUND(B153 + MAX(0.01,Shocks!E152*ABS(B153) )+Extrapolation!T155, 5) ->  | L153: =ROUND(IF(B153<0,B153, B153 - Shocks!D152 * ABS(B153))+Extrapolation!T155, 5) -> 
A154: 142 | B154: 0.02939524783 | C154: =ROUND(B154*(1+Shocks!H153)+Shocks!I153,5) -> 0.03527 | D154: =ROUND(B154*(1-Shocks!F153)-Shocks!G153,5) -> 0.02352 | E154: =ROUND(B154 + MAX(0.01,Shocks!E153*ABS(B154) ),5) -> 0.0394 | F154: =ROUND(IF(B154<0,B154, B154 - Shocks!D153 * ABS(B154)),5) -> 0.02352 | I154: =ROUND(B154*(1+Shocks!H153)+Shocks!I153,5)+Extrapolation!T156 ->  | J154: =ROUND(B154*(1-Shocks!F153)-Shocks!G153,5)+Extrapolation!T156 ->  | K154: =ROUND(B154 + MAX(0.01,Shocks!E153*ABS(B154) )+Extrapolation!T156, 5) ->  | L154: =ROUND(IF(B154<0,B154, B154 - Shocks!D153 * ABS(B154))+Extrapolation!T156, 5) -> 
A155: 143 | B155: 0.02945170274 | C155: =ROUND(B155*(1+Shocks!H154)+Shocks!I154,5) -> 0.03534 | D155: =ROUND(B155*(1-Shocks!F154)-Shocks!G154,5) -> 0.02356 | E155: =ROUND(B155 + MAX(0.01,Shocks!E154*ABS(B155) ),5) -> 0.03945 | F155: =ROUND(IF(B155<0,B155, B155 - Shocks!D154 * ABS(B155)),5) -> 0.02356 | I155: =ROUND(B155*(1+Shocks!H154)+Shocks!I154,5)+Extrapolation!T157 ->  | J155: =ROUND(B155*(1-Shocks!F154)-Shocks!G154,5)+Extrapolation!T157 ->  | K155: =ROUND(B155 + MAX(0.01,Shocks!E154*ABS(B155) )+Extrapolation!T157, 5) ->  | L155: =ROUND(IF(B155<0,B155, B155 - Shocks!D154 * ABS(B155))+Extrapolation!T157, 5) -> 
A156: 144 | B156: 0.0295073767 | C156: =ROUND(B156*(1+Shocks!H155)+Shocks!I155,5) -> 0.03541 | D156: =ROUND(B156*(1-Shocks!F155)-Shocks!G155,5) -> 0.02361 | E156: =ROUND(B156 + MAX(0.01,Shocks!E155*ABS(B156) ),5) -> 0.03951 | F156: =ROUND(IF(B156<0,B156, B156 - Shocks!D155 * ABS(B156)),5) -> 0.02361 | I156: =ROUND(B156*(1+Shocks!H155)+Shocks!I155,5)+Extrapolation!T158 ->  | J156: =ROUND(B156*(1-Shocks!F155)-Shocks!G155,5)+Extrapolation!T158 ->  | K156: =ROUND(B156 + MAX(0.01,Shocks!E155*ABS(B156) )+Extrapolation!T158, 5) ->  | L156: =ROUND(IF(B156<0,B156, B156 - Shocks!D155 * ABS(B156))+Extrapolation!T158, 5) -> 
A157: 145 | B157: 0.0295622858 | C157: =ROUND(B157*(1+Shocks!H156)+Shocks!I156,5) -> 0.03547 | D157: =ROUND(B157*(1-Shocks!F156)-Shocks!G156,5) -> 0.02365 | E157: =ROUND(B157 + MAX(0.01,Shocks!E156*ABS(B157) ),5) -> 0.03956 | F157: =ROUND(IF(B157<0,B157, B157 - Shocks!D156 * ABS(B157)),5) -> 0.02365 | I157: =ROUND(B157*(1+Shocks!H156)+Shocks!I156,5)+Extrapolation!T159 ->  | J157: =ROUND(B157*(1-Shocks!F156)-Shocks!G156,5)+Extrapolation!T159 ->  | K157: =ROUND(B157 + MAX(0.01,Shocks!E156*ABS(B157) )+Extrapolation!T159, 5) ->  | L157: =ROUND(IF(B157<0,B157, B157 - Shocks!D156 * ABS(B157))+Extrapolation!T159, 5) -> 
A158: 146 | B158: 0.02961644569 | C158: =ROUND(B158*(1+Shocks!H157)+Shocks!I157,5) -> 0.03554 | D158: =ROUND(B158*(1-Shocks!F157)-Shocks!G157,5) -> 0.02369 | E158: =ROUND(B158 + MAX(0.01,Shocks!E157*ABS(B158) ),5) -> 0.03962 | F158: =ROUND(IF(B158<0,B158, B158 - Shocks!D157 * ABS(B158)),5) -> 0.02369 | I158: =ROUND(B158*(1+Shocks!H157)+Shocks!I157,5)+Extrapolation!T160 ->  | J158: =ROUND(B158*(1-Shocks!F157)-Shocks!G157,5)+Extrapolation!T160 ->  | K158: =ROUND(B158 + MAX(0.01,Shocks!E157*ABS(B158) )+Extrapolation!T160, 5) ->  | L158: =ROUND(IF(B158<0,B158, B158 - Shocks!D157 * ABS(B158))+Extrapolation!T160, 5) -> 
A159: 147 | B159: 0.02966987158 | C159: =ROUND(B159*(1+Shocks!H158)+Shocks!I158,5) -> 0.0356 | D159: =ROUND(B159*(1-Shocks!F158)-Shocks!G158,5) -> 0.02374 | E159: =ROUND(B159 + MAX(0.01,Shocks!E158*ABS(B159) ),5) -> 0.03967 | F159: =ROUND(IF(B159<0,B159, B159 - Shocks!D158 * ABS(B159)),5) -> 0.02374 | I159: =ROUND(B159*(1+Shocks!H158)+Shocks!I158,5)+Extrapolation!T161 ->  | J159: =ROUND(B159*(1-Shocks!F158)-Shocks!G158,5)+Extrapolation!T161 ->  | K159: =ROUND(B159 + MAX(0.01,Shocks!E158*ABS(B159) )+Extrapolation!T161, 5) ->  | L159: =ROUND(IF(B159<0,B159, B159 - Shocks!D158 * ABS(B159))+Extrapolation!T161, 5) -> 
A160: 148 | B160: 0.02972257831 | C160: =ROUND(B160*(1+Shocks!H159)+Shocks!I159,5) -> 0.03567 | D160: =ROUND(B160*(1-Shocks!F159)-Shocks!G159,5) -> 0.02378 | E160: =ROUND(B160 + MAX(0.01,Shocks!E159*ABS(B160) ),5) -> 0.03972 | F160: =ROUND(IF(B160<0,B160, B160 - Shocks!D159 * ABS(B160)),5) -> 0.02378 | I160: =ROUND(B160*(1+Shocks!H159)+Shocks!I159,5)+Extrapolation!T162 ->  | J160: =ROUND(B160*(1-Shocks!F159)-Shocks!G159,5)+Extrapolation!T162 ->  | K160: =ROUND(B160 + MAX(0.01,Shocks!E159*ABS(B160) )+Extrapolation!T162, 5) ->  | L160: =ROUND(IF(B160<0,B160, B160 - Shocks!D159 * ABS(B160))+Extrapolation!T162, 5) -> 
A161: 149 | B161: 0.02977458027 | C161: =ROUND(B161*(1+Shocks!H160)+Shocks!I160,5) -> 0.03573 | D161: =ROUND(B161*(1-Shocks!F160)-Shocks!G160,5) -> 0.02382 | E161: =ROUND(B161 + MAX(0.01,Shocks!E160*ABS(B161) ),5) -> 0.03977 | F161: =ROUND(IF(B161<0,B161, B161 - Shocks!D160 * ABS(B161)),5) -> 0.02382 | I161: =ROUND(B161*(1+Shocks!H160)+Shocks!I160,5)+Extrapolation!T163 ->  | J161: =ROUND(B161*(1-Shocks!F160)-Shocks!G160,5)+Extrapolation!T163 ->  | K161: =ROUND(B161 + MAX(0.01,Shocks!E160*ABS(B161) )+Extrapolation!T163, 5) ->  | L161: =ROUND(IF(B161<0,B161, B161 - Shocks!D160 * ABS(B161))+Extrapolation!T163, 5) -> 
A162: 150 | B162: 0.02982589151 | C162: =ROUND(B162*(1+Shocks!H161)+Shocks!I161,5) -> 0.03579 | D162: =ROUND(B162*(1-Shocks!F161)-Shocks!G161,5) -> 0.02386 | E162: =ROUND(B162 + MAX(0.01,Shocks!E161*ABS(B162) ),5) -> 0.03983 | F162: =ROUND(IF(B162<0,B162, B162 - Shocks!D161 * ABS(B162)),5) -> 0.02386 | I162: =ROUND(B162*(1+Shocks!H161)+Shocks!I161,5)+Extrapolation!T164 ->  | J162: =ROUND(B162*(1-Shocks!F161)-Shocks!G161,5)+Extrapolation!T164 ->  | K162: =ROUND(B162 + MAX(0.01,Shocks!E161*ABS(B162) )+Extrapolation!T164, 5) ->  | L162: =ROUND(IF(B162<0,B162, B162 - Shocks!D161 * ABS(B162))+Extrapolation!T164, 5) -> 

Sheet EUR Smith-Wilson LLP30
C11: Euro Smith-Wilson LLP30 Term Structures
C12: Date | D12: 2020-06-30
C13: Instrument | D13: SWP
C14: CouponFreq | D14: 1
C15: LLP | D15: 30
C16: ConvHorizon | D16: 40
C17: CRA | D17: 10
C18: UFR | D18: 0.0375
C19: Fitted Alpha
C20: 0.138511 | D20: 0.137269
C21: VA | D21: VA
C22: n/a | D22: 19
C23: Zero Rates AC
C24: SW no VA | D24: SW with VA
B25: 1 | C25: -0.00445 | D25: -0.00255
B26: 2 | C26: -0.004749287714 | D26: -0.002849287714
B27: 3 | C27: -0.004849031139 | D27: -0.00294903114
B28: 4 | C28: -0.004650693906 | D28: -0.002750693906
B29: 5 | C29: -0.004452304577 | D29: -0.002552304577
B30: 6 | C30: -0.00415489169 | D30: -0.002254891691
B31: 7 | C31: -0.003857343461 | D31: -0.001957343461
B32: 8 | C32: -0.003460578737 | D32: -0.001560578737
B33: 9 | C33: -0.003063194614 | D33: -0.001163194614
B34: 10 | C34: -0.002665102089 | D34: -0.0007651020894
B35: 11 | C35: -0.002342835122 | D35: -0.0004428351225
B36: 12 | C36: -0.001866439483 | D36: 3.356051642e-05
B37: 13 | C37: -0.001578548155 | D37: 0.000321451845
B38: 14 | C38: -0.001251090928 | D38: 0.0006489090717
B39: 15 | C39: -0.0009419269781 | D39: 0.0009580730218
B40: 16 | C40: -0.0007199178086 | D40: 0.001180082191
B41: 17 | C41: -0.000564802262 | D41: 0.001335197738
B42: 18 | C42: -0.0004497832204 | D42: 0.00145021678
B43: 19 | C43: -0.0003568060002 | D43: 0.001543194
B44: 20 | C44: -0.0002739238615 | D44: 0.001626076138
B45: 21 | C45: -0.000198784321 | D45: 0.001701215679
B46: 22 | C46: -0.0001500690497 | D46: 0.00174993095
B47: 23 | C47: -0.0001462415444 | D47: 0.001753758456
B48: 24 | C48: -0.0002009890948 | D48: 0.001699010905
B49: 25 | C49: -0.0003244167902 | D49: 0.00157558321
B50: 26 | C50: -0.000507873475 | D50: 0.001392126525
B51: 27 | C51: -0.0006862073768 | D51: 0.001213792623
B52: 28 | C52: -0.0007996102479 | D52: 0.001100389752
B53: 29 | C53: -0.0008056377386 | D53: 0.001094362261
B54: 30 | C54: -0.0006734538071 | D54: 0.001226546193
B55: 31 | C55: -0.0003905811569 | D55: 0.001500164154
B56: 32 | C56: 1.118711956e-05 | D56: 0.001883969284
B57: 33 | C57: 0.0004985348319 | D57: 0.002347357148
B58: 34 | C58: 0.001046459248 | D58: 0.002867253462
B59: 35 | C59: 0.001636052686 | D59: 0.003426138261
B60: 36 | C60: 0.002252939009 | D60: 0.004010642719
B61: 37 | C61: 0.002886151124 | D61: 0.004610535103
B62: 38 | C62: 0.003527312086 | D62: 0.005217976766
B63: 39 | C63: 0.004170029342 | D63: 0.005826969022
B64: 40 | C64: 0.004809441144 | D64: 0.006432937123
B65: 41 | C65: 0.005441873283 | D65: 0.007032414186
B66: 42 | C66: 0.006064576874 | D66: 0.007622798897
B67: 43 | C67: 0.006675526414 | D67: 0.008202168302
B68: 44 | C68: 0.007273263146 | D68: 0.008769132194
B69: 45 | C69: 0.007856772806 | D69: 0.009322719146
B70: 46 | C70: 0.0084253897 | D70: 0.00986228688
B71: 47 | C71: 0.008978721095 | D71: 0.01038745145
B72: 48 | C72: 0.00951658739 | D72: 0.01089803109
B73: 49 | C73: 0.01003897464 | D73: 0.01139400155
B74: 50 | C74: 0.01054599678 | D74: 0.01187546051
B75: 51 | C75: 0.01103786553 | D75: 0.01234259917
B76: 52 | C76: 0.01151486639 | D76: 0.01279567951
B77: 53 | C77: 0.01197733944 | D77: 0.01323501615
B78: 54 | C78: 0.01242566415 | D78: 0.01366096185
B79: 55 | C79: 0.01286024713 | D79: 0.01407389592
B80: 56 | C80: 0.01328151253 | D80: 0.01447421504
B81: 57 | C81: 0.01368989436 | D81: 0.01486232591
B82: 58 | C82: 0.01408583047 | D82: 0.01523863954
B83: 59 | C83: 0.01446975787 | D83: 0.01560356665
B84: 60 | C84: 0.01484210903 | D84: 0.01595751422
B85: 61 | C85: 0.01520330912 | D85: 0.01630088273
B86: 62 | C86: 0.01555377387 | D86: 0.01663406415
B87: 63 | C87: 0.01589390805 | D87: 0.01695744038
B88: 64 | C88: 0.01622410432 | D88: 0.01727138221
B89: 65 | C89: 0.01654474252 | D89: 0.01757624851
B90: 66 | C90: 0.01685618919 | D90: 0.0178723858
B91: 67 | C91: 0.01715879732 | D91: 0.01816012797
B92: 68 | C92: 0.01745290631 | D92: 0.01843979622
B93: 69 | C93: 0.01773884205 | D93: 0.01871169909
B94: 70 | C94: 0.01801691708 | D94: 0.01897613261
B95: 71 | C95: 0.01828743093 | D95: 0.01923338057
B96: 72 | C96: 0.01855067038 | D96: 0.01948371481
B97: 73 | C97: 0.0188069099 | D97: 0.01972739556
B98: 74 | C98: 0.01905641201 | D98: 0.01996467182
B99: 75 | C99: 0.01929942777 | D99: 0.02019578174
B100: 76 | C100: 0.01953619717 | D100: 0.02042095306
B101: 77 | C101: 0.01976694961 | D101: 0.02064040353
B102: 78 | C102: 0.01999190434 | D102: 0.02085434128
B103: 79 | C103: 0.02021127092 | D103: 0.02106296528
B104: 80 | C104: 0.02042524961 | D104: 0.02126646574
B105: 81 | C105: 0.02063403184 | D105: 0.02146502449
B106: 82 | C106: 0.02083780062 | D106: 0.02165881537
B107: 83 | C107: 0.02103673089 | D107: 0.02184800462
B108: 84 | C108: 0.02123098997 | D108: 0.02203275123
B109: 85 | C109: 0.02142073787 | D109: 0.02221320728
B110: 86 | C110: 0.0216061277 | D110: 0.02238951827
B111: 87 | C111: 0.02178730594 | D111: 0.02256182347
B112: 88 | C112: 0.02196441282 | D112: 0.02273025618
B113: 89 | C113: 0.0221375826 | D113: 0.02289494404
B114: 90 | C114: 0.02230694387 | D114: 0.02305600933
B115: 91 | C115: 0.02247261982 | D115: 0.02321356917
B116: 92 | C116: 0.0226347285 | D116: 0.02336773583
B117: 93 | C117: 0.02279338309 | D117: 0.02351861695
B118: 94 | C118: 0.02294869212 | D118: 0.02366631573
B119: 95 | C119: 0.02310075971 | D119: 0.02381093121
B120: 96 | C120: 0.02324968577 | D120: 0.02395255839
B121: 97 | C121: 0.02339556618 | D121: 0.02409128851
B122: 98 | C122: 0.02353849305 | D122: 0.02422720915
B123: 99 | C123: 0.02367855483 | D123: 0.02436040446
B124: 100 | C124: 0.02381583653 | D124: 0.0244909553
B125: 101 | C125: 0.02395041985 | D125: 0.02461893939
B126: 102 | C126: 0.02408238336 | D126: 0.02474443146
B127: 103 | C127: 0.02421180262 | D127: 0.02486750341
B128: 104 | C128: 0.02433875035 | D128: 0.02498822441
B129: 105 | C129: 0.02446329653 | D129: 0.02510666105
B130: 106 | C130: 0.02458550855 | D130: 0.02522287741
B131: 107 | C131: 0.02470545132 | D131: 0.02533693526
B132: 108 | C132: 0.02482318736 | D132: 0.02544889407
B133: 109 | C133: 0.02493877694 | D133: 0.02555881119
B134: 110 | C134: 0.02505227816 | D134: 0.02566674188
B135: 111 | C135: 0.02516374704 | D135: 0.02577273946
B136: 112 | C136: 0.02527323764 | D136: 0.02587685533
B137: 113 | C137: 0.02538080211 | D137: 0.02597913912
B138: 114 | C138: 0.0254864908 | D138: 0.02607963874
B139: 115 | C139: 0.02559035232 | D139: 0.02617840041
B140: 116 | C140: 0.0256924336 | D140: 0.02627546881
B141: 117 | C141: 0.02579278002 | D141: 0.02637088709
B142: 118 | C142: 0.0258914354 | D142: 0.02646469694
B143: 119 | C143: 0.02598844212 | D143: 0.02655693868
B144: 120 | C144: 0.02608384113 | D144: 0.02664765128
B145: 121 | C145: 0.02617767206 | D145: 0.02673687244
B146: 122 | C146: 0.02626997326 | D146: 0.02682463863
B147: 123 | C147: 0.02636078181 | D147: 0.02691098514
B148: 124 | C148: 0.02645013362 | D148: 0.02699594612
B149: 125 | C149: 0.02653806346 | D149: 0.02707955466
B150: 126 | C150: 0.02662460499 | D150: 0.02716184279
B151: 127 | C151: 0.02670979084 | D151: 0.02724284152
B152: 128 | C152: 0.02679365261 | D152: 0.02732258094
B153: 129 | C153: 0.02687622092 | D153: 0.02740109017
B154: 130 | C154: 0.02695752547 | D154: 0.02747839746
B155: 131 | C155: 0.02703759504 | D155: 0.0275545302
B156: 132 | C156: 0.02711645757 | D156: 0.02762951495
B157: 133 | C157: 0.02719414013 | D157: 0.02770337748
B158: 134 | C158: 0.02727066901 | D158: 0.02777614279
B159: 135 | C159: 0.02734606972 | D159: 0.02784783516
B160: 136 | C160: 0.02742036702 | D160: 0.02791847813
B161: 137 | C161: 0.02749358496 | D161: 0.02798809457
B162: 138 | C162: 0.02756574688 | D162: 0.02805670671
B163: 139 | C163: 0.02763687547 | D163: 0.02812433611
B164: 140 | C164: 0.02770699276 | D164: 0.02819100374
B165: 141 | C165: 0.02777612017 | D165: 0.02825672996
B166: 142 | C166: 0.02784427851 | D166: 0.02832153459
B167: 143 | C167: 0.02791148802 | D167: 0.02838543686
B168: 144 | C168: 0.02797776837 | D168: 0.02844845549
B169: 145 | C169: 0.0280431387 | D169: 0.02851060868
B170: 146 | C170: 0.02810761762 | D170: 0.02857191415
B171: 147 | C171: 0.02817122324 | D171: 0.02863238911
B172: 148 | C172: 0.02823397318 | D172: 0.02869205032
B173: 149 | C173: 0.02829588459 | D173: 0.02875091411
B174: 150 | C174: 0.02835697418 | D174: 0.02880899635

Sheet SRC & Scaling Factors
B9: Currency | C9: Risk corrected currency spread | D9: Scaling factor
B10: AUD | C10: 0.001739761421 | D10: 1.883239171 | F10: For no country a macroeconomic VA would apply on 30 June 2020.
B11: BGN | C11: 0.002377068043 | D11: 2.5
B12: CAD | C12: 0.00283029565 | D12: 1.379310345
B13: CHF | C13: 0.00158038395 | D13: 1.550387597
B14: CZK | C14: 0.001780183928 | D14: 1.567398119
B15: DKK | C15: 0.003609909606 | D15: 1.375515818
B16: EUR | C16: 0.002735908512 | D16: 1.386962552
B17: GBP | C17: 0.003372613102 | D17: 1.745200698
B18: HRK | C18: 0.001091011463 | D18: 1.798561151
B19: HUF | C19: 0.001275558517 | D19: 1.426533524
B20: ISK | C20: 0.00267 | D20: 1.81
B21: JPY | C21: 0.001262687755 | D21: 1.584786054
B22: NOK | C22: 0.004537833698 | D22: 1.344086022
B23: PLN | C23: 0.001963920389 | D23: 1.522070015
B24: RON | C24: 0.001928195374 | D24: 1.305483029
B25: SEK | C25: 0.001458847044 | D25: 1.949317739
B26: USD | C26: 0.006310508537 | D26: 1.328021248

Sheet Extrapolation (hidden)
B2: inputs | D2: Alternative Extrapolation with VA - Derived from situation without VA
B3: outputs | D3: based on alternvative extrapolations from worksheet 2020 Review Term Structures | P3: Currency | Q3: ='Scenario Data'!$J$6 -> EUR
F4: =MATCH(Q3,L.ISO4217,0) -> 1
P6: Alternative Extrapolation with VA
E7: FSP | F7: =INDEX(tblRfrAltConfig[FSP],index) -> 20
E8: UFR | F8: =INDEX(tblRfrAltConfig[UFR],index)/100 -> 0.0375
E9: MeanReversion | F9: =IF(Q3="SEK",40%,10%) -> 0.1 | P9: First weight | Q9: =INDEX(LLFRweights,FSP) -> 0.33
E10: VA | F10: ='Scenario Data'!J7 -> 15 | G10: bp AC | P10: First fw LLFR | Q10: =GetFirstFwLLFR($I$15:$I$64,DLT,LLFRweights) -> 
E11: LLFR | F11: =INDEX(TermStructuresLLFR,,2*index) -> -0.0003734924688 | P11: LLFRVA | Q11: =Q9*(Q10+LN(1+VA/10000))+(LLFR-Q9*Q10) -> 
M12: + VA up to FSP
B13: Tenor | C13: DLT | D13: LLFRweights | E13: Tenor | F13: Zero AC | H13: Tenor | I13: Zero CC | J13: 1YFw CC | L13: Tenor | M13: Zero CC | N13: 1YFw CC | P13: Tenor | Q13: Zero+VA AC | R13: 1YFw+VA AC | S13: Discount | T13: VA
E14: 0 | H14: 0 | L14: 0 | P14: 0 | S14: 1
B15: 1 | C15: =INDEX(INDIRECT("tblRfrAltConfig[DLT"&B15&"]"),index) -> 1 | D15: =INDEX(INDIRECT("tblWeightsLLFR["&B15&"]"),index) -> 0 | E15: 1 | F15: =INDEX(TermStructures,,2*index) -> -0.00445 | H15: 1 | I15: =LN(1+F15) -> -0.004459930722 | J15: =$H15*I15-$H14*I14 -> -0.004459930722 | L15: 1 | M15: =AVERAGE(N$15:N15) -> -0.002961054598 | N15: =J15+($L15<=FSP)*LN(1+VA/10000) -> -0.002961054598 | P15: 1 | Q15: =AlternativeExtrapolation($M$15:$M$164,FSP,UFR,$Q$11,MeanReversion,"A") ->  | T15: =Q15-F15 -> 
B16: 2 | C16: 1 | D16: 0 | E16: 2 | F16: -0.004749287714 | H16: 2 | I16: -0.004760601416 | J16: =$H16*I16-$H15*I15 -> -0.005061272111 | L16: 2 | M16: =AVERAGE(N$15:N16) -> -0.003261725293 | N16: -0.003562395987 | P16: 2 | T16: =Q16-F16 -> 
B17: 3 | C17: 1 | D17: 0 | E17: 3 | F17: -0.004849031139 | H17: 3 | I17: -0.004860825835 | J17: -0.005061274672 | L17: 3 | M17: =AVERAGE(N$15:N17) -> -0.003361949711 | N17: -0.003562398548 | P17: 3
B18: 4 | C18: 1 | D18: 0 | E18: 4 | F18: -0.004650693906 | H18: 4 | I18: -0.00466154203 | J18: -0.004063690616 | L18: 4 | M18: =AVERAGE(N$15:N18) -> -0.003162665906 | N18: -0.002564814492 | P18: 4
B19: 5 | C19: 1 | D19: 0 | E19: 5 | F19: -0.004452304577 | H19: 5 | I19: -0.004462245603 | J19: -0.003665059894 | L19: 5 | M19: =AVERAGE(N$15:N19) -> -0.002963369479 | N19: -0.00216618377 | P19: 5
B20: 6 | C20: 1 | D20: 0 | E20: 6 | F20: -0.00415489169 | H20: 6 | I20: -0.004163547236 | J20: -0.002670055403 | L20: 6 | M20: =AVERAGE(N$15:N20) -> -0.002664671113 | N20: -0.00117117928 | P20: 6
B21: 7 | C21: 1 | D21: 0 | E21: 7 | F21: -0.003857343461 | H21: 7 | I21: -0.003864802197 | J21: -0.002072331963 | L21: 7 | M21: =AVERAGE(N$15:N21) -> -0.002365926074 | N21: -0.000573455839 | P21: 7
B22: 8 | C22: 1 | D22: 0 | E22: 8 | F22: -0.003460578737 | H22: 8 | I22: -0.00346658039 | J22: -0.0006790277369 | L22: 8 | M22: =AVERAGE(N$15:N22) -> -0.001967704266 | N22: 0.0008198483868 | P22: 8
B23: 9 | C23: 1 | D23: 0 | E23: 9 | F23: -0.003063194614 | H23: 9 | I23: -0.003067895798 | J23: 0.0001215809402 | L23: 9 | M23: =AVERAGE(N$15:N23) -> -0.001569019674 | N23: 0.001620457064 | P23: 9
B24: 10 | C24: 1 | D24: 0 | E24: 10 | F24: -0.002665102089 | H24: 10 | I24: -0.002668659796 | J24: 0.000924464215 | L24: 10 | M24: =AVERAGE(N$15:N24) -> -0.001169783673 | N24: 0.002423340339 | P24: 10
B25: 11 | C25: 1 | D25: 0 | E25: 11 | F25: -0.002342835122 | H25: 11 | I25: -0.002345583855 | J25: 0.000885175563 | L25: 11 | M25: =AVERAGE(N$15:N25) -> -0.0008467077308 | N25: 0.002384051687 | P25: 11
B26: 12 | C26: 1 | D26: 0 | E26: 12 | F26: -0.001866439483 | H26: 12 | I26: -0.001868183452 | J26: 0.003383220977 | L26: 12 | M26: =AVERAGE(N$15:N26) -> -0.0003693073282 | N26: 0.0048820971 | P26: 12
B27: 13 | C27: 1 | D27: 0 | E27: 13 | F27: -0.001578548155 | H27: 13 | I27: -0.001579795375 | J27: 0.001880861552 | L27: 13 | M27: =AVERAGE(N$15:N27) -> -8.091925094e-05 | N27: 0.003379737676 | P27: 13
B28: 14 | C28: 1 | D28: 0 | E28: 14 | F28: -0.001251090928 | H28: 14 | I28: -0.001251874196 | J28: 0.00301110113 | L28: 14 | M28: =AVERAGE(N$15:N28) -> 0.0002470019279 | N28: 0.004509977253 | P28: 14
B29: 15 | C29: 1 | D29: 0 | E29: 15 | F29: -0.0009419269781 | H29: 15 | I29: -0.0009423708701 | J29: 0.00339067569 | L29: 15 | M29: =AVERAGE(N$15:N29) -> 0.0005565052537 | N29: 0.004889551814 | P29: 15
B30: 16 | C30: 0 | D30: 0 | E30: 16 | F30: -0.0007749789843 | H30: 16 | I30: -0.0007752794357 | J30: 0.00173109208 | L30: 16 | M30: =AVERAGE(N$15:N30) -> 0.000723596688 | N30: 0.003229968203 | P30: 16
B31: 17 | C31: 0 | D31: 0 | E31: 17 | F31: -0.0006276487632 | H31: 17 | I31: -0.0006278458172 | J31: 0.00173109208 | L31: 17 | M31: =AVERAGE(N$15:N31) -> 0.0008710303066 | N31: 0.003229968203 | P31: 17
B32: 18 | C32: 0 | D32: 0 | E32: 18 | F32: -0.0004966703302 | H32: 18 | I32: -0.0004967937118 | J32: 0.00173109208 | L32: 18 | M32: =AVERAGE(N$15:N32) -> 0.001002082412 | N32: 0.003229968203 | P32: 18
B33: 19 | C33: 0 | D33: 0 | E33: 19 | F33: -0.00037946455 | H33: 19 | I33: -0.0003795365649 | J33: 0.00173109208 | L33: 19 | M33: =AVERAGE(N$15:N33) -> 0.001119339559 | N33: 0.003229968203 | P33: 19
B34: 20 | C34: 1 | D34: 0.33 | E34: 20 | F34: -0.0002739675966 | H34: 20 | I34: -0.0002740051326 | J34: 0.00173109208 | L34: 20 | M34: =AVERAGE(N$15:N34) -> 0.001224870991 | N34: 0.003229968203 | P34: 20
B35: 21 | C35: 0 | D35: 0 | E35: 21 | F35: -0.0001930614543 | H35: 21 | I35: -0.000193080093 | J35: 0.001425420699 | L35: 21 | M35: =AVERAGE(N$15:N35) -> 0.001234420977 | N35: 0.001425420699 | P35: 21
B36: 22 | C36: 0 | D36: 0 | E36: 22 | F36: 3.356441627e-05 | H36: 22 | I36: 3.356385299e-05 | J36: 0.004793086719 | L36: 22 | M36: =AVERAGE(N$15:N36) -> 0.001396178511 | N36: 0.004793086719 | P36: 22
B37: 23 | C37: 0 | D37: 0 | E37: 23 | F37: 0.0003730557294 | H37: 23 | I37: 0.0003729861614 | J37: 0.007840276946 | L37: 23 | M37: =AVERAGE(N$15:N37) -> 0.001676356704 | N37: 0.007840276946 | P37: 23
B38: 24 | C38: 0 | D38: 0 | E38: 24 | F38: 0.000799326391 | H38: 24 | I38: 0.0007990070998 | J38: 0.01059748868 | L38: 24 | M38: =AVERAGE(N$15:N38) -> 0.002048070536 | N38: 0.01059748868 | P38: 24
B39: 25 | C39: 1 | D39: 0.12 | E39: 25 | F39: 0.00129157286 | H39: 25 | I39: 0.001290739497 | J39: 0.01309231703 | L39: 25 | M39: =AVERAGE(N$15:N39) -> 0.002489840396 | N39: 0.01309231703 | P39: 25
B40: 26 | C40: 0 | D40: 0 | E40: 26 | F40: 0.001833148108 | H40: 26 | I40: 0.001831469942 | J40: 0.01534973107 | L40: 26 | M40: =AVERAGE(N$15:N40) -> 0.002984451576 | N40: 0.01534973107 | P40: 26
B41: 27 | C41: 0 | D41: 0 | E41: 27 | F41: 0.002410698935 | H41: 27 | I41: 0.002407797862 | J41: 0.01739232377 | L41: 27 | M41: =AVERAGE(N$15:N41) -> 0.003518076472 | N41: 0.01739232377 | P41: 27
B42: 28 | C42: 0 | D42: 0 | E42: 28 | F42: 0.00301349864 | H42: 28 | I42: 0.003008967155 | J42: 0.01924053807 | L42: 28 | M42: =AVERAGE(N$15:N42) -> 0.004079592958 | N42: 0.01924053807 | P42: 28
B43: 29 | C43: 0 | D43: 0 | E43: 29 | F43: 0.003632926305 | H43: 29 | I43: 0.003626343168 | J43: 0.02091287152 | L43: 29 | M43: =AVERAGE(N$15:N43) -> 0.004660050839 | N43: 0.02091287152 | P43: 29
B44: 30 | C44: 1 | D44: 0.48 | E44: 30 | F44: 0.004262057284 | H44: 30 | I44: 0.004253000442 | J44: 0.02242606141 | L44: 30 | M44: =AVERAGE(N$15:N44) -> 0.005252251191 | N44: 0.02242606141 | P44: 30
B45: 31 | C45: 0 | D45: 0 | E45: 31 | F45: 0.004895338871 | H45: 31 | I45: 0.004883395661 | J45: 0.02379525223 | L45: 31 | M45: =AVERAGE(N$15:N45) -> 0.005850412515 | N45: 0.02379525223 | P45: 31
B46: 32 | C46: 0 | D46: 0 | E46: 32 | F46: 0.00552833179 | H46: 32 | I46: 0.005513106651 | J46: 0.02503414733 | L46: 32 | M46: =AVERAGE(N$15:N46) -> 0.006449904228 | N46: 0.02503414733 | P46: 32
B47: 33 | C47: =INDEX(INDIRECT("tblRfrAltConfig[DLT"&B47&"]"),index) -> 0 | D47: =INDEX(INDIRECT("tblWeightsLLFR["&B47&"]"),index) -> 0 | E47: 33 | F47: 0.006157502952 | H47: 33 | I47: =LN(1+F47) -> 0.006138622994 | J47: 0.02615514596 | L47: 33 | M47: =AVERAGE(N$15:N47) -> 0.007047032766 | N47: =J47+($L47<=FSP)*LN(1+VA/10000) -> 0.02615514596 | P47: 33
B48: 34 | C48: 0 | D48: 0 | E48: 34 | F48: 0.006780058474 | H48: 34 | I48: 0.006757177243 | J48: 0.02716946748 | L48: 34 | M48: =AVERAGE(N$15:N48) -> 0.007638869081 | N48: 0.02716946748 | P48: 34
B49: 35 | C49: 0 | D49: 0 | E49: 35 | F49: 0.007393808489 | H49: 35 | I49: 0.00736660828 | J49: 0.02808726354 | L49: 35 | M49: =AVERAGE(N$15:N49) -> 0.008223108922 | N49: 0.02808726354 | P49: 35
B50: 36 | C50: 0 | D50: 0 | E50: 36 | F50: 0.007997057265 | H50: 36 | I50: 0.007965250265 | J50: 0.02891771975 | L50: 36 | M50: =AVERAGE(N$15:N50) -> 0.008797959223 | N50: 0.02891771975 | P50: 36
B51: 37 | C51: 0 | D51: 0 | E51: 37 | F51: 0.008588513549 | H51: 37 | I51: 0.008551842086 | J51: 0.02966914761 | L51: 37 | M51: =AVERAGE(N$15:N51) -> 0.009362045396 | N51: 0.02966914761 | P51: 37
B52: 38 | C52: 0 | D52: 0 | E52: 38 | F52: 0.009167217175 | H52: 38 | I52: 0.009125453285 | J52: 0.03034906765 | L52: 38 | M52: =AVERAGE(N$15:N52) -> 0.009914335455 | N52: 0.03034906765 | P52: 38
B53: 39 | C53: 0 | D53: 0 | E53: 39 | F53: 0.00973247883 | H53: 39 | I53: 0.009685423322 | J53: 0.03096428475 | L53: 39 | M53: =AVERAGE(N$15:N53) -> 0.01045407774 | N53: 0.03096428475 | P53: 39
B54: 40 | C54: 1 | D54: 0.04 | E54: 40 | F54: 0.01028383047 | H54: 40 | I54: 0.01023131164 | J54: 0.0315209562 | L54: 40 | M54: =AVERAGE(N$15:N54) -> 0.01098074971 | N54: 0.0315209562 | P54: 40
B55: 41 | C55: 0 | D55: 0 | E55: 41 | F55: 0.01082098446 | H55: 41 | I55: 0.01076285656 | J55: 0.03202465336 | L55: 41 | M55: =AVERAGE(N$15:N55) -> 0.01149401565 | N55: 0.03202465336 | P55: 41
B56: 42 | C56: 0 | D56: 0 | E56: 42 | F56: 0.01134379976 | H56: 42 | I56: 0.01127994135 | J56: 0.03248041739 | L56: 42 | M56: =AVERAGE(N$15:N56) -> 0.01199369188 | N56: 0.03248041739 | P56: 42
B57: 43 | C57: 0 | D57: 0 | E57: 43 | F57: 0.01185225406 | H57: 43 | I57: 0.01178256619 | J57: 0.03289280974 | L57: 43 | M57: =AVERAGE(N$15:N57) -> 0.01247971788 | N57: 0.03289280974 | P57: 43
B58: 44 | C58: 0 | D58: 0 | E58: 44 | F58: 0.01234642056 | H58: 44 | I58: 0.01227082509 | J58: 0.03326595778 | L58: 44 | M58: =AVERAGE(N$15:N58) -> 0.01295213242 | N58: 0.03326595778 | P58: 44
B59: 45 | C59: 0 | D59: 0 | E59: 45 | F59: 0.01282644887 | H59: 45 | I59: 0.01274488667 | J59: 0.03360359608 | L59: 45 | M59: =AVERAGE(N$15:N59) -> 0.01341105384 | N59: 0.03360359608 | P59: 45
B60: 46 | C60: 0 | D60: 0 | E60: 46 | F60: 0.01329254911 | H60: 46 | I60: 0.01320497835 | J60: 0.03390910385 | L60: 46 | M60: =AVERAGE(N$15:N60) -> 0.01385666362 | N60: 0.03390910385 | P60: 46
B61: 47 | C61: 0 | D61: 0 | E61: 47 | F61: 0.01374497871 | H61: 47 | I61: 0.01365137325 | J61: 0.03418553871 | L61: 47 | M61: =AVERAGE(N$15:N61) -> 0.01428919288 | N61: 0.03418553871 | P61: 47
B62: 48 | C62: 0 | D62: 0 | E62: 48 | F62: 0.01418403154 | H62: 48 | I62: 0.01408437937 | J62: 0.03443566731 | L62: 48 | M62: =AVERAGE(N$15:N62) -> 0.01470891109 | N62: 0.03443566731 | P62: 48
B63: 49 | C63: 0 | D63: 0 | E63: 49 | F63: 0.01461002889 | H63: 49 | I63: 0.01450433067 | J63: 0.03466199303 | L63: 49 | M63: =AVERAGE(N$15:N63) -> 0.01511611685 | N63: 0.03466199303 | P63: 49
B64: 50 | C64: 1 | D64: 0.03 | E64: 50 | F64: 0.01502331196 | H64: 50 | I64: 0.01491157968 | J64: 0.03486678102 | L64: 50 | M64: =AVERAGE(N$15:N64) -> 0.01551113013 | N64: 0.03486678102 | P64: 50
E65: 51 | F65: 0.01542423579 | H65: 51 | I65: 0.01530649147 | J65: 0.03505208084 | L65: 51 | M65: =AVERAGE(N$15:N65) -> 0.01589428603 | N65: 0.03505208084 | P65: 51
E66: 52 | F66: 0.01581316415 | H66: 52 | I66: 0.01568943869 | J66: 0.03521974706 | L66: 52 | M66: =AVERAGE(N$15:N66) -> 0.01626592951 | N66: 0.03521974706 | P66: 52
E67: 53 | F67: 0.01619046541 | H67: 53 | I67: 0.01606079754 | J67: 0.03537145773 | L67: 53 | M67: =AVERAGE(N$15:N67) -> 0.01662641117 | N67: 0.03537145773 | P67: 53
E68: 54 | F68: 0.01655650919 | H68: 54 | I68: 0.01642094446 | J68: 0.03550873122 | L68: 54 | M68: =AVERAGE(N$15:N68) -> 0.01697608377 | N68: 0.03550873122 | P68: 54
E69: 55 | F69: 0.01691166359 | H69: 55 | I69: 0.0167702535 | J69: 0.03563294141 | L69: 55 | M69: =AVERAGE(N$15:N69) -> 0.01731529936 | N69: 0.03563294141 | P69: 55
E70: 56 | F70: 0.01725629301 | H70: 56 | I70: 0.01710909417 | J70: 0.03574533144 | L70: 56 | M70: =AVERAGE(N$15:N70) -> 0.01764440708 | N70: 0.03574533144 | P70: 56
E71: 57 | F71: 0.01759075639 | H71: 57 | I71: 0.01743782982 | J71: 0.03584702614 | L71: 57 | M71: =AVERAGE(N$15:N71) -> 0.01796375127 | N71: 0.03584702614 | P71: 57
E72: 58 | F72: 0.01791540581 | H72: 58 | I72: 0.01775681626 | J72: 0.03593904331 | L72: 58 | M72: =AVERAGE(N$15:N72) -> 0.0182736701 | N72: 0.03593904331 | P72: 58
E73: 59 | F73: 0.01823058547 | H73: 59 | I73: 0.0180664008 | J73: 0.03602230389 | L73: 59 | M73: =AVERAGE(N$15:N73) -> 0.0185744944 | N73: 0.03602230389 | P73: 59
E74: 60 | F74: 0.01853663079 | H74: 60 | I74: 0.01836692147 | J74: 0.03609764118 | L74: 60 | M74: =AVERAGE(N$15:N74) -> 0.01886654685 | N74: 0.03609764118 | P74: 60
E75: 61 | F75: 0.01883386791 | H75: 61 | I75: 0.01865870652 | J75: 0.03616580918 | L75: 61 | M75: =AVERAGE(N$15:N75) -> 0.01915014131 | N75: 0.03616580918 | P75: 61
E76: 62 | F76: 0.0191226132 | H76: 62 | I76: 0.01894207399 | J76: 0.03622749013 | L76: 62 | M76: =AVERAGE(N$15:N76) -> 0.01942558242 | N76: 0.03622749013 | P76: 62
E77: 63 | F77: 0.01940317304 | H77: 63 | I77: 0.01921733157 | J77: 0.03628330137 | L77: 63 | M77: =AVERAGE(N$15:N77) -> 0.01969316526 | N77: 0.03628330137 | P77: 63
E78: 64 | F78: 0.01967584362 | H78: 64 | I78: 0.01948477641 | J78: 0.03633380146 | L78: 64 | M78: =AVERAGE(N$15:N78) -> 0.0199531752 | N78: 0.03633380146 | P78: 64
E79: 65 | F79: 0.01994091095 | H79: 65 | I79: =LN(1+F79) -> 0.01974469517 | J79: 0.03637949584 | L79: 65 | M79: =AVERAGE(N$15:N79) -> 0.02020588783 | N79: =J79+($L79<=FSP)*LN(1+VA/10000) -> 0.03637949584 | P79: 65
E80: 66 | F80: 0.02019865084 | H80: 66 | I80: 0.01999736406 | J80: =$H80*I80-$H79*I79 -> 0.03642084182 | L80: 66 | M80: =AVERAGE(N$15:N80) -> 0.02045156895 | N80: 0.03642084182 | P80: 66 | T80: =Q80-F80 -> 
E81: 67 | F81: 0.02044932905 | H81: 67 | I81: 0.02024304897 | J81: 0.03645825321 | L81: 67 | M81: =AVERAGE(N$15:N81) -> 0.02069047468 | N81: 0.03645825321 | P81: 67
E82: 68 | F82: 0.02069320139 | H82: 68 | I82: 0.02048200567 | J82: 0.03649210443 | L82: 68 | M82: =AVERAGE(N$15:N82) -> 0.02092285159 | N82: 0.03649210443 | P82: 68
E83: 69 | F83: 0.02093051394 | H83: 69 | I83: 0.02071448 | J83: 0.03652273429 | L83: 69 | M83: =AVERAGE(N$15:N83) -> 0.02114893685 | N83: 0.03652273429 | P83: 69
E84: 70 | F84: 0.02116150327 | H84: 70 | I84: 0.02094070813 | J84: 0.03655044933 | L84: 70 | M84: =AVERAGE(N$15:N84) -> 0.02136895845 | N84: 0.03655044933 | P84: 70
E85: 71 | F85: 0.02138639669 | H85: 71 | I85: 0.02116091685 | J85: 0.03657552693 | L85: 71 | M85: =AVERAGE(N$15:N85) -> 0.02158313547 | N85: 0.03657552693 | P85: 71
E86: 72 | F86: 0.02160541253 | H86: 72 | I86: 0.02137532381 | J86: 0.03659821809 | L86: 72 | M86: =AVERAGE(N$15:N86) -> 0.02179167829 | N86: 0.03659821809 | P86: 72
E87: 73 | F87: 0.02181876037 | H87: 73 | I87: 0.02158413787 | J87: 0.03661874989 | L87: 73 | M87: =AVERAGE(N$15:N87) -> 0.02199478886 | N87: 0.03661874989 | P87: 73
E88: 74 | F88: 0.0220266414 | H88: 74 | I88: 0.02178755935 | J88: 0.03663732784 | L88: 74 | M88: =AVERAGE(N$15:N88) -> 0.02219266101 | N88: 0.03663732784 | P88: 74
E89: 75 | F89: 0.02222924867 | H89: 75 | I89: 0.0219857804 | J89: 0.03665413786 | L89: 75 | M89: =AVERAGE(N$15:N89) -> 0.0223854807 | N89: 0.03665413786 | P89: 75
E90: 76 | F90: 0.02242676739 | H90: 76 | I90: 0.02217898524 | J90: 0.0366693482 | L90: 76 | M90: =AVERAGE(N$15:N90) -> 0.02257342632 | N90: 0.0366693482 | P90: 76
E91: 77 | F91: 0.02261937523 | H91: 77 | I91: 0.02236735051 | J91: 0.03668311108 | L91: 77 | M91: =AVERAGE(N$15:N91) -> 0.02275666898 | N91: 0.03668311108 | P91: 77
E92: 78 | F92: 0.0228072426 | H92: 78 | I92: 0.02255104556 | J92: 0.03669556425 | L92: 78 | M92: =AVERAGE(N$15:N92) -> 0.02293537277 | N92: 0.03669556425 | P92: 78
E93: 79 | F93: 0.02299053296 | H93: 79 | I93: 0.02273023273 | J93: 0.03670683234 | L93: 79 | M93: =AVERAGE(N$15:N93) -> 0.02310969504 | N93: 0.03670683234 | P93: 79
E94: 80 | F94: 0.02316940309 | H94: 80 | I94: 0.02290506767 | J94: 0.03671702814 | L94: 80 | M94: =AVERAGE(N$15:N94) -> 0.0232797867 | N94: 0.03671702814 | P94: 80
E95: 81 | F95: 0.02334400335 | H95: 81 | I95: 0.0230756996 | J95: 0.03672625367 | L95: 81 | M95: =AVERAGE(N$15:N95) -> 0.02344579247 | N95: 0.03672625367 | P95: 81
E96: 82 | F96: 0.02351447797 | H96: 82 | I96: 0.02324227157 | J96: 0.03673460128 | L96: 82 | M96: =AVERAGE(N$15:N96) -> 0.02360785111 | N96: 0.03673460128 | P96: 82
E97: 83 | F97: 0.02368096531 | H97: 83 | I97: 0.02340492076 | J97: 0.03674215451 | L97: 83 | M97: =AVERAGE(N$15:N97) -> 0.02376609573 | N97: 0.03674215451 | P97: 83
E98: 84 | F98: 0.0238435981 | H98: 84 | I98: 0.02356377872 | J98: 0.03674898895 | L98: 84 | M98: =AVERAGE(N$15:N98) -> 0.02392065399 | N98: 0.03674898895 | P98: 84
E99: 85 | F99: 0.02400250366 | H99: 85 | I99: 0.02371897159 | J99: 0.03675517302 | L99: 85 | M99: =AVERAGE(N$15:N99) -> 0.02407164833 | N99: 0.03675517302 | P99: 85
E100: 86 | F100: 0.02415780419 | H100: 86 | I100: 0.02387062039 | J100: 0.03676076859 | L100: 86 | M100: =AVERAGE(N$15:N100) -> 0.02421919624 | N100: 0.03676076859 | P100: 86
E101: 87 | F101: 0.02430961695 | H101: 87 | I101: 0.02401884121 | J101: 0.03676583167 | L101: 87 | M101: =AVERAGE(N$15:N101) -> 0.02436341044 | N101: 0.03676583167 | P101: 87
E102: 88 | F102: 0.02445805449 | H102: 88 | I102: 0.02416374544 | J102: 0.03677041293 | L102: 88 | M102: =AVERAGE(N$15:N102) -> 0.0245043991 | N102: 0.03677041293 | P102: 88
E103: 89 | F103: 0.02460322487 | H103: 89 | I103: 0.02430543996 | J103: 0.03677455823 | L103: 89 | M103: =AVERAGE(N$15:N103) -> 0.02464226606 | N103: 0.03677455823 | P103: 89
E104: 90 | F104: 0.02474523184 | H104: 90 | I104: 0.0244440274 | J104: 0.03677830906 | L104: 90 | M104: =AVERAGE(N$15:N104) -> 0.02477711098 | N104: 0.03677830906 | P104: 90
E105: 91 | F105: 0.02488417505 | H105: 91 | I105: 0.02457960625 | J105: 0.03678170294 | L105: 91 | M105: =AVERAGE(N$15:N105) -> 0.02490902957 | N105: 0.03678170294 | P105: 91
E106: 92 | F106: 0.02502015019 | H106: 92 | I106: 0.02471227112 | J106: 0.03678477385 | L106: 92 | M106: =AVERAGE(N$15:N106) -> 0.02503811375 | N106: 0.03678477385 | P106: 92
E107: 93 | F107: 0.02515324922 | H107: 93 | I107: 0.02484211285 | J107: 0.03678755253 | L107: 93 | M107: =AVERAGE(N$15:N107) -> 0.0251644518 | N107: 0.03678755253 | P107: 93
E108: 94 | F108: 0.02528356052 | H108: 94 | I108: 0.02496921874 | J108: 0.03679006678 | L108: 94 | M108: =AVERAGE(N$15:N108) -> 0.02528812856 | N108: 0.03679006678 | P108: 94
E109: 95 | F109: 0.02541116903 | H109: 95 | I109: 0.02509367267 | J109: 0.03679234177 | L109: 95 | M109: =AVERAGE(N$15:N109) -> 0.02540922554 | N109: 0.03679234177 | P109: 95
E110: 96 | F110: 0.0255361564 | H110: 96 | I110: 0.02521555525 | J110: 0.03679440027 | L110: 96 | M110: =AVERAGE(N$15:N110) -> 0.02552782111 | N110: 0.03679440027 | P110: 96
E111: 97 | F111: 0.02565860118 | H111: 97 | I111: =LN(1+F111) -> 0.02533494399 | J111: 0.03679626287 | L111: 97 | M111: =AVERAGE(N$15:N111) -> 0.02564399061 | N111: =J111+($L111<=FSP)*LN(1+VA/10000) -> 0.03679626287 | P111: 97
E112: 98 | F112: 0.0257785789 | H112: 98 | I112: 0.02545191342 | J112: 0.03679794822 | L112: 98 | M112: =AVERAGE(N$15:N112) -> 0.02575780651 | N112: 0.03679794822 | P112: 98
E113: 99 | F113: 0.02589616224 | H113: 99 | I113: 0.02556653523 | J113: 0.03679947319 | L113: 99 | M113: =AVERAGE(N$15:N113) -> 0.02586933849 | N113: 0.03679947319 | P113: 99
E114: 100 | F114: 0.02601142115 | H114: 100 | I114: 0.02567887841 | J114: 0.03680085305 | L114: 100 | M114: =AVERAGE(N$15:N114) -> 0.02597865364 | N114: 0.03680085305 | P114: 100
E115: 101 | F115: 0.02612442296 | H115: 101 | I115: 0.02578900934 | J115: 0.03680210159 | L115: 101 | M115: =AVERAGE(N$15:N115) -> 0.02608581649 | N115: 0.03680210159 | P115: 101
E116: 102 | F116: 0.02623523249 | H116: 102 | I116: 0.0258969919 | J116: 0.03680323131 | L116: 102 | M116: =AVERAGE(N$15:N116) -> 0.02619088918 | N116: 0.03680323131 | P116: 102
E117: 103 | F117: 0.02634391219 | H117: 103 | I117: 0.02600288765 | J117: 0.03680425353 | L117: 103 | M117: =AVERAGE(N$15:N117) -> 0.02629393156 | N117: 0.03680425353 | P117: 103
E118: 104 | F118: 0.0264505222 | H118: 104 | I118: 0.02610675583 | J118: 0.03680517847 | L118: 104 | M118: =AVERAGE(N$15:N118) -> 0.02639500124 | N118: 0.03680517847 | P118: 104
E119: 105 | F119: 0.02655512049 | H119: 105 | I119: 0.02620865354 | J119: 0.03680601539 | L119: 105 | M119: =AVERAGE(N$15:N119) -> 0.02649415375 | N119: 0.03680601539 | P119: 105
E120: 106 | F120: 0.02665776292 | H120: 106 | I120: 0.02630863579 | J120: 0.03680677267 | L120: 106 | M120: =AVERAGE(N$15:N120) -> 0.02659144261 | N120: 0.03680677267 | P120: 106
E121: 107 | F121: 0.02675850335 | H121: 107 | I121: 0.02640675563 | J121: 0.03680745789 | L121: 107 | M121: =AVERAGE(N$15:N121) -> 0.02668691939 | N121: 0.03680745789 | P121: 107
E122: 108 | F122: 0.02685739372 | H122: 108 | I122: 0.02650306417 | J122: 0.03680807789 | L122: 108 | M122: =AVERAGE(N$15:N122) -> 0.02678063382 | N122: 0.03680807789 | P122: 108
E123: 109 | F123: 0.02695448414 | H123: 109 | I123: 0.02659761072 | J123: 0.0368086389 | L123: 109 | M123: =AVERAGE(N$15:N123) -> 0.02687263387 | N123: 0.0368086389 | P123: 109
E124: 110 | F124: 0.02704982295 | H124: 110 | I124: 0.02669044287 | J124: 0.03680914652 | L124: 110 | M124: =AVERAGE(N$15:N124) -> 0.0269629658 | N124: 0.03680914652 | P124: 110
E125: 111 | F125: 0.02714345681 | H125: 111 | I125: 0.0267816065 | J125: 0.03680960583 | L125: 111 | M125: =AVERAGE(N$15:N125) -> 0.02705167427 | N125: 0.03680960583 | P125: 111
E126: 112 | F126: 0.02723543076 | H126: 112 | I126: 0.02687114592 | J126: 0.03681002143 | L126: 112 | M126: =AVERAGE(N$15:N126) -> 0.02713880237 | N126: 0.03681002143 | P126: 112
E127: 113 | F127: 0.02732578828 | H127: 113 | I127: 0.0269591039 | J127: 0.03681039748 | L127: 113 | M127: =AVERAGE(N$15:N127) -> 0.02722439171 | N127: 0.03681039748 | P127: 113
E128: 114 | F128: 0.02741457139 | H128: 114 | I128: 0.02704552174 | J128: 0.03681073775 | L128: 114 | M128: =AVERAGE(N$15:N128) -> 0.02730848246 | N128: 0.03681073775 | P128: 114
E129: 115 | F129: 0.02750182068 | H129: 115 | I129: 0.02713043934 | J129: 0.03681104564 | L129: 115 | M129: =AVERAGE(N$15:N129) -> 0.02739111344 | N129: 0.03681104564 | P129: 115
E130: 116 | F130: 0.02758757535 | H130: 116 | I130: 0.02721389524 | J130: 0.03681132422 | L130: 116 | M130: =AVERAGE(N$15:N130) -> 0.02747232216 | N130: 0.03681132422 | P130: 116
E131: 117 | F131: 0.02767187332 | H131: 117 | I131: 0.0272959267 | J131: 0.0368115763 | L131: 117 | M131: =AVERAGE(N$15:N131) -> 0.02755214484 | N131: 0.0368115763 | P131: 117
E132: 118 | F132: 0.02775475123 | H132: 118 | I132: 0.02737656973 | J132: 0.03681180439 | L132: 118 | M132: =AVERAGE(N$15:N132) -> 0.02763061653 | N132: 0.03681180439 | P132: 118
E133: 119 | F133: 0.02783624454 | H133: 119 | I133: 0.02745585915 | J133: 0.03681201077 | L133: 119 | M133: =AVERAGE(N$15:N133) -> 0.02770777111 | N133: 0.03681201077 | P133: 119
E134: 120 | F134: 0.02791638753 | H134: 120 | I134: 0.02753382864 | J134: 0.03681219751 | L134: 120 | M134: =AVERAGE(N$15:N134) -> 0.02778364133 | N134: 0.03681219751 | P134: 120
E135: 121 | F135: 0.02799521337 | H135: 121 | I135: 0.02761051077 | J135: 0.03681236648 | L135: 121 | M135: =AVERAGE(N$15:N135) -> 0.02785825889 | N135: 0.03681236648 | P135: 121
E136: 122 | F136: 0.02807275417 | H136: 122 | I136: 0.02768593707 | J136: 0.03681251938 | L136: 122 | M136: =AVERAGE(N$15:N136) -> 0.02793165447 | N136: 0.03681251938 | P136: 122
E137: 123 | F137: 0.02814904101 | H137: 123 | I137: 0.02776013805 | J137: 0.03681265772 | L137: 123 | M137: =AVERAGE(N$15:N137) -> 0.02800385775 | N137: 0.03681265772 | P137: 123
E138: 124 | F138: 0.02822410398 | H138: 124 | I138: 0.02783314325 | J138: 0.0368127829 | L138: 124 | M138: =AVERAGE(N$15:N138) -> 0.02807489747 | N138: 0.0368127829 | P138: 124
E139: 125 | F139: 0.02829797222 | H139: 125 | I139: 0.02790498128 | J139: 0.03681289616 | L139: 125 | M139: =AVERAGE(N$15:N139) -> 0.02814480146 | N139: 0.03681289616 | P139: 125
E140: 126 | F140: 0.02837067396 | H140: 126 | I140: 0.02797567983 | J140: 0.03681299865 | L140: 126 | M140: =AVERAGE(N$15:N140) -> 0.02821359667 | N140: 0.03681299865 | P140: 126
E141: 127 | F141: 0.02844223657 | H141: 127 | I141: 0.02804526574 | J141: 0.03681309138 | L141: 127 | M141: =AVERAGE(N$15:N141) -> 0.02828130923 | N141: 0.03681309138 | P141: 127
E142: 128 | F142: 0.02851268655 | H142: 128 | I142: 0.02811376504 | J142: 0.03681317529 | L142: 128 | M142: =AVERAGE(N$15:N142) -> 0.02834796443 | N142: 0.03681317529 | P142: 128
E143: 129 | F143: 0.0285820496 | H143: 129 | I143: =LN(1+F143) -> 0.02818120291 | J143: 0.03681325121 | L143: 129 | M143: =AVERAGE(N$15:N143) -> 0.02841358681 | N143: =J143+($L143<=FSP)*LN(1+VA/10000) -> 0.03681325121 | P143: 129
E144: 130 | F144: 0.02865035064 | H144: 130 | I144: 0.02824760381 | J144: =$H144*I144-$H143*I143 -> 0.03681331991 | L144: 130 | M144: =AVERAGE(N$15:N144) -> 0.02847820014 | N144: 0.03681331991 | P144: 130 | T144: =Q144-F144 -> 
E145: 131 | F145: 0.02871761384 | H145: 131 | I145: 0.02831299143 | J145: 0.03681338207 | L145: 131 | M145: =AVERAGE(N$15:N145) -> 0.02854182748 | N145: 0.03681338207 | P145: 131
E146: 132 | F146: 0.02878386264 | H146: 132 | I146: 0.02837738876 | J146: 0.03681343832 | L146: 132 | M146: =AVERAGE(N$15:N146) -> 0.0286044912 | N146: 0.03681343832 | P146: 132
E147: 133 | F147: 0.02884911977 | H147: 133 | I147: 0.02844081809 | J147: 0.03681348921 | L147: 133 | M147: =AVERAGE(N$15:N147) -> 0.02866621299 | N147: 0.03681348921 | P147: 133
E148: 134 | F148: 0.02891340732 | H148: 134 | I148: 0.02850330105 | J148: 0.03681353526 | L148: 134 | M148: =AVERAGE(N$15:N148) -> 0.0287270139 | N148: 0.03681353526 | P148: 134
E149: 135 | F149: 0.02897674671 | H149: 135 | I149: 0.02856485865 | J149: 0.03681357693 | L149: 135 | M149: =AVERAGE(N$15:N149) -> 0.02878691437 | N149: 0.03681357693 | P149: 135
E150: 136 | F150: 0.02903915874 | H150: 136 | I150: 0.02862551127 | J150: 0.03681361463 | L150: 136 | M150: =AVERAGE(N$15:N150) -> 0.02884593423 | N150: 0.03681361463 | P150: 136
E151: 137 | F151: 0.0291006636 | H151: 137 | I151: 0.02868527869 | J151: 0.03681364875 | L151: 137 | M151: =AVERAGE(N$15:N151) -> 0.02890409273 | N151: 0.03681364875 | P151: 137
E152: 138 | F152: 0.02916128091 | H152: 138 | I152: 0.02874418015 | J152: 0.03681367962 | L152: 138 | M152: =AVERAGE(N$15:N152) -> 0.02896140857 | N152: 0.03681367962 | P152: 138
E153: 139 | F153: 0.02922102973 | H153: 139 | I153: 0.0288022343 | J153: 0.03681370755 | L153: 139 | M153: =AVERAGE(N$15:N153) -> 0.02901789993 | N153: 0.03681370755 | P153: 139
E154: 140 | F154: 0.02927992858 | H154: 140 | I154: 0.02885945929 | J154: 0.03681373282 | L154: 140 | M154: =AVERAGE(N$15:N154) -> 0.02907358445 | N154: 0.03681373282 | P154: 140
E155: 141 | F155: 0.02933799545 | H155: 141 | I155: 0.02891587274 | J155: 0.03681375569 | L155: 141 | M155: =AVERAGE(N$15:N155) -> 0.02912847929 | N155: 0.03681375569 | P155: 141
E156: 142 | F156: 0.02939524783 | H156: 142 | I156: 0.02897149178 | J156: 0.03681377638 | L156: 142 | M156: =AVERAGE(N$15:N156) -> 0.0291826011 | N156: 0.03681377638 | P156: 142
E157: 143 | F157: 0.02945170274 | H157: 143 | I157: 0.02902633306 | J157: 0.0368137951 | L157: 143 | M157: =AVERAGE(N$15:N157) -> 0.02923596609 | N157: 0.0368137951 | P157: 143
E158: 144 | F158: 0.0295073767 | H158: 144 | I158: 0.02908041278 | J158: 0.03681381204 | L158: 144 | M158: =AVERAGE(N$15:N158) -> 0.02928859002 | N158: 0.03681381204 | P158: 144
E159: 145 | F159: 0.0295622858 | H159: 145 | I159: 0.02913374667 | J159: 0.03681382737 | L159: 145 | M159: =AVERAGE(N$15:N159) -> 0.02934048821 | N159: 0.03681382737 | P159: 145
E160: 146 | F160: 0.02961644569 | H160: 146 | I160: 0.02918635006 | J160: 0.03681384124 | L160: 146 | M160: =AVERAGE(N$15:N160) -> 0.02939167556 | N160: 0.03681384124 | P160: 146
E161: 147 | F161: 0.02966987158 | H161: 147 | I161: 0.02923823784 | J161: 0.03681385379 | L161: 147 | M161: =AVERAGE(N$15:N161) -> 0.02944216657 | N161: 0.03681385379 | P161: 147
E162: 148 | F162: 0.02972257831 | H162: 148 | I162: 0.02928942451 | J162: 0.03681386515 | L162: 148 | M162: =AVERAGE(N$15:N162) -> 0.02949197534 | N162: 0.03681386515 | P162: 148
E163: 149 | F163: 0.02977458027 | H163: 149 | I163: 0.02933992418 | J163: 0.03681387542 | L163: 149 | M163: =AVERAGE(N$15:N163) -> 0.02954111561 | N163: 0.03681387542 | P163: 149
E164: 150 | F164: 0.02982589151 | H164: 150 | I164: 0.02938975059 | J164: 0.03681388472 | L164: 150 | M164: =AVERAGE(N$15:N164) -> 0.02958960074 | N164: 0.03681388472 | P164: 150

Sheet 2020 Review Term Structures (hidden)
A1: RFR Term Structures as of end of June 2020
A2: Alternative Extrapolation - Without VA
A3: All source data are Refinitiv based
C5: Country | D5: Currency | E5: Country | F5: Currency | G5: Country | H5: Currency | I5: Country | J5: Currency | K5: Country | L5: Currency | M5: Country | N5: Currency | O5: Country | P5: Currency | Q5: Country | R5: Currency | S5: Country | T5: Currency | U5: Country | V5: Currency | W5: Country | X5: Currency | Y5: Country | Z5: Currency | AA5: Country | AB5: Currency | AC5: Country | AD5: Currency | AE5: Country | AF5: Currency | AG5: Country | AH5: Currency | AI5: Country | AJ5: Currency | AK5: Country | AL5: Currency | AM5: Country | AN5: Currency | AO5: Country | AP5: Currency | AQ5: Country | AR5: Currency | AS5: Country | AT5: Currency | AU5: Country | AV5: Currency | AW5: Country | AX5: Currency | AY5: Country | AZ5: Currency | BA5: Country | BB5: Currency | BC5: Country | BD5: Currency | BE5: Country | BF5: Currency | BG5: Country | BH5: Currency | BI5: Country | BJ5: Currency | BK5: Country | BL5: Currency | BM5: Country | BN5: Currency | BO5: Country | BP5: Currency | BQ5: Country | BR5: Currency
C6: Euro | D6: EUR | E6: Bulgaria | F6: EUR | G6: Croatia | H6: HRK | I6: Czechia | J6: CZK | K6: Denmark | L6: EUR | M6: Hungary | N6: HUF | O6: Iceland | P6: ISK | Q6: Liechtenstein | R6: CHF | S6: Norway | T6: NOK | U6: Poland | V6: PLN | W6: Romania | X6: RON | Y6: Russia | Z6: RUB | AA6: Sweden | AB6: SEK | AC6: Switzerland | AD6: CHF | AE6: United Kingdom | AF6: GBP | AG6: Australia | AH6: AUD | AI6: Brazil | AJ6: BRL | AK6: Canada | AL6: CAD | AM6: Chile | AN6: CLP | AO6: China | AP6: CNY | AQ6: Colombia | AR6: COP | AS6: Hong Kong | AT6: HKD | AU6: India | AV6: INR | AW6: Japan | AX6: JPY | AY6: Malaysia | AZ6: MYR | BA6: Mexico | BB6: MXN | BC6: New Zealand | BD6: NZD | BE6: Singapore | BF6: SGD | BG6: South Africa | BH6: ZAR | BI6: South Korea | BJ6: KRW | BK6: Taiwan | BL6: TWD | BM6: Thailand | BN6: THB | BO6: Turkey | BP6: TRY | BQ6: United States | BR6: USD
C7: Date | E7: Date | G7: Date | I7: Date | K7: Date | M7: Date | O7: Date | Q7: Date | S7: Date | U7: Date | W7: Date | Y7: Date | AA7: Date | AC7: Date | AE7: Date | AG7: Date | AI7: Date | AK7: Date | AM7: Date | AO7: Date | AQ7: Date | AS7: Date | AU7: Date | AW7: Date | AY7: Date | BA7: Date | BC7: Date | BE7: Date | BG7: Date | BI7: Date | BK7: Date | BM7: Date | BO7: Date | BQ7: Date
C8: 2020-06-30 | E8: 2020-06-30 | G8: 2020-06-30 | I8: 2020-06-30 | K8: 2020-06-30 | M8: 2020-06-30 | O8: 2020-06-30 | Q8: 2020-06-30 | S8: 2020-06-30 | U8: 2020-06-30 | W8: 2020-06-30 | Y8: 2020-06-30 | AA8: 2020-06-30 | AC8: 2020-06-30 | AE8: 2020-06-30 | AG8: 2020-06-30 | AI8: 2020-06-30 | AK8: 2020-06-30 | AM8: 2020-06-30 | AO8: 2020-06-30 | AQ8: 2020-06-30 | AS8: 2020-06-30 | AU8: 2020-06-30 | AW8: 2020-06-30 | AY8: 2020-06-30 | BA8: 2020-06-30 | BC8: 2020-06-30 | BE8: 2020-06-30 | BG8: 2020-06-30 | BI8: 2020-06-30 | BK8: 2020-06-30 | BM8: 2020-06-30 | BO8: 2020-06-30 | BQ8: 2020-06-30
C9: CRA | D9: UFR | E9: CRA | F9: UFR | G9: CRA | H9: UFR | I9: CRA | J9: UFR | K9: CRA | L9: UFR | M9: CRA | N9: UFR | O9: CRA | P9: UFR | Q9: CRA | R9: UFR | S9: CRA | T9: UFR | U9: CRA | V9: UFR | W9: CRA | X9: UFR | Y9: CRA | Z9: UFR | AA9: CRA | AB9: UFR | AC9: CRA | AD9: UFR | AE9: CRA | AF9: UFR | AG9: CRA | AH9: UFR | AI9: CRA | AJ9: UFR | AK9: CRA | AL9: UFR | AM9: CRA | AN9: UFR | AO9: CRA | AP9: UFR | AQ9: CRA | AR9: UFR | AS9: CRA | AT9: UFR | AU9: CRA | AV9: UFR | AW9: CRA | AX9: UFR | AY9: CRA | AZ9: UFR | BA9: CRA | BB9: UFR | BC9: CRA | BD9: UFR | BE9: CRA | BF9: UFR | BG9: CRA | BH9: UFR | BI9: CRA | BJ9: UFR | BK9: CRA | BL9: UFR | BM9: CRA | BN9: UFR | BO9: CRA | BP9: UFR | BQ9: CRA | BR9: UFR
C10: 10 | D10: 3.75 | E10: 15 | F10: 3.75 | G10: 10 | H10: 3.75 | I10: 10 | J10: 3.75 | K10: 11 | L10: 3.75 | M10: 10 | N10: 4.5 | O10: 10 | P10: 3.75 | Q10: 10 | R10: 2.75 | S10: 11 | T10: 3.75 | U10: 10 | V10: 3.75 | W10: 10 | X10: 3.75 | Y10: 35 | Z10: 4.65 | AA10: 11 | AB10: 3.75 | AC10: 10 | AD10: 2.75 | AE10: 14 | AF10: 3.75 | AG10: 14 | AH10: 3.75 | AI10: 35 | AJ10: 5.5 | AK10: 18 | AL10: 3.75 | AM10: 35 | AN10: 4.5 | AO10: 35 | AP10: 4.5 | AQ10: 35 | AR10: 4.5 | AS10: 35 | AT10: 3.75 | AU10: 35 | AV10: 5.5 | AW10: 10 | AX10: 3.5 | AY10: 35 | AZ10: 3.75 | BA10: 35 | BB10: 4.75 | BC10: 21 | BD10: 3.75 | BE10: 27 | BF10: 3.75 | BG10: 35 | BH10: 5.5 | BI10: 35 | BJ10: 3.75 | BK10: 15 | BL10: 3.75 | BM10: 35 | BN10: 3.75 | BO10: 35 | BP10: 5.5 | BQ10: 20 | BR10: 3.75
D11: Alternative | F11: Alternative | H11: Alternative | J11: Alternative | L11: Alternative | N11: Alternative | P11: Alternative | R11: Alternative | T11: Alternative | V11: Alternative | X11: Alternative | Z11: Alternative | AA11: SW | AB11: Alternative | AD11: Alternative | AF11: Alternative | AH11: Alternative | AJ11: Alternative | AL11: Alternative | AN11: Alternative | AP11: Alternative | AR11: Alternative | AT11: Alternative | AV11: Alternative | AX11: Alternative | AZ11: Alternative | BB11: Alternative | BD11: Alternative | BF11: Alternative | BH11: Alternative | BJ11: Alternative | BL11: Alternative | BN11: Alternative | BP11: Alternative | BR11: Alternative
D12: Instrument | F12: Instrument | H12: Instrument | J12: Instrument | L12: Instrument | N12: Instrument | P12: Instrument | R12: Instrument | T12: Instrument | V12: Instrument | X12: Instrument | Z12: Instrument | AA12: Instrument | AB12: Instrument | AD12: Instrument | AF12: Instrument | AH12: Instrument | AJ12: Instrument | AL12: Instrument | AN12: Instrument | AP12: Instrument | AR12: Instrument | AT12: Instrument | AV12: Instrument | AX12: Instrument | AZ12: Instrument | BB12: Instrument | BD12: Instrument | BF12: Instrument | BH12: Instrument | BJ12: Instrument | BL12: Instrument | BN12: Instrument | BP12: Instrument | BR12: Instrument
D13: SWP | F13: SWP | H13: GVT | J13: SWP | L13: SWP | N13: SWP | P13: GVT | R13: SWP | T13: SWP | V13: SWP | X13: GVT | Z13: GVT | AA13: SWP | AB13: SWP | AD13: SWP | AF13: SWP | AH13: SWP | AJ13: GVT | AL13: SWP | AN13: GVT | AP13: SWP | AR13: GVT | AT13: SWP | AV13: GVT | AX13: SWP | AZ13: GVT | BB13: SWP | BD13: SWP | BF13: SWP | BH13: SWP | BJ13: SWP | BL13: GVT | BN13: GVT | BP13: GVT | BR13: SWP
D14: CouponFreq | F14: CouponFreq | H14: CouponFreq | J14: CouponFreq | L14: CouponFreq | N14: CouponFreq | P14: CouponFreq | R14: CouponFreq | T14: CouponFreq | V14: CouponFreq | X14: CouponFreq | Z14: CouponFreq | AA14: CouponFreq | AB14: CouponFreq | AD14: CouponFreq | AF14: CouponFreq | AH14: CouponFreq | AJ14: CouponFreq | AL14: CouponFreq | AN14: CouponFreq | AP14: CouponFreq | AR14: CouponFreq | AT14: CouponFreq | AV14: CouponFreq | AX14: CouponFreq | AZ14: CouponFreq | BB14: CouponFreq | BD14: CouponFreq | BF14: CouponFreq | BH14: CouponFreq | BJ14: CouponFreq | BL14: CouponFreq | BN14: CouponFreq | BP14: CouponFreq | BR14: CouponFreq
D15: 1 | F15: 1 | H15: 0 | J15: 1 | L15: 1 | N15: 1 | P15: 0 | R15: 1 | T15: 1 | V15: 1 | X15: 0 | Z15: 0 | AA15: 1 | AB15: 1 | AD15: 1 | AF15: 2 | AH15: 2 | AJ15: 0 | AL15: 2 | AN15: 0 | AP15: 4 | AR15: 0 | AT15: 4 | AV15: 0 | AX15: 2 | AZ15: 0 | BB15: 13 | BD15: 2 | BF15: 2 | BH15: 4 | BJ15: 4 | BL15: 0 | BN15: 0 | BP15: 0 | BR15: 2
D16: FSP | F16: FSP | H16: FSP | J16: FSP | L16: FSP | N16: FSP | P16: FSP | R16: FSP | T16: FSP | V16: FSP | X16: FSP | Z16: FSP | AA16: LLP | AB16: FSP | AD16: FSP | AF16: FSP | AH16: FSP | AJ16: FSP | AL16: FSP | AN16: FSP | AP16: FSP | AR16: FSP | AT16: FSP | AV16: FSP | AX16: FSP | AZ16: FSP | BB16: FSP | BD16: FSP | BF16: FSP | BH16: FSP | BJ16: FSP | BL16: FSP | BN16: FSP | BP16: FSP | BR16: FSP
D17: 20 | F17: 20 | H17: 12 | J17: 10 | L17: 20 | N17: 10 | P17: 8 | R17: 10 | T17: 10 | V17: 10 | X17: 10 | Z17: 15 | AA17: 10 | AB17: 10 | AD17: 10 | AF17: 40 | AH17: 15 | AJ17: 10 | AL17: 30 | AN17: 10 | AP17: 10 | AR17: 10 | AT17: 15 | AV17: 10 | AX17: 25 | AZ17: 20 | BB17: 20 | BD17: 20 | BF17: 20 | BH17: 15 | BJ17: 20 | BL17: 10 | BN17: 15 | BP17: 9 | BR17: 25
D18: Mean Rev | F18: Mean Rev | H18: Mean Rev | J18: Mean Rev | L18: Mean Rev | N18: Mean Rev | P18: Mean Rev | R18: Mean Rev | T18: Mean Rev | V18: Mean Rev | X18: Mean Rev | Z18: Mean Rev | AA18: ConvHorizon | AB18: Mean Rev | AD18: Mean Rev | AF18: Mean Rev | AH18: Mean Rev | AJ18: Mean Rev | AL18: Mean Rev | AN18: Mean Rev | AP18: Mean Rev | AR18: Mean Rev | AT18: Mean Rev | AV18: Mean Rev | AX18: Mean Rev | AZ18: Mean Rev | BB18: Mean Rev | BD18: Mean Rev | BF18: Mean Rev | BH18: Mean Rev | BJ18: Mean Rev | BL18: Mean Rev | BN18: Mean Rev | BP18: Mean Rev | BR18: Mean Rev
D19: 0.1 | F19: 0.1 | H19: 0.1 | J19: 0.1 | L19: 0.1 | N19: 0.1 | P19: 0.1 | R19: 0.1 | T19: 0.1 | V19: 0.1 | X19: 0.1 | Z19: 0.1 | AA19: 10 | AB19: 0.4 | AD19: 0.1 | AF19: 0.1 | AH19: 0.1 | AJ19: 0.1 | AL19: 0.1 | AN19: 0.1 | AP19: 0.1 | AR19: 0.1 | AT19: 0.1 | AV19: 0.1 | AX19: 0.1 | AZ19: 0.1 | BB19: 0.1 | BD19: 0.1 | BF19: 0.1 | BH19: 0.1 | BJ19: 0.1 | BL19: 0.1 | BN19: 0.1 | BP19: 0.1 | BR19: 0.1
D20: LLFR | F20: LLFR | H20: LLFR | J20: LLFR | L20: LLFR | N20: LLFR | P20: LLFR | R20: LLFR | T20: LLFR | V20: LLFR | X20: LLFR | Z20: LLFR | AA20: Fitted Alfa | AB20: LLFR | AD20: LLFR | AF20: LLFR | AH20: LLFR | AJ20: LLFR | AL20: LLFR | AN20: LLFR | AP20: LLFR | AR20: LLFR | AT20: LLFR | AV20: LLFR | AX20: LLFR | AZ20: LLFR | BB20: LLFR | BD20: LLFR | BF20: LLFR | BH20: LLFR | BJ20: LLFR | BL20: LLFR | BN20: LLFR | BP20: LLFR | BR20: LLFR
D21: -0.0003734924688 | F21: -0.0008725324796 | H21: 0.01708111534 | J21: 0.007682560565 | L21: -0.0004732786428 | N21: 0.01782488239 | P21: 0.03437157182 | R21: -0.001731464373 | T21: 0.01037648561 | V21: 0.01096238288 | X21: 0.0431439371 | Z21: 0.06686700272 | AA21: 0.534663 | AB21: 0.004983130208 | AD21: -0.001731464373 | AF21: 0.001013451585 | AH21: 0.01299083624 | AJ21: 0.08655597322 | AL21: 0.01399739312 | AN21: 0.04490481918 | AP21: 0.02903673986 | AR21: 0.1187563401 | AT21: 0.01055423522 | AV21: 0.06862859587 | AX21: 0.004205458164 | AZ21: 0.04846984543 | BB21: 0.07348892927 | BD21: 0.01382456963 | BF21: 0.008474150666 | BH21: 0.1025444781 | BJ21: 0.002497976568 | BL21: 0.004578109519 | BN21: 0.02014466908 | BP21: 0.1531481815 | BR21: 0.00784025437
C22: Zero Rates AC | E22: Zero Rates AC | G22: Zero Rates AC | I22: Zero Rates AC | K22: Zero Rates AC | M22: Zero Rates AC | O22: Zero Rates AC | Q22: Zero Rates AC | S22: Zero Rates AC | U22: Zero Rates AC | W22: Zero Rates AC | Y22: Zero Rates AC | AA22: Zero Rates AC | AC22: Zero Rates AC | AE22: Zero Rates AC | AG22: Zero Rates AC | AI22: Zero Rates AC | AK22: Zero Rates AC | AM22: Zero Rates AC | AO22: Zero Rates AC | AQ22: Zero Rates AC | AS22: Zero Rates AC | AU22: Zero Rates AC | AW22: Zero Rates AC | AY22: Zero Rates AC | BA22: Zero Rates AC | BC22: Zero Rates AC | BE22: Zero Rates AC | BG22: Zero Rates AC | BI22: Zero Rates AC | BK22: Zero Rates AC | BM22: Zero Rates AC | BO22: Zero Rates AC | BQ22: Zero Rates AC
B23: Tenor | D23: Alternative | E23: SW | F23: Alternative | G23: SW | H23: Alternative | I23: SW | J23: Alternative | K23: SW | L23: Alternative | M23: SW | N23: Alternative | O23: SW | P23: Alternative | Q23: SW | R23: Alternative | S23: SW | T23: Alternative | U23: SW | V23: Alternative | W23: SW | X23: Alternative | Y23: SW | Z23: Alternative | AA23: SW | AB23: Alternative | AC23: SW | AD23: Alternative | AE23: SW | AF23: Alternative | AG23: SW | AH23: Alternative | AI23: SW | AJ23: Alternative | AK23: SW | AL23: Alternative | AM23: SW | AN23: Alternative | AO23: SW | AP23: Alternative | AQ23: SW | AR23: Alternative | AS23: SW | AT23: Alternative | AU23: SW | AV23: Alternative | AW23: SW | AX23: Alternative | AY23: SW | AZ23: Alternative | BA23: SW | BB23: Alternative | BC23: SW | BD23: Alternative | BE23: SW | BF23: Alternative | BG23: SW | BH23: Alternative | BI23: SW | BJ23: Alternative | BK23: SW | BL23: Alternative | BM23: SW | BN23: Alternative | BO23: SW | BP23: Alternative | BQ23: SW | BR23: Alternative
B24: 1 | D24: -0.00445 | F24: -0.00495 | H24: -0.00189762 | J24: 0.00205 | L24: -0.00455 | N24: 0.0053 | P24: 0.01254234 | R24: -0.007375 | T24: 0.00252 | V24: 0.001046 | X24: 0.02908131 | Z24: 0.03942219 | AA24: -0.00108 | AB24: -0.00108 | AD24: -0.007375 | AF24: 0.000972236196 | AH24: 0.0005200676 | AJ24: 0.02140138 | AL24: 0.003918831806 | AN24: 0.00010807 | AP24: 0.01791916788 | AR24: 0.01786872 | AT24: 0.004106308059 | AV24: 0.03377081 | AX24: -0.001162661858 | AZ24: 0.01645066 | BB24: 0.04173296498 | BD24: 0.000350030625 | BF24: -0.000249984375 | BH24: 0.03279579007 | BJ24: 0.004206619632 | BL24: 0.00039626 | BN24: 0.0010134 | BP24: 0.08465929 | BR24: 0.0006200961
B25: 2 | D25: -0.004749287714 | F25: -0.005249212736 | H25: 0.00206906 | J25: 0.002450490196 | L25: -0.004849272718 | N25: 0.004999250225 | P25: 0.01254234 | R25: -0.007360055201 | T25: 0.003652064581 | V25: 0.001825711391 | X25: 0.03177176 | Z25: 0.04203091 | AA25: -0.001174944193 | AB25: -0.001174944193 | AD25: -0.007360055201 | AF25: 0.0004669366007 | AH25: 0.0009604418103 | AJ25: 0.03251471 | AL25: 0.003918831806 | AN25: -0.00050021 | AP25: 0.01843063834 | AR25: 0.02642902 | AT25: 0.003704393971 | AV25: 0.03877676 | AX25: -0.001224586905 | AZ25: 0.01832391 | BB25: 0.0412561177 | BD25: -2.499515744e-05 | BF25: 0.0002500781563 | BH25: 0.03446424092 | BJ25: 0.004508277967 | BL25: 0.00066645 | BN25: 0.00110602 | BP25: 0.09187804 | BR25: 0.0002394687778
B26: 3 | D26: -0.004849031139 | F26: -0.005348931346 | H26: 0.00523407 | J26: 0.00323093205 | L26: -0.004949011179 | N26: 0.005401624557 | P26: 0.0148818 | R26: -0.006835740748 | T26: 0.004153646545 | V26: 0.003219850313 | X26: 0.03348508 | Z26: 0.04463713 | AA26: -0.00108006837 | AB26: -0.00108006837 | AD26: -0.006835740748 | AF26: 0.0004799830371 | AH26: 0.00138125968 | AJ26: 0.04243516 | AL26: 0.004537931534 | AN26: 6.813e-05 | AP26: 0.01975240952 | AR26: 0.03236979 | AT26: 0.003704641619 | AV26: 0.0434531 | AX26: -0.001274503614 | AZ26: 0.01961641 | BB26: 0.04234226474 | BD26: 0.0001750207859 | BF26: 0.0008758853314 | BH26: 0.03819073532 | BJ26: 0.004810580375 | BL26: 0.0009262 | BN26: 0.00210794 | BP26: 0.09722911 | BR26: 0.000320010776
B27: 4 | D27: -0.004650693906 | F27: -0.00515076807 | H27: 0.00772546 | J27: 0.003621380797 | L27: -0.004750708746 | N27: 0.006348407986 | P27: 0.01786651107 | R27: -0.006573479677 | T27: 0.004858320209 | V27: 0.003917647136 | X27: 0.03476927 | Z27: 0.04707854 | AA27: -0.0007703946551 | AB27: -0.0007703946551 | AD27: -0.006573479677 | AF27: 0.0007002721655 | AH27: 0.002023829056 | AJ27: 0.05013721 | AL27: 0.005244808528 | AN27: 0.0024977 | AP27: 0.02041393826 | AR27: 0.03688332 | AT27: 0.004146416298 | AV27: 0.04769254 | AX27: -0.00124959 | AZ27: 0.0210275 | BB27: 0.04422249808 | BD27: 0.0006756590316 | BF27: 0.001880463084 | BH27: 0.04538719338 | BJ27: 0.005037708214 | BL27: 0.00117846 | BN27: 0.0034512 | BP27: 0.10227943 | BR27: 0.0006704411555
B28: 5 | D28: -0.004452304577 | F28: -0.004952562185 | H28: 0.00964258 | J28: 0.003855722982 | L28: -0.00455235612 | N28: 0.006916905949 | P28: 0.01966154943 | R28: -0.006416089793 | T28: 0.005494496299 | V28: 0.00433655818 | X28: 0.03579758 | Z28: 0.04933733 | AA28: -0.000420466597 | AB28: -0.000420466597 | AD28: -0.006416089793 | AF28: 0.0009980128414 | AH28: 0.002799385508 | AJ28: 0.05606046 | AL28: 0.005857788493 | AN28: 0.00576491 | AP28: 0.02081106148 | AR28: 0.04124412 | AT28: 0.004411574433 | AV28: 0.05132034 | AX28: -0.001187779449 | AZ28: 0.02254554 | BB28: 0.04596684993 | BD28: 0.001353159755 | BF28: 0.002483693651 | BH28: 0.04972899042 | BJ28: 0.005163907538 | BL28: 0.00142462 | BN28: 0.00481642 | BP28: 0.10731685 | BR28: 0.001257361164
B29: 6 | D29: -0.00415489169 | F29: -0.004655477688 | H29: 0.01107454 | J29: 0.004497433941 | L29: -0.004255008948 | N29: 0.008753145331 | P29: 0.02086 | R29: -0.005636599625 | T29: 0.006315487237 | V29: 0.00544783493 | X29: 0.03670827989 | Z29: 0.05157444866 | AA29: 1.110223025e-15 | AB29: 0 | AD29: -0.005636599625 | AF29: 0.001254998709 | AH29: 0.003881807316 | AJ29: 0.06061515 | AL29: 0.006496520075 | AN29: 0.009846157601 | AP29: 0.02224788846 | AR29: 0.04611506 | AT29: 0.005227926738 | AV29: 0.05425148 | AX29: -0.001075113991 | AZ29: 0.02402557 | BB29: 0.0487341104 | BD29: 0.002133835105 | BF29: 0.003533094607 | BH29: 0.05742616801 | BJ29: 0.005326592245 | BL29: 0.0016647 | BN29: 0.00609814 | BP29: 0.1132700087 | BR29: 0.001960951708
B30: 7 | D30: -0.003857343461 | F30: -0.004358291201 | H30: 0.01211269 | J30: 0.004956050046 | L30: -0.003957533118 | N30: 0.0100667947 | P30: 0.02286374824 | R30: -0.005079446556 | T30: 0.006902319718 | V30: 0.006242356777 | X30: 0.03735927 | Z30: 0.05317531 | AA30: 0.0004513744896 | AB30: 0.0004513744896 | AD30: -0.005079446556 | AF30: 0.001530524726 | AH30: 0.004655681004 | AJ30: 0.06421074 | AL30: 0.006953005233 | AN30: 0.01277147 | AP30: 0.02327543147 | AR30: 0.05164033 | AT30: 0.005811441723 | AV30: 0.05655744 | AX30: -0.0009254990328 | AZ30: 0.02534248 | BB30: 0.05071520625 | BD30: 0.002968768536 | BF30: 0.004283339212 | BH30: 0.06295868294 | BJ30: 0.005442811728 | BL30: 0.00189943 | BN30: 0.00727106 | BP30: 0.11754185 | BR30: 0.002623779107
B31: 8 | D31: -0.003460578737 | F31: -0.003962101612 | H31: 0.01284236 | J31: 0.00530014953 | L31: -0.003560883519 | N31: 0.01105315426 | P31: 0.02436914 | R31: -0.004661376896 | T31: 0.007342668643 | V31: 0.006838660158 | X31: 0.03798605 | Z31: 0.0548663105 | AA31: 0.0005995593545 | AB31: 0.001018272934 | AD31: -0.004661376896 | AF31: 0.001802551117 | AH31: 0.005871100095 | AJ31: 0.06710394 | AL31: 0.007592967337 | AN31: 0.01685789698 | AP31: 0.02404676649 | AR31: 0.05766149 | AT31: 0.006249300235 | AV31: 0.0583671 | AX31: -0.0007378462143 | AZ31: 0.02647974 | BB31: 0.05296453073 | BD31: 0.003782727493 | BF31: 0.004846390723 | BH31: 0.06712705697 | BJ31: 0.005655763629 | BL31: 0.00213017 | BN31: 0.00833895 | BP31: 0.1234267159 | BR31: 0.003316057136
B32: 9 | D32: -0.003063194614 | F32: -0.003565342782 | H32: 0.01333855 | J32: 0.005567863916 | L32: -0.003163624582 | N32: 0.01182098868 | P32: 0.02555499491 | R32: -0.004336090155 | T32: 0.007685295388 | V32: 0.007302695972 | X32: 0.03855585 | Z32: 0.05618341 | AA32: 0.0009107500455 | AB32: 0.00145941602 | AD32: -0.004336090155 | AF32: 0.002058974459 | AH32: 0.006817442535 | AJ32: 0.06949383 | AL32: 0.008090996818 | AN32: 0.020047625 | AP32: 0.02464709568 | AR32: 0.0638737 | AT32: 0.006589988633 | AV32: 0.05977514 | AX32: -0.0005259988751 | AZ32: 0.02749206 | BB32: 0.05471733386 | BD32: 0.004550163484 | BF32: 0.005284537912 | BH32: 0.07038042346 | BJ32: 0.005821424067 | BL32: 0.00235577 | BN32: 0.00929986 | BP32: 0.12802525 | BR32: 0.003909348593
B33: 10 | D33: -0.002665102089 | F33: -0.003167931996 | H33: 0.01368428 | J33: 0.005782086755 | L33: -0.002765668565 | N33: 0.01243567604 | P33: 0.02652737184 | R33: -0.004075784223 | T33: 0.007959480689 | V33: 0.007674078603 | X33: 0.03910776 | Z33: 0.05740484 | AA33: 0.001813974431 | AB33: 0.00181247046 | AD33: -0.004075784223 | AF33: 0.002297721858 | AH33: 0.007575157489 | AJ33: 0.0715675 | AL33: 0.008489597636 | AN33: 0.02260661 | AP33: 0.02512761241 | AR33: 0.06993794 | AT33: 0.0068626224 | AV33: 0.06089611 | AX33: -0.0003008315756 | AZ33: 0.02845013 | BB33: 0.05612167694 | BD33: 0.005270726259 | BF33: 0.005635193212 | BH33: 0.07299025658 | BJ33: 0.005953972066 | BL33: 0.00257883 | BN33: 0.01016941 | BP33: 0.1311724478 | BR33: 0.004425195028
B34: 11 | D34: -0.002342835122 | F34: -0.002846214679 | H34: 0.01395504 | J34: 0.006086275224 | L34: -0.00244351168 | N34: 0.01305556021 | P34: 0.02734232994 | R34: -0.003736321411 | T34: 0.008301090791 | V34: 0.008092638787 | X34: 0.03953060308 | Z34: 0.0584675234 | AA34: 0.003475089665 | AB34: 0.002611339553 | AD34: -0.003736321411 | AF34: 0.002495110785 | AH34: 0.008260476658 | AJ34: 0.07311131363 | AL34: 0.008997970512 | AN34: 0.02470109798 | AP34: 0.02558849103 | AR34: 0.07457204667 | AT34: 0.007202729687 | AV34: 0.06174369901 | AX34: -5.456601417e-05 | AZ34: 0.02947013942 | BB34: 0.05793645378 | BD34: 0.006054016987 | BF34: 0.005896214624 | BH34: 0.07612553052 | BJ34: 0.005639583709 | BL34: 0.002903534226 | BN34: 0.01098105829 | BP34: 0.1328246231 | BR34: 0.004890450036
B35: 12 | D35: -0.001866439483 | F35: -0.002370854577 | H35: 0.01422737 | J35: 0.006561097026 | L35: -0.001967323452 | N35: 0.0137727833 | P35: 0.02803746958 | R35: -0.003236280038 | T35: 0.008787100457 | V35: 0.008638329363 | X35: 0.03983343003 | Z35: 0.05935390868 | AA35: 0.00545427692 | AB35: 0.004000935568 | AD35: -0.003236280038 | AF35: 0.002659631252 | AH35: 0.008831932024 | AJ35: 0.07413186792 | AL35: 0.009421810329 | AN35: 0.02644290317 | AP35: 0.02608870669 | AR35: 0.07784102609 | AT35: 0.007486240184 | AV35: 0.06232957483 | AX35: 0.0001507016277 | AZ35: 0.03032092 | BB35: 0.0594511497 | BD35: 0.006707225463 | BF35: 0.006113784221 | BH35: 0.07874525585 | BJ35: 0.00537766847 | BL35: 0.003418274378 | BN35: 0.01165793 | BP35: 0.1334320975 | BR35: 0.005278327163
B36: 13 | D36: -0.001578548155 | F36: -0.002083492541 | H36: 0.0145323523 | J36: 0.007147960384 | L36: -0.00167953817 | N36: 0.01454754172 | P36: 0.02863899719 | R36: -0.002631556717 | T36: 0.009366709444 | V36: 0.009264741718 | X36: 0.04004823953 | Z36: 0.06010450674 | AA36: 0.007446652482 | AB36: 0.005626637734 | AD36: -0.002631556717 | AF36: 0.00278298466 | AH36: 0.009225664696 | AJ36: 0.07477248766 | AL36: 0.009780583077 | AN36: 0.02791329762 | AP36: 0.02660908712 | AR36: 0.08010589819 | AT36: 0.007726196012 | AV36: 0.06272449715 | AX36: 0.0004125409681 | AZ36: 0.03135134157 | BB36: 0.06073450922 | BD36: 0.007260271576 | BF36: 0.006297918327 | BH36: 0.08096692711 | BJ36: 0.005156101164 | BL36: 0.004058022314 | BN36: 0.01232383315 | BP36: 0.1333023611 | BR36: 0.005602910645
B37: 14 | D37: -0.001251090928 | F37: -0.001756755865 | H37: 0.01492337752 | J37: 0.007806729951 | L37: -0.001352225324 | N37: 0.01535292353 | P37: 0.02916577142 | R37: -0.001960399348 | T37: 0.01000518528 | V37: 0.009940236909 | X37: 0.04019752584 | Z37: 0.06074829979 | AA37: 0.009326973183 | AB37: 0.007301773549 | AD37: -0.001960399348 | AF37: 0.002888728231 | AH37: 0.009563272148 | AJ37: 0.07513389344 | AL37: 0.01008820407 | AN37: 0.02917047245 | AP37: 0.02713682158 | AR37: 0.08162279428 | AT37: 0.007931917923 | AV37: 0.0629781785 | AX37: 0.0006370292475 | AZ37: 0.03223538023 | BB37: 0.06183576892 | BD37: 0.007734552914 | BF37: 0.006455774383 | BH37: 0.08287485815 | BJ37: 0.004966225194 | BL37: 0.004778223578 | BN37: 0.01289495613 | BP37: 0.132650407 | BR37: 0.005881208469
B38: 15 | D38: -0.0009419269781 | F38: -0.00144830879 | H38: 0.01537183483 | J38: 0.008509403239 | L38: -0.001043205045 | N38: 0.01617046995 | P38: 0.02963173583 | R38: -0.001249456232 | T38: 0.01067835559 | V38: 0.01064287746 | X38: 0.04029747243 | Z38: 0.06130657 | AA38: 0.01105157587 | AB38: 0.008931022227 | AD38: -0.001249456232 | AF38: 0.002980381679 | AH38: 0.009855956626 | AJ38: 0.07528841982 | AL38: 0.01035488473 | AN38: 0.03025717614 | AP38: 0.02766326107 | AR38: 0.0825772226 | AT38: 0.008110244216 | AV38: 0.06312634173 | AX38: 0.0008316265031 | AZ38: 0.03300216 | BB38: 0.06279111879 | BD38: 0.008145777378 | BF38: 0.006592602995 | BH38: 0.08453112213 | BJ38: 0.004801695034 | BL38: 0.005547780989 | BN38: 0.01339019 | BP38: 0.1316294293 | BR38: 0.006122462216
B39: 16 | D39: -0.0007749789843 | F39: -0.00128159633 | H39: 0.01585728483 | J39: 0.009236182801 | L39: -0.00087630433 | N39: 0.01698741794 | P39: 0.03004744238 | R39: -0.0005175335757 | T39: 0.01136918614 | V39: 0.01135727833 | X39: 0.04035994827 | Z39: 0.0617265505 | AA39: 0.01261350565 | AB39: 0.01046905247 | AD39: -0.0005175335757 | AF39: 0.003019937403 | AH39: 0.01012963674 | AJ39: 0.07528895065 | AL39: 0.01058828806 | AN39: 0.03120550917 | AP39: 0.02818255135 | AR39: 0.08310586944 | AT39: 0.008346358402 | AV39: 0.06319513941 | AX39: 0.001044704616 | AZ39: 0.0340357153 | BB39: 0.06362775498 | BD39: 0.008505736436 | BF39: 0.00671234329 | BH39: 0.08582154692 | BJ39: 0.004657753241 | BL39: 0.006344697762 | BN39: 0.01387481398 | BP39: 0.1303502445 | BR39: 0.006335353432
B40: 17 | D40: -0.0006276487632 | F40: -0.001134473988 | H40: 0.0163649598 | J40: 0.009972951482 | L40: -0.0007290158366 | N40: 0.01779492831 | P40: 0.0304210391 | R40: 0.0002219892473 | T40: 0.01206558096 | V40: 0.0120725826 | X40: 0.0403937987 | Z40: 0.06197610043 | AA40: 0.01402149231 | AB40: 0.01189775673 | AD40: 0.0002219892473 | AF40: 0.003054840808 | AH40: 0.01049941118 | AJ40: 0.07517472191 | AL40: 0.01079427696 | AN40: 0.03204003767 | AP40: 0.02869075479 | AR40: 0.08331090437 | AT40: 0.008695832815 | AV40: 0.06320401587 | AX40: 0.001232752389 | AZ40: 0.0349485346 | BB40: 0.06436651031 | BD40: 0.008823454101 | BF40: 0.00681800832 | BH40: 0.08667772512 | BJ40: 0.0045307629 | BL40: 0.007153277582 | BN40: 0.01439268742 | BP40: 0.1288939658 | BR40: 0.006523236032
B41: 18 | D41: -0.0004966703302 | F41: -0.001003680378 | H41: 0.01688410832 | J41: 0.01070960161 | L41: -0.0005980745033 | N41: 0.01858691401 | P41: 0.03075892995 | R41: 0.0009595614118 | T41: 0.01275892653 | V41: 0.01278112205 | X41: 0.04040570482 | Z41: 0.06209442236 | AA41: 0.01529006461 | AB41: 0.01321357756 | AD41: 0.0009595614118 | AF41: 0.003085867076 | AH41: 0.01093784343 | AJ41: 0.07497519782 | AL41: 0.01097741345 | AN41: 0.03277987569 | AP41: 0.02918527011 | AR41: 0.08326961971 | AT41: 0.00912720439 | AV41: 0.06316761457 | AX41: 0.00139993562 | AZ41: 0.035760606 | BB41: 0.06502361246 | BD41: 0.009105953831 | BF41: 0.006911942101 | BH41: 0.08719678089 | BJ41: 0.004417896073 | BL41: 0.007962271966 | BN41: 0.01493025507 | BP41: 0.1273204973 | BR41: 0.006690272236
B42: 19 | D42: -0.00037946455 | F42: -0.0008866399989 | H42: 0.01740687126 | J42: 0.01143890134 | L42: -0.0004809019243 | N42: 0.01935924617 | P42: 0.03106622721 | R42: 0.00168837632 | T42: 0.01344310402 | V42: 0.01347750873 | X42: 0.04040077023 | Z42: 0.06211153562 | AA42: 0.01643498999 | AB42: 0.01442042186 | AD42: 0.00168837632 | AF42: 0.003113628235 | AH42: 0.01142430873 | AJ42: 0.07471272376 | AL42: 0.01114130053 | AN42: 0.03344011367 | AP42: 0.02966443974 | AR42: 0.08304107753 | AT42: 0.009616778168 | AV42: 0.06309708134 | AX42: 0.001549544278 | AZ42: 0.0364877363 | BB42: 0.06561188983 | BD42: 0.009358783802 | BF42: 0.006995995545 | BH42: 0.08745343917 | BJ42: 0.004316920713 | BL42: 0.008763623358 | BN42: 0.01547753128 | BP42: 0.1256743598 | BR42: 0.006839749177
B43: 20 | D43: -0.0002739675966 | F43: -0.0007812919341 | H43: 0.01792750162 | J43: 0.01215570881 | L43: -0.0003754348576 | N43: 0.02010920469 | P43: 0.03134706901 | R43: 0.002403620025 | T43: 0.01411380482 | V43: 0.01415800556 | X43: 0.04038293038 | Z43: 0.06205064069 | AA43: 0.01747128341 | AB43: 0.01552571217 | AD43: 0.002403620025 | AF43: 0.003138613935 | AH43: 0.011943191 | AJ43: 0.07440438081 | AL43: 0.01128882163 | AN43: 0.03403282071 | AP43: 0.03012727863 | AR43: 0.08267078667 | AT43: 0.010146573 | AV43: 0.06300097416 | AX43: 0.001684211182 | AZ43: 0.03714259 | BB43: 0.06614161728 | BD43: 0.009586384936 | BF43: 0.007071649643 | BH43: 0.08750570698 | BJ43: 0.00422605157 | BL43: 0.00955159383 | BN43: 0.01602714218 | BP43: 0.1239887662 | BR43: 0.006974297402
B44: 21 | D44: -0.0001930614543 | F44: -0.0006988711374 | H44: 0.01844181293 | J44: 0.01285641711 | L44: -0.0002942255367 | N44: 0.0208350913 | P44: 0.03160484665 | R44: 0.003101940535 | T44: 0.01476804725 | V44: 0.01482008229 | X44: 0.04035524377 | Z44: 0.06192980708 | AA44: 0.01841244838 | AB44: 0.01653821413 | AD44: 0.003101940535 | AF44: 0.003125885059 | AH44: 0.01248260682 | AJ44: 0.07406330669 | AL44: 0.01142231164 | AN44: 0.03456776176 | AP44: 0.03057328372 | AR44: 0.0821940526 | AT44: 0.01070286793 | AV44: 0.06288591065 | AX44: 0.00180920373 | AZ44: 0.03770757069 | BB44: 0.06655458173 | BD44: 0.009845830819 | BF44: 0.007205853451 | BH44: 0.08739895535 | BJ44: 0.004223222424 | BL44: 0.0103221497 | BN44: 0.01657364803 | BP44: 0.1222885231 | BR44: 0.007034315429
B45: 22 | D45: 3.356441627e-05 | F45: -0.0004688920669 | H45: 0.01894678257 | J45: 0.01353855588 | L45: -6.692872592e-05 | N45: 0.02153595266 | P45: 0.0318423704 | R45: 0.003781067028 | T45: 0.01540382982 | V45: 0.01546209718 | X45: 0.04032010269 | Z45: 0.06176319819 | AA45: 0.01927029456 | AB45: 0.01746687284 | AD45: 0.003781067028 | AF45: 0.003114313494 | AH45: 0.01303348647 | AJ45: 0.07369965198 | AL45: 0.01154368149 | AN45: 0.03505292021 | AP45: 0.03100229808 | AR45: 0.08163841467 | AT45: 0.01127515559 | AV45: 0.06275703645 | AX45: 0.001922846854 | AZ45: 0.03817164456 | BB45: 0.06681120735 | BD45: 0.01017733902 | BF45: 0.007445390071 | BH45: 0.08716889808 | BJ45: 0.004362512517 | BL45: 0.01107251985 | BN45: 0.01711305582 | BP45: 0.1205921276 | BR45: 0.007088880376
B46: 23 | D46: 0.0003730557294 | F46: -0.0001246262531 | H46: 0.01944026259 | J46: 0.01420050145 | L46: 0.0002735178237 | N46: 0.02221137973 | P46: 0.03206199253 | R46: 0.004439532799 | T46: 0.01601987911 | V46: 0.01608306566 | X46: 0.04027938794 | Z46: 0.06156197329 | AA46: 0.02005500991 | AB46: 0.01832022099 | AD46: 0.004439532799 | AF46: 0.003103748268 | AH46: 0.01358890211 | AJ46: 0.0733212825 | AL46: 0.01165451015 | AN46: 0.0354948846 | AP46: 0.03141441284 | AR46: 0.08102544423 | AT46: 0.01185537698 | AV46: 0.06261836931 | AX46: 0.002026619225 | AZ46: 0.03855241762 | BB46: 0.06694262152 | BD46: 0.01056288079 | BF46: 0.007765891452 | BH46: 0.0868437958 | BJ46: 0.004612520149 | BL46: 0.01180087414 | BN46: 0.01764246351 | BP46: 0.1189133045 | BR46: 0.007138703128
B47: 24 | D47: 0.000799326391 | F47: 0.0003075094437 | H47: 0.01992076606 | J47: 0.01484126319 | L47: 0.0007009618514 | N47: 0.02286136067 | P47: 0.03226569982 | R47: 0.005076471248 | T47: 0.01661546415 | V47: 0.01668249026 | X47: 0.04023458404 | Z47: 0.06133496047 | AA47: 0.02077533126 | AB47: 0.01910610801 | AD47: 0.005076471248 | AF47: 0.003094063576 | AH47: 0.01414356992 | AJ47: 0.07293430193 | AL47: 0.01175611376 | AN47: 0.03589913905 | AP47: 0.0318098957 | AR47: 0.08037208796 | AT47: 0.01243735435 | AV47: 0.06247305501 | AX47: 0.002121753341 | AZ47: 0.03886417349 | BB47: 0.06697382495 | BD47: 0.01098822272 | BF47: 0.008148034116 | BH47: 0.08644610717 | BJ47: 0.004948280364 | BL47: 0.01250608657 | BN47: 0.01815979702 | BP47: 0.1172621451 | BR47: 0.007184376148
B48: 25 | D48: 0.00129157286 | F48: 0.0008064479888 | H48: 0.02038730758 | J48: 0.01546032455 | L48: 0.001194547106 | N48: 0.02348617211 | P48: 0.0324551842 | R48: 0.005691464098 | T48: 0.0171902584 | V48: 0.01726023432 | X48: 0.04018686599 | Z48: 0.06108916453 | AA48: 0.02143873966 | AB48: 0.01983160612 | AD48: 0.005691464098 | AF48: 0.003085153741 | AH48: 0.01469347671 | AJ48: 0.07254344512 | AL48: 0.0118495981 | AN48: 0.03627028416 | AP48: 0.03218913833 | AR48: 0.07969168254 | AT48: 0.01301636582 | AV48: 0.06232356013 | AX48: 0.002209284705 | AZ48: 0.03911856874 | BB48: 0.06692498977 | BD48: 0.01144209178 | BF48: 0.008576433021 | BH48: 0.08599373971 | BJ48: 0.005349854766 | BL48: 0.01318755885 | BN48: 0.01866361366 | BP48: 0.1156459607 | BR48: 0.007226397157
B49: 26 | D49: 0.001833148108 | F49: 0.001355331658 | H49: 0.0208392831 | J49: 0.01605752366 | L49: 0.001737584412 | N49: 0.024086298 | P49: 0.0326318973 | R49: 0.006284427478 | T49: 0.01774423619 | V49: 0.01781642743 | X49: 0.04013716542 | Z49: 0.06083015438 | AA49: 0.02205164785 | AB49: 0.02050301043 | AD49: 0.006284427478 | AF49: 0.003052888664 | AH49: 0.015235597 | AJ49: 0.07215237709 | AL49: 0.011935899 | AN49: 0.03661220709 | AP49: 0.03255261749 | AR49: 0.07899472876 | AT49: 0.01358882289 | AV49: 0.06217181868 | AX49: 0.002342638122 | AZ49: 0.03932516625 | BB49: 0.06681245524 | BD49: 0.01191554142 | BF49: 0.009038802134 | BH49: 0.08550100686 | BJ49: 0.005801262261 | BL49: 0.01384508788 | BN49: 0.01915295368 | BP49: 0.1140699274 | BR49: 0.007305483898
B50: 27 | D50: 0.002410698935 | F50: 0.001940638315 | H50: 0.02127637853 | J50: 0.01663296293 | L50: 0.002316686776 | N50: 0.02466236889 | P50: 0.03279709313 | R50: 0.006855525787 | T50: 0.01827759454 | V50: 0.01835139407 | X50: 0.04008622131 | Z50: 0.06056236131 | AA50: 0.02261956719 | AB50: 0.02112588602 | AD50: 0.006855525787 | AF50: 0.003023014518 | AH50: 0.01576767651 | AJ50: 0.07176392254 | AL50: 0.0120158138 | AN50: 0.03692821393 | AP50: 0.03290086615 | AR50: 0.07828948746 | AT50: 0.01415202364 | AV50: 0.06201934475 | AX50: 0.002567662823 | AZ50: 0.03949184826 | BB50: 0.06664949866 | BD50: 0.01240146523 | BF50: 0.009525310713 | BH50: 0.08497936696 | BJ50: 0.006289659577 | BL50: 0.01447876547 | BN50: 0.01962722734 | BP50: 0.1125375781 | BR50: 0.00747661882
B51: 28 | D51: 0.00301349864 | F51: 0.00255150557 | H51: 0.0216984999 | J51: 0.01718694034 | L51: 0.002921100352 | N51: 0.02521511611 | P51: 0.03295186169 | R51: 0.007405106178 | T51: 0.01879069366 | V51: 0.01886559959 | X51: 0.04003461943 | Z51: 0.06028931056 | AA51: 0.02314725082 | AB51: 0.0217051353 | AD51: 0.007405106178 | AF51: 0.002995275036 | AH51: 0.01628806521 | AJ51: 0.07138024323 | AL51: 0.01209002606 | AN51: 0.03722113372 | AP51: 0.03323445192 | AR51: 0.07758244194 | AT51: 0.01470396225 | AV51: 0.06186731971 | AX51: 0.002865276623 | AZ51: 0.03962513916 | BB51: 0.06644693722 | BD51: 0.01289422059 | BF51: 0.01002808499 | BH51: 0.08443799838 | BJ51: 0.006804707136 | BL51: 0.01508890193 | BN51: 0.02008612825 | BP51: 0.1110511795 | BR51: 0.007720997792
B52: 29 | D52: 0.003632926305 | F52: 0.003179203452 | H52: 0.0221057195 | J52: 0.01771989674 | L52: 0.00354218241 | N52: 0.02574533722 | P52: 0.03309715592 | R52: 0.007933648492 | T52: 0.01928401159 | V52: 0.01935960905 | X52: 0.03998282316 | Z52: 0.06001380251 | AA52: 0.02363881406 | AB52: 0.02224507129 | AD52: 0.007933648492 | AF52: 0.002969449312 | AH52: 0.01679558757 | AJ52: 0.07100297633 | AL52: 0.01215912512 | AN52: 0.03749340099 | AP52: 0.03355396108 | AR52: 0.0768786594 | AT52: 0.01524318087 | AV52: 0.0617166603 | AX52: 0.003219891621 | AZ52: 0.03973045989 | BB52: 0.06621360143 | BD52: 0.0133893348 | BF52: 0.01054081914 | BH52: 0.08388425064 | BJ52: 0.007338074083 | BL52: 0.01567596762 | BN52: 0.0205295665 | BP52: 0.1096120233 | BR52: 0.00802324428
B53: 30 | D53: 0.004262057284 | F53: 0.003816719707 | H53: 0.0224982343 | J53: 0.01823237549 | L53: 0.004172990778 | N53: 0.02625386991 | P53: 0.03323381326 | R53: 0.008441726861 | T53: 0.01975810944 | V53: 0.01983405578 | X53: 0.03993119766 | Z53: 0.05973805541 | AA53: 0.02409783469 | AB53: 0.02274948913 | AD53: 0.008441726861 | AF53: 0.002945345902 | AH53: 0.01728944113 | AJ53: 0.07063334281 | AL53: 0.01222362183 | AN53: 0.03774712181 | AP53: 0.03385998658 | AR53: 0.07618207526 | AT53: 0.01576865376 | AV53: 0.06156807211 | AX53: 0.003618746942 | AZ53: 0.03981232973 | BB53: 0.06595671012 | BD53: 0.01388327411 | BF53: 0.01105846923 | BH53: 0.08332400038 | BJ53: 0.007883048895 | BL53: 0.01624054799 | BN53: 0.02095761684 | BP53: 0.1082206527 | BR53: 0.008370755888
B54: 31 | D54: 0.004895338871 | F54: 0.004458431359 | H54: 0.02287633364 | J54: 0.01872499134 | L54: 0.004807958697 | N54: 0.0267415723 | P54: 0.03336257322 | R54: 0.008929980202 | T54: 0.02021360471 | V54: 0.02028961738 | X54: 0.03988002911 | Z54: 0.05946381854 | AA54: 0.02452743604 | AB54: 0.02322173207 | AD54: 0.008929980202 | AF54: 0.002887920573 | AH54: 0.0177691167 | AJ54: 0.07027223299 | AL54: 0.01232000349 | AN54: 0.03798412702 | AP54: 0.03415311933 | AR54: 0.07549571815 | AT54: 0.01627969601 | AV54: 0.06142209182 | AX54: 0.004051380207 | AZ54: 0.03987452772 | BB54: 0.06568216933 | BD54: 0.01437326085 | BF54: 0.01157701082 | BH54: 0.08276193418 | BJ54: 0.008434230881 | BL54: 0.01678330901 | BN54: 0.02137047827 | BP54: 0.106877038 | BR54: 0.008753186646
B55: 32 | D55: 0.00552833179 | F55: 0.005099842935 | H55: 0.0232403741 | J55: 0.01919840648 | L55: 0.005442635647 | N55: 0.02720930809 | P55: 0.03348409176 | R55: 0.009399089527 | T55: 0.02065115079 | V55: 0.02072699741 | X55: 0.03982953997 | Z55: 0.05919246234 | AA55: 0.02493035587 | AB55: 0.02366475069 | AD55: 0.009399089527 | AF55: 0.002834087312 | AH55: 0.01823433533 | AJ55: 0.06992027427 | AL55: 0.01247574341 | AN55: 0.0382060155 | AP55: 0.03443394162 | AR55: 0.07482188884 | AT55: 0.01677589145 | AV55: 0.06127912084 | AX55: 0.004509205988 | AZ55: 0.03992022242 | BB55: 0.06539481194 | BD55: 0.0148571278 | BF55: 0.01209324573 | BH55: 0.08220177432 | BJ55: 0.008987284198 | BL55: 0.0173049705 | BN55: 0.02176844243 | BP55: 0.1055807148 | BR55: 0.009162034012
B56: 33 | D56: 0.006157502952 | F56: 0.005737376607 | H56: 0.02359075989 | J56: 0.01965331207 | L56: 0.006073479593 | N56: 0.0276579355 | P56: 0.03359895312 | R56: 0.009849760511 | T56: 0.02107142126 | V56: 0.02114691138 | X56: 0.03977990122 | Z56: 0.05892505069 | AA56: 0.02530900344 | AB56: 0.02408115477 | AD56: 0.009849760511 | AF56: 0.002783519306 | AH56: 0.0186849983 | AJ56: 0.06957788515 | AL56: 0.01267943828 | AN56: 0.03841418954 | AP56: 0.03470302257 | AR56: 0.07416230328 | AT56: 0.01725703524 | AV56: 0.06113945208 | AX56: 0.004985177476 | AZ56: 0.03995207683 | BB56: 0.06509859081 | BD56: 0.01533320164 | BF56: 0.01260464722 | BH56: 0.08164645999 | BJ56: 0.009538740586 | BL56: 0.01780628553 | BN56: 0.02215186894 | BP56: 0.1043308917 | BR56: 0.009590307328
B57: 34 | D57: 0.006780058474 | F57: 0.006368203102 | H57: 0.02392792755 | J57: 0.02009041408 | L57: 0.006697689574 | N57: 0.02808829905 | P57: 0.03370767964 | R57: 0.01028271013 | T57: 0.02147509791 | V57: 0.02155007615 | X57: 0.03973124221 | Z57: 0.05866239903 | AA57: 0.025665507 | AB57: 0.02447325851 | AD57: 0.01028271013 | AF57: 0.002735928218 | AH57: 0.01912114728 | AJ57: 0.0692453183 | AL57: 0.01292158617 | AN57: 0.03860988401 | AP57: 0.03496091473 | AR57: 0.07351820728 | AT57: 0.01772308823 | AV57: 0.06100329149 | AX57: 0.005473513388 | AZ57: 0.03997233381 | BB57: 0.06479673513 | BD57: 0.01580020922 | BF57: 0.01310923522 | BH57: 0.08109829333 | BJ57: 0.01008584036 | BL57: 0.01828802466 | BN57: 0.02252116594 | BP57: 0.1031265357 | BR57: 0.01003226015
B58: 35 | D58: 0.007393808489 | F58: 0.006990104815 | H58: 0.02425233407 | J58: 0.0205104224 | L58: 0.007313070174 | N58: 0.02850122356 | P58: 0.03381073996 | R58: 0.01069865645 | T58: 0.02186286156 | V58: 0.02193720199 | X58: 0.03968365858 | Z58: 0.0584051213 | AA58: 0.02600175335 | AB58: 0.02484311942 | AD58: 0.01069865645 | AF58: 0.00269105869 | AH58: 0.01954293262 | AJ58: 0.06892269517 | AL58: 0.0131942609 | AN58: 0.03879419045 | AP58: 0.03520815187 | AR58: 0.07289046892 | AT58: 0.01817414041 | AV58: 0.06087077532 | AX58: 0.005969476379 | AZ58: 0.03998288581 | BB58: 0.06449187762 | BD58: 0.01625720179 | BF58: 0.01360547544 | BH58: 0.08055905764 | BJ58: 0.01062640361 | BL58: 0.01875096375 | BN58: 0.02287677491 | BP58: 0.1019664385 | BR58: 0.010483173
B59: 36 | D59: 0.007997057265 | F59: 0.007601364532 | H59: 0.02456444758 | J59: 0.02091404262 | L59: 0.007917921367 | N59: 0.02889750994 | P59: 0.03390855595 | R59: 0.01109831096 | T59: 0.02223538521 | V59: 0.02230898657 | X59: 0.03963721871 | Z59: 0.05815366802 | AA59: 0.02631942109 | AB59: 0.02519257178 | AD59: 0.01109831096 | AF59: 0.002648683756 | AH59: 0.01995058783 | AJ59: 0.06861003378 | AL59: 0.01349084631 | AN59: 0.03896807715 | AP59: 0.03544524755 | AR59: 0.07227965317 | AT59: 0.01861038159 | AV59: 0.0607419841 | AX59: 0.006469192407 | AZ59: 0.03998533215 | BB59: 0.06418615838 | BD59: 0.0167034936 | BF59: 0.01409219735 | BH59: 0.08003011333 | BJ59: 0.0111587255 | BL59: 0.01919587479 | BN59: 0.02321915872 | BP59: 0.1008492693 | BR59: 0.01093917624
B60: 37 | D60: 0.008588513549 | F60: 0.008200674647 | H60: 0.02486474023 | J60: 0.02130196982 | L60: 0.008510948627 | N60: 0.02927793216 | P60: 0.03400150852 | R60: 0.01148237273 | T60: 0.0225933289 | V60: 0.02266611065 | X60: 0.03959196892 | Z60: 0.05790835724 | AA60: 0.0266200084 | AB60: 0.02552325539 | AD60: 0.01148237273 | AF60: 0.002608601008 | AH60: 0.02034440931 | AJ60: 0.0683072711 | AL60: 0.01380581849 | AN60: 0.03913240598 | AP60: 0.03567269419 | AR60: 0.07168608236 | AT60: 0.01903207795 | AV60: 0.06061695396 | AX60: 0.006969502839 | AZ60: 0.03998102622 | BB60: 0.06388131002 | BD60: 0.01713861202 | BF60: 0.01456852741 | BH60: 0.07951247618 | BJ60: 0.01168149073 | BL60: 0.01962351888 | BN60: 0.02354879232 | BP60: 0.09977361576 | BR60: 0.01139710502
B61: 38 | D61: 0.009167217175 | F61: 0.008787062847 | H61: 0.0251536826 | J61: 0.02167488389 | L61: 0.009091189363 | N61: 0.02964323541 | P61: 0.03408994256 | R61: 0.01185152418 | T61: 0.02293733593 | V61: 0.0230092349 | X61: 0.03954793777 | Z61: 0.05766939981 | AA61: 0.02690485671 | AB61: 0.02583664008 | AD61: 0.01185152418 | AF61: 0.002570629356 | AH61: 0.02072473999 | AJ61: 0.06801428112 | AL61: 0.01413456647 | AN61: 0.03928794656 | AP61: 0.03589096275 | AR61: 0.07110988521 | AT61: 0.01943955314 | AV61: 0.06049568579 | AX61: 0.007467842917 | AZ61: 0.03997111457 | BB61: 0.06357872762 | BD61: 0.01756225671 | BF61: 0.01503383436 | BH61: 0.07900688121 | BJ61: 0.01219370352 | BL61: 0.02003464108 | BN61: 0.02386615544 | BP61: 0.09873801666 | BR61: 0.01185438
B62: 39 | D62: 0.00973247883 | F62: 0.009359831113 | H62: 0.02543173951 | J62: 0.02203344624 | L62: 0.009657952519 | N62: 0.02999413494 | P62: 0.03417417124 | R62: 0.012206428 | T62: 0.0232680302 | V62: 0.02333899783 | X62: 0.03950513953 | Z62: 0.05743691999 | AA62: 0.02717517057 | AB62: 0.02613404694 | AD62: 0.012206428 | AF62: 0.002534606298 | AH62: 0.02109195625 | AJ62: 0.06773088944 | AL62: 0.01447324403 | AN62: 0.03943538819 | AP62: 0.03610050266 | AR62: 0.07055103674 | AT62: 0.01983317308 | AV62: 0.06037815264 | AX62: 0.00796214151 | AZ62: 0.03995656934 | BB62: 0.06327952644 | BD62: 0.01797426641 | BF62: 0.01548768446 | BH62: 0.078513835 | BJ62: 0.01269463013 | BL62: 0.0204299666 | BN62: 0.02417172696 | BP62: 0.097740987 | BR62: 0.01230890901
B63: 40 | D63: 0.01028383047 | F63: 0.009918505514 | H63: 0.02569936686 | J63: 0.02237829737 | L63: 0.01021076888 | N63: 0.03033131555 | P63: 0.03425447957 | R63: 0.01254772503 | T63: 0.02358601433 | V63: 0.02365601432 | X63: 0.03946357697 | Z63: 0.05721097235 | AA63: 0.0274320347 | AB63: 0.02641666635 | AD63: 0.01254772503 | AF63: 0.002500385591 | AH63: 0.02144645749 | AJ63: 0.06745688508 | AL63: 0.01481864681 | AN63: 0.03957535003 | AP63: 0.03630174206 | AR63: 0.07000939077 | AT63: 0.0202133338 | AV63: 0.06026430585 | AX63: 0.00845073818 | AZ63: 0.03993821532 | BB63: 0.06298458967 | BD63: 0.01837459158 | BF63: 0.01592980461 | BH63: 0.07803365869 | BJ63: 0.01318375144 | BL63: 0.0208101981 | BN63: 0.0244659806 | BP63: 0.09678103764 | BR63: 0.01275900559
B64: 41 | D64: 0.01082098446 | F64: 0.01046279481 | H64: 0.02595700923 | J64: 0.0227100553 | L64: 0.01074935008 | N64: 0.03065543154 | P64: 0.03433112758 | R64: 0.01287603284 | T64: 0.02389186853 | V64: 0.02396087483 | X64: 0.03942324377 | Z64: 0.05699155562 | AA64: 0.02767642851 | AB64: 0.02668557367 | AD64: 0.01287603284 | AF64: 0.002506449701 | AH64: 0.02178865774 | AJ64: 0.06719202999 | AL64: 0.01516811001 | AN64: 0.03970838975 | AP64: 0.0364950882 | AR64: 0.06948470635 | AT64: 0.02058045165 | AV64: 0.06015407993 | AX64: 0.008932314377 | AZ64: 0.03991675256 | BB64: 0.06269460798 | BD64: 0.01876327208 | BF64: 0.01636005205 | BH64: 0.07756652325 | BJ64: 0.01366072389 | BL64: 0.02117601388 | BN64: 0.02474938162 | BP64: 0.09585669048 | BR64: 0.01320332141
B65: 42 | D65: 0.01134379976 | F65: 0.01099255626 | H65: 0.02620509819 | J65: 0.02302931458 | L65: 0.01127355475 | N65: 0.03096710698 | P65: 0.03440435301 | R65: 0.01319194489 | T65: 0.0241861499 | V65: 0.02425414503 | X65: 0.03938412637 | Z65: 0.05677862406 | AA65: 0.02790923858 | AB65: 0.02694174268 | AD65: 0.01319194489 | AF65: 0.002589614025 | AH65: 0.02211897902 | AJ65: 0.06693606674 | AL65: 0.01551942306 | AN65: 0.03983501096 | AP65: 0.03668092801 | AR65: 0.06897666942 | AT65: 0.0209349555 | AV65: 0.06004739659 | AX65: 0.009405836198 | AZ65: 0.03989277531 | BB65: 0.06241011239 | BD65: 0.01914041873 | BF65: 0.01677838937 | BH65: 0.07711247857 | BJ65: 0.01412534713 | BL65: 0.02152806673 | BN65: 0.02502238435 | BP65: 0.09496649 | BR65: 0.01364079005
B66: 43 | D66: 0.01185225406 | F66: 0.01150776733 | H66: 0.02644405112 | J66: 0.02333664574 | L66: 0.01178336052 | N66: 0.03126693632 | P66: 0.03447437369 | R66: 0.01349603018 | T66: 0.02446939216 | V66: 0.02453636583 | X66: 0.03934620557 | Z66: 0.05657209683 | AA66: 0.0281312694 | AB66: 0.02718605722 | AD66: 0.01349603018 | AF66: 0.002737322989 | AH66: 0.02243784604 | AJ66: 0.06668872473 | AL66: 0.01587075815 | AN66: 0.03995566957 | AP66: 0.03685962877 | AR66: 0.06848491033 | AT66: 0.02127728047 | AV66: 0.059944168 | AX66: 0.00987050668 | AZ66: 0.03986678793 | BB66: 0.0621315016 | BD66: 0.01950619822 | BF66: 0.01718486382 | BH66: 0.07667147742 | BJ66: 0.01457753726 | BL66: 0.02186698331 | BN66: 0.02528543038 | BP66: 0.09410901199 | BR66: 0.01407058011
B67: 44 | D67: 0.01234642056 | F67: 0.01200850225 | H67: 0.02667427041 | J67: 0.02363259517 | L67: 0.01227884082 | N67: 0.03155548513 | P67: 0.0345413896 | R67: 0.01378883315 | T67: 0.02474210569 | V67: 0.02480805358 | X67: 0.0393094578 | Z67: 0.05637186565 | AA67: 0.02834325267 | AB67: 0.02741932134 | AD67: 0.01378883315 | AF67: 0.002938840465 | AH67: 0.02274568207 | AJ67: 0.06644972514 | AL67: 0.01622061033 | AN67: 0.04007077928 | AP67: 0.0370315388 | AR67: 0.06800901822 | AT67: 0.02160786302 | AV67: 0.05984429945 | AX67: 0.01032572594 | AZ67: 0.03983921837 | BB67: 0.06185906482 | BD67: 0.0198608207 | BF67: 0.01757959026 | BH67: 0.0762433952 | BJ67: 0.01501730468 | BL67: 0.02219336394 | BN67: 0.02553894733 | BP67: 0.09328286993 | BR67: 0.01449205596
B68: 45 | D68: 0.01282644887 | F68: 0.01249491262 | H68: 0.02689614303 | J68: 0.02391768524 | L68: 0.01276014564 | N68: 0.03183329095 | P68: 0.03460558463 | R68: 0.01407087396 | T68: 0.02500477784 | V68: 0.02506970056 | X68: 0.03927385619 | Z68: 0.05617780108 | AA68: 0.02854585529 | AB68: 0.02764226802 | AD68: 0.01407087396 | AF68: 0.003184980926 | AH68: 0.02304290563 | AJ68: 0.06621878498 | AL68: 0.0165677471 | AN68: 0.04018071635 | AP68: 0.03719698827 | AR68: 0.06754855265 | AT68: 0.021927137 | AV68: 0.05974769149 | AX68: 0.01077105784 | AZ68: 0.03981042946 | BB68: 0.06159300078 | BD68: 0.02020452956 | BF68: 0.01796273705 | BH68: 0.07582804627 | BJ68: 0.0154447356 | BL68: 0.0225077827 | BN68: 0.02578334794 | BP68: 0.09248671965 | BR68: 0.014904745
B69: 46 | D69: 0.01329254911 | F69: 0.01296721133 | H69: 0.02711004033 | J69: 0.02419241466 | L69: 0.01322748567 | N69: 0.03210086435 | P69: 0.03466712824 | R69: 0.01434264889 | T69: 0.0252578733 | V69: 0.02532177558 | X69: 0.03923937142 | Z69: 0.05598975775 | AA69: 0.02873968645 | AB69: 0.02785556688 | AD69: 0.01434264889 | AF69: 0.003467882815 | AH69: 0.02332992805 | AJ69: 0.06599562019 | AL69: 0.01691116594 | AN69: 0.04028582373 | AP69: 0.03735628997 | AR69: 0.0671030531 | AT69: 0.02223553064 | AV69: 0.05965424169 | AX69: 0.01120620203 | AZ69: 0.03978072849 | BB69: 0.06133343366 | BD69: 0.02053759304 | BF69: 0.01833451439 | BH69: 0.07542519737 | BJ69: 0.01585997682 | BL69: 0.02281078783 | BN69: 0.02601902958 | BP69: 0.09171926242 | BR69: 0.01530831006
B70: 47 | D70: 0.01374497871 | F70: 0.0134256592 | H70: 0.02731631801 | J70: 0.02445725897 | L70: 0.01368111901 | N70: 0.03235868993 | P70: 0.0347261768 | R70: 0.01460463091 | T70: 0.02550183477 | V70: 0.0255647247 | X70: 0.03920597241 | Z70: 0.0558075786 | AA70: 0.02892530371 | AB70: 0.02805983083 | AD70: 0.01460463091 | AF70: 0.003780816946 | AH70: 0.0236071515 | AJ70: 0.06577994823 | AL70: 0.01725005851 | AN70: 0.04038641466 | AP70: 0.03750974009 | AR70: 0.06667204661 | AT70: 0.02253346421 | AV70: 0.05956384604 | AX70: 0.01163097053 | AZ70: 0.03975037541 | BB70: 0.06108042639 | BD70: 0.02086029736 | BF70: 0.01869516469 | BH70: 0.07503457869 | BJ70: 0.01626322301 | BL70: 0.0231029022 | BN70: 0.02624637401 | BP70: 0.09097924699 | BR70: 0.01570252639
B71: 48 | D71: 0.01418403154 | F71: 0.01387055394 | H71: 0.0275153163 | J71: 0.02471267122 | L71: 0.0141213403 | N71: 0.03260722745 | P71: 0.03478287483 | R71: 0.01485727035 | T71: 0.02573708359 | V71: 0.02579897198 | X71: 0.03917362694 | Z71: 0.0556310983 | AA71: 0.02910321835 | AB71: 0.02825562198 | AD71: 0.01485727035 | AF71: 0.00411802409 | AH71: 0.02387496755 | AJ71: 0.06557149 | AL71: 0.01758378034 | AN71: 0.0404827758 | AP71: 0.03765761907 | AR71: 0.06625505396 | AT71: 0.02282134815 | AV71: 0.05947640007 | AX71: 0.01204526802 | AZ71: 0.03971958968 | BB71: 0.06083399179 | BD71: 0.02117294109 | BF71: 0.01904495458 | BH71: 0.07465589306 | BJ71: 0.01665470618 | BL71: 0.02338462406 | BN71: 0.02646574727 | BP71: 0.0902654707 | BR71: 0.0160872622
B72: 49 | D72: 0.01461002889 | F72: 0.01430222105 | H72: 0.02770736022 | J72: 0.02495908262 | L72: 0.01454847166 | N72: 0.0328469129 | P72: 0.03483735612 | R72: 0.0151009957 | T72: 0.02596402048 | V72: 0.0260249204 | X72: 0.03914230208 | Z72: 0.05546014618 | AA72: 0.02927390007 | AB72: 0.02844345676 | AD72: 0.0151009957 | AF72: 0.004474576961 | AH72: 0.0241337562 | AJ72: 0.06536997141 | AL72: 0.01791182516 | AN72: 0.04057517001 | AP72: 0.03780019234 | AR72: 0.06585159464 | AT72: 0.02309958185 | AV72: 0.05939179976 | AX72: 0.01244907534 | AZ72: 0.03968855618 | BB72: 0.06059410187 | BD72: 0.02147583054 | BF72: 0.01938416837 | BH72: 0.0742888234 | BJ72: 0.01703468699 | BL72: 0.02365642774 | BN72: 0.02667749986 | BP72: 0.0895767798 | BR72: 0.01646246235
B73: 50 | D73: 0.01502331196 | F73: 0.01472100619 | H73: 0.02789275993 | J73: 0.02519690338 | L73: 0.01496285521 | N73: 0.03307815961 | P73: 0.03488974471 | R73: 0.01533621438 | T73: 0.02618302637 | V73: 0.02624295264 | X73: 0.0391119646 | Z73: 0.05529454847 | AA73: 0.02943778115 | AB73: 0.02862381047 | AD73: 0.01533621438 | AF73: 0.004846262679 | AH73: 0.02438388508 | AJ73: 0.06517512454 | AL73: 0.01823380318 | AN73: 0.04066383872 | AP73: 0.03793771109 | AR73: 0.06546119083 | AT73: 0.0233685526 | AV73: 0.05930994224 | AX73: 0.01284243555 | AZ73: 0.03965743022 | BB73: 0.06036069572 | BD73: 0.02176927607 | BF73: 0.01971310266 | BH73: 0.0739330389 | BJ73: 0.01740344745 | BL73: 0.02391876454 | BN73: 0.02688196692 | BP73: 0.08891206934 | BR73: 0.01682813462
B74: 51 | D74: 0.01542423579 | F74: 0.01512726903 | H74: 0.02807181118 | J74: 0.02542652351 | L74: 0.01536484689 | N74: 0.03330135935 | P74: 0.03494015573 | R74: 0.01556331359 | T74: 0.02639446314 | V74: 0.02645343199 | X74: 0.03908258125 | Z74: 0.05513413019 | AA74: 0.02959526011 | AB74: 0.02879712131 | AD74: 0.01556331359 | AF74: 0.005229482457 | AH74: 0.02462570904 | AJ74: 0.06498668851 | AL74: 0.01854942267 | AN74: 0.04074900413 | AP74: 0.03807041304 | AR74: 0.06508337047 | AT74: 0.023628635 | AV74: 0.05923072635 | AX74: 0.01322544226 | AZ74: 0.03962634183 | BB74: 0.06013368596 | BD74: 0.022053589 | BF74: 0.0200320619 | BH74: 0.07358820006 | BJ74: 0.01776128498 | BL74: 0.02417206362 | BN74: 0.02707946859 | BP74: 0.08827028248 | BR74: 0.01718433813
B75: 52 | D75: 0.01581316415 | F75: 0.0155213781 | H75: 0.02824479574 | J75: 0.02564831364 | L75: 0.01575481144 | N75: 0.03351688342 | P75: 0.0349886962 | R75: 0.01578266121 | T75: 0.02659867453 | V75: 0.02665670327 | X75: 0.03905411902 | Z75: 0.05497871668 | AA75: 0.0297467049 | AB75: 0.0289637939 | AD75: 0.01578266121 | AF75: 0.005621165833 | AH75: 0.02485956991 | AJ75: 0.06480441012 | AL75: 0.01885847423 | AN75: 0.04083087104 | AP75: 0.03819852315 | AR75: 0.06471766975 | AT75: 0.02388019053 | AV75: 0.05915405308 | AX75: 0.01359822982 | AZ75: 0.03959539938 | BB75: 0.05991296429 | BD75: 0.02232907923 | BF75: 0.02034135475 | BH75: 0.07325396282 | BJ75: 0.01810850747 | BL75: 0.02441673285 | BN75: 0.0272703104 | BP75: 0.08765040963 | BR75: 0.01753117367
B76: 53 | D76: 0.01619046541 | F76: 0.0159037066 | H76: 0.02841198195 | J76: 0.02586262587 | L76: 0.01613311819 | N76: 0.03372508364 | P76: 0.03503546571 | R76: 0.01599460659 | T76: 0.02679598688 | V76: 0.02685309363 | X76: 0.03902654533 | Z76: 0.05482813478 | AA76: 0.02989245582 | AB76: 0.02912420247 | AD76: 0.01599460659 | AF76: 0.006018697209 | AH76: 0.02508579637 | AJ76: 0.06462804429 | AL76: 0.01916081753 | AN76: 0.04090962854 | AP76: 0.03832225429 | AR76: 0.06436363498 | AT76: 0.02412356733 | AV76: 0.0590798259 | AX76: 0.01396096503 | AZ76: 0.03956469274 | BB76: 0.05969840602 | BD76: 0.02259605328 | BF76: 0.02064129117 | BH76: 0.07292998185 | BJ76: 0.01844542922 | BL76: 0.02465315979 | BN76: 0.02745478372 | BP76: 0.0870514872 | BR76: 0.01786877543
B77: 54 | D77: 0.01655650919 | F77: 0.01627462896 | H77: 0.02857362519 | J77: 0.02606979463 | L77: 0.01650013772 | N77: 0.0339262934 | P77: 0.03508055706 | R77: 0.01619948147 | T77: 0.02698670999 | V77: 0.02704291348 | X77: 0.03899982818 | Z77: 0.05468221381 | AA77: 0.03003282806 | AB77: 0.02927869362 | AD77: 0.01619948147 | AF77: 0.006419852826 | AH77: 0.02530470401 | AJ77: 0.06445735437 | AL77: 0.01945636997 | AN77: 0.04098545148 | AP77: 0.03844180793 | AR77: 0.064020824 | AT77: 0.02435910015 | AV77: 0.05900795097 | AX77: 0.01431384025 | AZ77: 0.03953429595 | BB77: 0.05948987392 | BD77: 0.02285481275 | BF77: 0.02093218 | BH77: 0.07261591328 | BJ77: 0.01877236761 | BL77: 0.02488171259 | BN77: 0.02763316624 | BP77: 0.08647259625 | BR77: 0.01819730419
B78: 55 | D78: 0.01691166359 | F78: 0.01663451811 | H78: 0.02872996847 | J78: 0.02627013748 | L78: 0.0168562391 | N78: 0.03412082862 | P78: 0.03512405683 | R78: 0.01639760078 | T78: 0.02717113793 | V78: 0.02722645727 | X78: 0.03897393629 | Z78: 0.05454078631 | AA78: 0.03016811395 | AB78: 0.02942758886 | AD78: 0.01639760078 | AF78: 0.00682274662 | AH78: 0.0255165955 | AJ78: 0.06429211222 | AL78: 0.01974509705 | AN78: 0.0410585018 | AP78: 0.03855737477 | AR78: 0.06368880723 | AT78: 0.02458711042 | AV78: 0.05893833735 | AX78: 0.01465706752 | AZ78: 0.03950426953 | BB78: 0.05928722142 | BD78: 0.02310565311 | BF78: 0.02121432706 | BH78: 0.07231141683 | BJ78: 0.0190896404 | BL78: 0.02510274087 | BN78: 0.02780572249 | BP78: 0.08591286099 | BR78: 0.0185169415
B79: 56 | D79: 0.01725629301 | F79: 0.01698374322 | H79: 0.0288812429 | J79: 0.02646395596 | L79: 0.01720178768 | N79: 0.03430898868 | P79: 0.03516604587 | R79: 0.01658926347 | T79: 0.02734954976 | V79: 0.0274040043 | X79: 0.03894883915 | Z79: 0.05440368859 | AA79: 0.03029858504 | AB79: 0.02957118682 | AD79: 0.01658926347 | AF79: 0.007225783647 | AH79: 0.02572176079 | AJ79: 0.06413209835 | AL79: 0.02002700417 | AN79: 0.04112892969 | AP79: 0.03866913532 | AR79: 0.06336716841 | AT79: 0.02480790644 | AV79: 0.05887089708 | AX79: 0.01499087377 | AZ79: 0.03947466242 | BB79: 0.05909029524 | BD79: 0.02334886283 | BF79: 0.02148803361 | BH79: 0.07201615752 | BJ79: 0.0193975635 | BL79: 0.02531657664 | BN79: 0.02797270438 | BP79: 0.08537144719 | BR79: 0.01882788483
B80: 57 | D80: 0.01759075639 | F80: 0.01732266791 | H80: 0.02902766827 | J80: 0.02665153635 | L80: 0.01753714334 | N80: 0.0344910573 | P80: 0.03520659975 | R80: 0.01677475333 | T80: 0.02752221036 | V80: 0.02757581956 | X80: 0.03892450712 | Z80: 0.05427076122 | AA80: 0.03042449385 | AB80: 0.02970976524 | AD80: 0.01677475333 | AF80: 0.007627619966 | AH80: 0.0259204774 | AJ80: 0.06397710183 | AL80: 0.02030212968 | AN80: 0.04119687461 | AP80: 0.03877726049 | AR80: 0.06305550507 | AT80: 0.0250217836 | AV80: 0.05880554525 | AX80: 0.01531549669 | AZ80: 0.03944551368 | BB80: 0.0588989376 | BD80: 0.02358472265 | BF80: 0.02175359518 | BH80: 0.07172980701 | BJ80: 0.01969644927 | BL80: 0.02552353515 | BN80: 0.02813435168 | BP80: 0.08484756058 | BR80: 0.0191303435
B81: 58 | D81: 0.01791540581 | F81: 0.01765164889 | H81: 0.02916945357 | J81: 0.02683315045 | L81: 0.0178626591 | N81: 0.03466730343 | P81: 0.03524578923 | R81: 0.01695433973 | T81: 0.0276893711 | V81: 0.0277421544 | X81: 0.03890091145 | Z81: 0.05414184929 | AA81: 0.03054607558 | AB81: 0.0298435828 | AD81: 0.01695433973 | AF81: 0.00802712805 | AH81: 0.0261130108 | AJ81: 0.0638269202 | AL81: 0.02057053893 | AN81: 0.04126246631 | AP81: 0.03888191213 | AR81: 0.0627534288 | AT81: 0.02522902467 | AV81: 0.05874220005 | AX81: 0.01563118136 | AZ81: 0.03941685399 | BB81: 0.05871298807 | BD81: 0.02381350508 | BF81: 0.02201130063 | BH81: 0.07145204461 | BJ81: 0.01998660505 | BL81: 0.02572391575 | BN81: 0.02829089259 | BP81: 0.08434044513 | BR81: 0.01942453531
B82: 59 | D82: 0.01823058547 | F82: 0.01797103485 | H82: 0.02930679747 | J82: 0.02700905632 | L82: 0.01817868003 | N82: 0.03483798202 | P82: 0.03528368056 | R82: 0.01712827838 | T82: 0.02785127055 | V82: 0.02790324732 | X82: 0.03887802434 | Z82: 0.05401680268 | AA82: 0.03066354952 | AB82: 0.02997288068 | AD82: 0.01712827838 | AF82: 0.008423366937 | AH82: 0.0262996147 | AJ82: 0.06368135936 | AL82: 0.02083231928 | AN82: 0.04132582557 | AP82: 0.03898324356 | AR82: 0.06246056537 | AT82: 0.02542990019 | AV82: 0.05868078275 | AX82: 0.01593817743 | AZ82: 0.03938870682 | BB82: 0.05853228503 | BD82: 0.02403547412 | BF82: 0.0222614314 | BH82: 0.07118255806 | BJ82: 0.02026833207 | BL82: 0.02591800265 | BN82: 0.02844254425 | BP82: 0.08384938145 | BR82: 0.01971068367
B83: 60 | D83: 0.01853663079 | F83: 0.01828116562 | H83: 0.02943988885 | J83: 0.02717949899 | L83: 0.01848554245 | N83: 0.03500333481 | P83: 0.03532033587 | R83: 0.01729681203 | T83: 0.02800813518 | V83: 0.02805932459 | X83: 0.03885581893 | Z83: 0.05389547618 | AA83: 0.0307771204 | AB83: 0.03009788407 | AD83: 0.01729681203 | AF83: 0.008815556443 | AH83: 0.02648053153 | AJ83: 0.06354023332 | AL83: 0.02108757575 | AN83: 0.04138706504 | AP83: 0.03908140001 | AR83: 0.06217655468 | AT83: 0.02562466884 | AV83: 0.05862121768 | AX83: 0.01623673675 | AZ83: 0.03936108956 | BB83: 0.05835666695 | BD83: 0.02425088498 | BF83: 0.0225042611 | BH83: 0.07092104409 | BJ83: 0.02054192462 | BL83: 0.02610606577 | BN83: 0.02858951325 | BP83: 0.08337368509 | BR83: 0.01998901526
B84: 61 | D84: 0.01883386791 | F84: 0.0185823716 | H84: 0.02956890728 | J84: 0.02734471114 | L84: 0.01878357335 | N84: 0.03516359108 | P84: 0.0353558135 | R84: 0.01746017118 | T84: 0.02816017998 | V84: 0.02821060097 | X84: 0.03883426932 | Z84: 0.05377772955 | AA84: 0.03088697954 | AB84: 0.03021880342 | AD84: 0.01746017118 | AF84: 0.009203054876 | AH84: 0.02665599279 | AJ84: 0.06340336406 | AL84: 0.02133642743 | AN84: 0.04144628986 | AP84: 0.03917651913 | AR84: 0.06190105065 | AT84: 0.02581357781 | AV84: 0.0585634322 | AX84: 0.0165271115 | AZ84: 0.03933401444 | BB84: 0.05818597336 | BD84: 0.02445998405 | BF84: 0.02274005504 | BH84: 0.0706672088 | BJ84: 0.0208076694 | BL84: 0.02628836141 | BN84: 0.02873199613 | BP84: 0.08291270497 | BR84: 0.02025975809
B85: 62 | D85: 0.0191226132 | F85: 0.01887497333 | H85: 0.02969402346 | J85: 0.02750491375 | L85: 0.01907308994 | N85: 0.03531896828 | P85: 0.03539016822 | R85: 0.01761857469 | T85: 0.02830760908 | V85: 0.0283572803 | X85: 0.03881335058 | Z85: 0.05366342758 | AA85: 0.03099330599 | AB85: 0.03033583566 | AD85: 0.01761857469 | AF85: 0.009585339756 | AH85: 0.0268262195 | AJ85: 0.06327058122 | AL85: 0.02157900443 | AN85: 0.0415035983 | AP85: 0.0392687314 | AR85: 0.061633721 | AT85: 0.02599686324 | AV85: 0.05850735658 | AX85: 0.01680955258 | AZ85: 0.03930748931 | BB85: 0.05802004566 | BD85: 0.02466300882 | BF85: 0.02296907006 | BH85: 0.07042076789 | BJ85: 0.02106584503 | BL85: 0.02646513304 | BN85: 0.02887017987 | BP85: 0.08246582178 | BR85: 0.02052313989
B86: 63 | D86: 0.01940317304 | F86: 0.01915928119 | H86: 0.02981539971 | J86: 0.02766031674 | L86: 0.01935439938 | N86: 0.03546967278 | P86: 0.03542345155 | R86: 0.01777223043 | T86: 0.02845061631 | V86: 0.0284995561 | X86: 0.03879303869 | Z86: 0.05355244005 | AA86: 0.03109626744 | AB86: 0.03044916526 | AD86: 0.01777223043 | AF86: 0.009961991125 | AH86: 0.02699142259 | AJ86: 0.06314172191 | AL86: 0.02181544521 | AN86: 0.04155908233 | AP86: 0.03935816055 | AR86: 0.06137424692 | AT86: 0.02617475065 | AV86: 0.05845292402 | AX86: 0.0170843083 | AZ86: 0.03928151831 | BB86: 0.0578587278 | BD86: 0.02486018797 | BF86: 0.02319155442 | BH86: 0.0701814468 | BJ86: 0.02131672173 | BL86: 0.02663661191 | BN86: 0.02900424235 | BP86: 0.08203244643 | BR86: 0.02077938677
B87: 64 | D87: 0.01967584362 | F87: 0.01943559528 | H87: 0.02993319036 | J87: 0.02781111952 | L87: 0.01962779866 | N87: 0.03561590042 | P87: 0.03545571196 | R87: 0.01792133588 | T87: 0.02858938581 | V87: 0.02863761212 | X87: 0.03877331061 | Z87: 0.05344464169 | AA87: 0.03119602116 | AB87: 0.03055896519 | AD87: 0.01792133588 | AF87: 0.01033267711 | AH87: 0.02715180335 | AJ87: 0.06301663038 | AL87: 0.02204589442 | AN87: 0.04161282809 | AP87: 0.03944492392 | AR87: 0.06112232283 | AT87: 0.02634745535 | AV87: 0.0584000705 | AX87: 0.01735162339 | AZ87: 0.03925610249 | BB87: 0.05770186676 | BD87: 0.02505174148 | BF87: 0.02340774768 | BH87: 0.06994898075 | BJ87: 0.02156056116 | BL87: 0.02680301777 | BN87: 0.02913435282 | BP87: 0.08161201856 | BR87: 0.02102872221
B88: 65 | D88: 0.01994091095 | F88: 0.01970420534 | H88: 0.03004754218 | J88: 0.02795751158 | L88: 0.01989357453 | N88: 0.03575783712 | P88: 0.03548699509 | R88: 0.01806607863 | T88: 0.02872409247 | V88: 0.0287716229 | X88: 0.03875414417 | Z88: 0.05333991208 | AA88: 0.03129271474 | AB88: 0.03066539784 | AD88: 0.01806607863 | AF88: 0.01069714139 | AH88: 0.02730755383 | AJ88: 0.06289515783 | AL88: 0.02227050106 | AN88: 0.04166491634 | AP88: 0.03952913285 | AR88: 0.0608776559 | AT88: 0.02651518287 | AV88: 0.05834873471 | AX88: 0.01761173815 | AZ88: 0.03923124031 | BB88: 0.05754931299 | BD88: 0.02523788076 | BF88: 0.02361788082 | BH88: 0.06972311465 | BJ88: 0.02179761624 | BL88: 0.0269645594 | BN88: 0.0292606723 | BP88: 0.08120400515 | BR88: 0.02127136616
B89: 66 | D89: 0.02019865084 | F89: 0.01996539084 | H89: 0.0301585948 | J89: 0.02809967304 | L89: 0.02015200355 | N89: 0.03589565943 | P89: 0.03551734399 | R89: 0.01820663701 | T89: 0.02885490254 | V89: 0.02890175426 | X89: 0.03873551812 | Z89: 0.05323813558 | AA89: 0.03138648687 | AB89: 0.03076861575 | AD89: 0.01820663701 | AF89: 0.01105519238 | AH89: 0.02745885725 | AJ89: 0.06277716208 | AL89: 0.02248941688 | AN89: 0.04171542291 | AP89: 0.03961089303 | AR89: 0.06063996573 | AT89: 0.02667812938 | AV89: 0.05829885797 | AX89: 0.0178648878 | AZ89: 0.03920692804 | BB89: 0.05740092066 | BD89: 0.02541880886 | BF89: 0.02382217628 | BH89: 0.06950360301 | BJ89: 0.02202813118 | BL89: 0.0271214353 | BN89: 0.02938335406 | BP89: 0.08080789909 | BR89: 0.02150753435
B90: 67 | D90: 0.02044932905 | F90: 0.020219421 | H90: 0.03026648102 | J90: 0.02823777512 | L90: 0.02040335214 | N90: 0.03602953505 | P90: 0.03554679924 | R90: 0.01834318051 | T90: 0.02898197398 | V90: 0.02902816378 | X90: 0.03871741208 | Z90: 0.05313920117 | AA90: 0.03147746798 | AB90: 0.0308687624 | AD90: 0.01834318051 | AF90: 0.01140669381 | AH90: 0.0276058884 | AJ90: 0.06266250731 | AL90: 0.02270279512 | AN90: 0.04176441906 | AP90: 0.03969030478 | AR90: 0.0604089839 | AT90: 0.02683648211 | AV90: 0.05825038414 | AX90: 0.01811130201 | AZ90: 0.03918316018 | BB90: 0.05725654791 | BD90: 0.02559472066 | BF90: 0.02402084809 | BH90: 0.06929020979 | BJ90: 0.02225234151 | BL90: 0.02727383416 | BN90: 0.02950254393 | BP90: 0.08042321788 | BR90: 0.0217374378
B91: 68 | D91: 0.02069320139 | F91: 0.02046655501 | H91: 0.03037132721 | J91: 0.02837198065 | L91: 0.0206478768 | N91: 0.03615962336 | P91: 0.03557539916 | R91: 0.01847587028 | T91: 0.02910545703 | V91: 0.02915100125 | X91: 0.03869980648 | Z91: 0.05304300238 | AA91: 0.03156578085 | AB91: 0.03096597287 | AD91: 0.01847587028 | AF91: 0.01175155661 | AH91: 0.02774881402 | AJ91: 0.06255106381 | AL91: 0.0229107894 | AN91: 0.0418119718 | AP91: 0.0397674634 | AR91: 0.06018445353 | AT91: 0.02699041973 | AV91: 0.0582032595 | AX91: 0.01835120446 | AZ91: 0.03915992975 | BB91: 0.05711605702 | BD91: 0.02576580312 | BF91: 0.02421410203 | BH91: 0.0690827082 | BJ91: 0.02247047415 | BL91: 0.02742193542 | BN91: 0.02961838077 | BP91: 0.08004950238 | BR91: 0.02196128239
B92: 69 | D92: 0.02093051394 | F92: 0.02070704218 | H92: 0.03047325366 | J92: 0.0285024445 | L92: 0.02088582427 | N92: 0.03628607581 | P92: 0.03560317994 | R92: 0.01860485961 | T92: 0.02922549453 | V92: 0.02927040909 | X92: 0.03868268261 | Z92: 0.05294943711 | AA92: 0.03165154116 | AB92: 0.03106037442 | AD92: 0.01860485961 | AF92: 0.01208973183 | AH92: 0.02788779319 | AJ92: 0.0624427077 | AL92: 0.02311355281 | AN92: 0.0418581442 | AP92: 0.03984245942 | AR92: 0.0599661289 | AT92: 0.02714011276 | AV92: 0.0581574327 | AX92: 0.01858481264 | AZ92: 0.03913722858 | BB92: 0.05697931448 | BD92: 0.02593223553 | BF92: 0.02440213586 | BH92: 0.06888088044 | BJ92: 0.02268274757 | BL92: 0.0275659098 | BN92: 0.02973099678 | BP92: 0.07968631558 | BR92: 0.02217926853
B93: 70 | D93: 0.02116150327 | F93: 0.0209411222 | H93: 0.03057237487 | J93: 0.02862931403 | L93: 0.02111743173 | N93: 0.03640903644 | P93: 0.03563017582 | R93: 0.01873029434 | T93: 0.02934222238 | V93: 0.02938652277 | X93: 0.03866602251 | Z93: 0.05285840748 | AA93: 0.03173485801 | AB93: 0.03115208706 | AD93: 0.01873029434 | AF93: 0.01242120455 | AH93: 0.02802297767 | AJ93: 0.06233732069 | AL93: 0.02331123719 | AN93: 0.04190299573 | AP93: 0.03991537889 | AR93: 0.05975377494 | AT93: 0.02728572394 | AV93: 0.0581128546 | AX93: 0.01881233764 | AZ93: 0.03911504754 | BB93: 0.05684619108 | BD93: 0.02609418973 | BF93: 0.0245851395 | BH93: 0.0686845175 | BJ93: 0.02288937196 | BL93: 0.02770591969 | BN93: 0.02984051783 | BP93: 0.07933324147 | BR93: 0.022391591
B94: 71 | D94: 0.02138639669 | F94: 0.02116902538 | H94: 0.03066879987 | J94: 0.02875272948 | L94: 0.02134292709 | N94: 0.03652864222 | P94: 0.03565641915 | R94: 0.01885231322 | T94: 0.0294557699 | V94: 0.02949947119 | X94: 0.03864980899 | Z94: 0.05276981973 | AA94: 0.03181583435 | AB94: 0.03124122406 | AD94: 0.01885231322 | AF94: 0.01274598857 | AH94: 0.02815451228 | AJ94: 0.06223478981 | AL94: 0.02350399253 | AN94: 0.04194658246 | AP94: 0.03998630363 | AR94: 0.05954716684 | AT94: 0.0274274086 | AV94: 0.05806947825 | AX94: 0.01903398403 | AZ94: 0.03909337674 | BB94: 0.05671656188 | BD94: 0.02625183042 | BF94: 0.02476329527 | BH94: 0.06849341883 | BJ94: 0.02309054939 | BL94: 0.0278421197 | BN94: 0.02994706385 | BP94: 0.07898988395 | BR94: 0.02259843878
B95: 72 | D95: 0.02160541253 | F95: 0.02139097291 | H95: 0.03076263249 | J95: 0.02887282436 | L95: 0.02156252925 | N95: 0.03664502351 | P95: 0.0356819406 | R95: 0.0189710484 | T95: 0.0295662602 | V95: 0.02960937701 | X95: 0.0386340256 | Z95: 0.05268358402 | AA95: 0.03189456744 | AB95: 0.03132789242 | AD95: 0.0189710484 | AF95: 0.01306412184 | AH95: 0.0282825352 | AJ95: 0.06213500716 | AL95: 0.02369196643 | AN95: 0.04198895731 | AP95: 0.04005531145 | AR95: 0.05934608963 | AT95: 0.02756531501 | AV95: 0.05802725873 | AX95: 0.01924994985 | AZ95: 0.0390722057 | BB95: 0.05659030623 | BD95: 0.0264053154 | BF95: 0.02493677812 | BH95: 0.06830739212 | BJ95: 0.02328647409 | BL95: 0.02797465698 | BN95: 0.03005074908 | BP95: 0.07865586576 | BR95: 0.02279999498
B96: 73 | D96: 0.02181876037 | F96: 0.02160717714 | H96: 0.03085397169 | J96: 0.02898972582 | L96: 0.02177644836 | N96: 0.03675830436 | P96: 0.0357067692 | R96: 0.01908662566 | T96: 0.02967381048 | V96: 0.02971635704 | X96: 0.03861865656 | Z96: 0.05259961429 | AA96: 0.03197114922 | AB96: 0.03141219329 | AD96: 0.01908662566 | AF96: 0.01337566246 | AH96: 0.02840717833 | AJ96: 0.06203786972 | AL96: 0.02387530377 | AN96: 0.04203017028 | AP96: 0.04012247639 | AR96: 0.05915033773 | AT96: 0.02769958472 | AV96: 0.05798615311 | AX96: 0.01946042656 | AZ96: 0.0390515235 | BB96: 0.05646730771 | BD96: 0.02655479582 | BF96: 0.02510575592 | BH96: 0.06812625299 | BJ96: 0.02347733262 | BL96: 0.02810367172 | BN96: 0.03015168241 | BP96: 0.07833082754 | BR96: 0.0229964368
B97: 74 | D97: 0.0220266414 | F97: 0.02181784192 | H97: 0.03094291173 | J97: 0.02910355499 | L97: 0.02198488613 | N97: 0.03686860289 | P97: 0.03573093247 | R97: 0.01919916484 | T97: 0.02977853239 | V97: 0.02982052251 | X97: 0.03860368679 | Z97: 0.05251782815 | AA97: 0.03204566668 | AB97: 0.03149422237 | AD97: 0.01919916484 | AF97: 0.01368068532 | AH97: 0.02852856756 | AJ97: 0.06194327907 | AL97: 0.02405414634 | AN97: 0.04207026865 | AP97: 0.04018786892 | AR97: 0.05895971459 | AT97: 0.02783035288 | AV97: 0.05794612034 | AX97: 0.01966559913 | AZ97: 0.03903131891 | BB97: 0.05634745408 | BD97: 0.02670041647 | BF97: 0.02527038965 | BH97: 0.0679498247 | BJ97: 0.02366330412 | BL97: 0.02822929744 | BN97: 0.03024996762 | BP97: 0.07801442684 | BR97: 0.02318793556
B98: 75 | D98: 0.02222924867 | F98: 0.02202316284 | H98: 0.03102954251 | J98: 0.02921442729 | L98: 0.02218803611 | N98: 0.03697603162 | P98: 0.03575445652 | R98: 0.01930878014 | T98: 0.02988053232 | V98: 0.02992197938 | X98: 0.03858910185 | Z98: 0.05243814668 | AA98: 0.03211820217 | AB98: 0.03157407028 | AD98: 0.01930878014 | AF98: 0.01397927906 | AH98: 0.02864682308 | AJ98: 0.0618511412 | AL98: 0.02422863265 | AN98: 0.04210929716 | AP98: 0.04025155615 | AR98: 0.05877403222 | AT98: 0.02795774854 | AV98: 0.05790712118 | AX98: 0.01986564611 | AZ98: 0.0390115805 | BB98: 0.05623063719 | BD98: 0.02684231602 | BF98: 0.02543083368 | BH98: 0.06777793788 | BJ98: 0.0238445606 | BL98: 0.02835166137 | BN98: 0.03034570369 | BP98: 0.07770633728 | BR98: 0.02337465676
B99: 76 | D99: 0.02242676739 | F99: 0.02222332754 | H99: 0.03111394973 | J99: 0.02932245274 | L99: 0.02238608401 | N99: 0.03708069775 | P99: 0.03577736612 | R99: 0.0194155804 | T99: 0.02997991166 | V99: 0.03002082866 | X99: 0.0385748879 | Z99: 0.05236049432 | AA99: 0.03218883374 | AB99: 0.03165182286 | AD99: 0.0194155804 | AF99: 0.01427154356 | AH99: 0.02876205968 | AJ99: 0.06176136628 | AL99: 0.02439889772 | AN99: 0.04214729818 | AP99: 0.040313602 | AR99: 0.05859311087 | AT99: 0.02808189499 | AV99: 0.05786911809 | AX99: 0.02006073972 | AZ99: 0.0389922967 | BB99: 0.05611675292 | BD99: 0.02698062727 | BF99: 0.02558723606 | BH99: 0.06761043019 | BJ99: 0.02402126713 | BL99: 0.02847088484 | BN99: 0.03043898501 | BP99: 0.07740624769 | BR99: 0.02355676014
B100: 77 | D100: 0.02261937523 | F100: 0.02241851604 | H100: 0.03119621514 | J100: 0.02942773626 | L100: 0.02257920796 | N100: 0.03718270347 | P100: 0.03579968483 | R100: 0.01951966942 | T100: 0.03007676709 | V100: 0.03011716664 | X100: 0.03856103171 | Z100: 0.05228479872 | AA100: 0.03225763536 | AB100: 0.03172756153 | AD100: 0.01951966942 | AF100: 0.01455758772 | AH100: 0.02887438699 | AJ100: 0.0616738685 | AL100: 0.02456507295 | AN100: 0.04218431186 | AP100: 0.04037406739 | AR100: 0.05841677862 | AT100: 0.02820290998 | AV100: 0.05783207519 | AX100: 0.02025104597 | AZ100: 0.03897345592 | BB100: 0.05600570102 | BD100: 0.02711547744 | BF100: 0.02573973868 | BH100: 0.06744714613 | BJ100: 0.02419358212 | BL100: 0.02858708351 | BN100: 0.03052990163 | BP100: 0.07711386132 | BR100: 0.02373439975
B101: 78 | D101: 0.0228072426 | F101: 0.02260890102 | H101: 0.03127641675 | J101: 0.02953037793 | L101: 0.02276757884 | N101: 0.03728214623 | P101: 0.03582143499 | R101: 0.01962114618 | T101: 0.03017119082 | V101: 0.03021108514 | X101: 0.0385475206 | Z101: 0.05221099059 | AA101: 0.03232467725 | AB101: 0.03180136353 | AD101: 0.01962114618 | AF101: 0.01483752757 | AH101: 0.02898390975 | AJ101: 0.06158856583 | AL101: 0.02472728607 | AN101: 0.04222037627 | AP101: 0.04043301038 | AR101: 0.05824487104 | AT101: 0.02832090604 | AV101: 0.05779595814 | AX101: 0.02043672483 | AZ101: 0.03895504658 | BB101: 0.05589738506 | BD101: 0.02724698832 | BF101: 0.02588847762 | BH101: 0.06728793667 | BJ101: 0.02436165759 | BL101: 0.02870036773 | BN101: 0.0306185395 | BP101: 0.07682889507 | BR101: 0.02390772415
B102: 79 | D102: 0.02299053296 | F102: 0.02279464809 | H102: 0.03135462902 | J102: 0.02963047325 | L102: 0.02295136052 | N102: 0.03737911895 | P102: 0.03584263788 | R102: 0.01972010516 | T102: 0.03026327084 | V102: 0.03030267177 | X102: 0.03853434243 | Z102: 0.05213900358 | AA102: 0.03239002607 | AB102: 0.03187330221 | AD102: 0.01972010516 | AF102: 0.01511148463 | AH102: 0.02909072803 | AJ102: 0.06150537987 | AL102: 0.02488566105 | AN102: 0.04225552755 | AP102: 0.04049048635 | AR102: 0.05807723084 | AT102: 0.02843599071 | AV102: 0.05776073412 | AX102: 0.02061793037 | AZ102: 0.03893705716 | BB102: 0.05579171231 | BD102: 0.02737527661 | BF102: 0.0260335833 | BH102: 0.06713265902 | BJ102: 0.02452563937 | BL102: 0.02881084279 | BN102: 0.03070498069 | BP102: 0.0765510788 | BR102: 0.02407687646
B103: 80 | D103: 0.02316940309 | F103: 0.02297591609 | H103: 0.03143092303 | J103: 0.02972811337 | L103: 0.0231307102 | N103: 0.03747371035 | P103: 0.03586331373 | R103: 0.01981663652 | T103: 0.03035309113 | V103: 0.03039201017 | X103: 0.0385214856 | Z103: 0.05206877416 | AA103: 0.03245374515 | AB103: 0.03194344725 | AD103: 0.01981663652 | AF103: 0.0153795845 | AH103: 0.02919493749 | AJ103: 0.06142423566 | AL103: 0.02504031811 | AN103: 0.04228980003 | AP103: 0.04054654812 | AR103: 0.05791370753 | AT103: 0.02854826681 | AV103: 0.05772637171 | AX103: 0.02079481092 | AZ103: 0.03891947627 | BB103: 0.05568859356 | BD103: 0.02750045408 | BF103: 0.02617518076 | BH103: 0.06698117638 | BJ103: 0.02468566739 | BL103: 0.02891860922 | BN103: 0.03078930354 | BP103: 0.07628015465 | BR103: 0.02424199455
B104: 81 | D104: 0.02334400335 | F104: 0.02315285737 | H104: 0.0315053667 | J104: 0.02982338535 | L104: 0.02330577865 | N104: 0.03756600509 | P104: 0.03588348179 | R104: 0.01991082635 | T104: 0.03044073187 | V104: 0.03047918016 | X104: 0.03850893896 | Z104: 0.05200024146 | AA104: 0.03251589471 | AB104: 0.03201186491 | AD104: 0.01991082635 | AF104: 0.01564195569 | AH104: 0.0292966296 | AJ104: 0.0613450615 | AL104: 0.02519137369 | AN104: 0.04232322631 | AP104: 0.04060124613 | AR104: 0.0577541571 | AT104: 0.02865783265 | AV104: 0.05769284085 | AX104: 0.02096750925 | AZ104: 0.03890229268 | BB104: 0.05558794311 | BD104: 0.02762262779 | BF104: 0.0263133899 | BH104: 0.06683335765 | BJ104: 0.0248418759 | BL104: 0.029023763 | BN104: 0.03087158292 | BP104: 0.07601587639 | BR104: 0.02440321118
B105: 82 | D105: 0.02351447797 | F105: 0.02332561809 | H105: 0.03157802487 | J105: 0.02991637233 | L105: 0.02347671047 | N105: 0.03765608401 | P105: 0.03590316041 | R105: 0.0200027569 | T105: 0.03052626965 | V105: 0.03056425798 | X105: 0.03849669186 | Z105: 0.05193334719 | AA105: 0.03257653203 | AB105: 0.03207861821 | AD105: 0.0200027569 | AF105: 0.01589872859 | AH105: 0.02939589181 | AJ105: 0.06126778882 | AL105: 0.02533894053 | AN105: 0.04235583742 | AP105: 0.04065462852 | AR105: 0.05759844174 | AT105: 0.02876478226 | AV105: 0.05766011276 | AX105: 0.02113616275 | AZ105: 0.03888549532 | BB105: 0.05548967854 | BD105: 0.02774190033 | BF105: 0.02644832565 | BH105: 0.0666890772 | BJ105: 0.02499439368 | BL105: 0.02912639582 | BN105: 0.03095189034 | BP105: 0.07575800883 | BR105: 0.02456065413
B106: 83 | D106: 0.02368096531 | F106: 0.02349433841 | H106: 0.03164895957 | J106: 0.03000715377 | L106: 0.02364364439 | N106: 0.03774402438 | P106: 0.03592236708 | R106: 0.02009250675 | T106: 0.03060977766 | V106: 0.0306473165 | X106: 0.0384847341 | Z106: 0.05186803549 | AA106: 0.03263571165 | AB106: 0.03214376716 | AD106: 0.02009250675 | AF106: 0.01615003458 | AH106: 0.0294928078 | AJ106: 0.06119235201 | AL106: 0.02548312767 | AN106: 0.04238766287 | AP106: 0.04070674125 | AR106: 0.0574464295 | AT106: 0.02886920559 | AV106: 0.05762815992 | AX106: 0.02130090359 | AZ106: 0.03886907335 | BB106: 0.05539372066 | BD106: 0.02785837001 | BF106: 0.02658009823 | BH106: 0.06654821463 | BJ106: 0.0251433443 | BL106: 0.0292265953 | BN106: 0.03103029419 | BP106: 0.07550632727 | BR106: 0.02471444638
B107: 84 | D107: 0.0238435981 | F107: 0.02365915281 | H107: 0.03171823007 | J107: 0.03009580562 | L107: 0.02380671348 | N107: 0.03782989999 | P107: 0.03594111845 | R107: 0.02018015101 | T107: 0.03069132583 | V107: 0.03072842534 | X107: 0.03847305589 | Z107: 0.05180425286 | AA107: 0.0326934855 | AB107: 0.03220736892 | AD107: 0.02018015101 | AF107: 0.01639600531 | AH107: 0.02958745761 | AJ107: 0.0611186883 | AL107: 0.02562404051 | AN107: 0.04241873077 | AP107: 0.04075762827 | AR107: 0.05729799407 | AT107: 0.02897118873 | AV107: 0.05759695595 | AX107: 0.02146185894 | AZ107: 0.03885301614 | BB107: 0.05529999338 | BD107: 0.02797213103 | BF107: 0.02670881336 | BH107: 0.06641065452 | BJ107: 0.02528884633 | BL107: 0.02932444519 | BN107: 0.03110685984 | BP107: 0.07526061693 | BR107: 0.0248647063
B108: 85 | D108: 0.02400250366 | F108: 0.02382019033 | H108: 0.03178589305 | J108: 0.0301824005 | L108: 0.02396604541 | N108: 0.03791378142 | P108: 0.03595943043 | R108: 0.02026576152 | T108: 0.03077098107 | V108: 0.03080765107 | X108: 0.03846164785 | Z108: 0.05174194799 | AA108: 0.03274990308 | AB108: 0.03226947795 | AD108: 0.02026576152 | AF108: 0.0166367721 | AH108: 0.02967991787 | AJ108: 0.06104673757 | AL108: 0.02576178091 | AN108: 0.04244906788 | AP108: 0.04080733158 | AR108: 0.05715301448 | AT108: 0.02907081409 | AV108: 0.05756647559 | AX108: 0.02161915108 | AZ108: 0.0388373133 | BB108: 0.05520842357 | BD108: 0.02808327372 | BF108: 0.02683457239 | BH108: 0.06627628624 | BJ108: 0.02543101356 | BL108: 0.0294200256 | BN108: 0.03118164982 | BP108: 0.07502067244 | BR108: 0.02501154775
B109: 86 | D109: 0.02415780419 | F109: 0.02397757477 | H109: 0.03185200277 | J109: 0.0302670079 | L109: 0.0241217627 | N109: 0.03799573616 | P109: 0.0359773182 | R109: 0.02034940697 | T109: 0.03084880735 | V109: 0.03088505738 | X109: 0.03845050101 | Z109: 0.05168107174 | AA109: 0.0328050116 | AB109: 0.03233014618 | AD109: 0.02034940697 | AF109: 0.01687246536 | AH109: 0.02977026195 | AJ109: 0.06097644228 | AL109: 0.02589644723 | AN109: 0.04247869973 | AP109: 0.04085589132 | AR109: 0.05701137485 | AT109: 0.02916816057 | AV109: 0.05753669465 | AX109: 0.02177289765 | AZ109: 0.03882195468 | BB109: 0.05511894096 | BD109: 0.02819188465 | BF109: 0.02695747259 | BH109: 0.0661450037 | BJ109: 0.02556995518 | BL109: 0.02951341313 | BN109: 0.03125472399 | BP109: 0.07478629739 | BR109: 0.02515508027
B110: 87 | D110: 0.02430961695 | F110: 0.02413142493 | H110: 0.03191661114 | J110: 0.03034969428 | L110: 0.02427398292 | N110: 0.03807582879 | P110: 0.03599479625 | R110: 0.02043115311 | T110: 0.03092486588 | V110: 0.03096070519 | X110: 0.03843960675 | Z110: 0.05162157697 | AA110: 0.0328588561 | AB110: 0.03238942319 | AD110: 0.02043115311 | AF110: 0.01710321421 | AH110: 0.02985856009 | AJ110: 0.06090774731 | AL110: 0.02602813443 | AN110: 0.04250765068 | AP110: 0.0409033459 | AR110: 0.05687296416 | AT110: 0.02926330375 | AV110: 0.05750758996 | AX110: 0.02192321178 | AZ110: 0.0388069304 | BB110: 0.05503147804 | BD110: 0.02829804686 | BF110: 0.02707760726 | BH110: 0.06601670518 | BJ110: 0.02570577601 | BL110: 0.02960468111 | BN110: 0.03132613961 | BP110: 0.07455730387 | BR110: 0.02529540926
B111: 88 | D111: 0.02445805449 | F111: 0.02428185488 | H111: 0.03197976785 | J111: 0.03043052331 | L111: 0.02442281892 | N111: 0.03815412111 | P111: 0.03601187842 | R111: 0.02051106289 | T111: 0.03099921527 | V111: 0.03103465282 | X111: 0.03842895681 | Z111: 0.05156341848 | AA111: 0.03291147957 | AB111: 0.03244735628 | AD111: 0.02051106289 | AF111: 0.01732914611 | AH111: 0.0299448796 | AJ111: 0.06084059984 | AL111: 0.02615693416 | AN111: 0.04253594394 | AP111: 0.0409497321 | AR111: 0.056737676 | AT111: 0.02935631603 | AV111: 0.0574791393 | AX111: 0.02207020227 | AZ111: 0.03879223085 | BB111: 0.05494596992 | BD111: 0.02840183997 | BF111: 0.02719506592 | BH111: 0.0658912931 | BJ111: 0.02583857666 | BL111: 0.02969389973 | BN111: 0.03139595152 | BP111: 0.07433351202 | BR111: 0.02543263608
B112: 89 | D112: 0.02460322487 | F112: 0.02442897409 | H112: 0.03204152051 | J112: 0.03050955591 | L112: 0.02456837905 | N112: 0.03823067228 | P112: 0.03602857795 | R112: 0.02058919656 | T112: 0.03107191163 | V112: 0.03110695611 | X112: 0.03841854327 | Z112: 0.05150655293 | AA112: 0.03296292308 | AB112: 0.03250399065 | AD112: 0.02058919656 | AF112: 0.01755038653 | AH112: 0.03002928499 | AJ112: 0.06077494928 | AL112: 0.02628293488 | AN112: 0.04256360172 | AP112: 0.04099508509 | AR112: 0.05660540838 | AT112: 0.02944726681 | AV112: 0.05745132136 | AX112: 0.02221397379 | AZ112: 0.03877784665 | BB112: 0.05486235425 | BD112: 0.0285033404 | BF112: 0.02730993451 | BH112: 0.06576867386 | BJ112: 0.02596845374 | BL112: 0.02978113621 | BN112: 0.03146421225 | BP112: 0.07411474964 | BR112: 0.02556685826
B113: 90 | D113: 0.02474523184 | F113: 0.02457288769 | H113: 0.03210191472 | J113: 0.03058685047 | L113: 0.02471076733 | N113: 0.03830553899 | P113: 0.03604490749 | R113: 0.02066561185 | T113: 0.03114300871 | V113: 0.03117766856 | X113: 0.03840835853 | Z113: 0.05145093872 | AA113: 0.03301322589 | AB113: 0.03255936948 | AD113: 0.02066561185 | AF113: 0.01776705874 | AH113: 0.03011183807 | AJ113: 0.06071074711 | AL113: 0.02640622188 | AN113: 0.04259064521 | AP113: 0.04103943858 | AR113: 0.05647606349 | AT113: 0.02953622261 | AV113: 0.05742411574 | AX113: 0.02235462697 | AZ113: 0.03876376873 | BB113: 0.0547805711 | BD113: 0.02860262145 | BF113: 0.02742229552 | BH113: 0.06564875763 | BJ113: 0.02609550002 | BL113: 0.02986645493 | BN113: 0.03153097214 | BP113: 0.07390085182 | BR113: 0.02569816963
B114: 91 | D114: 0.02488417505 | F114: 0.02471369664 | H114: 0.03216099417 | J114: 0.03066246294 | L114: 0.02485008365 | N114: 0.03837877554 | P114: 0.03606087916 | R114: 0.02074036409 | T114: 0.03121255801 | V114: 0.03124684141 | X114: 0.03839839531 | Z114: 0.05139653596 | AA114: 0.0330624255 | AB114: 0.03261353407 | AD114: 0.02074036409 | AF114: 0.01797928362 | AH114: 0.03019259812 | AJ114: 0.06064794681 | AL114: 0.02652687745 | AN114: 0.04261709467 | AP114: 0.04108282485 | AR114: 0.05634954753 | AT114: 0.02962324722 | AV114: 0.05739750282 | AX114: 0.02249225866 | AZ114: 0.03874998826 | BB114: 0.05470056287 | BD114: 0.02869975348 | BF114: 0.02753222814 | BH114: 0.06553145821 | BJ114: 0.02621980461 | BL114: 0.0299499176 | BN114: 0.03159627941 | BP114: 0.07369166054 | BR114: 0.02582666045
B115: 92 | D115: 0.02502015019 | F115: 0.02485149791 | H115: 0.03221880078 | J115: 0.03073644693 | L115: 0.024986424 | N115: 0.03845043396 | P115: 0.03607650453 | R115: 0.0208135063 | T115: 0.03128060892 | V115: 0.0313145238 | X115: 0.0383886466 | Z115: 0.05134330632 | AA115: 0.03311055783 | AB115: 0.03266652391 | AD115: 0.0208135063 | AF115: 0.01818717951 | AH115: 0.03027162201 | AJ115: 0.06058650378 | AL115: 0.02664498095 | AN115: 0.04264296949 | AP115: 0.04112527484 | AR115: 0.05622577051 | AT115: 0.02970840183 | AV115: 0.05737146383 | AX115: 0.02262696197 | AZ115: 0.03873649667 | BB115: 0.05462227418 | BD115: 0.02879480405 | BF115: 0.02763980845 | BH115: 0.06541669285 | BJ115: 0.02634145312 | BL115: 0.03003158337 | BN115: 0.03166018033 | BP115: 0.07348702438 | BR115: 0.02595241755
B116: 93 | D116: 0.02515324922 | F116: 0.0249863847 | H116: 0.03227537472 | J116: 0.0308088539 | L116: 0.02511988056 | N116: 0.03852056417 | P116: 0.03609179472 | R116: 0.02088508935 | T116: 0.03134720877 | V116: 0.03138076284 | X116: 0.03837910569 | Z116: 0.05129121305 | AA116: 0.03315765722 | AB116: 0.03271837682 | AD116: 0.02088508935 | AF116: 0.01839086205 | AH116: 0.03034896429 | AJ116: 0.06052637519 | AL116: 0.02676060892 | AN116: 0.04266828821 | AP116: 0.04116681821 | AR116: 0.05610464608 | AT116: 0.02979174515 | AV116: 0.05734598073 | AX116: 0.02275882653 | AZ116: 0.03872328567 | BB116: 0.0545456518 | BD116: 0.02888783804 | BF116: 0.02774510951 | BH116: 0.06530438209 | BJ116: 0.02646052778 | BL116: 0.03011150898 | BN116: 0.03172271924 | BP116: 0.07328679817 | BR116: 0.0260755245
B117: 94 | D117: 0.02528356052 | F117: 0.02511844652 | H117: 0.03233075455 | J117: 0.03087973315 | L117: 0.02525054195 | N117: 0.03858921403 | P117: 0.03610676035 | R117: 0.02095516201 | T117: 0.03141240299 | V117: 0.03144560371 | X117: 0.03836976612 | Z117: 0.05124022082 | AA117: 0.03320375658 | AB117: 0.032769129 | AD117: 0.02095516201 | AF117: 0.01859044419 | AH117: 0.03042467733 | AJ117: 0.06046751998 | AL117: 0.02687383513 | AN117: 0.04269306859 | AP117: 0.04120748341 | AR117: 0.05598609132 | AT117: 0.02987333354 | AV117: 0.05732103619 | AX117: 0.02288793855 | AZ117: 0.0387103472 | BB117: 0.05447064453 | BD117: 0.02897891773 | BF117: 0.02784820152 | BH117: 0.06519444961 | BJ117: 0.02657710766 | BL117: 0.03018974883 | BN117: 0.03178393872 | BP117: 0.07309084265 | BR117: 0.02619606171
B118: 95 | D118: 0.02541116903 | F118: 0.02524776947 | H118: 0.03238497726 | J118: 0.03094913205 | L118: 0.02537849332 | N118: 0.03865642947 | P118: 0.03612141162 | R118: 0.0210237711 | T118: 0.03147623514 | V118: 0.03150908977 | X118: 0.03836062169 | Z118: 0.05119029572 | AA118: 0.03324888741 | AB118: 0.03281881512 | AD118: 0.0210237711 | AF118: 0.01878603603 | AH118: 0.03049881138 | AJ118: 0.06040989869 | AL118: 0.02698473074 | AN118: 0.04271732762 | AP118: 0.04124729774 | AR118: 0.05587002665 | AT118: 0.0299532211 | AV118: 0.05729661359 | AX118: 0.023014381 | AZ118: 0.03869767349 | BB118: 0.05439720314 | BD118: 0.029068103 | BF118: 0.02794915195 | BH118: 0.0650868221 | BJ118: 0.02669126873 | BL118: 0.03026635515 | BN118: 0.0318438796 | BP118: 0.07289902427 | BR118: 0.02631410659
B119: 96 | D119: 0.0255361564 | F119: 0.02537443627 | H119: 0.03243807837 | J119: 0.03101709604 | L119: 0.02550381656 | N119: 0.03872225458 | P119: 0.03613575829 | R119: 0.02109096155 | T119: 0.03153874708 | V119: 0.03157126265 | X119: 0.03835166646 | Z119: 0.05114140515 | AA119: 0.03329307993 | AB119: 0.03286746844 | AD119: 0.02109096155 | AF119: 0.01897774486 | AH119: 0.03057141472 | AJ119: 0.06035347345 | AL119: 0.02709336436 | AN119: 0.04274108161 | AP119: 0.04128628738 | AR119: 0.05575637562 | AT119: 0.03003145981 | AV119: 0.05727269696 | AX119: 0.02313823376 | AZ119: 0.03868525697 | BB119: 0.05432528027 | BD119: 0.02915545138 | BF119: 0.02804802565 | BH119: 0.06498142911 | BJ119: 0.02680308407 | BL119: 0.03034137807 | BN119: 0.0319025811 | BP119: 0.07271121481 | BR119: 0.02642973363
B120: 97 | D120: 0.02565860118 | F120: 0.02549852651 | H120: 0.03249009198 | J120: 0.03108366876 | L120: 0.02562659041 | N120: 0.03878673168 | P120: 0.03614980974 | R120: 0.02115677651 | T120: 0.03159997896 | V120: 0.03163216232 | X120: 0.0383428947 | Z120: 0.05109351778 | AA120: 0.0333363631 | AB120: 0.03291512081 | AD120: 0.02115677651 | AF120: 0.01916567511 | AH120: 0.03064253374 | AJ120: 0.06029820788 | AL120: 0.02719980215 | AN120: 0.04276434617 | AP120: 0.0413244775 | AR120: 0.05564506478 | AT120: 0.03010809957 | AV120: 0.05724927094 | AX120: 0.02325957368 | AZ120: 0.03867309036 | BB120: 0.05425483036 | BD120: 0.02924101817 | BF120: 0.02814488498 | BH120: 0.06487820294 | BJ120: 0.02691262394 | BL120: 0.03041486574 | BN120: 0.03196008088 | BP120: 0.07252729122 | BR120: 0.02654301456
B121: 98 | D121: 0.0257785789 | F121: 0.02562011674 | H121: 0.03254105087 | J121: 0.03114889213 | L121: 0.02574689061 | N121: 0.03884990143 | P121: 0.03616357496 | R121: 0.02122125744 | T121: 0.03165996937 | V121: 0.03169182715 | X121: 0.03833430091 | Z121: 0.05104660351 | AA121: 0.03337876469 | AB121: 0.03296180282 | AD121: 0.02122125744 | AF121: 0.01934992835 | AH121: 0.030712213 | AJ121: 0.06024406702 | AL121: 0.0273041079 | AN121: 0.04278713629 | AP121: 0.04136189223 | AR121: 0.05553602354 | AT121: 0.03018318838 | AV121: 0.0572263208 | AX121: 0.0233784748 | AZ121: 0.03866116659 | BB121: 0.05418580957 | BD121: 0.02932485654 | BF121: 0.02823978991 | BH121: 0.0647770785 | BJ121: 0.02701995593 | BL121: 0.03048686438 | BN121: 0.03201641513 | BP121: 0.0723471353 | BR121: 0.02665401843
B122: 99 | D122: 0.02589616224 | F122: 0.02573928059 | H122: 0.03259098651 | J122: 0.03121280643 | L122: 0.02586479003 | N122: 0.03891180289 | P122: 0.03617706259 | R122: 0.02128444416 | T122: 0.0317187554 | V122: 0.03175029405 | X122: 0.0383258798 | Z122: 0.05100063338 | AA122: 0.03342031138 | AB122: 0.03300754381 | AD122: 0.02128444416 | AF122: 0.01953060333 | AH122: 0.03078049533 | AJ122: 0.06019101726 | AL122: 0.02740634313 | AN122: 0.04280946635 | AP122: 0.04139855479 | AR122: 0.05542918407 | AT122: 0.03025677235 | AV122: 0.05720383235 | AX122: 0.02349500838 | AZ122: 0.03864947882 | BB122: 0.05411817569 | BD122: 0.02940701762 | BF122: 0.02833279814 | BH122: 0.06467799318 | BJ122: 0.02712514508 | BL122: 0.03055741846 | BN122: 0.03207161862 | BP122: 0.07217063353 | BR122: 0.02676281175
B123: 100 | D123: 0.02601142115 | F123: 0.02585608894 | H123: 0.03263992919 | J123: 0.03127545039 | L123: 0.0259803588 | N123: 0.03897247362 | P123: 0.03619028092 | R123: 0.02134637496 | T123: 0.03177637268 | V123: 0.03180759847 | X123: 0.03831762628 | Z123: 0.05095557954 | AA123: 0.03346102875 | AB123: 0.03305237194 | AD123: 0.02134637496 | AF123: 0.01970779597 | AH123: 0.03084742193 | AJ123: 0.06013902629 | AL123: 0.02750656718 | AN123: 0.04283135014 | AP123: 0.04143448749 | AR123: 0.0553244811 | AT123: 0.03032889582 | AV123: 0.05718179196 | AX123: 0.02360924308 | AZ123: 0.03863802045 | BB123: 0.0540518881 | BD123: 0.02948755063 | BF123: 0.02842396518 | BH123: 0.06458088677 | BJ123: 0.02722825398 | BL123: 0.03062657067 | BN123: 0.03212572478 | BP123: 0.07199767678 | BR123: 0.0268694586
B124: 101 | D124: 0.02612442296 | F124: 0.02597061002 | H124: 0.03268790799 | J124: 0.03133686125 | L124: 0.02609366444 | N124: 0.03903194972 | P124: 0.03620323792 | R124: 0.02140708667 | T124: 0.03183285548 | V124: 0.03186377449 | X124: 0.03830953545 | Z124: 0.05091141518 | AA124: 0.0335009414 | AB124: 0.03309631427 | AD124: 0.02140708667 | AF124: 0.01988159941 | AH124: 0.03091303242 | AJ124: 0.06008806304 | AL124: 0.02760483726 | AN124: 0.04285280092 | AP124: 0.04146971175 | AR124: 0.0552218519 | AT124: 0.03039960147 | AV124: 0.05716018651 | AX124: 0.02372124501 | AZ124: 0.03862678507 | BB124: 0.0539869077 | BD124: 0.02956650291 | BF124: 0.02851334447 | BH124: 0.06448570133 | BJ124: 0.02732934288 | BL124: 0.03069436209 | BN124: 0.03217876575 | BP124: 0.07182816019 | BR124: 0.02697402069
B125: 102 | D125: 0.02623523249 | F125: 0.02608290951 | H125: 0.03273495093 | J125: 0.03139707481 | L125: 0.02620477195 | N125: 0.0390902659 | P125: 0.03621594125 | R125: 0.02146661467 | T125: 0.03188823676 | V125: 0.03191885492 | X125: 0.03830160261 | Z125: 0.05086811454 | AA125: 0.03354007293 | AB125: 0.03313939681 | AD125: 0.02146661467 | AF125: 0.02005210407 | AH125: 0.03097736492 | AJ125: 0.06003809761 | AL125: 0.02770120859 | AN125: 0.04287383143 | AP125: 0.04150424821 | AR125: 0.05512123609 | AT125: 0.03046893033 | AV125: 0.05713900337 | AX125: 0.02383107791 | AZ125: 0.0386157665 | BB125: 0.05392319682 | BD125: 0.02964392004 | BF125: 0.02860098745 | BH125: 0.06439238112 | BJ125: 0.0274284698 | BL125: 0.03076083225 | BN125: 0.03223077246 | BP125: 0.07166198289 | BR125: 0.02707655749
B126: 103 | D126: 0.02634391219 | F126: 0.02619305069 | H126: 0.03278108493 | J126: 0.03145612554 | L126: 0.02631374392 | N126: 0.03914745559 | P126: 0.03622839826 | R126: 0.02152499306 | T126: 0.03194254825 | V126: 0.0319728713 | X126: 0.03829382322 | Z126: 0.05082565277 | AA126: 0.03357844608 | AB126: 0.03318164453 | AD126: 0.02152499306 | AF126: 0.02021939766 | AH126: 0.03104045612 | AJ126: 0.05998910124 | AL126: 0.02779573442 | AN126: 0.04289445389 | AP126: 0.04153811671 | AR126: 0.05502257555 | AT126: 0.0305369219 | AV126: 0.0571182304 | AX126: 0.02393880317 | AZ126: 0.03860495877 | BB126: 0.05386071915 | BD126: 0.02971984589 | BF126: 0.02868694365 | BH126: 0.06430087245 | BJ126: 0.02752569063 | BL126: 0.03082601914 | BN126: 0.03228177465 | BP126: 0.07149904787 | BR126: 0.02717712631
B127: 104 | D127: 0.0264505222 | F127: 0.0263010945 | H127: 0.03282633594 | J127: 0.03151404661 | L127: 0.02642064067 | N127: 0.03920355092 | P127: 0.03624061604 | R127: 0.02158225463 | T127: 0.03199582046 | V127: 0.032025854 | X127: 0.03828619291 | Z127: 0.05078400598 | AA127: 0.03361608266 | AB127: 0.03322308147 | AD127: 0.02158225463 | AF127: 0.02038356528 | AH127: 0.03110234134 | AJ127: 0.05994104623 | AL127: 0.02788846613 | AN127: 0.04291468009 | AP127: 0.04157133633 | AR127: 0.05492581436 | AT127: 0.03060361423 | AV127: 0.05709785591 | AX127: 0.02404448 | AZ127: 0.03859435609 | BB127: 0.05379943976 | BD127: 0.02979432273 | BF127: 0.0287712608 | BH127: 0.06421112365 | BJ127: 0.0276210592 | BL127: 0.03088995937 | BN127: 0.03233180098 | BP127: 0.07133926178 | BR127: 0.02727578243
B128: 105 | D128: 0.02655512049 | F128: 0.02640709968 | H128: 0.03287072891 | J128: 0.03157086995 | L128: 0.02652552031 | N128: 0.03925858286 | P128: 0.03625260141 | R128: 0.02163843094 | T128: 0.03204808279 | V128: 0.03207783225 | X128: 0.03827870748 | Z128: 0.05074315113 | AA128: 0.03365300368 | AB128: 0.03326373076 | AD128: 0.02163843094 | AF128: 0.02054468942 | AH128: 0.0311630546 | AJ128: 0.0598939059 | AL128: 0.02797945332 | AN128: 0.04293452134 | AP128: 0.04160392545 | AR128: 0.05483089864 | AT128: 0.03066904395 | AV128: 0.05707786862 | AX128: 0.02414816546 | AZ128: 0.03858395288 | BB128: 0.05373932494 | BD128: 0.02986739126 | BF128: 0.02885398487 | BH128: 0.06412308491 | BJ128: 0.02771462738 | BL128: 0.03095268817 | BN128: 0.03238087902 | BP128: 0.07118253478 | BR128: 0.0273725791
B129: 106 | D129: 0.02665776292 | F129: 0.02651112284 | H129: 0.03291428789 | J129: 0.03162662631 | L129: 0.02662843887 | N129: 0.03931258121 | P129: 0.03626436091 | R129: 0.0216935524 | T129: 0.03209936354 | V129: 0.0321288342 | X129: 0.03827136287 | Z129: 0.05070306606 | AA129: 0.03368922937 | AB129: 0.03330361463 | AD129: 0.0216935524 | AF129: 0.02070285008 | AH129: 0.03122262867 | AJ129: 0.05984765458 | AL129: 0.02806874385 | AN129: 0.04295398852 | AP129: 0.04163590178 | AR129: 0.05473777652 | AT129: 0.03073324633 | AV129: 0.0570582577 | AX129: 0.0242499146 | AZ129: 0.03857374373 | BB129: 0.05368034221 | BD129: 0.02993909074 | BF129: 0.02893516018 | BH129: 0.06403670829 | BJ129: 0.02780644518 | BL129: 0.03101423946 | BN129: 0.03242903534 | BP129: 0.07102878035 | BR129: 0.02746756772
B130: 107 | D130: 0.02675850335 | F130: 0.02661321854 | H130: 0.03295703605 | J130: 0.03168134534 | L130: 0.02672945033 | N130: 0.03936557471 | P130: 0.03627590088 | R130: 0.02174764832 | T130: 0.03214968997 | V130: 0.03217888699 | X130: 0.03826415517 | Z130: 0.05066372937 | AA130: 0.03372477917 | AB130: 0.03334275451 | AD130: 0.02174764832 | AF130: 0.0208581248 | AH130: 0.03128109511 | AJ130: 0.05980226752 | AL130: 0.02815638392 | AN130: 0.04297309212 | AP130: 0.04166728236 | AR130: 0.05464639799 | AT130: 0.03079625538 | AV130: 0.05703901267 | AX130: 0.02434978049 | AZ130: 0.03856372342 | BB130: 0.05362246025 | BD130: 0.03000945897 | BF130: 0.02901482944 | BH130: 0.06395194756 | BJ130: 0.0278965608 | BL130: 0.03107464593 | BN130: 0.03247629551 | BP130: 0.07087791518 | BR130: 0.02756079784
B131: 108 | D131: 0.02685739372 | F131: 0.02671343944 | H131: 0.03299899571 | J131: 0.03173505558 | L131: 0.02682860679 | N131: 0.03941759101 | P131: 0.03628722739 | R131: 0.02180074692 | T131: 0.03219908837 | V131: 0.03222801676 | X131: 0.03825708063 | Z131: 0.05062512047 | AA131: 0.03375967183 | AB131: 0.03338117101 | AD131: 0.02180074692 | AF131: 0.02101058873 | AH131: 0.03133848436 | AJ131: 0.05975772086 | AL131: 0.02824241814 | AN131: 0.04299184224 | AP131: 0.04169808363 | AR131: 0.05455671488 | AT131: 0.03085810387 | AV131: 0.05702012347 | AX131: 0.02444781435 | AZ131: 0.0385538869 | BB131: 0.05356564887 | BD131: 0.03007853241 | BF131: 0.02909303384 | BH131: 0.06386875815 | BJ131: 0.02798502075 | BL131: 0.0311339391 | BN131: 0.03252268421 | BP131: 0.07072985899 | BR131: 0.02765231728
B132: 109 | D132: 0.02695448414 | F132: 0.02681183629 | H132: 0.03304018839 | J132: 0.03178778456 | L132: 0.02692595847 | N132: 0.03946865681 | P132: 0.03629834629 | R132: 0.02185287542 | T132: 0.03224758406 | V132: 0.03227624869 | X132: 0.03825013561 | Z132: 0.05058721948 | AA132: 0.03379392541 | AB132: 0.03341888401 | AD132: 0.02185287542 | AF132: 0.02116031469 | AH132: 0.03139482577 | AJ132: 0.05971399162 | AL132: 0.02832688957 | AN132: 0.04301024861 | AP132: 0.04172832141 | AR132: 0.05446868074 | AT132: 0.03091882342 | AV132: 0.05700158038 | AX132: 0.02454406561 | AZ132: 0.03854422928 | BB132: 0.05350987894 | BD132: 0.03014634624 | BF132: 0.02916981312 | BH132: 0.06378709711 | BJ132: 0.02807186987 | BL132: 0.03119214933 | BN132: 0.03256822522 | BP132: 0.07058453442 | BR132: 0.02774217219
B133: 110 | D133: 0.02704982295 | F133: 0.02690845808 | H133: 0.03308063485 | J133: 0.03183955882 | L133: 0.02702155386 | N133: 0.03951879782 | P133: 0.03630926324 | R133: 0.02190406006 | T133: 0.03229520148 | V133: 0.03232360709 | X133: 0.0382433166 | Z133: 0.05055000723 | AA133: 0.0338275573 | AB133: 0.03345591266 | AD133: 0.02190406006 | AF133: 0.02130737324 | AH133: 0.03145014763 | AJ133: 0.0596710576 | AL133: 0.02840983983 | AN133: 0.04302832058 | AP133: 0.04175801099 | AR133: 0.05438225077 | AT133: 0.03097844449 | AV133: 0.05698337403 | AX133: 0.02463858197 | AZ133: 0.03853474584 | BB133: 0.05345512233 | BD133: 0.03021293436 | BF133: 0.0292452056 | BH133: 0.06370692298 | BJ133: 0.02815715143 | BL133: 0.03124930591 | BN133: 0.03261294145 | BP133: 0.07044186691 | BR133: 0.0278304071
B134: 111 | D134: 0.02714345681 | F134: 0.0270033521 | H134: 0.03312035511 | J134: 0.03189040398 | L134: 0.02711543973 | N134: 0.03956803886 | P134: 0.03631998369 | R134: 0.02195432616 | T134: 0.03234196418 | V134: 0.03237011539 | X134: 0.03823662024 | Z134: 0.05051346524 | AA134: 0.03386058427 | AB134: 0.03349227542 | AD134: 0.02195432616 | AF134: 0.02145183277 | AH134: 0.03150447725 | AJ134: 0.05962889744 | AL134: 0.02849130909 | AN134: 0.0430460672 | AP134: 0.04178716708 | AR134: 0.05429738177 | AT134: 0.03103699648 | AV134: 0.05696549536 | AX134: 0.0247314095 | AZ134: 0.038525432 | BB134: 0.05340135192 | BD134: 0.03027832953 | BF134: 0.02931924829 | BH134: 0.0636281958 | BJ134: 0.02824090719 | BL134: 0.03130543708 | BN134: 0.03265685504 | BP134: 0.07030178453 | BR134: 0.02791706504
B135: 112 | D135: 0.02723543076 | F135: 0.02709656397 | H135: 0.03315936847 | J135: 0.03194034473 | L135: 0.02720766124 | N135: 0.03961640386 | P135: 0.03633051289 | R135: 0.02200369814 | T135: 0.03238789489 | V135: 0.0324157962 | X135: 0.03823004325 | Z135: 0.05047757566 | AA135: 0.0338930225 | AB135: 0.03352799009 | AD135: 0.02200369814 | AF135: 0.02159375952 | AH135: 0.03155784096 | AJ135: 0.05958749048 | AL135: 0.0285713362 | AN135: 0.04306349718 | AP135: 0.04181580389 | AR135: 0.05421403204 | AT135: 0.03109450779 | AV135: 0.05694793567 | AX135: 0.02482259267 | AZ135: 0.03851628336 | BB135: 0.05334854153 | BD135: 0.03034256333 | BF135: 0.02939197687 | BH135: 0.06355087697 | BJ135: 0.02832317748 | BL135: 0.0313605701 | BN135: 0.03269998731 | BP135: 0.07016421792 | BR135: 0.02800218752
B136: 113 | D136: 0.02732578828 | F136: 0.02718813778 | H136: 0.03319769359 | J136: 0.03198940491 | L136: 0.027298262 | N136: 0.03966391593 | P136: 0.0363408559 | R136: 0.02205219958 | T136: 0.03243301556 | V136: 0.03246067135 | X136: 0.0382235825 | Z136: 0.05044232127 | AA136: 0.03392488759 | AB136: 0.03356307385 | AD136: 0.02205219958 | AF136: 0.02173321768 | AH136: 0.03161026421 | AJ136: 0.05954681681 | AL136: 0.02864995867 | AN136: 0.04308061891 | AP136: 0.04184393514 | AR136: 0.05413216134 | AT136: 0.03115100578 | AV136: 0.05693068653 | AX136: 0.02491217445 | AZ136: 0.03850729564 | BB136: 0.05329666585 | BD136: 0.03040566627 | BF136: 0.02946342584 | BH136: 0.06347492927 | BJ136: 0.02840400123 | BL136: 0.03141473128 | BN136: 0.03274235887 | BP136: 0.07002910017 | BR136: 0.02808581467
B137: 114 | D137: 0.02741457139 | F137: 0.02727811609 | H137: 0.03323534846 | J137: 0.03203760755 | L137: 0.02738728413 | N137: 0.03971059738 | P137: 0.03635101762 | R137: 0.02209985322 | T137: 0.03247734737 | V137: 0.03250476191 | X137: 0.03821723494 | Z137: 0.05040768544 | AA137: 0.03395619461 | AB137: 0.03359754326 | AD137: 0.02209985322 | AF137: 0.02187026944 | AH137: 0.03166177155 | AJ137: 0.05950685721 | AL137: 0.02872721277 | AN137: 0.04309744051 | AP137: 0.04187157405 | AR137: 0.05405173085 | AT137: 0.03120651692 | AV137: 0.05691373981 | AX137: 0.02500019634 | AZ137: 0.0384984647 | BB137: 0.05324570048 | BD137: 0.0304676678 | BF137: 0.02953362849 | BH137: 0.06340031672 | BJ137: 0.02848341603 | BL137: 0.03146794602 | BN137: 0.0327839896 | BP137: 0.06989636666 | BR137: 0.02816798525
B138: 115 | D138: 0.02750182068 | F138: 0.02736654003 | H138: 0.03327235046 | J138: 0.03208497487 | L138: 0.02747476833 | N138: 0.03975646974 | P138: 0.03636100276 | R138: 0.02214668105 | T138: 0.03252091077 | V138: 0.03254808821 | X138: 0.03821099763 | Z138: 0.05037365209 | AA138: 0.03398695808 | AB138: 0.03363141432 | AD138: 0.02214668105 | AF138: 0.02200497506 | AH138: 0.03171238668 | AJ138: 0.05946759309 | AL138: 0.02880313356 | AN138: 0.04311396981 | AP138: 0.04189873342 | AR138: 0.05397270303 | AT138: 0.03126106674 | AV138: 0.05689708766 | AX138: 0.02508669845 | AZ138: 0.03848978654 | BB138: 0.05319562181 | BD138: 0.03052859639 | BF138: 0.02960261699 | BH138: 0.06332700461 | BJ138: 0.02856145822 | BL138: 0.03152023884 | BN138: 0.0328248987 | BP138: 0.06976595505 | BR138: 0.0282487367
B139: 116 | D139: 0.02758757535 | F139: 0.02745344933 | H139: 0.03330871637 | J139: 0.03213152834 | L139: 0.02756075391 | N139: 0.03980155381 | P139: 0.03637081589 | R139: 0.02219270429 | T139: 0.03256372551 | V139: 0.03259066992 | X139: 0.03820486774 | Z139: 0.05034020572 | AA139: 0.03401719203 | AB139: 0.03366470248 | AD139: 0.02219270429 | AF139: 0.02213739293 | AH139: 0.03176213252 | AJ139: 0.05942900653 | AL139: 0.02887775496 | AN139: 0.04313021434 | AP139: 0.04192542558 | AR139: 0.05389504167 | AT139: 0.03131467992 | AV139: 0.05688072249 | AX139: 0.02517171955 | AZ139: 0.0384812573 | BB139: 0.05314640704 | BD139: 0.03058847952 | BF139: 0.02967042242 | BH139: 0.06325495939 | BJ139: 0.02863816291 | BL139: 0.03157163343 | BN139: 0.03286510473 | BP139: 0.06963780512 | BR139: 0.02832810524
B140: 117 | D140: 0.02767187332 | F140: 0.02753888241 | H140: 0.03334446242 | J140: 0.03217728872 | L140: 0.02764527888 | N140: 0.03984586971 | P140: 0.03638046141 | R140: 0.02223794346 | T140: 0.03260581069 | V140: 0.03263252601 | X140: 0.03819884253 | Z140: 0.05030733133 | AA140: 0.03404691003 | AB140: 0.03369742265 | AD140: 0.02223794346 | AF140: 0.02226757964 | AH140: 0.03181103121 | AJ140: 0.05939108019 | AL140: 0.02895110975 | AN140: 0.04314618142 | AP140: 0.04195166247 | AR140: 0.05381871174 | AT140: 0.0313673803 | AV140: 0.05686463697 | AX140: 0.02525529713 | AZ140: 0.03847287322 | BB140: 0.05309803413 | BD140: 0.03064734377 | BF140: 0.02973707482 | BH140: 0.06318414863 | BJ140: 0.02871356402 | BL140: 0.03162215268 | BN140: 0.03290462561 | BP140: 0.06951185868 | BR140: 0.02840612587
B141: 118 | D141: 0.02775475123 | F141: 0.02762287641 | H141: 0.03337960429 | J141: 0.03222227605 | L141: 0.02772837999 | N141: 0.03988943684 | P141: 0.03638994357 | R141: 0.02228241838 | T141: 0.03264718475 | V141: 0.03267367484 | X141: 0.03819291936 | Z141: 0.05027501443 | AA141: 0.03407612516 | AB141: 0.03372958926 | AD141: 0.02228241838 | AF141: 0.02239559001 | AH141: 0.03185910414 | AJ141: 0.05935379733 | AL141: 0.02902322965 | AN141: 0.04316187809 | AP141: 0.0419774556 | AR141: 0.05374367943 | AT141: 0.03141919093 | AV141: 0.05684882402 | AX141: 0.02533746743 | AZ141: 0.03846463069 | BB141: 0.0530504818 | BD141: 0.03070521483 | BF141: 0.02980260325 | BH141: 0.06311454101 | BJ141: 0.02878769437 | BL141: 0.03167181873 | BN141: 0.03294347865 | BP141: 0.06938805955 | BR141: 0.02848283243
B142: 119 | D142: 0.02783624454 | F142: 0.02770546724 | H142: 0.03341415713 | J142: 0.03226650971 | L142: 0.02781009278 | N142: 0.03993227401 | P142: 0.03639926648 | R142: 0.02232614822 | T142: 0.03268786554 | V142: 0.03271413415 | X142: 0.03818709565 | Z142: 0.050243241 | AA142: 0.03410485009 | AB142: 0.03376121622 | AD142: 0.02232614822 | AF142: 0.02252147719 | AH142: 0.031906372 | AJ142: 0.05931714175 | AL142: 0.02909414536 | AN142: 0.04317731116 | AP142: 0.04200281613 | AR142: 0.05366991202 | AT142: 0.0314701341 | AV142: 0.0568332768 | AX142: 0.02541826553 | AZ142: 0.03845652618 | BB142: 0.05300372942 | BD142: 0.03076211754 | BF142: 0.02986703578 | BH142: 0.06304610623 | BJ142: 0.02886058569 | BL142: 0.03172065295 | BN142: 0.03298168062 | BP142: 0.06926635338 | BR142: 0.02855825768
B143: 120 | D143: 0.02791638753 | F143: 0.02778668965 | H143: 0.0334481356 | J143: 0.03231000846 | L143: 0.02789045164 | N143: 0.03997439936 | P143: 0.03640843413 | R143: 0.0223691515 | T143: 0.03272787029 | V143: 0.0327539211 | X143: 0.03818136893 | Z143: 0.0502119975 | AA143: 0.03413309705 | AB143: 0.03379231701 | AD143: 0.0223691515 | AF143: 0.02264529268 | AH143: 0.0319528548 | AJ143: 0.05928109779 | AL143: 0.02916388658 | AN143: 0.04319248723 | AP143: 0.04202775482 | AR143: 0.0535973779 | AT143: 0.03152023135 | AV143: 0.05681798867 | AX143: 0.02549772533 | AZ143: 0.0384485563 | BB143: 0.05295775708 | BD143: 0.03081807593 | BF143: 0.02993039959 | BH143: 0.06297881501 | BJ143: 0.02893226866 | BL143: 0.03176867604 | BN143: 0.0330192477 | BP143: 0.06914668768 | BR143: 0.0286324333
B144: 121 | D144: 0.02799521337 | F144: 0.02786657726 | H144: 0.03348155388 | J144: 0.03235279043 | L144: 0.02796948981 | N144: 0.04001583046 | P144: 0.03641745036 | R144: 0.02241144616 | T144: 0.0327672157 | V144: 0.03279305227 | X144: 0.03817573682 | Z144: 0.05018127081 | AA144: 0.03416087787 | AB144: 0.03382290466 | AD144: 0.02241144616 | AF144: 0.02276708643 | AH144: 0.03199857188 | AJ144: 0.05924565031 | AL144: 0.02923248206 | AN144: 0.04320741265 | AP144: 0.0420522821 | AR144: 0.05352604646 | AT144: 0.03156950355 | AV144: 0.05680295323 | AX144: 0.02557587967 | AZ144: 0.03844071776 | BB144: 0.0529125455 | BD144: 0.03087311324 | BF144: 0.02999272097 | BH144: 0.06291263901 | BJ144: 0.02900277299 | BL144: 0.03181590799 | BN144: 0.03305619556 | BP144: 0.06902901166 | BR144: 0.02870538993
B145: 122 | D145: 0.02807275417 | F145: 0.02794516261 | H145: 0.03351442568 | J145: 0.03239487316 | L145: 0.0280472395 | N145: 0.04005658431 | P145: 0.03642631888 | R145: 0.02245304953 | T145: 0.03280591791 | V145: 0.03283154373 | X145: 0.03817019698 | Z145: 0.05015104825 | AA145: 0.03418820399 | AB145: 0.03385299175 | AD145: 0.02245304953 | AF145: 0.02288690682 | AH145: 0.03204354199 | AJ145: 0.05921078467 | AL145: 0.02929995963 | AN145: 0.0432220936 | AP145: 0.04207640805 | AR145: 0.05345588813 | AT145: 0.03161797085 | AV145: 0.05678816429 | AX145: 0.02565276033 | AZ145: 0.03843300737 | BB145: 0.05286807603 | BD145: 0.03092725197 | BF145: 0.03005402534 | BH145: 0.06284755081 | BJ145: 0.02907212742 | BL145: 0.03186236817 | BN145: 0.03309253936 | BP145: 0.06891327619 | BR145: 0.02877715726
B146: 123 | D146: 0.02814904101 | F146: 0.02802247717 | H146: 0.03354676427 | J146: 0.03243627362 | L146: 0.02812373187 | N146: 0.04009667736 | P146: 0.03643504329 | R146: 0.02249397841 | T146: 0.03284399253 | V146: 0.03286941101 | X146: 0.03816474717 | Z146: 0.05012131756 | AA146: 0.03421508649 | AB146: 0.03388259047 | AD146: 0.02249397841 | AF146: 0.02300480079 | AH146: 0.03208778324 | AJ146: 0.05917648667 | AL146: 0.02936634625 | AN146: 0.04323653601 | AP146: 0.04210014243 | AR146: 0.05338687427 | AT146: 0.03166565279 | AV146: 0.05677361584 | AX146: 0.02572839805 | AZ146: 0.03842542204 | BB146: 0.0528243306 | BD146: 0.03098051388 | BF146: 0.03011433734 | BH146: 0.06278352389 | BJ146: 0.02914035976 | BL146: 0.03190807532 | BN146: 0.03312829377 | BP146: 0.06879943375 | BR146: 0.02884776401
B147: 124 | D147: 0.02822410398 | F147: 0.02809855145 | H147: 0.03357858251 | J147: 0.03247700825 | L147: 0.02819899708 | N147: 0.04013612553 | P147: 0.03644362708 | R147: 0.02253424904 | T147: 0.03288145468 | V147: 0.03290666914 | X147: 0.03815938523 | Z147: 0.05009206684 | AA147: 0.03424153609 | AB147: 0.03391171262 | AD147: 0.02253424904 | AF147: 0.02312081386 | AH147: 0.03213131317 | AJ147: 0.05914274261 | AL147: 0.02943166804 | AN147: 0.04325074568 | AP147: 0.04212349468 | AR147: 0.05331897716 | AT147: 0.03171256825 | AV147: 0.05675930209 | AX147: 0.02580282265 | AZ147: 0.03841795879 | BB147: 0.05278129175 | BD147: 0.03103292006 | BF147: 0.0301736808 | BH147: 0.06272053258 | BJ147: 0.02920749695 | BL147: 0.03195304755 | BN147: 0.03316347298 | BP147: 0.06868743835 | BR147: 0.028917238
B148: 125 | D148: 0.02829797222 | F148: 0.02817341499 | H148: 0.03360989284 | J148: 0.03251709297 | L148: 0.02827306436 | N148: 0.04017494424 | P148: 0.03645207362 | R148: 0.02257387715 | T148: 0.03291831901 | V148: 0.0329433327 | X148: 0.03815410904 | Z148: 0.0500632846 | AA148: 0.03426756315 | AB148: 0.03394036962 | AD148: 0.02257387715 | AF148: 0.02323499015 | AH148: 0.03217414879 | AJ148: 0.05910953918 | AL148: 0.02949595027 | AN148: 0.04326472816 | AP148: 0.04214647395 | AR148: 0.05325216997 | AT148: 0.03175873556 | AV148: 0.05674521739 | AX148: 0.02587606297 | AZ148: 0.0384106147 | BB148: 0.05273894254 | BD148: 0.03108449091 | BF148: 0.03023207882 | BH148: 0.06265855199 | BJ148: 0.02927356508 | BL148: 0.03199730245 | BN148: 0.03319809076 | BP148: 0.06857724547 | BR148: 0.02898560619
B149: 126 | D149: 0.02837067396 | F149: 0.02824709638 | H149: 0.03364070731 | J149: 0.03255654318 | L149: 0.02834596201 | N149: 0.0402131484 | P149: 0.03646038617 | R149: 0.02261287798 | T149: 0.0329545997 | V149: 0.03297941578 | X149: 0.03814891658 | Z149: 0.05003495969 | AA149: 0.03429317772 | AB149: 0.03396857252 | AD149: 0.02261287798 | AF149: 0.02334737249 | AH149: 0.03221630653 | AJ149: 0.05907686353 | AL149: 0.02955921747 | AN149: 0.04327848888 | AP149: 0.04216908908 | AR149: 0.05318642671 | AT149: 0.03180417242 | AV149: 0.05673135632 | AX149: 0.02594814697 | AZ149: 0.03840338697 | BB149: 0.05269726659 | BD149: 0.03113524622 | BF149: 0.03028955375 | BH149: 0.06259755807 | BJ149: 0.02933858943 | BL149: 0.03204085701 | BN149: 0.0332321604 | BP149: 0.068468812 | BR149: 0.02905289468
B150: 127 | D150: 0.02844223657 | F150: 0.02831962335 | H150: 0.03367103759 | J150: 0.03259537382 | L150: 0.02841771747 | N150: 0.0402507525 | P150: 0.03646856789 | R150: 0.02265126629 | T150: 0.03299031048 | V150: 0.03301493205 | X150: 0.03814380587 | Z150: 0.05000708132 | AA150: 0.03431838953 | AB150: 0.03399633203 | AD150: 0.02265126629 | AF150: 0.02345800239 | AH150: 0.03225780235 | AJ150: 0.05904470319 | AL150: 0.02962149339 | AN150: 0.04329203307 | AP150: 0.04219134866 | AR150: 0.05312172222 | AT150: 0.03184889603 | AV150: 0.0567177136 | AX150: 0.02601910173 | AZ150: 0.03839627287 | BB150: 0.05265624799 | BD150: 0.03118520514 | BF150: 0.03034612728 | BH150: 0.06253752748 | BJ150: 0.02940259447 | BL150: 0.0320837277 | BN150: 0.03326569482 | BP150: 0.06836209619 | BR150: 0.02911912877
B151: 128 | D151: 0.02851268655 | F151: 0.02839102277 | H151: 0.03370089498 | J151: 0.03263359935 | L151: 0.02848835732 | N151: 0.04028777053 | P151: 0.03647662185 | R151: 0.02268905638 | T151: 0.03302546466 | V151: 0.03304989474 | X151: 0.03813877499 | Z151: 0.04997963903 | AA151: 0.03434320801 | AB151: 0.03402365852 | AD151: 0.02268905638 | AF151: 0.02356692016 | AH151: 0.03229865168 | AJ151: 0.05901304608 | AL151: 0.02968280105 | AN151: 0.04330536579 | AP151: 0.04221326101 | AR151: 0.05305803212 | AT151: 0.031892923 | AV151: 0.05670428411 | AX151: 0.02608895352 | AZ151: 0.03838926977 | BB151: 0.05261587138 | BD151: 0.03123438623 | BF151: 0.03040182038 | BH151: 0.06247843762 | BJ151: 0.02946560395 | BL151: 0.03212593049 | BN151: 0.03329870651 | BP151: 0.06825705761 | BR151: 0.02918433298
B152: 129 | D152: 0.0285820496 | F152: 0.02846132068 | H152: 0.03373029046 | J152: 0.0326712338 | L152: 0.02855790733 | N152: 0.04032421609 | P152: 0.03648455102 | R152: 0.02272626211 | T152: 0.03306007514 | V152: 0.03308431669 | X152: 0.0381338221 | Z152: 0.04995262269 | AA152: 0.03436764229 | AB152: 0.03405056206 | AD152: 0.02272626211 | AF152: 0.02367416488 | AH152: 0.03233886951 | AJ152: 0.05898188049 | AL152: 0.02974316278 | AN152: 0.04331849197 | AP152: 0.04223483416 | AR152: 0.05299533275 | AT152: 0.03193626949 | AV152: 0.0566910629 | AX152: 0.02615772779 | AZ152: 0.0383823751 | BB152: 0.05257612181 | BD152: 0.03128280749 | BF152: 0.03045665344 | BH152: 0.06242026659 | BJ152: 0.02952764086 | BL152: 0.03216748086 | BN152: 0.03333120758 | BP152: 0.06815365705 | BR152: 0.02924853109
B153: 130 | D153: 0.02865035064 | F153: 0.02853054233 | H153: 0.03375923465 | J153: 0.03270829075 | L153: 0.02862639247 | N153: 0.04036010233 | P153: 0.03649235827 | R153: 0.02276289693 | T153: 0.03309415443 | V153: 0.03311821033 | X153: 0.03812894539 | Z153: 0.04992602247 | AA153: 0.03439170122 | AB153: 0.03407705238 | AD153: 0.02276289693 | AF153: 0.02377977452 | AH153: 0.03237847035 | AJ153: 0.0589511951 | AL153: 0.02980260023 | AN153: 0.04333141636 | AP153: 0.04225607594 | AR153: 0.05293360123 | AT153: 0.03197895112 | AV153: 0.05667804518 | AX153: 0.02622544922 | AZ153: 0.03837558637 | BB153: 0.05253698485 | BD153: 0.03133048636 | BF153: 0.03051064617 | BH153: 0.06236299317 | BJ153: 0.02958872751 | BL153: 0.0322083938 | BN153: 0.03336320979 | BP153: 0.06805185655 | BR153: 0.02931174615
B154: 131 | D154: 0.02871761384 | F154: 0.0285987122 | H154: 0.03378773785 | J154: 0.03274478339 | L154: 0.02869383699 | N154: 0.04039544203 | P154: 0.03650004639 | R154: 0.02279897385 | T154: 0.03312771465 | V154: 0.03315158771 | X154: 0.03812414313 | Z154: 0.04989982885 | AA154: 0.03441539338 | AB154: 0.03410313893 | AD154: 0.02279897385 | AF154: 0.02388378589 | AH154: 0.03241746826 | AJ154: 0.05892097888 | AL154: 0.02986113441 | AN154: 0.04334414358 | AP154: 0.04227699392 | AR154: 0.05287281535 | AT154: 0.03202098305 | AV154: 0.05666522628 | AX154: 0.02629214176 | AZ154: 0.03836890117 | BB154: 0.05249844645 | BD154: 0.03137743977 | BF154: 0.03056381773 | BH154: 0.06230659676 | BJ154: 0.02964888554 | BL154: 0.03224868385 | BN154: 0.03339472451 | BP154: 0.06795161929 | BR154: 0.02937400051
B155: 132 | D155: 0.02878386264 | F155: 0.02866585406 | H155: 0.03381581006 | J155: 0.03278072449 | L155: 0.02876026438 | N155: 0.04043024757 | P155: 0.03650761809 | R155: 0.02283450553 | T155: 0.03316076757 | V155: 0.03318446055 | X155: 0.03811941363 | Z155: 0.04987403258 | AA155: 0.0344387271 | AB155: 0.03412883087 | AD155: 0.02283450553 | AF155: 0.02398623477 | AH155: 0.03245587691 | AJ155: 0.05889122118 | AL155: 0.0299187857 | AN155: 0.04335667812 | AP155: 0.04229759543 | AR155: 0.05281295356 | AT155: 0.03206238 | AV155: 0.0566526017 | AX155: 0.02635782863 | AZ155: 0.03836231717 | BB155: 0.05246049301 | BD155: 0.03142368413 | BF155: 0.03061618667 | BH155: 0.06225105741 | BJ155: 0.02970813592 | BL155: 0.03228836513 | BN155: 0.0334257628 | BP155: 0.06785290956 | BR155: 0.02943531587
B156: 133 | D156: 0.02884911977 | F156: 0.02873199095 | H156: 0.03384346096 | J156: 0.03281612647 | L156: 0.02882569745 | N156: 0.04046453096 | P156: 0.03651507599 | R156: 0.02286950421 | T156: 0.03319332458 | V156: 0.03321684019 | X156: 0.03811475524 | Z156: 0.0498486247 | AA156: 0.03446171046 | AB156: 0.03415413709 | AD156: 0.02286950421 | AF156: 0.02408715587 | AH156: 0.03249370954 | AJ156: 0.05886191166 | AL156: 0.02997557385 | AN156: 0.04336902431 | AP156: 0.0423178876 | AR156: 0.05275399497 | AT156: 0.03210315623 | AV156: 0.05664016704 | AX156: 0.02642253236 | AZ156: 0.0383558321 | BB156: 0.05242311135 | BD156: 0.03146923535 | BF156: 0.03066777101 | BH156: 0.06219635575 | BJ156: 0.02976649901 | BL156: 0.03232745131 | BN156: 0.03345633536 | BP156: 0.06775569274 | BR156: 0.02949571327
B157: 134 | D157: 0.02891340732 | F157: 0.02879714524 | H157: 0.03387069998 | J157: 0.03285100134 | L157: 0.02889015833 | N157: 0.04049830386 | P157: 0.03652242263 | R157: 0.02290398179 | T157: 0.03322539677 | V157: 0.03324873762 | X157: 0.03811016638 | Z157: 0.04982359652 | AA157: 0.03448435127 | AB157: 0.03417906621 | AD157: 0.02290398179 | AF157: 0.02418658292 | AH157: 0.032530979 | AJ157: 0.05883304026 | AL157: 0.03003151808 | AN157: 0.04338118637 | AP157: 0.04233787734 | AR157: 0.05269591933 | AT157: 0.03214332559 | AV157: 0.05662791806 | AX157: 0.02648627482 | AZ157: 0.03834944374 | BB157: 0.05238628867 | BD157: 0.03151410889 | BF157: 0.03071858823 | BH157: 0.06214247299 | BJ157: 0.02982399457 | BL157: 0.03236595568 | BN157: 0.0334864526 | BP157: 0.06765993525 | BR157: 0.02955521314
B158: 135 | D158: 0.02897674671 | F158: 0.02886133863 | H158: 0.03389753623 | J158: 0.03288536079 | L158: 0.0289536685 | N158: 0.04053157757 | P158: 0.0365296605 | R158: 0.02293794982 | T158: 0.03325699487 | V158: 0.03328016355 | X158: 0.0381056455 | Z158: 0.0497989396 | AA158: 0.03450665716 | AB158: 0.0342036266 | AD158: 0.02293794982 | AF158: 0.02428454866 | AH158: 0.03256769775 | AJ158: 0.05880459725 | AL158: 0.030086637 | AN158: 0.04339316838 | AP158: 0.04235757137 | AR158: 0.05263870696 | AT158: 0.03218290151 | AV158: 0.05661585065 | AX158: 0.02654907725 | AZ158: 0.03834314996 | BB158: 0.05235001252 | BD158: 0.03155831975 | BF158: 0.03076865529 | BH158: 0.06208939091 | BJ158: 0.02988064178 | BL158: 0.03240389112 | BN158: 0.03351612461 | BP158: 0.06756560449 | BR158: 0.02961383529
B159: 136 | D159: 0.02903915874 | F159: 0.02892459222 | H159: 0.03392397858 | J159: 0.03291921616 | L159: 0.02901624882 | N159: 0.04056436308 | P159: 0.03653679198 | R159: 0.02297141951 | T159: 0.03328812931 | V159: 0.03331112834 | X159: 0.0381011911 | Z159: 0.04977464575 | AA159: 0.03452863548 | AB159: 0.03422782638 | AD159: 0.02297141951 | AF159: 0.02438108492 | AH159: 0.03260387791 | AJ159: 0.05877657317 | AL159: 0.03014094871 | AN159: 0.04340497432 | AP159: 0.04237697618 | AR159: 0.05258233877 | AT159: 0.03222189704 | AV159: 0.05660396078 | AX159: 0.02661096025 | AZ159: 0.03833694869 | BB159: 0.05231427086 | BD159: 0.03160188247 | BF159: 0.03081798867 | BH159: 0.06203709181 | BJ159: 0.02993645925 | BL159: 0.03244127014 | BN159: 0.03354536117 | BP159: 0.06747266883 | BR159: 0.02967159899
B160: 137 | D160: 0.0291006636 | F160: 0.02898692645 | H160: 0.03395003564 | J160: 0.03295257845 | L160: 0.02907791954 | N160: 0.04059667104 | P160: 0.03654381941 | R160: 0.02300440173 | T160: 0.03331881022 | V160: 0.03334164207 | X160: 0.03809680174 | Z160: 0.04975070701 | AA160: 0.03455029341 | AB160: 0.03425167343 | AD160: 0.02300440173 | AF160: 0.0244762226 | AH160: 0.03263953123 | AJ160: 0.05874895884 | AL160: 0.03019447078 | AN160: 0.04341660804 | AP160: 0.04239609809 | AR160: 0.05252679624 | AT160: 0.03226032485 | AV160: 0.05659224458 | AX160: 0.02667194384 | AZ160: 0.0383308379 | BB160: 0.05227905197 | BD160: 0.0316448112 | BF160: 0.03086660436 | BH160: 0.06198555851 | BJ160: 0.02999146507 | BL160: 0.03247810488 | BN160: 0.0335741718 | BP160: 0.06738109758 | BR160: 0.02972852292
B161: 138 | D161: 0.02916128091 | F161: 0.02904836122 | H161: 0.03397571575 | J161: 0.03298545835 | L161: 0.02913870033 | N161: 0.04062851181 | P161: 0.03655074504 | R161: 0.02303690705 | T161: 0.03334904743 | V161: 0.0333717145 | X161: 0.03809247599 | Z161: 0.04972711566 | AA161: 0.03457163791 | AB161: 0.03427517541 | AD161: 0.02303690705 | AF161: 0.02456999174 | AH161: 0.03267466914 | AJ161: 0.05872174535 | AL161: 0.03024722027 | AN161: 0.04342807328 | AP161: 0.04241494326 | AR161: 0.05247206136 | AT161: 0.03229819722 | AV161: 0.05658069827 | AX161: 0.02673204746 | AZ161: 0.03832481563 | BB161: 0.05224434448 | BD161: 0.03168711966 | BF161: 0.03091451789 | BH161: 0.06193477432 | BJ161: 0.03004567679 | BL161: 0.03251440715 | BN161: 0.03360256573 | BP161: 0.06729086092 | BR161: 0.02978462524
B162: 139 | D162: 0.02922102973 | F162: 0.02910891584 | H162: 0.03400102704 | J162: 0.03301786624 | L162: 0.02919861029 | N162: 0.04065989545 | P162: 0.03655757107 | R162: 0.02306894574 | T162: 0.03337885049 | V162: 0.03340135515 | X162: 0.03808821249 | Z162: 0.0497038642 | AA162: 0.03459267571 | AB162: 0.03429833975 | AD162: 0.02306894574 | AF162: 0.02466242156 | AH162: 0.03270930271 | AJ162: 0.05869492403 | AL162: 0.03029921377 | AN162: 0.04343937368 | AP162: 0.04243351764 | AR162: 0.05241811666 | AT162: 0.03233552612 | AV162: 0.05656931819 | AX162: 0.02679129 | AZ162: 0.03831887999 | BB162: 0.05221013735 | BD162: 0.0317288212 | BF162: 0.03096174436 | BH162: 0.06188472304 | BJ162: 0.03009911146 | BL162: 0.0325501884 | BN162: 0.03363055193 | BP162: 0.0672019299 | BR162: 0.02983992359
B163: 140 | D163: 0.02927992858 | F163: 0.02916860906 | H163: 0.03402597739 | J163: 0.03304981221 | L163: 0.029257668 | N163: 0.04069083173 | P163: 0.03656429963 | R163: 0.02310052777 | T163: 0.03340822868 | V163: 0.03343057324 | X163: 0.0380840099 | Z163: 0.04968094534 | AA163: 0.0346134134 | AB163: 0.03432117368 | AD163: 0.02310052777 | AF163: 0.02475354042 | AH163: 0.03274344272 | AJ163: 0.05866848647 | AL163: 0.03035046737 | AN163: 0.04345051276 | AP163: 0.04245182702 | AR163: 0.05236494517 | AT163: 0.03237232315 | AV163: 0.05655810077 | AX163: 0.02684968981 | AZ163: 0.03831302911 | BB163: 0.05217641984 | BD163: 0.03176992876 | BF163: 0.03100829842 | BH163: 0.06183538894 | BJ163: 0.03015178567 | BL163: 0.03258545976 | BN163: 0.03365813913 | BP163: 0.0671142764 | BR163: 0.02989443511
B164: 141 | D164: 0.02933799545 | F164: 0.02922745913 | H164: 0.03405057447 | J164: 0.03308130606 | L164: 0.02931589149 | N164: 0.04072133014 | P164: 0.0365709328 | R164: 0.02313166283 | T164: 0.03343719103 | V164: 0.03345937774 | X164: 0.03807986693 | Z164: 0.049658352 | AA164: 0.03463385734 | AB164: 0.03434368422 | AD164: 0.02313166283 | AF164: 0.02484337594 | AH164: 0.03277709965 | AJ164: 0.05864242451 | AL164: 0.03040099676 | AN164: 0.04346149395 | AP164: 0.04246987704 | AR164: 0.05231253039 | AT164: 0.03240859959 | AV164: 0.05654704256 | AX164: 0.02690726473 | AZ164: 0.03830726121 | BB164: 0.05214318153 | BD164: 0.03181045495 | BF164: 0.03105419433 | BH164: 0.06178675672 | BJ164: 0.03020371551 | BL164: 0.03262023205 | BN164: 0.03368533578 | BP164: 0.06702787311 | BR164: 0.02994817646
B165: 142 | D165: 0.02939524783 | F165: 0.02928548377 | H165: 0.03407482571 | J165: 0.03311235732 | L165: 0.02937329831 | N165: 0.04075139991 | P165: 0.03657747259 | R165: 0.02316236034 | T165: 0.03346574628 | V165: 0.03348777737 | X165: 0.03807578232 | Z165: 0.0496360773 | AA165: 0.03465401373 | AB165: 0.03436587819 | AD165: 0.02316236034 | AF165: 0.02493195493 | AH165: 0.03281028368 | AJ165: 0.0586167302 | AL165: 0.03045081713 | AN165: 0.04347232059 | AP165: 0.04248767316 | AR165: 0.05226085628 | AT165: 0.03244436641 | AV165: 0.05653614018 | AX165: 0.0269640321 | AZ165: 0.03830157453 | BB165: 0.05211041227 | BD165: 0.03185041199 | BF165: 0.03109944593 | BH165: 0.06173881152 | BJ165: 0.03025491665 | BL165: 0.03265451578 | BN165: 0.03371215013 | BP165: 0.06694269348 | BR165: 0.03000116382
B166: 143 | D166: 0.02945170274 | F166: 0.02934270022 | H166: 0.03409873837 | J166: 0.03314297525 | L166: 0.0294299055 | N166: 0.04078105001 | P166: 0.03658392096 | R166: 0.02319262945 | T166: 0.03349390297 | V166: 0.0335157806 | X166: 0.03807175484 | Z166: 0.04961411454 | AA166: 0.03467388861 | AB166: 0.03438776222 | AD166: 0.02319262945 | AF166: 0.02501930351 | AH166: 0.03284300468 | AJ166: 0.05859139581 | AL166: 0.0304999433 | AN166: 0.04348299591 | AP166: 0.0425052207 | AR166: 0.05220990727 | AT166: 0.03247963427 | AV166: 0.05652539038 | AX166: 0.02702000877 | AZ166: 0.03829596737 | BB166: 0.05207810223 | BD166: 0.0318898118 | BF166: 0.03114406669 | BH166: 0.06169153889 | BJ166: 0.03030540431 | BL166: 0.03268832118 | BN166: 0.03373859016 | BP166: 0.0668587117 | BR166: 0.03005341294
B167: 144 | D167: 0.0295073767 | F167: 0.02939912523 | H167: 0.03412231947 | J167: 0.03317316885 | L167: 0.02948572966 | N167: 0.04081028916 | P167: 0.0365902798 | R167: 0.02322247907 | T167: 0.03352166938 | V167: 0.03354339567 | X167: 0.03806778331 | Z167: 0.04959245724 | AA167: 0.03469348781 | AB167: 0.03440934276 | AD167: 0.02322247907 | AF167: 0.02510544706 | AH167: 0.03287527229 | AJ167: 0.05856641384 | AL167: 0.03054838966 | AN167: 0.04349352308 | AP167: 0.04252252483 | AR167: 0.05215966822 | AT167: 0.03251441352 | AV167: 0.05651478996 | AX167: 0.02707521113 | AZ167: 0.03829043807 | BB167: 0.05204624182 | BD167: 0.03192866593 | BF167: 0.03118806969 | BH167: 0.06164492478 | BJ167: 0.03035519329 | BL167: 0.03272165818 | BN167: 0.03376466367 | BP167: 0.0667759027 | BR167: 0.03010493914
B168: 145 | D168: 0.0295622858 | F168: 0.02945477511 | H168: 0.03414557588 | J168: 0.03320294688 | L168: 0.0295407869 | N168: 0.04083912584 | P168: 0.03659655098 | R168: 0.02325191786 | T168: 0.03354905357 | V168: 0.03357063059 | X168: 0.03806386656 | Z168: 0.04957109905 | AA168: 0.03471281705 | AB168: 0.03443062607 | AD168: 0.02325191786 | AF168: 0.02519041029 | AH168: 0.03290709586 | AJ168: 0.05854177699 | AL168: 0.03059617021 | AN168: 0.04350390514 | AP168: 0.04253959058 | AR168: 0.05211012438 | AT168: 0.03254871426 | AV168: 0.05650433585 | AX168: 0.02712965514 | AZ168: 0.03828498504 | BB168: 0.05201482173 | BD168: 0.03196698564 | BF168: 0.03123146769 | BH168: 0.06159895554 | BJ168: 0.03040429797 | BL168: 0.03275453645 | BN168: 0.03379037822 | BP168: 0.06669424209 | BR168: 0.03015575729
B169: 146 | D169: 0.02961644569 | F169: 0.02950966571 | H169: 0.03416851423 | J169: 0.03323231787 | L169: 0.02959509291 | N169: 0.04086756831 | P169: 0.0366027363 | R169: 0.02328095423 | T169: 0.03357606336 | V169: 0.03359749316 | X169: 0.03806000348 | Z169: 0.04955003383 | AA169: 0.03473188185 | AB169: 0.03445161827 | AD169: 0.02328095423 | AF169: 0.02527421723 | AH169: 0.03293848449 | AJ169: 0.05851747816 | AL169: 0.03064329856 | AN169: 0.04351414509 | AP169: 0.04255642284 | AR169: 0.05206126143 | AT169: 0.03258254628 | AV169: 0.05649402503 | AX169: 0.02718335629 | AZ169: 0.03827960671 | BB169: 0.05198383289 | BD169: 0.03200478188 | BF169: 0.03127427305 | BH169: 0.06155361789 | BJ169: 0.03045273237 | BL169: 0.03278696539 | BN169: 0.03381574117 | BP169: 0.06661370614 | BR169: 0.03020588188
B170: 147 | D170: 0.02966987158 | F170: 0.02956381245 | H170: 0.03419114102 | J170: 0.03326129009 | L170: 0.02964866296 | N170: 0.0408956246 | P170: 0.03660883749 | R170: 0.02330959638 | T170: 0.03360270639 | V170: 0.03362399096 | X170: 0.03805619296 | Z170: 0.0495292556 | AA170: 0.03475068761 | AB170: 0.03447232527 | AD170: 0.02330959638 | AF170: 0.02535689127 | AH170: 0.03296944703 | AJ170: 0.05849351044 | AL170: 0.03068978797 | AN170: 0.04352424581 | AP170: 0.04257302637 | AR170: 0.05201306545 | AT170: 0.03261591912 | AV170: 0.05648385458 | AX170: 0.02723632968 | AZ170: 0.03827430155 | BB170: 0.05195326651 | BD170: 0.0320420653 | BF170: 0.03131649783 | BH170: 0.0615088989 | BJ170: 0.03050051012 | BL170: 0.03281895415 | BN170: 0.03384075967 | BP170: 0.0665342718 | BR170: 0.03025532701
B171: 148 | D171: 0.02972257831 | F171: 0.02961723035 | H171: 0.03421346255 | J171: 0.03328987162 | L171: 0.0297015119 | N171: 0.0409233025 | P171: 0.03661485628 | R171: 0.02333785228 | T171: 0.03362899007 | V171: 0.03365013137 | X171: 0.03805243395 | Z171: 0.04950875853 | AA171: 0.03476923958 | AB171: 0.03449275285 | AD171: 0.02333785228 | AF171: 0.02543845519 | AH171: 0.03299999209 | AJ171: 0.05846986712 | AL171: 0.03073565132 | AN171: 0.04353421013 | AP171: 0.0425894058 | AR171: 0.05196552286 | AT171: 0.03264884207 | AV171: 0.05647382165 | AX171: 0.02728859 | AZ171: 0.03826906808 | BB171: 0.05192311399 | BD171: 0.03207884626 | BF171: 0.03135815377 | BH171: 0.061464786 | BJ171: 0.03054764446 | BL171: 0.03285051162 | BN171: 0.03386544071 | BP171: 0.06645591663 | BR171: 0.03030410638
B172: 149 | D172: 0.02977458027 | F172: 0.02966993401 | H172: 0.03423548495 | J172: 0.03331807029 | L172: 0.02975365419 | N172: 0.04095060963 | P172: 0.03662079431 | R172: 0.02336572969 | T172: 0.03365492162 | V172: 0.03367592156 | X172: 0.0380487254 | Z172: 0.04948853696 | AA172: 0.03478754285 | AB172: 0.03451290664 | AD172: 0.02336572969 | AF172: 0.02551893115 | AH172: 0.03303012807 | AJ172: 0.05844654165 | AL172: 0.03078090119 | AN172: 0.0435440408 | AP172: 0.04260556563 | AR172: 0.05191862048 | AT172: 0.03268132416 | AV172: 0.05646392347 | AX172: 0.02734015154 | AZ172: 0.03826390486 | BB172: 0.051893367 | BD172: 0.03211513484 | BF172: 0.03139925227 | BH172: 0.06142126696 | BJ172: 0.0305941483 | BL172: 0.03288164647 | BN172: 0.03388979105 | BP172: 0.06637861877 | BR172: 0.03035223336
B173: 150 | D173: 0.02982589151 | F173: 0.02972193767 | H173: 0.03425721419 | J173: 0.03334589376 | L173: 0.0298051039 | N173: 0.04097755338 | P173: 0.0366266532 | R173: 0.02339323617 | T173: 0.03368050808 | V173: 0.03370136853 | X173: 0.03804506631 | Z173: 0.04946858536 | AA173: 0.0348056024 | AB173: 0.03453279209 | AD173: 0.02339323617 | AF173: 0.02559834074 | AH173: 0.03305986313 | AJ173: 0.05842352767 | AL173: 0.03082554977 | AN173: 0.04355374048 | AP173: 0.04262151026 | AR173: 0.05187234547 | AT173: 0.03271337419 | AV173: 0.05645415735 | AX173: 0.02739102822 | AZ173: 0.03825881049 | BB173: 0.05186401741 | BD173: 0.03215094086 | BF173: 0.03143980444 | BH173: 0.06137832987 | BJ173: 0.03064003421 | BL173: 0.03291236712 | BN173: 0.0339138173 | BP173: 0.06630235698 | BR173: 0.03039972093

Sheet RfrAltConfig (hidden)
B2: The DLT points for the alternative extrapolation method define the tenors for which input rates should be observed from Refinitiv.
B3: For DLT tenors starting at the FSP-tenor up to and including the LLP-tenor there is a separte table of weights to determine the LLFR below the first table.
B5: Country | C5: Order | D5: ISO4217 | E5: Instrument | F5: CouponFreq | G5: FSP | H5: LLP | I5: UFR | J5: DLT1 | K5: DLT2 | L5: DLT3 | M5: DLT4 | N5: DLT5 | O5: DLT6 | P5: DLT7 | Q5: DLT8 | R5: DLT9 | S5: DLT10 | T5: DLT11 | U5: DLT12 | V5: DLT13 | W5: DLT14 | X5: DLT15 | Y5: DLT16 | Z5: DLT17 | AA5: DLT18 | AB5: DLT19 | AC5: DLT20 | AD5: DLT21 | AE5: DLT22 | AF5: DLT23 | AG5: DLT24 | AH5: DLT25 | AI5: DLT26 | AJ5: DLT27 | AK5: DLT28 | AL5: DLT29 | AM5: DLT30 | AN5: DLT31 | AO5: DLT32 | AP5: DLT33 | AQ5: DLT34 | AR5: DLT35 | AS5: DLT36 | AT5: DLT37 | AU5: DLT38 | AV5: DLT39 | AW5: DLT40 | AX5: DLT41 | AY5: DLT42 | AZ5: DLT43 | BA5: DLT44 | BB5: DLT45 | BC5: DLT46 | BD5: DLT47 | BE5: DLT48 | BF5: DLT49 | BG5: DLT50
B6: Euro | C6: 1 | D6: EUR | E6: SWP | F6: 1 | G6: 20 | H6: 50 | I6: 3.75 | J6: 1 | K6: 1 | L6: 1 | M6: 1 | N6: 1 | O6: 1 | P6: 1 | Q6: 1 | R6: 1 | S6: 1 | T6: 1 | U6: 1 | V6: 1 | W6: 1 | X6: 1 | Y6: 0 | Z6: 0 | AA6: 0 | AB6: 0 | AC6: 1 | AD6: 0 | AE6: 0 | AF6: 0 | AG6: 0 | AH6: 1 | AI6: 0 | AJ6: 0 | AK6: 0 | AL6: 0 | AM6: 1 | AN6: 0 | AO6: 0 | AP6: 0 | AQ6: 0 | AR6: 0 | AS6: 0 | AT6: 0 | AU6: 0 | AV6: 0 | AW6: 1 | AX6: 0 | AY6: 0 | AZ6: 0 | BA6: 0 | BB6: 0 | BC6: 0 | BD6: 0 | BE6: 0 | BF6: 0 | BG6: 1
B7: Bulgaria | C7: 2 | D7: BGN | E7: SWP | F7: 1 | G7: 20 | H7: 20 | I7: 3.75 | J7: 1 | K7: 1 | L7: 1 | M7: 1 | N7: 1 | O7: 1 | P7: 1 | Q7: 1 | R7: 1 | S7: 1 | T7: 1 | U7: 1 | V7: 1 | W7: 1 | X7: 1 | Y7: 0 | Z7: 0 | AA7: 0 | AB7: 0 | AC7: 1 | AD7: 0 | AE7: 0 | AF7: 0 | AG7: 0 | AH7: 0 | AI7: 0 | AJ7: 0 | AK7: 0 | AL7: 0 | AM7: 0 | AN7: 0 | AO7: 0 | AP7: 0 | AQ7: 0 | AR7: 0 | AS7: 0 | AT7: 0 | AU7: 0 | AV7: 0 | AW7: 0 | AX7: 0 | AY7: 0 | AZ7: 0 | BA7: 0 | BB7: 0 | BC7: 0 | BD7: 0 | BE7: 0 | BF7: 0 | BG7: 0
B8: Croatia | C8: 3 | D8: HRK | E8: GVT | F8: 0 | G8: 12 | H8: 12 | I8: 3.75 | J8: 1 | K8: 1 | L8: 1 | M8: 1 | N8: 1 | O8: 1 | P8: 1 | Q8: 1 | R8: 1 | S8: 1 | T8: 1 | U8: 1 | V8: 0 | W8: 0 | X8: 0 | Y8: 0 | Z8: 0 | AA8: 0 | AB8: 0 | AC8: 0 | AD8: 0 | AE8: 0 | AF8: 0 | AG8: 0 | AH8: 0 | AI8: 0 | AJ8: 0 | AK8: 0 | AL8: 0 | AM8: 0 | AN8: 0 | AO8: 0 | AP8: 0 | AQ8: 0 | AR8: 0 | AS8: 0 | AT8: 0 | AU8: 0 | AV8: 0 | AW8: 0 | AX8: 0 | AY8: 0 | AZ8: 0 | BA8: 0 | BB8: 0 | BC8: 0 | BD8: 0 | BE8: 0 | BF8: 0 | BG8: 0
B9: Czech Republic | C9: 4 | D9: CZK | E9: SWP | F9: 1 | G9: 10 | H9: 10 | I9: 3.75 | J9: 1 | K9: 1 | L9: 0 | M9: 0 | N9: 1 | O9: 0 | P9: 0 | Q9: 0 | R9: 0 | S9: 1 | T9: 0 | U9: 0 | V9: 0 | W9: 0 | X9: 0 | Y9: 0 | Z9: 0 | AA9: 0 | AB9: 0 | AC9: 0 | AD9: 0 | AE9: 0 | AF9: 0 | AG9: 0 | AH9: 0 | AI9: 0 | AJ9: 0 | AK9: 0 | AL9: 0 | AM9: 0 | AN9: 0 | AO9: 0 | AP9: 0 | AQ9: 0 | AR9: 0 | AS9: 0 | AT9: 0 | AU9: 0 | AV9: 0 | AW9: 0 | AX9: 0 | AY9: 0 | AZ9: 0 | BA9: 0 | BB9: 0 | BC9: 0 | BD9: 0 | BE9: 0 | BF9: 0 | BG9: 0
B10: Denmark | C10: 5 | D10: DKK | E10: SWP | F10: 1 | G10: 20 | H10: 20 | I10: 3.75 | J10: 1 | K10: 1 | L10: 1 | M10: 1 | N10: 1 | O10: 1 | P10: 1 | Q10: 1 | R10: 1 | S10: 1 | T10: 1 | U10: 1 | V10: 1 | W10: 1 | X10: 1 | Y10: 0 | Z10: 0 | AA10: 0 | AB10: 0 | AC10: 1 | AD10: 0 | AE10: 0 | AF10: 0 | AG10: 0 | AH10: 0 | AI10: 0 | AJ10: 0 | AK10: 0 | AL10: 0 | AM10: 0 | AN10: 0 | AO10: 0 | AP10: 0 | AQ10: 0 | AR10: 0 | AS10: 0 | AT10: 0 | AU10: 0 | AV10: 0 | AW10: 0 | AX10: 0 | AY10: 0 | AZ10: 0 | BA10: 0 | BB10: 0 | BC10: 0 | BD10: 0 | BE10: 0 | BF10: 0 | BG10: 0
B11: Hungary | C11: 6 | D11: HUF | E11: SWP | F11: 1 | G11: 10 | H11: 10 | I11: 4.5 | J11: 1 | K11: 1 | L11: 1 | M11: 0 | N11: 1 | O11: 0 | P11: 0 | Q11: 0 | R11: 0 | S11: 1 | T11: 0 | U11: 0 | V11: 0 | W11: 0 | X11: 0 | Y11: 0 | Z11: 0 | AA11: 0 | AB11: 0 | AC11: 0 | AD11: 0 | AE11: 0 | AF11: 0 | AG11: 0 | AH11: 0 | AI11: 0 | AJ11: 0 | AK11: 0 | AL11: 0 | AM11: 0 | AN11: 0 | AO11: 0 | AP11: 0 | AQ11: 0 | AR11: 0 | AS11: 0 | AT11: 0 | AU11: 0 | AV11: 0 | AW11: 0 | AX11: 0 | AY11: 0 | AZ11: 0 | BA11: 0 | BB11: 0 | BC11: 0 | BD11: 0 | BE11: 0 | BF11: 0 | BG11: 0
B12: Iceland | C12: 7 | D12: ISK | E12: GVT | F12: 0 | G12: 8 | H12: 8 | I12: 3.75 | J12: 0 | K12: 1 | L12: 1 | M12: 0 | N12: 0 | O12: 1 | P12: 0 | Q12: 1 | R12: 0 | S12: 0 | T12: 0 | U12: 0 | V12: 0 | W12: 0 | X12: 0 | Y12: 0 | Z12: 0 | AA12: 0 | AB12: 0 | AC12: 0 | AD12: 0 | AE12: 0 | AF12: 0 | AG12: 0 | AH12: 0 | AI12: 0 | AJ12: 0 | AK12: 0 | AL12: 0 | AM12: 0 | AN12: 0 | AO12: 0 | AP12: 0 | AQ12: 0 | AR12: 0 | AS12: 0 | AT12: 0 | AU12: 0 | AV12: 0 | AW12: 0 | AX12: 0 | AY12: 0 | AZ12: 0 | BA12: 0 | BB12: 0 | BC12: 0 | BD12: 0 | BE12: 0 | BF12: 0 | BG12: 0
B13: Liechtenstein | C13: 8 | D13: CHF | E13: SWP | F13: 1 | G13: 10 | H13: 10 | I13: 2.75 | J13: 1 | K13: 1 | L13: 0 | M13: 0 | N13: 1 | O13: 0 | P13: 0 | Q13: 0 | R13: 0 | S13: 1 | T13: 0 | U13: 0 | V13: 0 | W13: 0 | X13: 0 | Y13: 0 | Z13: 0 | AA13: 0 | AB13: 0 | AC13: 0 | AD13: 0 | AE13: 0 | AF13: 0 | AG13: 0 | AH13: 0 | AI13: 0 | AJ13: 0 | AK13: 0 | AL13: 0 | AM13: 0 | AN13: 0 | AO13: 0 | AP13: 0 | AQ13: 0 | AR13: 0 | AS13: 0 | AT13: 0 | AU13: 0 | AV13: 0 | AW13: 0 | AX13: 0 | AY13: 0 | AZ13: 0 | BA13: 0 | BB13: 0 | BC13: 0 | BD13: 0 | BE13: 0 | BF13: 0 | BG13: 0
B14: Norway | C14: 9 | D14: NOK | E14: SWP | F14: 1 | G14: 10 | H14: 10 | I14: 3.75 | J14: 1 | K14: 1 | L14: 1 | M14: 1 | N14: 1 | O14: 0 | P14: 0 | Q14: 0 | R14: 0 | S14: 1 | T14: 0 | U14: 0 | V14: 0 | W14: 0 | X14: 0 | Y14: 0 | Z14: 0 | AA14: 0 | AB14: 0 | AC14: 0 | AD14: 0 | AE14: 0 | AF14: 0 | AG14: 0 | AH14: 0 | AI14: 0 | AJ14: 0 | AK14: 0 | AL14: 0 | AM14: 0 | AN14: 0 | AO14: 0 | AP14: 0 | AQ14: 0 | AR14: 0 | AS14: 0 | AT14: 0 | AU14: 0 | AV14: 0 | AW14: 0 | AX14: 0 | AY14: 0 | AZ14: 0 | BA14: 0 | BB14: 0 | BC14: 0 | BD14: 0 | BE14: 0 | BF14: 0 | BG14: 0
B15: Poland | C15: 10 | D15: PLN | E15: SWP | F15: 1 | G15: 10 | H15: 10 | I15: 3.75 | J15: 1 | K15: 1 | L15: 0 | M15: 0 | N15: 1 | O15: 0 | P15: 0 | Q15: 0 | R15: 0 | S15: 1 | T15: 0 | U15: 0 | V15: 0 | W15: 0 | X15: 0 | Y15: 0 | Z15: 0 | AA15: 0 | AB15: 0 | AC15: 0 | AD15: 0 | AE15: 0 | AF15: 0 | AG15: 0 | AH15: 0 | AI15: 0 | AJ15: 0 | AK15: 0 | AL15: 0 | AM15: 0 | AN15: 0 | AO15: 0 | AP15: 0 | AQ15: 0 | AR15: 0 | AS15: 0 | AT15: 0 | AU15: 0 | AV15: 0 | AW15: 0 | AX15: 0 | AY15: 0 | AZ15: 0 | BA15: 0 | BB15: 0 | BC15: 0 | BD15: 0 | BE15: 0 | BF15: 0 | BG15: 0
B16: Romania | C16: 11 | D16: RON | E16: GVT | F16: 0 | G16: 10 | H16: 15 | I16: 3.75 | J16: 1 | K16: 1 | L16: 1 | M16: 1 | N16: 1 | O16: 0 | P16: 1 | Q16: 1 | R16: 1 | S16: 1 | T16: 0 | U16: 0 | V16: 0 | W16: 0 | X16: 1 | Y16: 0 | Z16: 0 | AA16: 0 | AB16: 0 | AC16: 0 | AD16: 0 | AE16: 0 | AF16: 0 | AG16: 0 | AH16: 0 | AI16: 0 | AJ16: 0 | AK16: 0 | AL16: 0 | AM16: 0 | AN16: 0 | AO16: 0 | AP16: 0 | AQ16: 0 | AR16: 0 | AS16: 0 | AT16: 0 | AU16: 0 | AV16: 0 | AW16: 0 | AX16: 0 | AY16: 0 | AZ16: 0 | BA16: 0 | BB16: 0 | BC16: 0 | BD16: 0 | BE16: 0 | BF16: 0 | BG16: 0
B17: Russia | C17: 12 | D17: RUB | E17: GVT | F17: 0 | G17: 15 | H17: 15 | I17: 4.65 | J17: 1 | K17: 1 | L17: 1 | M17: 1 | N17: 1 | O17: 0 | P17: 1 | Q17: 0 | R17: 1 | S17: 1 | T17: 0 | U17: 0 | V17: 0 | W17: 0 | X17: 1 | Y17: 0 | Z17: 0 | AA17: 0 | AB17: 0 | AC17: 0 | AD17: 0 | AE17: 0 | AF17: 0 | AG17: 0 | AH17: 0 | AI17: 0 | AJ17: 0 | AK17: 0 | AL17: 0 | AM17: 0 | AN17: 0 | AO17: 0 | AP17: 0 | AQ17: 0 | AR17: 0 | AS17: 0 | AT17: 0 | AU17: 0 | AV17: 0 | AW17: 0 | AX17: 0 | AY17: 0 | AZ17: 0 | BA17: 0 | BB17: 0 | BC17: 0 | BD17: 0 | BE17: 0 | BF17: 0 | BG17: 0
B18: Sweden | C18: 13 | D18: SEK | E18: SWP | F18: 1 | G18: 10 | H18: 10 | I18: 3.75 | J18: 1 | K18: 1 | L18: 1 | M18: 1 | N18: 1 | O18: 1 | P18: 1 | Q18: 0 | R18: 0 | S18: 1 | T18: 0 | U18: 0 | V18: 0 | W18: 0 | X18: 0 | Y18: 0 | Z18: 0 | AA18: 0 | AB18: 0 | AC18: 0 | AD18: 0 | AE18: 0 | AF18: 0 | AG18: 0 | AH18: 0 | AI18: 0 | AJ18: 0 | AK18: 0 | AL18: 0 | AM18: 0 | AN18: 0 | AO18: 0 | AP18: 0 | AQ18: 0 | AR18: 0 | AS18: 0 | AT18: 0 | AU18: 0 | AV18: 0 | AW18: 0 | AX18: 0 | AY18: 0 | AZ18: 0 | BA18: 0 | BB18: 0 | BC18: 0 | BD18: 0 | BE18: 0 | BF18: 0 | BG18: 0
B19: Switzerland | C19: 14 | D19: CHF | E19: SWP | F19: 1 | G19: 10 | H19: 10 | I19: 2.75 | J19: 1 | K19: 1 | L19: 0 | M19: 0 | N19: 1 | O19: 0 | P19: 0 | Q19: 0 | R19: 0 | S19: 1 | T19: 0 | U19: 0 | V19: 0 | W19: 0 | X19: 0 | Y19: 0 | Z19: 0 | AA19: 0 | AB19: 0 | AC19: 0 | AD19: 0 | AE19: 0 | AF19: 0 | AG19: 0 | AH19: 0 | AI19: 0 | AJ19: 0 | AK19: 0 | AL19: 0 | AM19: 0 | AN19: 0 | AO19: 0 | AP19: 0 | AQ19: 0 | AR19: 0 | AS19: 0 | AT19: 0 | AU19: 0 | AV19: 0 | AW19: 0 | AX19: 0 | AY19: 0 | AZ19: 0 | BA19: 0 | BB19: 0 | BC19: 0 | BD19: 0 | BE19: 0 | BF19: 0 | BG19: 0
B20: United Kingdom | C20: 15 | D20: GBP | E20: SWP | F20: 2 | G20: 40 | H20: 50 | I20: 3.75 | J20: 1 | K20: 1 | L20: 1 | M20: 1 | N20: 1 | O20: 1 | P20: 1 | Q20: 1 | R20: 1 | S20: 1 | T20: 0 | U20: 1 | V20: 0 | W20: 0 | X20: 1 | Y20: 0 | Z20: 0 | AA20: 0 | AB20: 0 | AC20: 1 | AD20: 0 | AE20: 0 | AF20: 0 | AG20: 0 | AH20: 1 | AI20: 0 | AJ20: 0 | AK20: 0 | AL20: 0 | AM20: 1 | AN20: 0 | AO20: 0 | AP20: 0 | AQ20: 0 | AR20: 0 | AS20: 0 | AT20: 0 | AU20: 0 | AV20: 0 | AW20: 1 | AX20: 0 | AY20: 0 | AZ20: 0 | BA20: 0 | BB20: 0 | BC20: 0 | BD20: 0 | BE20: 0 | BF20: 0 | BG20: 1
B21: Australia | C21: 16 | D21: AUD | E21: SWP | F21: 2 | G21: 15 | H21: 30 | I21: 3.75 | J21: 1 | K21: 1 | L21: 1 | M21: 1 | N21: 1 | O21: 0 | P21: 1 | Q21: 0 | R21: 0 | S21: 1 | T21: 0 | U21: 1 | V21: 0 | W21: 0 | X21: 1 | Y21: 0 | Z21: 0 | AA21: 0 | AB21: 0 | AC21: 1 | AD21: 0 | AE21: 0 | AF21: 0 | AG21: 0 | AH21: 1 | AI21: 0 | AJ21: 0 | AK21: 0 | AL21: 0 | AM21: 1 | AN21: 0 | AO21: 0 | AP21: 0 | AQ21: 0 | AR21: 0 | AS21: 0 | AT21: 0 | AU21: 0 | AV21: 0 | AW21: 0 | AX21: 0 | AY21: 0 | AZ21: 0 | BA21: 0 | BB21: 0 | BC21: 0 | BD21: 0 | BE21: 0 | BF21: 0 | BG21: 0
B22: Brazil | C22: 17 | D22: BRL | E22: GVT | F22: 0 | G22: 10 | H22: 10 | I22: 5.5 | J22: 1 | K22: 1 | L22: 1 | M22: 1 | N22: 1 | O22: 1 | P22: 1 | Q22: 1 | R22: 1 | S22: 1 | T22: 0 | U22: 0 | V22: 0 | W22: 0 | X22: 0 | Y22: 0 | Z22: 0 | AA22: 0 | AB22: 0 | AC22: 0 | AD22: 0 | AE22: 0 | AF22: 0 | AG22: 0 | AH22: 0 | AI22: 0 | AJ22: 0 | AK22: 0 | AL22: 0 | AM22: 0 | AN22: 0 | AO22: 0 | AP22: 0 | AQ22: 0 | AR22: 0 | AS22: 0 | AT22: 0 | AU22: 0 | AV22: 0 | AW22: 0 | AX22: 0 | AY22: 0 | AZ22: 0 | BA22: 0 | BB22: 0 | BC22: 0 | BD22: 0 | BE22: 0 | BF22: 0 | BG22: 0
B23: Canada | C23: 18 | D23: CAD | E23: SWP | F23: 2 | G23: 30 | H23: 30 | I23: 3.75 | J23: 1 | K23: 1 | L23: 1 | M23: 1 | N23: 1 | O23: 0 | P23: 1 | Q23: 0 | R23: 0 | S23: 1 | T23: 0 | U23: 0 | V23: 0 | W23: 0 | X23: 0 | Y23: 0 | Z23: 0 | AA23: 0 | AB23: 0 | AC23: 0 | AD23: 0 | AE23: 0 | AF23: 0 | AG23: 0 | AH23: 0 | AI23: 0 | AJ23: 0 | AK23: 0 | AL23: 0 | AM23: 1 | AN23: 0 | AO23: 0 | AP23: 0 | AQ23: 0 | AR23: 0 | AS23: 0 | AT23: 0 | AU23: 0 | AV23: 0 | AW23: 0 | AX23: 0 | AY23: 0 | AZ23: 0 | BA23: 0 | BB23: 0 | BC23: 0 | BD23: 0 | BE23: 0 | BF23: 0 | BG23: 0
B24: Chile | C24: 19 | D24: CLP | E24: GVT | F24: 0 | G24: 10 | H24: 10 | I24: 4.5 | J24: 1 | K24: 1 | L24: 1 | M24: 1 | N24: 1 | O24: 0 | P24: 1 | Q24: 0 | R24: 0 | S24: 1 | T24: 0 | U24: 0 | V24: 0 | W24: 0 | X24: 0 | Y24: 0 | Z24: 0 | AA24: 0 | AB24: 0 | AC24: 0 | AD24: 0 | AE24: 0 | AF24: 0 | AG24: 0 | AH24: 0 | AI24: 0 | AJ24: 0 | AK24: 0 | AL24: 0 | AM24: 0 | AN24: 0 | AO24: 0 | AP24: 0 | AQ24: 0 | AR24: 0 | AS24: 0 | AT24: 0 | AU24: 0 | AV24: 0 | AW24: 0 | AX24: 0 | AY24: 0 | AZ24: 0 | BA24: 0 | BB24: 0 | BC24: 0 | BD24: 0 | BE24: 0 | BF24: 0 | BG24: 0
B25: China | C25: 20 | D25: CNY | E25: SWP | F25: 4 | G25: 10 | H25: 10 | I25: 4.5 | J25: 1 | K25: 1 | L25: 0 | M25: 0 | N25: 1 | O25: 0 | P25: 0 | Q25: 0 | R25: 0 | S25: 1 | T25: 0 | U25: 0 | V25: 0 | W25: 0 | X25: 0 | Y25: 0 | Z25: 0 | AA25: 0 | AB25: 0 | AC25: 0 | AD25: 0 | AE25: 0 | AF25: 0 | AG25: 0 | AH25: 0 | AI25: 0 | AJ25: 0 | AK25: 0 | AL25: 0 | AM25: 0 | AN25: 0 | AO25: 0 | AP25: 0 | AQ25: 0 | AR25: 0 | AS25: 0 | AT25: 0 | AU25: 0 | AV25: 0 | AW25: 0 | AX25: 0 | AY25: 0 | AZ25: 0 | BA25: 0 | BB25: 0 | BC25: 0 | BD25: 0 | BE25: 0 | BF25: 0 | BG25: 0
B26: Colombia | C26: 21 | D26: COP | E26: GVT | F26: 0 | G26: 10 | H26: 10 | I26: 4.5 | J26: 1 | K26: 1 | L26: 1 | M26: 1 | N26: 1 | O26: 1 | P26: 1 | Q26: 1 | R26: 1 | S26: 1 | T26: 0 | U26: 0 | V26: 0 | W26: 0 | X26: 0 | Y26: 0 | Z26: 0 | AA26: 0 | AB26: 0 | AC26: 0 | AD26: 0 | AE26: 0 | AF26: 0 | AG26: 0 | AH26: 0 | AI26: 0 | AJ26: 0 | AK26: 0 | AL26: 0 | AM26: 0 | AN26: 0 | AO26: 0 | AP26: 0 | AQ26: 0 | AR26: 0 | AS26: 0 | AT26: 0 | AU26: 0 | AV26: 0 | AW26: 0 | AX26: 0 | AY26: 0 | AZ26: 0 | BA26: 0 | BB26: 0 | BC26: 0 | BD26: 0 | BE26: 0 | BF26: 0 | BG26: 0
B27: Hong Kong | C27: 22 | D27: HKD | E27: SWP | F27: 4 | G27: 15 | H27: 15 | I27: 3.75 | J27: 1 | K27: 1 | L27: 1 | M27: 0 | N27: 1 | O27: 0 | P27: 0 | Q27: 0 | R27: 0 | S27: 1 | T27: 0 | U27: 0 | V27: 0 | W27: 0 | X27: 1 | Y27: 0 | Z27: 0 | AA27: 0 | AB27: 0 | AC27: 0 | AD27: 0 | AE27: 0 | AF27: 0 | AG27: 0 | AH27: 0 | AI27: 0 | AJ27: 0 | AK27: 0 | AL27: 0 | AM27: 0 | AN27: 0 | AO27: 0 | AP27: 0 | AQ27: 0 | AR27: 0 | AS27: 0 | AT27: 0 | AU27: 0 | AV27: 0 | AW27: 0 | AX27: 0 | AY27: 0 | AZ27: 0 | BA27: 0 | BB27: 0 | BC27: 0 | BD27: 0 | BE27: 0 | BF27: 0 | BG27: 0
B28: India | C28: 23 | D28: INR | E28: GVT | F28: 0 | G28: 10 | H28: 10 | I28: 5.5 | J28: 1 | K28: 1 | L28: 1 | M28: 1 | N28: 1 | O28: 1 | P28: 1 | Q28: 1 | R28: 1 | S28: 1 | T28: 0 | U28: 0 | V28: 0 | W28: 0 | X28: 0 | Y28: 0 | Z28: 0 | AA28: 0 | AB28: 0 | AC28: 0 | AD28: 0 | AE28: 0 | AF28: 0 | AG28: 0 | AH28: 0 | AI28: 0 | AJ28: 0 | AK28: 0 | AL28: 0 | AM28: 0 | AN28: 0 | AO28: 0 | AP28: 0 | AQ28: 0 | AR28: 0 | AS28: 0 | AT28: 0 | AU28: 0 | AV28: 0 | AW28: 0 | AX28: 0 | AY28: 0 | AZ28: 0 | BA28: 0 | BB28: 0 | BC28: 0 | BD28: 0 | BE28: 0 | BF28: 0 | BG28: 0
B29: Japan | C29: 24 | D29: JPY | E29: SWP | F29: 2 | G29: 25 | H29: 40 | I29: 3.5 | J29: 1 | K29: 1 | L29: 1 | M29: 1 | N29: 1 | O29: 1 | P29: 1 | Q29: 1 | R29: 1 | S29: 1 | T29: 0 | U29: 1 | V29: 0 | W29: 0 | X29: 1 | Y29: 0 | Z29: 0 | AA29: 0 | AB29: 0 | AC29: 1 | AD29: 0 | AE29: 0 | AF29: 0 | AG29: 0 | AH29: 1 | AI29: 0 | AJ29: 0 | AK29: 0 | AL29: 0 | AM29: 1 | AN29: 0 | AO29: 0 | AP29: 0 | AQ29: 0 | AR29: 0 | AS29: 0 | AT29: 0 | AU29: 0 | AV29: 0 | AW29: 1 | AX29: 0 | AY29: 0 | AZ29: 0 | BA29: 0 | BB29: 0 | BC29: 0 | BD29: 0 | BE29: 0 | BF29: 0 | BG29: 0
B30: Malaysia | C30: 25 | D30: MYR | E30: GVT | F30: 0 | G30: 20 | H30: 20 | I30: 3.75 | J30: 1 | K30: 1 | L30: 1 | M30: 1 | N30: 1 | O30: 1 | P30: 1 | Q30: 1 | R30: 1 | S30: 1 | T30: 0 | U30: 1 | V30: 0 | W30: 0 | X30: 1 | Y30: 0 | Z30: 0 | AA30: 0 | AB30: 0 | AC30: 1 | AD30: 0 | AE30: 0 | AF30: 0 | AG30: 0 | AH30: 0 | AI30: 0 | AJ30: 0 | AK30: 0 | AL30: 0 | AM30: 0 | AN30: 0 | AO30: 0 | AP30: 0 | AQ30: 0 | AR30: 0 | AS30: 0 | AT30: 0 | AU30: 0 | AV30: 0 | AW30: 0 | AX30: 0 | AY30: 0 | AZ30: 0 | BA30: 0 | BB30: 0 | BC30: 0 | BD30: 0 | BE30: 0 | BF30: 0 | BG30: 0
B31: Mexico | C31: 26 | D31: MXN | E31: SWP | F31: 13 | G31: 20 | H31: 20 | I31: 4.75 | J31: 1 | K31: 1 | L31: 1 | M31: 1 | N31: 1 | O31: 0 | P31: 1 | Q31: 0 | R31: 0 | S31: 1 | T31: 0 | U31: 0 | V31: 0 | W31: 0 | X31: 0 | Y31: 0 | Z31: 0 | AA31: 0 | AB31: 0 | AC31: 1 | AD31: 0 | AE31: 0 | AF31: 0 | AG31: 0 | AH31: 0 | AI31: 0 | AJ31: 0 | AK31: 0 | AL31: 0 | AM31: 0 | AN31: 0 | AO31: 0 | AP31: 0 | AQ31: 0 | AR31: 0 | AS31: 0 | AT31: 0 | AU31: 0 | AV31: 0 | AW31: 0 | AX31: 0 | AY31: 0 | AZ31: 0 | BA31: 0 | BB31: 0 | BC31: 0 | BD31: 0 | BE31: 0 | BF31: 0 | BG31: 0
B32: New Zealand | C32: 27 | D32: NZD | E32: SWP | F32: 2 | G32: 20 | H32: 20 | I32: 3.75 | J32: 1 | K32: 1 | L32: 1 | M32: 1 | N32: 1 | O32: 1 | P32: 1 | Q32: 1 | R32: 1 | S32: 1 | T32: 0 | U32: 0 | V32: 0 | W32: 0 | X32: 0 | Y32: 0 | Z32: 0 | AA32: 0 | AB32: 0 | AC32: 1 | AD32: 0 | AE32: 0 | AF32: 0 | AG32: 0 | AH32: 0 | AI32: 0 | AJ32: 0 | AK32: 0 | AL32: 0 | AM32: 0 | AN32: 0 | AO32: 0 | AP32: 0 | AQ32: 0 | AR32: 0 | AS32: 0 | AT32: 0 | AU32: 0 | AV32: 0 | AW32: 0 | AX32: 0 | AY32: 0 | AZ32: 0 | BA32: 0 | BB32: 0 | BC32: 0 | BD32: 0 | BE32: 0 | BF32: 0 | BG32: 0
B33: Singapore | C33: 28 | D33: SGD | E33: SWP | F33: 2 | G33: 20 | H33: 20 | I33: 3.75 | J33: 1 | K33: 1 | L33: 1 | M33: 0 | N33: 1 | O33: 0 | P33: 0 | Q33: 0 | R33: 0 | S33: 1 | T33: 0 | U33: 0 | V33: 0 | W33: 0 | X33: 0 | Y33: 0 | Z33: 0 | AA33: 0 | AB33: 0 | AC33: 1 | AD33: 0 | AE33: 0 | AF33: 0 | AG33: 0 | AH33: 0 | AI33: 0 | AJ33: 0 | AK33: 0 | AL33: 0 | AM33: 0 | AN33: 0 | AO33: 0 | AP33: 0 | AQ33: 0 | AR33: 0 | AS33: 0 | AT33: 0 | AU33: 0 | AV33: 0 | AW33: 0 | AX33: 0 | AY33: 0 | AZ33: 0 | BA33: 0 | BB33: 0 | BC33: 0 | BD33: 0 | BE33: 0 | BF33: 0 | BG33: 0
B34: South Africa | C34: 29 | D34: ZAR | E34: SWP | F34: 4 | G34: 15 | H34: 15 | I34: 5.5 | J34: 1 | K34: 1 | L34: 1 | M34: 0 | N34: 1 | O34: 0 | P34: 0 | Q34: 0 | R34: 0 | S34: 1 | T34: 0 | U34: 0 | V34: 0 | W34: 0 | X34: 1 | Y34: 0 | Z34: 0 | AA34: 0 | AB34: 0 | AC34: 0 | AD34: 0 | AE34: 0 | AF34: 0 | AG34: 0 | AH34: 0 | AI34: 0 | AJ34: 0 | AK34: 0 | AL34: 0 | AM34: 0 | AN34: 0 | AO34: 0 | AP34: 0 | AQ34: 0 | AR34: 0 | AS34: 0 | AT34: 0 | AU34: 0 | AV34: 0 | AW34: 0 | AX34: 0 | AY34: 0 | AZ34: 0 | BA34: 0 | BB34: 0 | BC34: 0 | BD34: 0 | BE34: 0 | BF34: 0 | BG34: 0
B35: South Korea | C35: 30 | D35: KRW | E35: SWP | F35: 4 | G35: 20 | H35: 20 | I35: 3.75 | J35: 1 | K35: 1 | L35: 1 | M35: 1 | N35: 1 | O35: 0 | P35: 1 | Q35: 0 | R35: 0 | S35: 1 | T35: 0 | U35: 0 | V35: 0 | W35: 0 | X35: 0 | Y35: 0 | Z35: 0 | AA35: 0 | AB35: 0 | AC35: 1 | AD35: 0 | AE35: 0 | AF35: 0 | AG35: 0 | AH35: 0 | AI35: 0 | AJ35: 0 | AK35: 0 | AL35: 0 | AM35: 0 | AN35: 0 | AO35: 0 | AP35: 0 | AQ35: 0 | AR35: 0 | AS35: 0 | AT35: 0 | AU35: 0 | AV35: 0 | AW35: 0 | AX35: 0 | AY35: 0 | AZ35: 0 | BA35: 0 | BB35: 0 | BC35: 0 | BD35: 0 | BE35: 0 | BF35: 0 | BG35: 0
B36: Taiwan | C36: 31 | D36: TWD | E36: GVT | F36: 0 | G36: 10 | H36: 10 | I36: 3.75 | J36: 1 | K36: 1 | L36: 1 | M36: 1 | N36: 1 | O36: 1 | P36: 1 | Q36: 1 | R36: 1 | S36: 1 | T36: 0 | U36: 0 | V36: 0 | W36: 0 | X36: 0 | Y36: 0 | Z36: 0 | AA36: 0 | AB36: 0 | AC36: 0 | AD36: 0 | AE36: 0 | AF36: 0 | AG36: 0 | AH36: 0 | AI36: 0 | AJ36: 0 | AK36: 0 | AL36: 0 | AM36: 0 | AN36: 0 | AO36: 0 | AP36: 0 | AQ36: 0 | AR36: 0 | AS36: 0 | AT36: 0 | AU36: 0 | AV36: 0 | AW36: 0 | AX36: 0 | AY36: 0 | AZ36: 0 | BA36: 0 | BB36: 0 | BC36: 0 | BD36: 0 | BE36: 0 | BF36: 0 | BG36: 0
B37: Thailand | C37: 32 | D37: THB | E37: GVT | F37: 0 | G37: 15 | H37: 15 | I37: 3.75 | J37: 1 | K37: 1 | L37: 1 | M37: 1 | N37: 1 | O37: 1 | P37: 1 | Q37: 1 | R37: 1 | S37: 1 | T37: 0 | U37: 1 | V37: 0 | W37: 0 | X37: 1 | Y37: 0 | Z37: 0 | AA37: 0 | AB37: 0 | AC37: 0 | AD37: 0 | AE37: 0 | AF37: 0 | AG37: 0 | AH37: 0 | AI37: 0 | AJ37: 0 | AK37: 0 | AL37: 0 | AM37: 0 | AN37: 0 | AO37: 0 | AP37: 0 | AQ37: 0 | AR37: 0 | AS37: 0 | AT37: 0 | AU37: 0 | AV37: 0 | AW37: 0 | AX37: 0 | AY37: 0 | AZ37: 0 | BA37: 0 | BB37: 0 | BC37: 0 | BD37: 0 | BE37: 0 | BF37: 0 | BG37: 0
B38: Turkey | C38: 33 | D38: TRY | E38: GVT | F38: 0 | G38: 9 | H38: 9 | I38: 5.5 | J38: 1 | K38: 1 | L38: 1 | M38: 1 | N38: 1 | O38: 0 | P38: 1 | Q38: 0 | R38: 1 | S38: 0 | T38: 0 | U38: 0 | V38: 0 | W38: 0 | X38: 0 | Y38: 0 | Z38: 0 | AA38: 0 | AB38: 0 | AC38: 0 | AD38: 0 | AE38: 0 | AF38: 0 | AG38: 0 | AH38: 0 | AI38: 0 | AJ38: 0 | AK38: 0 | AL38: 0 | AM38: 0 | AN38: 0 | AO38: 0 | AP38: 0 | AQ38: 0 | AR38: 0 | AS38: 0 | AT38: 0 | AU38: 0 | AV38: 0 | AW38: 0 | AX38: 0 | AY38: 0 | AZ38: 0 | BA38: 0 | BB38: 0 | BC38: 0 | BD38: 0 | BE38: 0 | BF38: 0 | BG38: 0
B39: United States | C39: 34 | D39: USD | E39: SWP | F39: 2 | G39: 25 | H39: 30 | I39: 3.75 | J39: 1 | K39: 1 | L39: 1 | M39: 1 | N39: 1 | O39: 1 | P39: 1 | Q39: 1 | R39: 1 | S39: 1 | T39: 0 | U39: 1 | V39: 0 | W39: 0 | X39: 1 | Y39: 0 | Z39: 0 | AA39: 0 | AB39: 0 | AC39: 1 | AD39: 0 | AE39: 0 | AF39: 0 | AG39: 0 | AH39: 1 | AI39: 0 | AJ39: 0 | AK39: 0 | AL39: 0 | AM39: 1 | AN39: 0 | AO39: 0 | AP39: 0 | AQ39: 0 | AR39: 0 | AS39: 0 | AT39: 0 | AU39: 0 | AV39: 0 | AW39: 0 | AX39: 0 | AY39: 0 | AZ39: 0 | BA39: 0 | BB39: 0 | BC39: 0 | BD39: 0 | BE39: 0 | BF39: 0 | BG39: 0
B42: Weights used to calculate the LLFR for the alternative extrapolation method
B44: Country | C44: Order | D44: ISO4217 | E44: Instrument | F44: FSP | G44: LLP | H44: UFR | I44: 1 | J44: 2 | K44: 3 | L44: 4 | M44: 5 | N44: 6 | O44: 7 | P44: 8 | Q44: 9 | R44: 10 | S44: 11 | T44: 12 | U44: 13 | V44: 14 | W44: 15 | X44: 16 | Y44: 17 | Z44: 18 | AA44: 19 | AB44: 20 | AC44: 21 | AD44: 22 | AE44: 23 | AF44: 24 | AG44: 25 | AH44: 26 | AI44: 27 | AJ44: 28 | AK44: 29 | AL44: 30 | AM44: 31 | AN44: 32 | AO44: 33 | AP44: 34 | AQ44: 35 | AR44: 36 | AS44: 37 | AT44: 38 | AU44: 39 | AV44: 40 | AW44: 41 | AX44: 42 | AY44: 43 | AZ44: 44 | BA44: 45 | BB44: 46 | BC44: 47 | BD44: 48 | BE44: 49 | BF44: 50
B45: Euro | C45: 1 | D45: EUR | E45: SWP | F45: 20 | G45: 50 | H45: 3.75 | I45: 0 | J45: 0 | K45: 0 | L45: 0 | M45: 0 | N45: 0 | O45: 0 | P45: 0 | Q45: 0 | R45: 0 | S45: 0 | T45: 0 | U45: 0 | V45: 0 | W45: 0 | X45: 0 | Y45: 0 | Z45: 0 | AA45: 0 | AB45: 0.33 | AC45: 0 | AD45: 0 | AE45: 0 | AF45: 0 | AG45: 0.12 | AH45: 0 | AI45: 0 | AJ45: 0 | AK45: 0 | AL45: 0.48 | AM45: 0 | AN45: 0 | AO45: 0 | AP45: 0 | AQ45: 0 | AR45: 0 | AS45: 0 | AT45: 0 | AU45: 0 | AV45: 0.04 | AW45: 0 | AX45: 0 | AY45: 0 | AZ45: 0 | BA45: 0 | BB45: 0 | BC45: 0 | BD45: 0 | BE45: 0 | BF45: 0.03
B46: Bulgaria | C46: 4 | D46: BGN | E46: SWP | F46: 20 | G46: 20 | H46: 3.75 | I46: 0 | J46: 0 | K46: 0 | L46: 0 | M46: 0 | N46: 0 | O46: 0 | P46: 0 | Q46: 0 | R46: 0 | S46: 0 | T46: 0 | U46: 0 | V46: 0 | W46: 0 | X46: 0 | Y46: 0 | Z46: 0 | AA46: 0 | AB46: 1 | AC46: 0 | AD46: 0 | AE46: 0 | AF46: 0 | AG46: 0 | AH46: 0 | AI46: 0 | AJ46: 0 | AK46: 0 | AL46: 0 | AM46: 0 | AN46: 0 | AO46: 0 | AP46: 0 | AQ46: 0 | AR46: 0 | AS46: 0 | AT46: 0 | AU46: 0 | AV46: 0 | AW46: 0 | AX46: 0 | AY46: 0 | AZ46: 0 | BA46: 0 | BB46: 0 | BC46: 0 | BD46: 0 | BE46: 0 | BF46: 0
B47: Croatia | C47: 5 | D47: HRK | E47: GVT | F47: 12 | G47: 12 | H47: 3.75 | I47: 0 | J47: 0 | K47: 0 | L47: 0 | M47: 0 | N47: 0 | O47: 0 | P47: 0 | Q47: 0 | R47: 0 | S47: 0 | T47: 1 | U47: 0 | V47: 0 | W47: 0 | X47: 0 | Y47: 0 | Z47: 0 | AA47: 0 | AB47: 0 | AC47: 0 | AD47: 0 | AE47: 0 | AF47: 0 | AG47: 0 | AH47: 0 | AI47: 0 | AJ47: 0 | AK47: 0 | AL47: 0 | AM47: 0 | AN47: 0 | AO47: 0 | AP47: 0 | AQ47: 0 | AR47: 0 | AS47: 0 | AT47: 0 | AU47: 0 | AV47: 0 | AW47: 0 | AX47: 0 | AY47: 0 | AZ47: 0 | BA47: 0 | BB47: 0 | BC47: 0 | BD47: 0 | BE47: 0 | BF47: 0
B48: Czech Republic | C48: 7 | D48: CZK | E48: SWP | F48: 10 | G48: 10 | H48: 3.75 | I48: 0 | J48: 0 | K48: 0 | L48: 0 | M48: 0 | N48: 0 | O48: 0 | P48: 0 | Q48: 0 | R48: 1 | S48: 0 | T48: 0 | U48: 0 | V48: 0 | W48: 0 | X48: 0 | Y48: 0 | Z48: 0 | AA48: 0 | AB48: 0 | AC48: 0 | AD48: 0 | AE48: 0 | AF48: 0 | AG48: 0 | AH48: 0 | AI48: 0 | AJ48: 0 | AK48: 0 | AL48: 0 | AM48: 0 | AN48: 0 | AO48: 0 | AP48: 0 | AQ48: 0 | AR48: 0 | AS48: 0 | AT48: 0 | AU48: 0 | AV48: 0 | AW48: 0 | AX48: 0 | AY48: 0 | AZ48: 0 | BA48: 0 | BB48: 0 | BC48: 0 | BD48: 0 | BE48: 0 | BF48: 0
B49: Denmark | C49: 8 | D49: DKK | E49: SWP | F49: 20 | G49: 20 | H49: 3.75 | I49: 0 | J49: 0 | K49: 0 | L49: 0 | M49: 0 | N49: 0 | O49: 0 | P49: 0 | Q49: 0 | R49: 0 | S49: 0 | T49: 0 | U49: 0 | V49: 0 | W49: 0 | X49: 0 | Y49: 0 | Z49: 0 | AA49: 0 | AB49: 1 | AC49: 0 | AD49: 0 | AE49: 0 | AF49: 0 | AG49: 0 | AH49: 0 | AI49: 0 | AJ49: 0 | AK49: 0 | AL49: 0 | AM49: 0 | AN49: 0 | AO49: 0 | AP49: 0 | AQ49: 0 | AR49: 0 | AS49: 0 | AT49: 0 | AU49: 0 | AV49: 0 | AW49: 0 | AX49: 0 | AY49: 0 | AZ49: 0 | BA49: 0 | BB49: 0 | BC49: 0 | BD49: 0 | BE49: 0 | BF49: 0
B50: Hungary | C50: 14 | D50: HUF | E50: SWP | F50: 10 | G50: 10 | H50: 4.5 | I50: 0 | J50: 0 | K50: 0 | L50: 0 | M50: 0 | N50: 0 | O50: 0 | P50: 0 | Q50: 0 | R50: 1 | S50: 0 | T50: 0 | U50: 0 | V50: 0 | W50: 0 | X50: 0 | Y50: 0 | Z50: 0 | AA50: 0 | AB50: 0 | AC50: 0 | AD50: 0 | AE50: 0 | AF50: 0 | AG50: 0 | AH50: 0 | AI50: 0 | AJ50: 0 | AK50: 0 | AL50: 0 | AM50: 0 | AN50: 0 | AO50: 0 | AP50: 0 | AQ50: 0 | AR50: 0 | AS50: 0 | AT50: 0 | AU50: 0 | AV50: 0 | AW50: 0 | AX50: 0 | AY50: 0 | AZ50: 0 | BA50: 0 | BB50: 0 | BC50: 0 | BD50: 0 | BE50: 0 | BF50: 0
B51: Iceland | C51: 15 | D51: ISK | E51: GVT | F51: 8 | G51: 8 | H51: 3.75 | I51: 0 | J51: 0 | K51: 0 | L51: 0 | M51: 0 | N51: 0 | O51: 0 | P51: 1 | Q51: 0 | R51: 0 | S51: 0 | T51: 0 | U51: 0 | V51: 0 | W51: 0 | X51: 0 | Y51: 0 | Z51: 0 | AA51: 0 | AB51: 0 | AC51: 0 | AD51: 0 | AE51: 0 | AF51: 0 | AG51: 0 | AH51: 0 | AI51: 0 | AJ51: 0 | AK51: 0 | AL51: 0 | AM51: 0 | AN51: 0 | AO51: 0 | AP51: 0 | AQ51: 0 | AR51: 0 | AS51: 0 | AT51: 0 | AU51: 0 | AV51: 0 | AW51: 0 | AX51: 0 | AY51: 0 | AZ51: 0 | BA51: 0 | BB51: 0 | BC51: 0 | BD51: 0 | BE51: 0 | BF51: 0
B52: Liechtenstein | C52: 19 | D52: CHF | E52: SWP | F52: 10 | G52: 10 | H52: 2.75 | I52: 0 | J52: 0 | K52: 0 | L52: 0 | M52: 0 | N52: 0 | O52: 0 | P52: 0 | Q52: 0 | R52: 1 | S52: 0 | T52: 0 | U52: 0 | V52: 0 | W52: 0 | X52: 0 | Y52: 0 | Z52: 0 | AA52: 0 | AB52: 0 | AC52: 0 | AD52: 0 | AE52: 0 | AF52: 0 | AG52: 0 | AH52: 0 | AI52: 0 | AJ52: 0 | AK52: 0 | AL52: 0 | AM52: 0 | AN52: 0 | AO52: 0 | AP52: 0 | AQ52: 0 | AR52: 0 | AS52: 0 | AT52: 0 | AU52: 0 | AV52: 0 | AW52: 0 | AX52: 0 | AY52: 0 | AZ52: 0 | BA52: 0 | BB52: 0 | BC52: 0 | BD52: 0 | BE52: 0 | BF52: 0
B53: Norway | C53: 24 | D53: NOK | E53: SWP | F53: 10 | G53: 10 | H53: 3.75 | I53: 0 | J53: 0 | K53: 0 | L53: 0 | M53: 0 | N53: 0 | O53: 0 | P53: 0 | Q53: 0 | R53: 1 | S53: 0 | T53: 0 | U53: 0 | V53: 0 | W53: 0 | X53: 0 | Y53: 0 | Z53: 0 | AA53: 0 | AB53: 0 | AC53: 0 | AD53: 0 | AE53: 0 | AF53: 0 | AG53: 0 | AH53: 0 | AI53: 0 | AJ53: 0 | AK53: 0 | AL53: 0 | AM53: 0 | AN53: 0 | AO53: 0 | AP53: 0 | AQ53: 0 | AR53: 0 | AS53: 0 | AT53: 0 | AU53: 0 | AV53: 0 | AW53: 0 | AX53: 0 | AY53: 0 | AZ53: 0 | BA53: 0 | BB53: 0 | BC53: 0 | BD53: 0 | BE53: 0 | BF53: 0
B54: Poland | C54: 25 | D54: PLN | E54: SWP | F54: 10 | G54: 10 | H54: 3.75 | I54: 0 | J54: 0 | K54: 0 | L54: 0 | M54: 0 | N54: 0 | O54: 0 | P54: 0 | Q54: 0 | R54: 1 | S54: 0 | T54: 0 | U54: 0 | V54: 0 | W54: 0 | X54: 0 | Y54: 0 | Z54: 0 | AA54: 0 | AB54: 0 | AC54: 0 | AD54: 0 | AE54: 0 | AF54: 0 | AG54: 0 | AH54: 0 | AI54: 0 | AJ54: 0 | AK54: 0 | AL54: 0 | AM54: 0 | AN54: 0 | AO54: 0 | AP54: 0 | AQ54: 0 | AR54: 0 | AS54: 0 | AT54: 0 | AU54: 0 | AV54: 0 | AW54: 0 | AX54: 0 | AY54: 0 | AZ54: 0 | BA54: 0 | BB54: 0 | BC54: 0 | BD54: 0 | BE54: 0 | BF54: 0
B55: Romania | C55: 27 | D55: RON | E55: GVT | F55: 10 | G55: 15 | H55: 3.75 | I55: 0 | J55: 0 | K55: 0 | L55: 0 | M55: 0 | N55: 0 | O55: 0 | P55: 0 | Q55: 0 | R55: 1 | S55: 0 | T55: 0 | U55: 0 | V55: 0 | W55: 0 | X55: 0 | Y55: 0 | Z55: 0 | AA55: 0 | AB55: 0 | AC55: 0 | AD55: 0 | AE55: 0 | AF55: 0 | AG55: 0 | AH55: 0 | AI55: 0 | AJ55: 0 | AK55: 0 | AL55: 0 | AM55: 0 | AN55: 0 | AO55: 0 | AP55: 0 | AQ55: 0 | AR55: 0 | AS55: 0 | AT55: 0 | AU55: 0 | AV55: 0 | AW55: 0 | AX55: 0 | AY55: 0 | AZ55: 0 | BA55: 0 | BB55: 0 | BC55: 0 | BD55: 0 | BE55: 0 | BF55: 0
B56: Russia | C56: 28 | D56: RUB | E56: GVT | F56: 15 | G56: 15 | H56: 4.65 | I56: 0 | J56: 0 | K56: 0 | L56: 0 | M56: 0 | N56: 0 | O56: 0 | P56: 0 | Q56: 0 | R56: 0 | S56: 0 | T56: 0 | U56: 0 | V56: 0 | W56: 1 | X56: 0 | Y56: 0 | Z56: 0 | AA56: 0 | AB56: 0 | AC56: 0 | AD56: 0 | AE56: 0 | AF56: 0 | AG56: 0 | AH56: 0 | AI56: 0 | AJ56: 0 | AK56: 0 | AL56: 0 | AM56: 0 | AN56: 0 | AO56: 0 | AP56: 0 | AQ56: 0 | AR56: 0 | AS56: 0 | AT56: 0 | AU56: 0 | AV56: 0 | AW56: 0 | AX56: 0 | AY56: 0 | AZ56: 0 | BA56: 0 | BB56: 0 | BC56: 0 | BD56: 0 | BE56: 0 | BF56: 0
B57: Sweden | C57: 32 | D57: SEK | E57: SWP | F57: 10 | G57: 10 | H57: 3.75 | I57: 0 | J57: 0 | K57: 0 | L57: 0 | M57: 0 | N57: 0 | O57: 0 | P57: 0 | Q57: 0 | R57: 1 | S57: 0 | T57: 0 | U57: 0 | V57: 0 | W57: 0 | X57: 0 | Y57: 0 | Z57: 0 | AA57: 0 | AB57: 0 | AC57: 0 | AD57: 0 | AE57: 0 | AF57: 0 | AG57: 0 | AH57: 0 | AI57: 0 | AJ57: 0 | AK57: 0 | AL57: 0 | AM57: 0 | AN57: 0 | AO57: 0 | AP57: 0 | AQ57: 0 | AR57: 0 | AS57: 0 | AT57: 0 | AU57: 0 | AV57: 0 | AW57: 0 | AX57: 0 | AY57: 0 | AZ57: 0 | BA57: 0 | BB57: 0 | BC57: 0 | BD57: 0 | BE57: 0 | BF57: 0
B58: Switzerland | C58: 33 | D58: CHF | E58: SWP | F58: 10 | G58: 10 | H58: 2.75 | I58: 0 | J58: 0 | K58: 0 | L58: 0 | M58: 0 | N58: 0 | O58: 0 | P58: 0 | Q58: 0 | R58: 1 | S58: 0 | T58: 0 | U58: 0 | V58: 0 | W58: 0 | X58: 0 | Y58: 0 | Z58: 0 | AA58: 0 | AB58: 0 | AC58: 0 | AD58: 0 | AE58: 0 | AF58: 0 | AG58: 0 | AH58: 0 | AI58: 0 | AJ58: 0 | AK58: 0 | AL58: 0 | AM58: 0 | AN58: 0 | AO58: 0 | AP58: 0 | AQ58: 0 | AR58: 0 | AS58: 0 | AT58: 0 | AU58: 0 | AV58: 0 | AW58: 0 | AX58: 0 | AY58: 0 | AZ58: 0 | BA58: 0 | BB58: 0 | BC58: 0 | BD58: 0 | BE58: 0 | BF58: 0
B59: United Kingdom | C59: 34 | D59: GBP | E59: SWP | F59: 40 | G59: 50 | H59: 3.75 | I59: 0 | J59: 0 | K59: 0 | L59: 0 | M59: 0 | N59: 0 | O59: 0 | P59: 0 | Q59: 0 | R59: 0 | S59: 0 | T59: 0 | U59: 0 | V59: 0 | W59: 0 | X59: 0 | Y59: 0 | Z59: 0 | AA59: 0 | AB59: 0 | AC59: 0 | AD59: 0 | AE59: 0 | AF59: 0 | AG59: 0 | AH59: 0 | AI59: 0 | AJ59: 0 | AK59: 0 | AL59: 0 | AM59: 0 | AN59: 0 | AO59: 0 | AP59: 0 | AQ59: 0 | AR59: 0 | AS59: 0 | AT59: 0 | AU59: 0 | AV59: 0.55 | AW59: 0 | AX59: 0 | AY59: 0 | AZ59: 0 | BA59: 0 | BB59: 0 | BC59: 0 | BD59: 0 | BE59: 0 | BF59: 0.45
B60: Australia | C60: 35 | D60: AUD | E60: SWP | F60: 15 | G60: 30 | H60: 3.75 | I60: 0 | J60: 0 | K60: 0 | L60: 0 | M60: 0 | N60: 0 | O60: 0 | P60: 0 | Q60: 0 | R60: 0 | S60: 0 | T60: 0 | U60: 0 | V60: 0 | W60: 0.48 | X60: 0 | Y60: 0 | Z60: 0 | AA60: 0 | AB60: 0.25 | AC60: 0 | AD60: 0 | AE60: 0 | AF60: 0 | AG60: 0.07 | AH60: 0 | AI60: 0 | AJ60: 0 | AK60: 0 | AL60: 0.2 | AM60: 0 | AN60: 0 | AO60: 0 | AP60: 0 | AQ60: 0 | AR60: 0 | AS60: 0 | AT60: 0 | AU60: 0 | AV60: 0 | AW60: 0 | AX60: 0 | AY60: 0 | AZ60: 0 | BA60: 0 | BB60: 0 | BC60: 0 | BD60: 0 | BE60: 0 | BF60: 0
B61: Brazil | C61: 36 | D61: BRL | E61: GVT | F61: 10 | G61: 10 | H61: 5.5 | I61: 0 | J61: 0 | K61: 0 | L61: 0 | M61: 0 | N61: 0 | O61: 0 | P61: 0 | Q61: 0 | R61: 1 | S61: 0 | T61: 0 | U61: 0 | V61: 0 | W61: 0 | X61: 0 | Y61: 0 | Z61: 0 | AA61: 0 | AB61: 0 | AC61: 0 | AD61: 0 | AE61: 0 | AF61: 0 | AG61: 0 | AH61: 0 | AI61: 0 | AJ61: 0 | AK61: 0 | AL61: 0 | AM61: 0 | AN61: 0 | AO61: 0 | AP61: 0 | AQ61: 0 | AR61: 0 | AS61: 0 | AT61: 0 | AU61: 0 | AV61: 0 | AW61: 0 | AX61: 0 | AY61: 0 | AZ61: 0 | BA61: 0 | BB61: 0 | BC61: 0 | BD61: 0 | BE61: 0 | BF61: 0
B62: Canada | C62: 37 | D62: CAD | E62: SWP | F62: 30 | G62: 30 | H62: 3.75 | I62: 0 | J62: 0 | K62: 0 | L62: 0 | M62: 0 | N62: 0 | O62: 0 | P62: 0 | Q62: 0 | R62: 0 | S62: 0 | T62: 0 | U62: 0 | V62: 0 | W62: 0 | X62: 0 | Y62: 0 | Z62: 0 | AA62: 0 | AB62: 0 | AC62: 0 | AD62: 0 | AE62: 0 | AF62: 0 | AG62: 0 | AH62: 0 | AI62: 0 | AJ62: 0 | AK62: 0 | AL62: 1 | AM62: 0 | AN62: 0 | AO62: 0 | AP62: 0 | AQ62: 0 | AR62: 0 | AS62: 0 | AT62: 0 | AU62: 0 | AV62: 0 | AW62: 0 | AX62: 0 | AY62: 0 | AZ62: 0 | BA62: 0 | BB62: 0 | BC62: 0 | BD62: 0 | BE62: 0 | BF62: 0
B63: Chile | C63: 38 | D63: CLP | E63: GVT | F63: 10 | G63: 10 | H63: 4.5 | I63: 0 | J63: 0 | K63: 0 | L63: 0 | M63: 0 | N63: 0 | O63: 0 | P63: 0 | Q63: 0 | R63: 1 | S63: 0 | T63: 0 | U63: 0 | V63: 0 | W63: 0 | X63: 0 | Y63: 0 | Z63: 0 | AA63: 0 | AB63: 0 | AC63: 0 | AD63: 0 | AE63: 0 | AF63: 0 | AG63: 0 | AH63: 0 | AI63: 0 | AJ63: 0 | AK63: 0 | AL63: 0 | AM63: 0 | AN63: 0 | AO63: 0 | AP63: 0 | AQ63: 0 | AR63: 0 | AS63: 0 | AT63: 0 | AU63: 0 | AV63: 0 | AW63: 0 | AX63: 0 | AY63: 0 | AZ63: 0 | BA63: 0 | BB63: 0 | BC63: 0 | BD63: 0 | BE63: 0 | BF63: 0
B64: China | C64: 39 | D64: CNY | E64: SWP | F64: 10 | G64: 10 | H64: 4.5 | I64: 0 | J64: 0 | K64: 0 | L64: 0 | M64: 0 | N64: 0 | O64: 0 | P64: 0 | Q64: 0 | R64: 1 | S64: 0 | T64: 0 | U64: 0 | V64: 0 | W64: 0 | X64: 0 | Y64: 0 | Z64: 0 | AA64: 0 | AB64: 0 | AC64: 0 | AD64: 0 | AE64: 0 | AF64: 0 | AG64: 0 | AH64: 0 | AI64: 0 | AJ64: 0 | AK64: 0 | AL64: 0 | AM64: 0 | AN64: 0 | AO64: 0 | AP64: 0 | AQ64: 0 | AR64: 0 | AS64: 0 | AT64: 0 | AU64: 0 | AV64: 0 | AW64: 0 | AX64: 0 | AY64: 0 | AZ64: 0 | BA64: 0 | BB64: 0 | BC64: 0 | BD64: 0 | BE64: 0 | BF64: 0
B65: Colombia | C65: 40 | D65: COP | E65: GVT | F65: 10 | G65: 10 | H65: 4.5 | I65: 0 | J65: 0 | K65: 0 | L65: 0 | M65: 0 | N65: 0 | O65: 0 | P65: 0 | Q65: 0 | R65: 1 | S65: 0 | T65: 0 | U65: 0 | V65: 0 | W65: 0 | X65: 0 | Y65: 0 | Z65: 0 | AA65: 0 | AB65: 0 | AC65: 0 | AD65: 0 | AE65: 0 | AF65: 0 | AG65: 0 | AH65: 0 | AI65: 0 | AJ65: 0 | AK65: 0 | AL65: 0 | AM65: 0 | AN65: 0 | AO65: 0 | AP65: 0 | AQ65: 0 | AR65: 0 | AS65: 0 | AT65: 0 | AU65: 0 | AV65: 0 | AW65: 0 | AX65: 0 | AY65: 0 | AZ65: 0 | BA65: 0 | BB65: 0 | BC65: 0 | BD65: 0 | BE65: 0 | BF65: 0
B66: Hong Kong | C66: 41 | D66: HKD | E66: SWP | F66: 15 | G66: 15 | H66: 3.75 | I66: 0 | J66: 0 | K66: 0 | L66: 0 | M66: 0 | N66: 0 | O66: 0 | P66: 0 | Q66: 0 | R66: 0 | S66: 0 | T66: 0 | U66: 0 | V66: 0 | W66: 1 | X66: 0 | Y66: 0 | Z66: 0 | AA66: 0 | AB66: 0 | AC66: 0 | AD66: 0 | AE66: 0 | AF66: 0 | AG66: 0 | AH66: 0 | AI66: 0 | AJ66: 0 | AK66: 0 | AL66: 0 | AM66: 0 | AN66: 0 | AO66: 0 | AP66: 0 | AQ66: 0 | AR66: 0 | AS66: 0 | AT66: 0 | AU66: 0 | AV66: 0 | AW66: 0 | AX66: 0 | AY66: 0 | AZ66: 0 | BA66: 0 | BB66: 0 | BC66: 0 | BD66: 0 | BE66: 0 | BF66: 0
B67: India | C67: 42 | D67: INR | E67: GVT | F67: 10 | G67: 10 | H67: 5.5 | I67: 0 | J67: 0 | K67: 0 | L67: 0 | M67: 0 | N67: 0 | O67: 0 | P67: 0 | Q67: 0 | R67: 1 | S67: 0 | T67: 0 | U67: 0 | V67: 0 | W67: 0 | X67: 0 | Y67: 0 | Z67: 0 | AA67: 0 | AB67: 0 | AC67: 0 | AD67: 0 | AE67: 0 | AF67: 0 | AG67: 0 | AH67: 0 | AI67: 0 | AJ67: 0 | AK67: 0 | AL67: 0 | AM67: 0 | AN67: 0 | AO67: 0 | AP67: 0 | AQ67: 0 | AR67: 0 | AS67: 0 | AT67: 0 | AU67: 0 | AV67: 0 | AW67: 0 | AX67: 0 | AY67: 0 | AZ67: 0 | BA67: 0 | BB67: 0 | BC67: 0 | BD67: 0 | BE67: 0 | BF67: 0
B68: Japan | C68: 43 | D68: JPY | E68: SWP | F68: 25 | G68: 40 | H68: 3.5 | I68: 0 | J68: 0 | K68: 0 | L68: 0 | M68: 0 | N68: 0 | O68: 0 | P68: 0 | Q68: 0 | R68: 0 | S68: 0 | T68: 0 | U68: 0 | V68: 0 | W68: 0 | X68: 0 | Y68: 0 | Z68: 0 | AA68: 0 | AB68: 0 | AC68: 0 | AD68: 0 | AE68: 0 | AF68: 0 | AG68: 0.17 | AH68: 0 | AI68: 0 | AJ68: 0 | AK68: 0 | AL68: 0.81 | AM68: 0 | AN68: 0 | AO68: 0 | AP68: 0 | AQ68: 0 | AR68: 0 | AS68: 0 | AT68: 0 | AU68: 0 | AV68: 0.02 | AW68: 0 | AX68: 0 | AY68: 0 | AZ68: 0 | BA68: 0 | BB68: 0 | BC68: 0 | BD68: 0 | BE68: 0 | BF68: 0
B69: Malaysia | C69: 44 | D69: MYR | E69: GVT | F69: 20 | G69: 20 | H69: 3.75 | I69: 0 | J69: 0 | K69: 0 | L69: 0 | M69: 0 | N69: 0 | O69: 0 | P69: 0 | Q69: 0 | R69: 0 | S69: 0 | T69: 0 | U69: 0 | V69: 0 | W69: 0 | X69: 0 | Y69: 0 | Z69: 0 | AA69: 0 | AB69: 1 | AC69: 0 | AD69: 0 | AE69: 0 | AF69: 0 | AG69: 0 | AH69: 0 | AI69: 0 | AJ69: 0 | AK69: 0 | AL69: 0 | AM69: 0 | AN69: 0 | AO69: 0 | AP69: 0 | AQ69: 0 | AR69: 0 | AS69: 0 | AT69: 0 | AU69: 0 | AV69: 0 | AW69: 0 | AX69: 0 | AY69: 0 | AZ69: 0 | BA69: 0 | BB69: 0 | BC69: 0 | BD69: 0 | BE69: 0 | BF69: 0
B70: Mexico | C70: 45 | D70: MXN | E70: SWP | F70: 20 | G70: 20 | H70: 4.75 | I70: 0 | J70: 0 | K70: 0 | L70: 0 | M70: 0 | N70: 0 | O70: 0 | P70: 0 | Q70: 0 | R70: 0 | S70: 0 | T70: 0 | U70: 0 | V70: 0 | W70: 0 | X70: 0 | Y70: 0 | Z70: 0 | AA70: 0 | AB70: 1 | AC70: 0 | AD70: 0 | AE70: 0 | AF70: 0 | AG70: 0 | AH70: 0 | AI70: 0 | AJ70: 0 | AK70: 0 | AL70: 0 | AM70: 0 | AN70: 0 | AO70: 0 | AP70: 0 | AQ70: 0 | AR70: 0 | AS70: 0 | AT70: 0 | AU70: 0 | AV70: 0 | AW70: 0 | AX70: 0 | AY70: 0 | AZ70: 0 | BA70: 0 | BB70: 0 | BC70: 0 | BD70: 0 | BE70: 0 | BF70: 0
B71: New Zealand | C71: 46 | D71: NZD | E71: SWP | F71: 20 | G71: 20 | H71: 3.75 | I71: 0 | J71: 0 | K71: 0 | L71: 0 | M71: 0 | N71: 0 | O71: 0 | P71: 0 | Q71: 0 | R71: 0 | S71: 0 | T71: 0 | U71: 0 | V71: 0 | W71: 0 | X71: 0 | Y71: 0 | Z71: 0 | AA71: 0 | AB71: 1 | AC71: 0 | AD71: 0 | AE71: 0 | AF71: 0 | AG71: 0 | AH71: 0 | AI71: 0 | AJ71: 0 | AK71: 0 | AL71: 0 | AM71: 0 | AN71: 0 | AO71: 0 | AP71: 0 | AQ71: 0 | AR71: 0 | AS71: 0 | AT71: 0 | AU71: 0 | AV71: 0 | AW71: 0 | AX71: 0 | AY71: 0 | AZ71: 0 | BA71: 0 | BB71: 0 | BC71: 0 | BD71: 0 | BE71: 0 | BF71: 0
B72: Singapore | C72: 47 | D72: SGD | E72: SWP | F72: 20 | G72: 20 | H72: 3.75 | I72: 0 | J72: 0 | K72: 0 | L72: 0 | M72: 0 | N72: 0 | O72: 0 | P72: 0 | Q72: 0 | R72: 0 | S72: 0 | T72: 0 | U72: 0 | V72: 0 | W72: 0 | X72: 0 | Y72: 0 | Z72: 0 | AA72: 0 | AB72: 1 | AC72: 0 | AD72: 0 | AE72: 0 | AF72: 0 | AG72: 0 | AH72: 0 | AI72: 0 | AJ72: 0 | AK72: 0 | AL72: 0 | AM72: 0 | AN72: 0 | AO72: 0 | AP72: 0 | AQ72: 0 | AR72: 0 | AS72: 0 | AT72: 0 | AU72: 0 | AV72: 0 | AW72: 0 | AX72: 0 | AY72: 0 | AZ72: 0 | BA72: 0 | BB72: 0 | BC72: 0 | BD72: 0 | BE72: 0 | BF72: 0
B73: South Africa | C73: 48 | D73: ZAR | E73: SWP | F73: 15 | G73: 15 | H73: 5.5 | I73: 0 | J73: 0 | K73: 0 | L73: 0 | M73: 0 | N73: 0 | O73: 0 | P73: 0 | Q73: 0 | R73: 0 | S73: 0 | T73: 0 | U73: 0 | V73: 0 | W73: 1 | X73: 0 | Y73: 0 | Z73: 0 | AA73: 0 | AB73: 0 | AC73: 0 | AD73: 0 | AE73: 0 | AF73: 0 | AG73: 0 | AH73: 0 | AI73: 0 | AJ73: 0 | AK73: 0 | AL73: 0 | AM73: 0 | AN73: 0 | AO73: 0 | AP73: 0 | AQ73: 0 | AR73: 0 | AS73: 0 | AT73: 0 | AU73: 0 | AV73: 0 | AW73: 0 | AX73: 0 | AY73: 0 | AZ73: 0 | BA73: 0 | BB73: 0 | BC73: 0 | BD73: 0 | BE73: 0 | BF73: 0
B74: South Korea | C74: 49 | D74: KRW | E74: SWP | F74: 20 | G74: 20 | H74: 3.75 | I74: 0 | J74: 0 | K74: 0 | L74: 0 | M74: 0 | N74: 0 | O74: 0 | P74: 0 | Q74: 0 | R74: 0 | S74: 0 | T74: 0 | U74: 0 | V74: 0 | W74: 0 | X74: 0 | Y74: 0 | Z74: 0 | AA74: 0 | AB74: 1 | AC74: 0 | AD74: 0 | AE74: 0 | AF74: 0 | AG74: 0 | AH74: 0 | AI74: 0 | AJ74: 0 | AK74: 0 | AL74: 0 | AM74: 0 | AN74: 0 | AO74: 0 | AP74: 0 | AQ74: 0 | AR74: 0 | AS74: 0 | AT74: 0 | AU74: 0 | AV74: 0 | AW74: 0 | AX74: 0 | AY74: 0 | AZ74: 0 | BA74: 0 | BB74: 0 | BC74: 0 | BD74: 0 | BE74: 0 | BF74: 0
B75: Taiwan | C75: 50 | D75: TWD | E75: GVT | F75: 10 | G75: 10 | H75: 3.75 | I75: 0 | J75: 0 | K75: 0 | L75: 0 | M75: 0 | N75: 0 | O75: 0 | P75: 0 | Q75: 0 | R75: 1 | S75: 0 | T75: 0 | U75: 0 | V75: 0 | W75: 0 | X75: 0 | Y75: 0 | Z75: 0 | AA75: 0 | AB75: 0 | AC75: 0 | AD75: 0 | AE75: 0 | AF75: 0 | AG75: 0 | AH75: 0 | AI75: 0 | AJ75: 0 | AK75: 0 | AL75: 0 | AM75: 0 | AN75: 0 | AO75: 0 | AP75: 0 | AQ75: 0 | AR75: 0 | AS75: 0 | AT75: 0 | AU75: 0 | AV75: 0 | AW75: 0 | AX75: 0 | AY75: 0 | AZ75: 0 | BA75: 0 | BB75: 0 | BC75: 0 | BD75: 0 | BE75: 0 | BF75: 0
B76: Thailand | C76: 51 | D76: THB | E76: GVT | F76: 15 | G76: 15 | H76: 3.75 | I76: 0 | J76: 0 | K76: 0 | L76: 0 | M76: 0 | N76: 0 | O76: 0 | P76: 0 | Q76: 0 | R76: 0 | S76: 0 | T76: 0 | U76: 0 | V76: 0 | W76: 1 | X76: 0 | Y76: 0 | Z76: 0 | AA76: 0 | AB76: 0 | AC76: 0 | AD76: 0 | AE76: 0 | AF76: 0 | AG76: 0 | AH76: 0 | AI76: 0 | AJ76: 0 | AK76: 0 | AL76: 0 | AM76: 0 | AN76: 0 | AO76: 0 | AP76: 0 | AQ76: 0 | AR76: 0 | AS76: 0 | AT76: 0 | AU76: 0 | AV76: 0 | AW76: 0 | AX76: 0 | AY76: 0 | AZ76: 0 | BA76: 0 | BB76: 0 | BC76: 0 | BD76: 0 | BE76: 0 | BF76: 0
B77: Turkey | C77: 52 | D77: TRY | E77: GVT | F77: 9 | G77: 9 | H77: 5.5 | I77: 0 | J77: 0 | K77: 0 | L77: 0 | M77: 0 | N77: 0 | O77: 0 | P77: 0 | Q77: 1 | R77: 0 | S77: 0 | T77: 0 | U77: 0 | V77: 0 | W77: 0 | X77: 0 | Y77: 0 | Z77: 0 | AA77: 0 | AB77: 0 | AC77: 0 | AD77: 0 | AE77: 0 | AF77: 0 | AG77: 0 | AH77: 0 | AI77: 0 | AJ77: 0 | AK77: 0 | AL77: 0 | AM77: 0 | AN77: 0 | AO77: 0 | AP77: 0 | AQ77: 0 | AR77: 0 | AS77: 0 | AT77: 0 | AU77: 0 | AV77: 0 | AW77: 0 | AX77: 0 | AY77: 0 | AZ77: 0 | BA77: 0 | BB77: 0 | BC77: 0 | BD77: 0 | BE77: 0 | BF77: 0
B78: United States | C78: 53 | D78: USD | E78: SWP | F78: 25 | G78: 30 | H78: 3.75 | I78: 0 | J78: 0 | K78: 0 | L78: 0 | M78: 0 | N78: 0 | O78: 0 | P78: 0 | Q78: 0 | R78: 0 | S78: 0 | T78: 0 | U78: 0 | V78: 0 | W78: 0 | X78: 0 | Y78: 0 | Z78: 0 | AA78: 0 | AB78: 0 | AC78: 0 | AD78: 0 | AE78: 0 | AF78: 0 | AG78: 0.11 | AH78: 0 | AI78: 0 | AJ78: 0 | AK78: 0 | AL78: 0.89 | AM78: 0 | AN78: 0 | AO78: 0 | AP78: 0 | AQ78: 0 | AR78: 0 | AS78: 0 | AT78: 0 | AU78: 0 | AV78: 0 | AW78: 0 | AX78: 0 | AY78: 0 | AZ78: 0 | BA78: 0 | BB78: 0 | BC78: 0 | BD78: 0 | BE78: 0 | BF78: 0
B80: Currency
B81: EUR
B82: BGN
B83: HRK
B84: CZK
B85: DKK
B86: HUF
B87: ISK
B88: CHF
B89: NOK
B90: PLN
B91: RON
B92: RUB
B93: SEK
B94: GBP
B95: AUD
B96: BRL
B97: CAD
B98: CLP
B99: CNY
B100: COP
B101: HKD
B102: INR
B103: JPY
B104: MYR
B105: MXN
B106: NZD
B107: SGD
B108: ZAR
B109: KRW
B110: TWD
B111: THB
B112: TRY
B113: USD

Sheet Shocks (hidden)
B3: Standard calculation of the Solvency Capital Requirement
B6: Interest rate risk submodule
D9: Current SCR Shocks | F9: CP Scenario 1 Shocks | J9: Shocks until 10Y
D10: Down Shock | E10: Up Shock | F10: smdown | G10: bmdown | H10: smup | I10: bmup | J10: smdown | K10: bmdown | L10: smup | M10: bmup
B12: 1 | D12: 0.75 | E12: 0.7 | F12: 0.58 | G12: 0.0116 | H12: 0.61 | I12: 0.0214 | J12: 0.58 | K12: 0.0116 | L12: 0.61 | M12: 0.0214
B13: 2 | D13: 0.65 | E13: 0.7 | F13: 0.51 | G13: 0.0099 | H13: 0.53 | I13: 0.0186 | J13: 0.51 | K13: 0.0099 | L13: 0.53 | M13: 0.0186
B14: 3 | D14: 0.56 | E14: 0.64 | F14: 0.44 | G14: 0.0083 | H14: 0.49 | I14: 0.0172 | J14: 0.44 | K14: 0.0083 | L14: 0.49 | M14: 0.0172
B15: 4 | D15: 0.5 | E15: 0.59 | F15: 0.4 | G15: 0.0074 | H15: 0.46 | I15: 0.0161 | J15: 0.4 | K15: 0.0074 | L15: 0.46 | M15: 0.0161
B16: 5 | D16: 0.46 | E16: 0.55 | F16: 0.4 | G16: 0.0071 | H16: 0.45 | I16: 0.0158 | J16: 0.4 | K16: 0.0071 | L16: 0.45 | M16: 0.0158
